Workbook

Sheet Sample Report (hidden)
A2: Date
A3: Hen
A4: Program
A5: Start at 999999
A6: Sequence component 1 | B6: Time 1 | C6: Seqeunce Component 2 | D6: Time 2 | E6: Seqeunce Component 3 | F6: Time 3 | G6: Correct 0 = No 1=Yes | J6: Seqeunce | K6: Time
A7: 12 | B7: 7 | C7: 12 | D7: 42 | E7: 13 | F7: 18 | G7: if 77 new line, if 31 or 41 = yes new line on 77, | J7: =string of Seqeunce compponent 1, 2 & 3 | K7: =time 3
A8: This continues until ther is a 1 on its own to indicate start of summary data
J9: 10-19 =1
A10: Summary Data | J10: 20-29 =2
A11: Correct | B11: Incorrect | C11: Rft | D11: total | E11: Av Correct | F11: Av Incorrect | G11: Percent correct | H11: Time | J11: in this example the seqeunce would be 111
A12: 40 | B12: 33 | C12: 40 | D12: 73 | E12: 23.95 | F12: 15 | G12: 54 | H12: 806

Sheet Summary
A2: Day | B2: Date | C2: Average Response Rate | D2: Target % | E2: RF for non correct sequence | F2: U Value | K2: Block 1 | L2: Block 2 | M2: Block 3 | N2: Block 4 | O2: Block 5 | P2: Block 6
A3: 1 | B3: ='!M104B1T.ayl'!B2:C2 -> <date> | C3: =('!M104B1T.ayl'!H88/60)/'!M104B1T.ayl'!Q3 -> 4.615243902 | D3: ='!M104B1T.ayl'!N28/'!M104B1T.ayl'!Q3 -> 0.01219512195 | E3: =SUM('!M104B1T.ayl'!L28:Q28)/'!M104B1T.ayl'!Q3 -> 15.1097561 | F3: ='!M104B1T.ayl'!Q24 -> 0.4044495173 | J3: Average Response Rate | K3: =AVERAGE(C3:C7) -> 6.500179972 | L3: =AVERAGE(C8:C12) -> 11.17355374 | M3: =AVERAGE(C13:C17) -> 15.70809118 | N3: =AVERAGE(C18:C22) -> 11.63841958 | O3: =AVERAGE(C23:C27) -> 11.80316421 | P3: =AVERAGE(C28:C32) -> 29.47673611
A4: 2 | B4: ='!M105B4T.ayl'!B2:C2 -> <date> | C4: =('!M105B4T.ayl'!H76/60)/'!M105B4T.ayl'!Q3 -> 3.418779343 | D4: ='!M105B4T.ayl'!N28/'!M105B4T.ayl'!Q3 -> 0 | E4: =SUM('!M105B4T.ayl'!L28:Q28)/'!M105B4T.ayl'!Q3 -> 17.54929577 | F4: ='!M105B4T.ayl'!Q24 -> 0.455495744 | J4: Target % | K4: =AVERAGE(D3:D7) -> 0.00243902439 | L4: =AVERAGE(D8:D12) -> 0.00625 | M4: =AVERAGE(D13:D17) -> 0 | N4: =AVERAGE(D18:D22) -> 0 | O4: =AVERAGE(D23:D27) -> 0 | P4: =AVERAGE(D28:D32) -> 0.04166666667
A5: 3 | B5: ='!M106B1T.ayl'!B2:C2 -> <date> | C5: =('!M106B1T.ayl'!H49/60)/'!M106B1T.ayl'!Q3 -> 8.995348837 | D5: ='!M106B1T.ayl'!N28/'!M106B1T.ayl'!Q3 -> 0 | E5: =SUM('!M106B1T.ayl'!L28:Q28)/'!M106B1T.ayl'!Q3 -> 49.41860465 | F5: ='!M106B1T.ayl'!Q24 -> 0.5126084326 | J5: CCRF | K5: =AVERAGE(E3:E7) -> 34.90719797 | L5: =AVERAGE(E8:E12) -> 33.68093954 | M5: =AVERAGE(E13:E17) -> 0.3426747015 | N5: =AVERAGE(E18:E22) -> 6.767512488 | O5: =AVERAGE(E23:E27) -> 5.085630115 | P5: =AVERAGE(E28:E32) -> 0.375
A6: 4 | B6: ='!M109B2T.ayl'!B2:C2 -> <date> | C6: =('!M109B2T.ayl'!H30/60)/'!M109B2T.ayl'!Q3 -> 15.47152778 | D6: ='!M109B2T.ayl'!N28/'!M109B2T.ayl'!Q3 -> 0 | E6: =SUM('!M109B2T.ayl'!L28:Q28)/'!M109B2T.ayl'!Q3 -> 92.45833333 | F6: ='!M109B2T.ayl'!Q24 -> 0.6181719732 | J6: U Value | K6: =AVERAGE(F3:F7) -> 0.3981451334 | L6: =AVERAGE(F8:F12) -> 0.5405363079 | M6: =AVERAGE(F13:F17) -> 0.6763884863 | N6: =AVERAGE(F18:F22) -> 0.5939630237 | O6: =AVERAGE(F23:F27) -> 0.7209918069 | P6: =AVERAGE(F28:F32) -> 0.7229884396
A7: 5 | B7: ='!M110A5T.ayl'!B2:C2 -> <date> | C7: 0 | D7: 0 | E7: 0 | F7: 0
A8: 6 | B8: ='!M111B3T.ayl'!B2:C2 -> <date> | C8: =('!M111B3T.ayl'!H38/60)/'!M111B3T.ayl'!Q3 -> 11.95416667 | D8: ='!M111B3T.ayl'!N28/'!M111B3T.ayl'!Q3 -> 0.03125 | E8: =SUM('!M111B3T.ayl'!L28:Q28)/'!M111B3T.ayl'!Q3 -> 69.46875 | F8: ='!M111B3T.ayl'!Q24 -> 0.6085675595
A9: 7 | B9: ='!M112B2T.ayl'!B2:C2 -> <date> | C9: =('!M112B2T.ayl'!H22/60)/'!M112B2T.ayl'!Q3 -> 18.34509804 | D9: ='!M112B2T.ayl'!N28/'!M112B2T.ayl'!Q3 -> 0 | E9: =SUM('!M112B2T.ayl'!L28:Q28)/'!M112B2T.ayl'!Q3 -> 0.3529411765 | F9: ='!M112B2T.ayl'!Q24 -> 0.6132048828 | G9: =K3 -> 6.500179972 | H9: =L3 -> 11.17355374 | I9: 15.70809118 | J9: 11.63841958 | K9: 11.80316421 | L9: 29.47673611 | M9: =K4 -> 0.00243902439 | N9: =L4 -> 0.00625 | O9: 0 | P9: 0 | Q9: 0 | R9: 0.04166666667 | S9: =K6 -> 0.3981451334 | T9: =L6 -> 0.5405363079 | U9: 0.6763884863 | V9: 0.5939630237 | W9: 0.7209918069 | X9: 0.7229884396
A10: 8 | B10: ='!M113A5T.ayl'!B2:C2 -> <date> | C10: =('!M113A5T.ayl'!H57/60)/'!M113A5T.ayl'!Q3 -> 7.768627451 | D10: ='!M113A5T.ayl'!N28/'!M113A5T.ayl'!Q3 -> 0 | E10: =SUM('!M113A5T.ayl'!L28:Q28)/'!M113A5T.ayl'!Q3 -> 24.29411765 | F10: ='!M113A5T.ayl'!Q24 -> 0.4564711793
A11: 9 | B11: ='!M114B5T.ayl'!B2:C2 -> <date> | C11: =('!M114B5T.ayl'!H40/60)/'!M114B5T.ayl'!Q3 -> 9.54 | D11: ='!M114B5T.ayl'!N28/'!M114B5T.ayl'!Q3 -> 0 | E11: =SUM('!M114B5T.ayl'!L28:Q28)/'!M114B5T.ayl'!Q3 -> 32.4 | F11: ='!M114B5T.ayl'!Q24 -> 0.4880995278
A12: 10 | B12: ='!M115A3T.ayl'!B2:C2 -> <date> | C12: =('!M115A3T.ayl'!H33/60)/'!M115A3T.ayl'!Q3 -> 8.259876543 | D12: ='!M115A3T.ayl'!N28/'!M115A3T.ayl'!Q3 -> 0 | E12: =SUM('!M115A3T.ayl'!L28:Q28)/'!M115A3T.ayl'!Q3 -> 41.88888889 | F12: ='!M115A3T.ayl'!Q24 -> 0.5363383902
A13: 11 | B13: ='!M116B2T.ayl'!B2:C2 -> <date> | C13: =('!M116B2T.ayl'!H20/60)/'!M116B2T.ayl'!Q3 -> 25.8797619 | D13: ='!M116B2T.ayl'!N28/'!M116B2T.ayl'!Q3 -> 0 | E13: =SUM('!M116B2T.ayl'!L28:Q28)/'!M116B2T.ayl'!Q3 -> 0.3571428571 | F13: ='!M116B2T.ayl'!Q24 -> 0.7231882613
A14: 12 | B14: ='!M117A2T.ayl'!B2:C2 -> <date> | C14: =('!M117A2T.ayl'!H24/60)/'!M117A2T.ayl'!Q3 -> 8.157017544 | D14: ='!M117A2T.ayl'!N28/'!M117A2T.ayl'!Q3 -> 0 | E14: =SUM('!M117A2T.ayl'!L28:Q28)/'!M117A2T.ayl'!Q3 -> 0.3157894737 | F14: ='!M117A2T.ayl'!Q24 -> 0.6701927427
A15: 13 | B15: ='!M118B3T.ayl'!B2:C2 -> <date> | C15: =('!M118B3T.ayl'!H22/60)/'!M118B3T.ayl'!Q3 -> 5.974509804 | D15: ='!M118B3T.ayl'!N28/'!M118B3T.ayl'!Q3 -> 0 | E15: =SUM('!M118B3T.ayl'!L28:Q28)/'!M118B3T.ayl'!Q3 -> 0.3529411765 | F15: ='!M118B3T.ayl'!Q24 -> 0.6387591331
A16: 14 | B16: ='!M119B4T.ayl'!B2:C2 -> <date> | C16: =('!M119B4T.ayl'!H21/60)/'!M119B4T.ayl'!Q3 -> 24.11041667 | D16: ='!M119B4T.ayl'!N28/'!M119B4T.ayl'!Q3 -> 0 | E16: =SUM('!M119B4T.ayl'!L28:Q28)/'!M119B4T.ayl'!Q3 -> 0.3125 | F16: ='!M119B4T.ayl'!Q24 -> 0.6312559405
A17: 15 | B17: ='!M120A3T.ayl'!B2:C2 -> <date> | C17: =('!M120A3T.ayl'!H14/60)/'!M120A3T.ayl'!Q3 -> 14.41875 | D17: ='!M120A3T.ayl'!N28/'!M120A3T.ayl'!Q3 -> 0 | E17: =SUM('!M120A3T.ayl'!L28:Q28)/'!M120A3T.ayl'!Q3 -> 0.375 | F17: ='!M120A3T.ayl'!Q24 -> 0.7185463541
A18: 16 | B18: ='!M121A0T.ayl'!B2:C2 -> <date> | C18: =('!M121A0T.ayl'!H17/60)/'!M121A0T.ayl'!Q3 -> 33.26515152 | D18: ='!M121A0T.ayl'!N28/'!M121A0T.ayl'!Q3 -> 0 | E18: =SUM('!M121A0T.ayl'!L28:Q28)/'!M121A0T.ayl'!Q3 -> 0.3636363636 | F18: ='!M121A0T.ayl'!Q24 -> 0.5597046686
A19: 17 | B19: ='!M12295T.ayl'!B2:C2 -> <date> | C19: =('!M12295T.ayl'!H41/60)/'!M12295T.ayl'!Q3 -> 9.756666667 | D19: ='!M12295T.ayl'!N28/'!M12295T.ayl'!Q3 -> 0 | E19: =SUM('!M12295T.ayl'!L28:Q28)/'!M12295T.ayl'!Q3 -> 32.4 | F19: ='!M12295T.ayl'!Q24 -> 0.4757655846
A20: 18 | B20: ='!M124B1T.ayl'!B2:C2 -> <date> | C20: =('!M124B1T.ayl'!H27/60)/'!M124B1T.ayl'!Q3 -> 5.215151515 | D20: ='!M124B1T.ayl'!N28/'!M124B1T.ayl'!Q3 -> 0 | E20: =SUM('!M124B1T.ayl'!L28:Q28)/'!M124B1T.ayl'!Q3 -> 0.4090909091 | F20: ='!M124B1T.ayl'!Q24 -> 0.5634730606
A21: 19 | B21: ='!M125B0T.ayl'!B2:C2 -> <date> | C21: =('!M125B0T.ayl'!H20/60)/'!M125B0T.ayl'!Q3 -> 0 | D21: ='!M125B0T.ayl'!N28/'!M125B0T.ayl'!Q3 -> 0 | E21: =SUM('!M125B0T.ayl'!L28:Q28)/'!M125B0T.ayl'!Q3 -> 0.3571428571 | F21: ='!M125B0T.ayl'!Q24 -> 0.8023150734
A22: 20 | B22: ='!M126A3T.ayl'!B2:C2 -> <date> | C22: =('!M126A3T.ayl'!H19/60)/'!M126A3T.ayl'!Q3 -> 9.955128205 | D22: ='!M126A3T.ayl'!N28/'!M126A3T.ayl'!Q3 -> 0 | E22: =SUM('!M126A3T.ayl'!L28:Q28)/'!M126A3T.ayl'!Q3 -> 0.3076923077 | F22: ='!M126A3T.ayl'!Q24 -> 0.5685567312
A23: 21 | B23: ='!M12795T.ayl'!B2:C2 -> <date> | C23: =('!M12795T.ayl'!H53/60)/'!M12795T.ayl'!Q3 -> 6.731205674 | D23: ='!M12795T.ayl'!N28/'!M12795T.ayl'!Q3 -> 0 | E23: =SUM('!M12795T.ayl'!L28:Q28)/'!M12795T.ayl'!Q3 -> 24.21276596 | F23: ='!M12795T.ayl'!Q24 -> 0.5346613722
A24: 22 | B24: ='!M128B2T.ayl'!B2:C2 -> <date> | C24: =('!M128B2T.ayl'!H19/60)/'!M128B2T.ayl'!Q3 -> 4.520512821 | D24: ='!M128B2T.ayl'!N28/'!M128B2T.ayl'!Q3 -> 0 | E24: =SUM('!M128B2T.ayl'!L28:Q28)/'!M128B2T.ayl'!Q3 -> 0.3076923077 | F24: ='!M128B2T.ayl'!Q24 -> 0.8336995973
A25: 23 | B25: ='!M129B1T.ayl'!B2:C2 -> <date> | C25: =('!M129B1T.ayl'!H16/60)/'!M129B1T.ayl'!Q3 -> 17.33333333 | D25: ='!M129B1T.ayl'!N28/'!M129B1T.ayl'!Q3 -> 0 | E25: =SUM('!M129B1T.ayl'!L28:Q28)/'!M129B1T.ayl'!Q3 -> 0.3 | F25: ='!M129B1T.ayl'!Q24 -> 0.8193820026
A26: 24 | B26: ='!M130B0T.ayl'!B2:C2 -> <date> | C26: =('!M130B0T.ayl'!H16/60)/'!M130B0T.ayl'!Q3 -> 0 | D26: ='!M130B0T.ayl'!N28/'!M130B0T.ayl'!Q3 -> 0 | E26: =SUM('!M130B0T.ayl'!L28:Q28)/'!M130B0T.ayl'!Q3 -> 0.3 | F26: ='!M130B0T.ayl'!Q24 -> 0.6666666667
A27: 25 | B27: ='!M131A4T.ayl'!B2:C2 -> <date> | C27: =('!M131A4T.ayl'!H19/60)/'!M131A4T.ayl'!Q3 -> 30.43076923 | D27: ='!M131A4T.ayl'!N28/'!M131A4T.ayl'!Q3 -> 0 | E27: =SUM('!M131A4T.ayl'!L28:Q28)/'!M131A4T.ayl'!Q3 -> 0.3076923077 | F27: ='!M131A4T.ayl'!Q24 -> 0.7505493959
A28: 26 | B28: ='!M201A4T.ayl'!B2:C2 -> <date> | C28: =('!M201A4T.ayl'!H26/60)/'!M201A4T.ayl'!Q3 -> 8.664166667 | D28: ='!M201A4T.ayl'!N28/'!M201A4T.ayl'!Q3 -> 0 | E28: =SUM('!M201A4T.ayl'!L28:Q28)/'!M201A4T.ayl'!Q3 -> 0.35 | F28: ='!M201A4T.ayl'!Q24 -> 0.4848442173
A29: 27 | B29: ='!M202B4T.ayl'!B2:C2 -> <date> | C29: =('!M202B4T.ayl'!H11/60)/'!M202B4T.ayl'!Q3 -> 31.12333333 | D29: ='!M202B4T.ayl'!N28/'!M202B4T.ayl'!Q3 -> 0 | E29: =SUM('!M202B4T.ayl'!L28:Q28)/'!M202B4T.ayl'!Q3 -> 0.4 | F29: ='!M202B4T.ayl'!Q24 -> 0.8277293768
A30: 28 | B30: ='!M204B4T.ayl'!B2:C2 -> <date> | C30: =('!M204B4T.ayl'!H9/60)/'!M204B4T.ayl'!Q3 -> 20.69166667 | D30: ='!M204B4T.ayl'!N28/'!M204B4T.ayl'!Q3 -> 0 | E30: =SUM('!M204B4T.ayl'!L28:Q28)/'!M204B4T.ayl'!Q3 -> 0.25 | F30: ='!M204B4T.ayl'!Q24 -> 0.5793801643
A31: 29 | B31: ='!M205B3T.ayl'!B2:C2 -> <date> | C31: =('!M205B3T.ayl'!H12/60)/'!M205B3T.ayl'!Q3 -> 57.42777778 | D31: ='!M205B3T.ayl'!N28/'!M205B3T.ayl'!Q3 -> 0.1666666667 | E31: =SUM('!M205B3T.ayl'!L28:Q28)/'!M205B3T.ayl'!Q3 -> 0.5 | F31: ='!M205B3T.ayl'!Q24 -> 1
A32: 30

Sheet Start
F1: Use Folder 51 | H1: Auto Clean Up | J1: Correct sequence
F2: FALSE | H2: TRUE | J2: 2212
A4: Working with Folder | G4: Process All/Or Pick A number: ALL or an integer
A5: F:\Possum Chapter\Raw Data\Taylor\phase 3 var\ | G5: ALL
A6: Filenames:
A7: !M126A3T.ayl | G7: Paint Cells
A8: !M12795T.ayl | G8: FALSE
A9: !M128B2T.ayl
A10: !M129B1T.ayl
A11: !M130B0T.ayl
A12: !M131A4T.ayl
A13: !M201A4T.ayl
A14: !M202B4T.ayl
A15: !M204B4T.ayl
A16: !M205B3T.ayl
A17: !M104B1T.ayl
A18: !M105B4T.ayl
A19: !M106B1T.ayl
A20: !M109B2T.ayl
A21: !M110A5T.ayl
A22: !M111B3T.ayl
A23: !M112B2T.ayl
A24: !M113A5T.ayl
A25: !M114B5T.ayl
A26: !M115A3T.ayl
A27: !M116B2T.ayl
A28: !M117A2T.ayl
A29: !M118B3T.ayl
A30: !M119B4T.ayl
A31: !M120A3T.ayl
A32: !M121A0T.ayl
A33: !M12295T.ayl
A34: !M124B1T.ayl
A35: !M125B0T.ayl

Sheet !M104B1T.ayl
A1: Report for:!M104B1T.ayl
A2: Date: | B2: <date>
A3: Hen: | B3: <hen> | F3: Correct Sequence | G3: =Start!J2 -> 2212 | P3: Total Sequences in Data | Q3: =4994-COUNTBLANK(L7:L5000) -> 82 | V3: Total Sequences in Block Data | W3: =COUNTA(L7:L20) -> 14 | AA3: Total Sequences in Block Data | AB3: =COUNTA(L21:L33) -> 13 | AF3: Total Sequences in Block Data | AG3: =COUNTA(L34:L47) -> 14 | AK3: Total Sequences in Block Data | AL3: =COUNTA(L48:L61) -> 14 | AP3: Total Sequences in Block Data | AQ3: =COUNTA(L62:L74) -> 13 | AU3: Total Sequences in Block Data | AV3: =COUNTA(L75:L88) -> 14
P4: Total Sequences in Summary | Q4: =SUM(O7:O22) -> 82 | V4: Total Sequences in Block Summary | W4: =SUM(U7:U22) -> 14 | AA4: Total Sequences in Block Summary | AB4: =SUM(Z7:Z22) -> 13 | AF4: Total Sequences in Block Summary | AG4: =SUM(AE7:AE22) -> 14 | AK4: Total Sequences in Block Summary | AL4: =SUM(AJ7:AJ22) -> 14 | AP4: Total Sequences in Block Summary | AQ4: =SUM(AO7:AO22) -> 13 | AU4: Total Sequences in Block Summary | AV4: =SUM(AT7:AT22) -> 14
T5: Block 1 | Y5: Block 2 | AD5: Block 3 | AI5: Block 4 | AN5: Block 5 | AS5: Block 6
A6: Sequence Component 1 | B6: Time 1 | C6: Sequence Component 2 | D6: Time 2 | E6: Sequence Component 3 | F6: Time 3 | G6: Sequence Component 4 | H6: Time 4 | I6: Sequence Component 5 | J6: Time 5 | K6: Correct? 0=No 1=Yes | L6: Sequence | N6: Frequency | P6: Relative Frequency | Q6: Variability | T6: Frequency | V6: Relative Frequency | W6: Variability | Y6: Frequency | AA6: Relative Frequency | AB6: Variability | AD6: Frequency | AF6: Relative Frequency | AG6: Variability | AI6: Frequency | AK6: Relative Frequency | AL6: Variability | AN6: Frequency | AP6: Relative Frequency | AQ6: Variability | AS6: Frequency | AU6: Relative Frequency | AV6: Variability
A7: 12 | B7: 15 | C7: 14 | D7: 20 | E7: 13 | F7: 31 | G7: 14 | H7: 38 | K7: 0 | L7: 1111 | N7: 1111 | O7: =COUNTIF($L$7:$L$500,N7) -> 14 | P7: =O7/$Q$4 -> 0.1707317073 | Q7: =IF(P7=0,0,(P7*((LOG(P7))/LOG(2)))) -> -0.4353995019 | T7: =N7 -> 1111 | U7: =COUNTIF(L7:L20,T7) -> 3 | V7: =U7/(W4-U20) -> 0.2142857143 | W7: =IF(V7=0,0,(V7*((LOG(V7))/LOG(2)))) -> -0.4762269474 | Y7: =N7 -> 1111 | Z7: =COUNTIF(L21:L33,Y7) -> 1 | AA7: =Z7/(AB4-Z20) -> 0.08333333333 | AB7: =IF(AA7=0,0,(AA7*((LOG(AA7))/LOG(2)))) -> -0.2987468751 | AD7: =N7 -> 1111 | AE7: =COUNTIF(L34:L47,AD7) -> 0 | AF7: =AE7/(AG4-AE20) -> 0 | AG7: =IF(AF7=0,0,(AF7*((LOG(AF7))/LOG(2)))) -> 0 | AI7: =N7 -> 1111 | AJ7: =COUNTIF(L48:L61,AI7) -> 4 | AK7: =AJ7/(AL4-AJ20) -> 0.2857142857 | AL7: =IF(AK7=0,0,(AK7*((LOG(AK7))/LOG(2)))) -> -0.5163871206 | AN7: =N7 -> 1111 | AO7: =COUNTIF(L62:L74,AN7) -> 3 | AP7: =AO7/(AQ4-AO20) -> 0.2307692308 | AQ7: =IF(AP7=0,0,(AP7*((LOG(AP7))/LOG(2)))) -> -0.4881870502 | AS7: =N7 -> 1111 | AT7: =COUNTIF(L75:L88,AS7) -> 3 | AU7: =AT7/(AV4-AT20) -> 0.2142857143 | AV7: =IF(AU7=0,0,(AU7*((LOG(AU7))/LOG(2)))) -> -0.4762269474
A8: 12 | B8: 135 | C8: 23 | D8: 145 | E8: 24 | F8: 150 | G8: 23 | H8: 154 | K8: 0 | L8: 1222 | N8: 1112 | O8: =COUNTIF($L$7:$L$500,N8) -> 8 | P8: =O8/$Q$4 -> 0.09756097561 | Q8: =IF(P8=0,0,(P8*((LOG(P8))/LOG(2)))) -> -0.3275660492 | T8: =N8 -> 1112 | U8: =COUNTIF(L7:L20,T8) -> 1 | V8: =U8/(W4-U20) -> 0.07142857143 | W8: =IF(V8=0,0,(V8*((LOG(V8))/LOG(2)))) -> -0.271953923 | Y8: =N8 -> 1112 | Z8: =COUNTIF(L21:L33,Y8) -> 1 | AA8: =Z8/(AB4-Z20) -> 0.08333333333 | AB8: =IF(AA8=0,0,(AA8*((LOG(AA8))/LOG(2)))) -> -0.2987468751 | AD8: =N8 -> 1112 | AE8: =COUNTIF(L34:L47,AD8) -> 3 | AF8: =AE8/(AG4-AE20) -> 0.2142857143 | AG8: =IF(AF8=0,0,(AF8*((LOG(AF8))/LOG(2)))) -> -0.4762269474 | AI8: =N8 -> 1112 | AJ8: =COUNTIF(L48:L61,AI8) -> 0 | AK8: =AJ8/(AL4-AJ20) -> 0 | AL8: =IF(AK8=0,0,(AK8*((LOG(AK8))/LOG(2)))) -> 0 | AN8: =N8 -> 1112 | AO8: =COUNTIF(L62:L74,AN8) -> 1 | AP8: =AO8/(AQ4-AO20) -> 0.07692307692 | AQ8: =IF(AP8=0,0,(AP8*((LOG(AP8))/LOG(2)))) -> -0.2846492091 | AS8: =N8 -> 1112 | AT8: =COUNTIF(L75:L88,AS8) -> 2 | AU8: =AT8/(AV4-AT20) -> 0.1428571429 | AV8: =IF(AU8=0,0,(AU8*((LOG(AU8))/LOG(2)))) -> -0.4010507032
A9: 12 | B9: 251 | C9: 23 | D9: 262 | E9: 24 | F9: 265 | G9: 23 | H9: 275 | K9: 0 | L9: 1222 | N9: 1121 | O9: =COUNTIF($L$7:$L$500,N9) -> 0 | P9: =O9/$Q$4 -> 0 | Q9: =IF(P9=0,0,(P9*((LOG(P9))/LOG(2)))) -> 0 | T9: =N9 -> 1121 | U9: =COUNTIF(L7:L20,T9) -> 0 | V9: =U9/(W4-U20) -> 0 | W9: =IF(V9=0,0,(V9*((LOG(V9))/LOG(2)))) -> 0 | Y9: =N9 -> 1121 | Z9: =COUNTIF(L21:L33,Y9) -> 0 | AA9: =Z9/(AB4-Z20) -> 0 | AB9: =IF(AA9=0,0,(AA9*((LOG(AA9))/LOG(2)))) -> 0 | AD9: =N9 -> 1121 | AE9: =COUNTIF(L34:L47,AD9) -> 0 | AF9: =AE9/(AG4-AE20) -> 0 | AG9: =IF(AF9=0,0,(AF9*((LOG(AF9))/LOG(2)))) -> 0 | AI9: =N9 -> 1121 | AJ9: =COUNTIF(L48:L61,AI9) -> 0 | AK9: =AJ9/(AL4-AJ20) -> 0 | AL9: =IF(AK9=0,0,(AK9*((LOG(AK9))/LOG(2)))) -> 0 | AN9: =N9 -> 1121 | AO9: =COUNTIF(L62:L74,AN9) -> 0 | AP9: =AO9/(AQ4-AO20) -> 0 | AQ9: =IF(AP9=0,0,(AP9*((LOG(AP9))/LOG(2)))) -> 0 | AS9: =N9 -> 1121 | AT9: =COUNTIF(L75:L88,AS9) -> 0 | AU9: =AT9/(AV4-AT20) -> 0 | AV9: =IF(AU9=0,0,(AU9*((LOG(AU9))/LOG(2)))) -> 0
A10: 12 | B10: 373 | C10: 23 | D10: 381 | E10: 24 | F10: 385 | G10: 23 | H10: 389 | K10: 0 | L10: 1222 | N10: 1122 | O10: =COUNTIF($L$7:$L$500,N10) -> 23 | P10: =O10/$Q$4 -> 0.2804878049 | Q10: =IF(P10=0,0,(P10*((LOG(P10))/LOG(2)))) -> -0.5144118429 | T10: =N10 -> 1122 | U10: =COUNTIF(L7:L20,T10) -> 5 | V10: =U10/(W4-U20) -> 0.3571428571 | W10: =IF(V10=0,0,(V10*((LOG(V10))/LOG(2)))) -> -0.5305095811 | Y10: =N10 -> 1122 | Z10: =COUNTIF(L21:L33,Y10) -> 2 | AA10: =Z10/(AB4-Z20) -> 0.1666666667 | AB10: =IF(AA10=0,0,(AA10*((LOG(AA10))/LOG(2)))) -> -0.4308270835 | AD10: =N10 -> 1122 | AE10: =COUNTIF(L34:L47,AD10) -> 5 | AF10: =AE10/(AG4-AE20) -> 0.3571428571 | AG10: =IF(AF10=0,0,(AF10*((LOG(AF10))/LOG(2)))) -> -0.5305095811 | AI10: =N10 -> 1122 | AJ10: =COUNTIF(L48:L61,AI10) -> 4 | AK10: =AJ10/(AL4-AJ20) -> 0.2857142857 | AL10: =IF(AK10=0,0,(AK10*((LOG(AK10))/LOG(2)))) -> -0.5163871206 | AN10: =N10 -> 1122 | AO10: =COUNTIF(L62:L74,AN10) -> 3 | AP10: =AO10/(AQ4-AO20) -> 0.2307692308 | AQ10: =IF(AP10=0,0,(AP10*((LOG(AP10))/LOG(2)))) -> -0.4881870502 | AS10: =N10 -> 1122 | AT10: =COUNTIF(L75:L88,AS10) -> 4 | AU10: =AT10/(AV4-AT20) -> 0.2857142857 | AV10: =IF(AU10=0,0,(AU10*((LOG(AU10))/LOG(2)))) -> -0.5163871206
A11: 12 | B11: 486 | C11: 14 | D11: 490 | E11: 24 | F11: 499 | G11: 23 | H11: 511 | K11: 0 | L11: 1122 | N11: 1211 | O11: =COUNTIF($L$7:$L$500,N11) -> 1 | P11: =O11/$Q$4 -> 0.01219512195 | Q11: =IF(P11=0,0,(P11*((LOG(P11))/LOG(2)))) -> -0.07753112201 | T11: =N11 -> 1211 | U11: =COUNTIF(L7:L20,T11) -> 0 | V11: =U11/(W4-U20) -> 0 | W11: =IF(V11=0,0,(V11*((LOG(V11))/LOG(2)))) -> 0 | Y11: =N11 -> 1211 | Z11: =COUNTIF(L21:L33,Y11) -> 1 | AA11: =Z11/(AB4-Z20) -> 0.08333333333 | AB11: =IF(AA11=0,0,(AA11*((LOG(AA11))/LOG(2)))) -> -0.2987468751 | AD11: =N11 -> 1211 | AE11: =COUNTIF(L34:L47,AD11) -> 0 | AF11: =AE11/(AG4-AE20) -> 0 | AG11: =IF(AF11=0,0,(AF11*((LOG(AF11))/LOG(2)))) -> 0 | AI11: =N11 -> 1211 | AJ11: =COUNTIF(L48:L61,AI11) -> 0 | AK11: =AJ11/(AL4-AJ20) -> 0 | AL11: =IF(AK11=0,0,(AK11*((LOG(AK11))/LOG(2)))) -> 0 | AN11: =N11 -> 1211 | AO11: =COUNTIF(L62:L74,AN11) -> 0 | AP11: =AO11/(AQ4-AO20) -> 0 | AQ11: =IF(AP11=0,0,(AP11*((LOG(AP11))/LOG(2)))) -> 0 | AS11: =N11 -> 1211 | AT11: =COUNTIF(L75:L88,AS11) -> 0 | AU11: =AT11/(AV4-AT20) -> 0 | AV11: =IF(AU11=0,0,(AU11*((LOG(AU11))/LOG(2)))) -> 0
A12: 12 | B12: 607 | C12: 23 | D12: 619 | E12: 24 | F12: 622 | G12: 23 | H12: 628 | K12: 0 | L12: 1222 | N12: 1212 | O12: =COUNTIF($L$7:$L$500,N12) -> 0 | P12: =O12/$Q$4 -> 0 | Q12: =IF(P12=0,0,(P12*((LOG(P12))/LOG(2)))) -> 0 | T12: =N12 -> 1212 | U12: =COUNTIF(L7:L20,T12) -> 0 | V12: =U12/(W4-U20) -> 0 | W12: =IF(V12=0,0,(V12*((LOG(V12))/LOG(2)))) -> 0 | Y12: =N12 -> 1212 | Z12: =COUNTIF(L21:L33,Y12) -> 0 | AA12: =Z12/(AB4-Z20) -> 0 | AB12: =IF(AA12=0,0,(AA12*((LOG(AA12))/LOG(2)))) -> 0 | AD12: =N12 -> 1212 | AE12: =COUNTIF(L34:L47,AD12) -> 0 | AF12: =AE12/(AG4-AE20) -> 0 | AG12: =IF(AF12=0,0,(AF12*((LOG(AF12))/LOG(2)))) -> 0 | AI12: =N12 -> 1212 | AJ12: =COUNTIF(L48:L61,AI12) -> 0 | AK12: =AJ12/(AL4-AJ20) -> 0 | AL12: =IF(AK12=0,0,(AK12*((LOG(AK12))/LOG(2)))) -> 0 | AN12: =N12 -> 1212 | AO12: =COUNTIF(L62:L74,AN12) -> 0 | AP12: =AO12/(AQ4-AO20) -> 0 | AQ12: =IF(AP12=0,0,(AP12*((LOG(AP12))/LOG(2)))) -> 0 | AS12: =N12 -> 1212 | AT12: =COUNTIF(L75:L88,AS12) -> 0 | AU12: =AT12/(AV4-AT20) -> 0 | AV12: =IF(AU12=0,0,(AU12*((LOG(AU12))/LOG(2)))) -> 0
A13: 12 | B13: 739 | C13: 14 | D13: 743 | E13: 24 | F13: 749 | G13: 23 | H13: 752 | K13: 0 | L13: 1122 | N13: 1221 | O13: =COUNTIF($L$7:$L$500,N13) -> 0 | P13: =O13/$Q$4 -> 0 | Q13: =IF(P13=0,0,(P13*((LOG(P13))/LOG(2)))) -> 0 | T13: =N13 -> 1221 | U13: =COUNTIF(L7:L20,T13) -> 0 | V13: =U13/(W4-U20) -> 0 | W13: =IF(V13=0,0,(V13*((LOG(V13))/LOG(2)))) -> 0 | Y13: =N13 -> 1221 | Z13: =COUNTIF(L21:L33,Y13) -> 0 | AA13: =Z13/(AB4-Z20) -> 0 | AB13: =IF(AA13=0,0,(AA13*((LOG(AA13))/LOG(2)))) -> 0 | AD13: =N13 -> 1221 | AE13: =COUNTIF(L34:L47,AD13) -> 0 | AF13: =AE13/(AG4-AE20) -> 0 | AG13: =IF(AF13=0,0,(AF13*((LOG(AF13))/LOG(2)))) -> 0 | AI13: =N13 -> 1221 | AJ13: =COUNTIF(L48:L61,AI13) -> 0 | AK13: =AJ13/(AL4-AJ20) -> 0 | AL13: =IF(AK13=0,0,(AK13*((LOG(AK13))/LOG(2)))) -> 0 | AN13: =N13 -> 1221 | AO13: =COUNTIF(L62:L74,AN13) -> 0 | AP13: =AO13/(AQ4-AO20) -> 0 | AQ13: =IF(AP13=0,0,(AP13*((LOG(AP13))/LOG(2)))) -> 0 | AS13: =N13 -> 1221 | AT13: =COUNTIF(L75:L88,AS13) -> 0 | AU13: =AT13/(AV4-AT20) -> 0 | AV13: =IF(AU13=0,0,(AU13*((LOG(AU13))/LOG(2)))) -> 0
A14: 12 | B14: 848 | C14: 14 | D14: 850 | E14: 13 | F14: 854 | G14: 14 | H14: 861 | K14: 0 | L14: 1111 | N14: 1222 | O14: =COUNTIF($L$7:$L$500,N14) -> 22 | P14: =O14/$Q$4 -> 0.2682926829 | Q14: =IF(P14=0,0,(P14*((LOG(P14))/LOG(2)))) -> -0.5092518109 | T14: =N14 -> 1222 | U14: =COUNTIF(L7:L20,T14) -> 5 | V14: =U14/(W4-U20) -> 0.3571428571 | W14: =IF(V14=0,0,(V14*((LOG(V14))/LOG(2)))) -> -0.5305095811 | Y14: =N14 -> 1222 | Z14: =COUNTIF(L21:L33,Y14) -> 3 | AA14: =Z14/(AB4-Z20) -> 0.25 | AB14: =IF(AA14=0,0,(AA14*((LOG(AA14))/LOG(2)))) -> -0.5 | AD14: =N14 -> 1222 | AE14: =COUNTIF(L34:L47,AD14) -> 6 | AF14: =AE14/(AG4-AE20) -> 0.4285714286 | AG14: =IF(AF14=0,0,(AF14*((LOG(AF14))/LOG(2)))) -> -0.5238824663 | AI14: =N14 -> 1222 | AJ14: =COUNTIF(L48:L61,AI14) -> 1 | AK14: =AJ14/(AL4-AJ20) -> 0.07142857143 | AL14: =IF(AK14=0,0,(AK14*((LOG(AK14))/LOG(2)))) -> -0.271953923 | AN14: =N14 -> 1222 | AO14: =COUNTIF(L62:L74,AN14) -> 3 | AP14: =AO14/(AQ4-AO20) -> 0.2307692308 | AQ14: =IF(AP14=0,0,(AP14*((LOG(AP14))/LOG(2)))) -> -0.4881870502 | AS14: =N14 -> 1222 | AT14: =COUNTIF(L75:L88,AS14) -> 4 | AU14: =AT14/(AV4-AT20) -> 0.2857142857 | AV14: =IF(AU14=0,0,(AU14*((LOG(AU14))/LOG(2)))) -> -0.5163871206
A15: 12 | B15: 967 | C15: 23 | D15: 984 | E15: 24 | F15: 987 | G15: 23 | H15: 993 | K15: 0 | L15: 1222 | N15: 2111 | O15: =COUNTIF($L$7:$L$500,N15) -> 6 | P15: =O15/$Q$4 -> 0.07317073171 | Q15: =IF(P15=0,0,(P15*((LOG(P15))/LOG(2)))) -> -0.2760431344 | T15: =N15 -> 2111 | U15: =COUNTIF(L7:L20,T15) -> 0 | V15: =U15/(W4-U20) -> 0 | W15: =IF(V15=0,0,(V15*((LOG(V15))/LOG(2)))) -> 0 | Y15: =N15 -> 2111 | Z15: =COUNTIF(L21:L33,Y15) -> 1 | AA15: =Z15/(AB4-Z20) -> 0.08333333333 | AB15: =IF(AA15=0,0,(AA15*((LOG(AA15))/LOG(2)))) -> -0.2987468751 | AD15: =N15 -> 2111 | AE15: =COUNTIF(L34:L47,AD15) -> 0 | AF15: =AE15/(AG4-AE20) -> 0 | AG15: =IF(AF15=0,0,(AF15*((LOG(AF15))/LOG(2)))) -> 0 | AI15: =N15 -> 2111 | AJ15: =COUNTIF(L48:L61,AI15) -> 3 | AK15: =AJ15/(AL4-AJ20) -> 0.2142857143 | AL15: =IF(AK15=0,0,(AK15*((LOG(AK15))/LOG(2)))) -> -0.4762269474 | AN15: =N15 -> 2111 | AO15: =COUNTIF(L62:L74,AN15) -> 1 | AP15: =AO15/(AQ4-AO20) -> 0.07692307692 | AQ15: =IF(AP15=0,0,(AP15*((LOG(AP15))/LOG(2)))) -> -0.2846492091 | AS15: =N15 -> 2111 | AT15: =COUNTIF(L75:L88,AS15) -> 1 | AU15: =AT15/(AV4-AT20) -> 0.07142857143 | AV15: =IF(AU15=0,0,(AU15*((LOG(AU15))/LOG(2)))) -> -0.271953923
A16: 12 | B16: 1091 | C16: 14 | D16: 1098 | E16: 24 | F16: 1113 | G16: 23 | H16: 1116 | K16: 0 | L16: 1122 | N16: 2112 | O16: =COUNTIF($L$7:$L$500,N16) -> 0 | P16: =O16/$Q$4 -> 0 | Q16: =IF(P16=0,0,(P16*((LOG(P16))/LOG(2)))) -> 0 | T16: =N16 -> 2112 | U16: =COUNTIF(L7:L20,T16) -> 0 | V16: =U16/(W4-U20) -> 0 | W16: =IF(V16=0,0,(V16*((LOG(V16))/LOG(2)))) -> 0 | Y16: =N16 -> 2112 | Z16: =COUNTIF(L21:L33,Y16) -> 0 | AA16: =Z16/(AB4-Z20) -> 0 | AB16: =IF(AA16=0,0,(AA16*((LOG(AA16))/LOG(2)))) -> 0 | AD16: =N16 -> 2112 | AE16: =COUNTIF(L34:L47,AD16) -> 0 | AF16: =AE16/(AG4-AE20) -> 0 | AG16: =IF(AF16=0,0,(AF16*((LOG(AF16))/LOG(2)))) -> 0 | AI16: =N16 -> 2112 | AJ16: =COUNTIF(L48:L61,AI16) -> 0 | AK16: =AJ16/(AL4-AJ20) -> 0 | AL16: =IF(AK16=0,0,(AK16*((LOG(AK16))/LOG(2)))) -> 0 | AN16: =N16 -> 2112 | AO16: =COUNTIF(L62:L74,AN16) -> 0 | AP16: =AO16/(AQ4-AO20) -> 0 | AQ16: =IF(AP16=0,0,(AP16*((LOG(AP16))/LOG(2)))) -> 0 | AS16: =N16 -> 2112 | AT16: =COUNTIF(L75:L88,AS16) -> 0 | AU16: =AT16/(AV4-AT20) -> 0 | AV16: =IF(AU16=0,0,(AU16*((LOG(AU16))/LOG(2)))) -> 0
A17: 12 | B17: 1213 | C17: 14 | D17: 1216 | E17: 13 | F17: 1219 | G17: 23 | H17: 1231 | K17: 0 | L17: 1112 | N17: 2121 | O17: =COUNTIF($L$7:$L$500,N17) -> 0 | P17: =O17/$Q$4 -> 0 | Q17: =IF(P17=0,0,(P17*((LOG(P17))/LOG(2)))) -> 0 | T17: =N17 -> 2121 | U17: =COUNTIF(L7:L20,T17) -> 0 | V17: =U17/(W4-U20) -> 0 | W17: =IF(V17=0,0,(V17*((LOG(V17))/LOG(2)))) -> 0 | Y17: =N17 -> 2121 | Z17: =COUNTIF(L21:L33,Y17) -> 0 | AA17: =Z17/(AB4-Z20) -> 0 | AB17: =IF(AA17=0,0,(AA17*((LOG(AA17))/LOG(2)))) -> 0 | AD17: =N17 -> 2121 | AE17: =COUNTIF(L34:L47,AD17) -> 0 | AF17: =AE17/(AG4-AE20) -> 0 | AG17: =IF(AF17=0,0,(AF17*((LOG(AF17))/LOG(2)))) -> 0 | AI17: =N17 -> 2121 | AJ17: =COUNTIF(L48:L61,AI17) -> 0 | AK17: =AJ17/(AL4-AJ20) -> 0 | AL17: =IF(AK17=0,0,(AK17*((LOG(AK17))/LOG(2)))) -> 0 | AN17: =N17 -> 2121 | AO17: =COUNTIF(L62:L74,AN17) -> 0 | AP17: =AO17/(AQ4-AO20) -> 0 | AQ17: =IF(AP17=0,0,(AP17*((LOG(AP17))/LOG(2)))) -> 0 | AS17: =N17 -> 2121 | AT17: =COUNTIF(L75:L88,AS17) -> 0 | AU17: =AT17/(AV4-AT20) -> 0 | AV17: =IF(AU17=0,0,(AU17*((LOG(AU17))/LOG(2)))) -> 0
A18: 12 | B18: 1331 | C18: 14 | D18: 1338 | E18: 13 | F18: 1342 | G18: 14 | H18: 1350 | K18: 0 | L18: 1111 | N18: 2122 | O18: =COUNTIF($L$7:$L$500,N18) -> 1 | P18: =O18/$Q$4 -> 0.01219512195 | Q18: =IF(P18=0,0,(P18*((LOG(P18))/LOG(2)))) -> -0.07753112201 | T18: =N18 -> 2122 | U18: =COUNTIF(L7:L20,T18) -> 0 | V18: =U18/(W4-U20) -> 0 | W18: =IF(V18=0,0,(V18*((LOG(V18))/LOG(2)))) -> 0 | Y18: =N18 -> 2122 | Z18: =COUNTIF(L21:L33,Y18) -> 1 | AA18: =Z18/(AB4-Z20) -> 0.08333333333 | AB18: =IF(AA18=0,0,(AA18*((LOG(AA18))/LOG(2)))) -> -0.2987468751 | AD18: =N18 -> 2122 | AE18: =COUNTIF(L34:L47,AD18) -> 0 | AF18: =AE18/(AG4-AE20) -> 0 | AG18: =IF(AF18=0,0,(AF18*((LOG(AF18))/LOG(2)))) -> 0 | AI18: =N18 -> 2122 | AJ18: =COUNTIF(L48:L61,AI18) -> 0 | AK18: =AJ18/(AL4-AJ20) -> 0 | AL18: =IF(AK18=0,0,(AK18*((LOG(AK18))/LOG(2)))) -> 0 | AN18: =N18 -> 2122 | AO18: =COUNTIF(L62:L74,AN18) -> 0 | AP18: =AO18/(AQ4-AO20) -> 0 | AQ18: =IF(AP18=0,0,(AP18*((LOG(AP18))/LOG(2)))) -> 0 | AS18: =N18 -> 2122 | AT18: =COUNTIF(L75:L88,AS18) -> 0 | AU18: =AT18/(AV4-AT20) -> 0 | AV18: =IF(AU18=0,0,(AU18*((LOG(AU18))/LOG(2)))) -> 0
A19: 12 | B19: 1448 | C19: 14 | D19: 1451 | E19: 24 | F19: 1459 | G19: 23 | H19: 1464 | K19: 0 | L19: 1122 | N19: 2211 | O19: =COUNTIF($L$7:$L$500,N19) -> 0 | P19: =O19/$Q$4 -> 0 | Q19: =IF(P19=0,0,(P19*((LOG(P19))/LOG(2)))) -> 0 | T19: =N19 -> 2211 | U19: =COUNTIF(L7:L20,T19) -> 0 | V19: =U19/(W4-U20) -> 0 | W19: =IF(V19=0,0,(V19*((LOG(V19))/LOG(2)))) -> 0 | Y19: =N19 -> 2211 | Z19: =COUNTIF(L21:L33,Y19) -> 0 | AA19: =Z19/(AB4-Z20) -> 0 | AB19: =IF(AA19=0,0,(AA19*((LOG(AA19))/LOG(2)))) -> 0 | AD19: =N19 -> 2211 | AE19: =COUNTIF(L34:L47,AD19) -> 0 | AF19: =AE19/(AG4-AE20) -> 0 | AG19: =IF(AF19=0,0,(AF19*((LOG(AF19))/LOG(2)))) -> 0 | AI19: =N19 -> 2211 | AJ19: =COUNTIF(L48:L61,AI19) -> 0 | AK19: =AJ19/(AL4-AJ20) -> 0 | AL19: =IF(AK19=0,0,(AK19*((LOG(AK19))/LOG(2)))) -> 0 | AN19: =N19 -> 2211 | AO19: =COUNTIF(L62:L74,AN19) -> 0 | AP19: =AO19/(AQ4-AO20) -> 0 | AQ19: =IF(AP19=0,0,(AP19*((LOG(AP19))/LOG(2)))) -> 0 | AS19: =N19 -> 2211 | AT19: =COUNTIF(L75:L88,AS19) -> 0 | AU19: =AT19/(AV4-AT20) -> 0 | AV19: =IF(AU19=0,0,(AU19*((LOG(AU19))/LOG(2)))) -> 0
A20: 12 | B20: 1560 | C20: 14 | D20: 1564 | E20: 24 | F20: 1575 | G20: 23 | H20: 1579 | K20: 0 | L20: 1122 | N20: 2212 | O20: =COUNTIF($L$7:$L$500,N20) -> 1 | P20: =O20/$Q$4 -> 0.01219512195 | Q20: =IF(P20=0,0,(P20*((LOG(P20))/LOG(2)))) -> -0.07753112201 | T20: =N20 -> 2212 | U20: =COUNTIF(L7:L20,T20) -> 0 | Y20: =N20 -> 2212 | Z20: =COUNTIF(L21:L33,Y20) -> 1 | AD20: =N20 -> 2212 | AE20: =COUNTIF(L34:L47,AD20) -> 0 | AI20: =N20 -> 2212 | AJ20: =COUNTIF(L48:L61,AI20) -> 0 | AN20: =N20 -> 2212 | AO20: =COUNTIF(L62:L74,AN20) -> 0 | AS20: =N20 -> 2212 | AT20: =COUNTIF(L75:L88,AS20) -> 0
A21: 12 | B21: 1675 | C21: 14 | D21: 1679 | E21: 13 | F21: 1681 | G21: 14 | H21: 1696 | K21: 0 | L21: 1111 | N21: 2221 | O21: =COUNTIF($L$7:$L$500,N21) -> 0 | P21: =O21/$Q$4 -> 0 | Q21: =IF(P21=0,0,(P21*((LOG(P21))/LOG(2)))) -> 0 | T21: =N21 -> 2221 | U21: =COUNTIF(L7:L20,T21) -> 0 | V21: =U21/(W4-U20) -> 0 | W21: =IF(V21=0,0,(V21*((LOG(V21))/LOG(2)))) -> 0 | Y21: =N21 -> 2221 | Z21: =COUNTIF(L21:L33,Y21) -> 0 | AA21: =Z21/(AB4-Z20) -> 0 | AB21: =IF(AA21=0,0,(AA21*((LOG(AA21))/LOG(2)))) -> 0 | AD21: =N21 -> 2221 | AE21: =COUNTIF(L34:L47,AD21) -> 0 | AF21: =AE21/(AG4-AE20) -> 0 | AG21: =IF(AF21=0,0,(AF21*((LOG(AF21))/LOG(2)))) -> 0 | AI21: =N21 -> 2221 | AJ21: =COUNTIF(L48:L61,AI21) -> 0 | AK21: =AJ21/(AL4-AJ20) -> 0 | AL21: =IF(AK21=0,0,(AK21*((LOG(AK21))/LOG(2)))) -> 0 | AN21: =N21 -> 2221 | AO21: =COUNTIF(L62:L74,AN21) -> 0 | AP21: =AO21/(AQ4-AO20) -> 0 | AQ21: =IF(AP21=0,0,(AP21*((LOG(AP21))/LOG(2)))) -> 0 | AS21: =N21 -> 2221 | AT21: =COUNTIF(L75:L88,AS21) -> 0 | AU21: =AT21/(AV4-AT20) -> 0 | AV21: =IF(AU21=0,0,(AU21*((LOG(AU21))/LOG(2)))) -> 0
A22: 12 | B22: 1796 | C22: 23 | D22: 1805 | E22: 24 | F22: 1814 | G22: 23 | H22: 1822 | K22: 0 | L22: 1222 | N22: 2222 | O22: =COUNTIF($L$7:$L$500,N22) -> 6 | P22: =O22/$Q$4 -> 0.07317073171 | Q22: =IF(P22=0,0,(P22*((LOG(P22))/LOG(2)))) -> -0.2760431344 | T22: =N22 -> 2222 | U22: =COUNTIF(L7:L20,T22) -> 0 | V22: =U22/(W4-U20) -> 0 | W22: =IF(V22=0,0,(V22*((LOG(V22))/LOG(2)))) -> 0 | Y22: =N22 -> 2222 | Z22: =COUNTIF(L21:L33,Y22) -> 2 | AA22: =Z22/(AB4-Z20) -> 0.1666666667 | AB22: =IF(AA22=0,0,(AA22*((LOG(AA22))/LOG(2)))) -> -0.4308270835 | AD22: =N22 -> 2222 | AE22: =COUNTIF(L34:L47,AD22) -> 0 | AF22: =AE22/(AG4-AE20) -> 0 | AG22: =IF(AF22=0,0,(AF22*((LOG(AF22))/LOG(2)))) -> 0 | AI22: =N22 -> 2222 | AJ22: =COUNTIF(L48:L61,AI22) -> 2 | AK22: =AJ22/(AL4-AJ20) -> 0.1428571429 | AL22: =IF(AK22=0,0,(AK22*((LOG(AK22))/LOG(2)))) -> -0.4010507032 | AN22: =N22 -> 2222 | AO22: =COUNTIF(L62:L74,AN22) -> 2 | AP22: =AO22/(AQ4-AO20) -> 0.1538461538 | AQ22: =IF(AP22=0,0,(AP22*((LOG(AP22))/LOG(2)))) -> -0.4154522643 | AS22: =N22 -> 2222 | AT22: =COUNTIF(L75:L88,AS22) -> 0 | AU22: =AT22/(AV4-AT20) -> 0 | AV22: =IF(AU22=0,0,(AU22*((LOG(AU22))/LOG(2)))) -> 0
A23: 21 | B23: 1948 | C23: 12 | D23: 1980 | E23: 24 | F23: 1987 | G23: 23 | H23: 1997 | K23: 0 | L23: 2122 | P23: =SUM(P7:P22) -> 1 | Q23: =-SUM(Q7:Q22) -> 2.57130884 | V23: =SUM(V7:V22) -> 1 | W23: =-SUM(W7:W22) -> 1.809200033 | AA23: =SUM(AA7:AA22) -> 1 | AB23: =-SUM(AB7:AB22) -> 2.855388542 | AF23: =SUM(AF7:AF22) -> 1 | AG23: =-SUM(AG7:AG22) -> 1.530618995 | AK23: =SUM(AK7:AK22) -> 1 | AL23: =-SUM(AL7:AL22) -> 2.182005815 | AP23: =SUM(AP7:AP22) -> 1 | AQ23: =-SUM(AQ7:AQ22) -> 2.449311833 | AU23: =SUM(AU7:AU22) -> 1 | AV23: =-SUM(AV7:AV22) -> 2.182005815
A24: 21 | B24: 2118 | C24: 21 | D24: 2132 | E24: 22 | F24: 2144 | G24: 23 | H24: 2150 | K24: 0 | L24: 2222 | P24: U= | Q24: =Q23/(LOG(Q4)/LOG(2)) -> 0.4044495173 | V24: U1= | W24: =W23/(LOG(W4)/LOG(2)) -> 0.4751855474 | AA24: U2= | AB24: =AB23/(LOG(AB4)/LOG(2)) -> 0.7716349298 | AF24: U3= | AG24: =AG23/(LOG(AG4)/LOG(2)) -> 0.4020163673 | AK24: U4= | AL24: =AL23/(LOG(AL4)/LOG(2)) -> 0.5731028127 | AP24: U5= | AQ24: =AQ23/(LOG(AQ4)/LOG(2)) -> 0.6618975094 | AU24: U6= | AV24: =AV23/(LOG(AV4)/LOG(2)) -> 0.5731028127
A25: 12 | B25: 2249 | C25: 14 | D25: 2254 | E25: 13 | F25: 2257 | G25: 23 | H25: 2267 | K25: 0 | L25: 1112
A26: 12 | B26: 2368 | C26: 14 | D26: 2370 | E26: 24 | F26: 2380 | G26: 23 | H26: 2384 | K26: 0 | L26: 1122
A27: 12 | B27: 2605 | C27: 14 | D27: 2611 | E27: 24 | F27: 2621 | G27: 23 | H27: 2633 | K27: 0 | L27: 1122 | N27: Total Target Seq
A28: 12 | B28: 2774 | C28: 23 | D28: 2788 | E28: 13 | F28: 2802 | G28: 14 | H28: 2806 | K28: 0 | L28: 1211 | N28: =COUNTIF(L7:L88,G3) -> 1 | P28: 14 | Q28: 13 | R28: 14 | S28: 14 | T28: 13 | U28: 14
A29: 12 | B29: 3010 | C29: 23 | D29: 3021 | E29: 24 | F29: 3027 | G29: 23 | H29: 3033 | K29: 0 | L29: 1222 | P29: % of reinforcement given in 6 equal intervals based on number of trials
A30: 21 | B30: 3186 | C30: 12 | D30: 3199 | E30: 13 | F30: 3205 | G30: 14 | H30: 3213 | K30: 0 | L30: 2111 | P30: %_1 | Q30: %_2 | R30: %_3 | S30: %_4 | T30: %_5 | U30: %_6
A31: 21 | B31: 3543 | C31: 21 | D31: 3574 | E31: 11 | F31: 3584 | G31: 21 | H31: 3597 | K31: 0 | L31: 2212 | O31: target sequence | P31: =$G$3 -> 2212 | Q31: =$G$3 -> 2212 | R31: =$G$3 -> 2212 | S31: =$G$3 -> 2212 | T31: =$G$3 -> 2212 | U31: =$G$3 -> 2212
A32: 21 | B32: 3798 | C32: 21 | D32: 3804 | E32: 22 | F32: 3809 | G32: 23 | H32: 3814 | K32: 0 | L32: 2222 | O32: total reinforcement | P32: =U20 -> 0 | Q32: =Z20 -> 1 | R32: =AE20 -> 0 | S32: =AJ20 -> 0 | T32: =AO20 -> 0 | U32: =AT20 -> 0
A33: 12 | B33: 3911 | C33: 23 | D33: 3919 | E33: 24 | F33: 3923 | G33: 23 | H33: 3927 | K33: 0 | L33: 1222 | O33: % target
A34: 12 | B34: 4025 | C34: 14 | D34: 4028 | E34: 24 | F34: 4036 | G34: 23 | H34: 4039 | K34: 0 | L34: 1122 | O34: CCRF
A35: 12 | B35: 4137 | C35: 23 | D35: 4148 | E35: 24 | F35: 4151 | G35: 23 | H35: 4157 | K35: 0 | L35: 1222 | O35: % CCRf
A36: 12 | B36: 4299 | C36: 23 | D36: 4315 | E36: 24 | F36: 4320 | G36: 23 | H36: 4328 | K36: 0 | L36: 1222 | O36: average response rate | P36: =H20/P28 -> 112.7857143 | Q36: =(H33-H20)/Q28 -> 180.6153846 | R36: =(H47-H33)/R28 -> 126.5 | S36: =(H61-H47)/S28 -> 134.1428571 | T36: =(H74-H61)/T28 -> 186.9230769 | U36: =(H88-H74)/U28 -> 907.2142857
A37: 12 | B37: 4466 | C37: 23 | D37: 4478 | E37: 24 | F37: 4482 | G37: 23 | H37: 4488 | K37: 0 | L37: 1222
A38: 12 | B38: 4592 | C38: 23 | D38: 4603 | E38: 24 | F38: 4606 | G38: 23 | H38: 4610 | K38: 0 | L38: 1222
A39: 12 | B39: 4707 | C39: 23 | D39: 4716 | E39: 24 | F39: 4724 | G39: 23 | H39: 4728 | K39: 0 | L39: 1222
A40: 12 | B40: 4826 | C40: 14 | D40: 4832 | E40: 24 | F40: 4840 | G40: 23 | H40: 4843 | K40: 0 | L40: 1122
A41: 12 | B41: 4937 | C41: 14 | D41: 4943 | E41: 13 | F41: 4950 | G41: 23 | H41: 4960 | K41: 0 | L41: 1112
A42: 12 | B42: 5062 | C42: 23 | D42: 5071 | E42: 24 | F42: 5079 | G42: 23 | H42: 5084 | K42: 0 | L42: 1222
A43: 12 | B43: 5182 | C43: 14 | D43: 5189 | E43: 24 | F43: 5199 | G43: 23 | H43: 5202 | K43: 0 | L43: 1122
A44: 12 | B44: 5306 | C44: 14 | D44: 5308 | E44: 13 | F44: 5316 | G44: 23 | H44: 5326 | K44: 0 | L44: 1112
A45: 12 | B45: 5424 | C45: 14 | D45: 5427 | E45: 13 | F45: 5433 | G45: 23 | H45: 5442 | K45: 0 | L45: 1112
A46: 12 | B46: 5568 | C46: 14 | D46: 5570 | E46: 24 | F46: 5579 | G46: 23 | H46: 5583 | K46: 0 | L46: 1122
A47: 12 | B47: 5682 | C47: 14 | D47: 5686 | E47: 24 | F47: 5695 | G47: 23 | H47: 5698 | K47: 0 | L47: 1122
A48: 12 | B48: 5796 | C48: 14 | D48: 5803 | E48: 24 | F48: 5814 | G48: 23 | H48: 5819 | K48: 0 | L48: 1122
A49: 21 | B49: 5933 | C49: 21 | D49: 5943 | E49: 22 | F49: 5948 | G49: 23 | H49: 5955 | K49: 0 | L49: 2222
A50: 12 | B50: 6053 | C50: 14 | D50: 6057 | E50: 24 | F50: 6065 | G50: 23 | H50: 6070 | K50: 0 | L50: 1122
A51: 12 | B51: 6168 | C51: 14 | D51: 6172 | E51: 24 | F51: 6187 | G51: 23 | H51: 6191 | K51: 0 | L51: 1122
A52: 12 | B52: 6292 | C52: 14 | D52: 6312 | E52: 13 | F52: 6319 | G52: 14 | H52: 6326 | K52: 0 | L52: 1111
A53: 12 | B53: 6423 | C53: 23 | D53: 6446 | E53: 24 | F53: 6454 | G53: 23 | H53: 6459 | K53: 0 | L53: 1222
A54: 12 | B54: 6557 | C54: 14 | D54: 6559 | E54: 13 | F54: 6568 | G54: 14 | H54: 6576 | K54: 0 | L54: 1111
A55: 12 | B55: 6736 | C55: 14 | D55: 6742 | E55: 13 | F55: 6745 | G55: 14 | H55: 6753 | K55: 0 | L55: 1111
A56: 21 | B56: 6864 | C56: 21 | D56: 6877 | E56: 22 | F56: 6886 | G56: 23 | H56: 6892 | K56: 0 | L56: 2222
A57: 21 | B57: 7027 | C57: 12 | D57: 7038 | E57: 13 | F57: 7042 | G57: 14 | H57: 7049 | K57: 0 | L57: 2111
A58: 21 | B58: 7156 | C58: 12 | D58: 7172 | E58: 13 | F58: 7178 | G58: 14 | H58: 7187 | K58: 0 | L58: 2111
A59: 12 | B59: 7295 | C59: 14 | D59: 7315 | E59: 13 | F59: 7321 | G59: 14 | H59: 7327 | K59: 0 | L59: 1111
A60: 21 | B60: 7434 | C60: 12 | D60: 7447 | E60: 13 | F60: 7451 | G60: 14 | H60: 7454 | K60: 0 | L60: 2111
A61: 12 | B61: 7561 | C61: 14 | D61: 7564 | E61: 24 | F61: 7572 | G61: 23 | H61: 7576 | K61: 0 | L61: 1122
A62: 21 | B62: 8321 | C62: 21 | D62: 8324 | E62: 22 | F62: 8330 | G62: 23 | H62: 8336 | K62: 0 | L62: 2222
A63: 12 | B63: 8434 | C63: 14 | D63: 8440 | E63: 24 | F63: 8449 | G63: 23 | H63: 8452 | K63: 0 | L63: 1122
A64: 12 | B64: 8550 | C64: 23 | D64: 8572 | E64: 24 | F64: 8577 | G64: 23 | H64: 8582 | K64: 0 | L64: 1222
A65: 12 | B65: 8711 | C65: 14 | D65: 8714 | E65: 24 | F65: 8727 | G65: 23 | H65: 8730 | K65: 0 | L65: 1122
A66: 12 | B66: 8898 | C66: 14 | D66: 8906 | E66: 13 | F66: 8911 | G66: 14 | H66: 8918 | K66: 0 | L66: 1111
A67: 12 | B67: 9014 | C67: 14 | D67: 9020 | E67: 24 | F67: 9027 | G67: 23 | H67: 9034 | K67: 0 | L67: 1122
A68: 12 | B68: 9147 | C68: 14 | D68: 9153 | E68: 13 | F68: 9166 | G68: 23 | H68: 9170 | K68: 0 | L68: 1112
A69: 21 | B69: 9320 | C69: 21 | D69: 9324 | E69: 22 | F69: 9328 | G69: 23 | H69: 9332 | K69: 0 | L69: 2222
A70: 12 | B70: 9432 | C70: 23 | D70: 9441 | E70: 24 | F70: 9448 | G70: 23 | H70: 9452 | K70: 0 | L70: 1222
A71: 12 | B71: 9601 | C71: 23 | D71: 9616 | E71: 24 | F71: 9620 | G71: 23 | H71: 9623 | K71: 0 | L71: 1222
A72: 12 | B72: 9721 | C72: 14 | D72: 9725 | E72: 13 | F72: 9729 | G72: 14 | H72: 9731 | K72: 0 | L72: 1111
A73: 12 | B73: 9865 | C73: 14 | D73: 9868 | E73: 13 | F73: 9874 | G73: 14 | H73: 9880 | K73: 0 | L73: 1111
A74: 21 | B74: 9985 | C74: 12 | D74: 9999 | E74: 13 | F74: 10001 | G74: 14 | H74: 10006 | K74: 0 | L74: 2111
A75: 12 | B75: 10127 | C75: 23 | D75: 10146 | E75: 24 | F75: 10150 | G75: 23 | H75: 10156 | K75: 0 | L75: 1222
A76: 12 | B76: 10255 | C76: 14 | D76: 10260 | E76: 24 | F76: 10271 | G76: 23 | H76: 10276 | K76: 0 | L76: 1122
A77: 12 | B77: 10403 | C77: 14 | D77: 10421 | E77: 13 | F77: 10426 | G77: 14 | H77: 10431 | K77: 0 | L77: 1111
A78: 12 | B78: 10548 | C78: 14 | D78: 10551 | E78: 24 | F78: 10560 | G78: 23 | H78: 10563 | K78: 0 | L78: 1122
A79: 12 | B79: 10666 | C79: 14 | D79: 10677 | E79: 13 | F79: 10680 | G79: 23 | H79: 10686 | K79: 0 | L79: 1112
A80: 12 | B80: 11034 | C80: 23 | D80: 11045 | E80: 24 | F80: 11049 | G80: 23 | H80: 11054 | K80: 0 | L80: 1222
A81: 12 | B81: 11202 | C81: 23 | D81: 11210 | E81: 24 | F81: 11213 | G81: 23 | H81: 11220 | K81: 0 | L81: 1222
A82: 12 | B82: 16372 | C82: 14 | D82: 16376 | E82: 24 | F82: 16388 | G82: 23 | H82: 16399 | K82: 0 | L82: 1122
A83: 12 | B83: 16496 | C83: 14 | D83: 16499 | E83: 24 | F83: 16511 | G83: 23 | H83: 16515 | K83: 0 | L83: 1122
A84: 12 | B84: 16618 | C84: 14 | D84: 16622 | E84: 13 | F84: 16630 | G84: 23 | H84: 16642 | K84: 0 | L84: 1112
A85: 21 | B85: 16774 | C85: 12 | D85: 16789 | E85: 13 | F85: 16792 | G85: 14 | H85: 16796 | K85: 0 | L85: 2111
A86: 12 | B86: 21768 | C86: 14 | D86: 21774 | E86: 13 | F86: 21778 | G86: 14 | H86: 21783 | K86: 0 | L86: 1111
A87: 12 | B87: 22450 | C87: 23 | D87: 22458 | E87: 24 | F87: 22473 | G87: 23 | H87: 22476 | K87: 0 | L87: 1222
A88: 12 | B88: 22684 | C88: 14 | D88: 22686 | E88: 13 | F88: 22703 | G88: 14 | H88: 22707 | K88: 0 | L88: 1111

Sheet !M105B4T.ayl
A1: Report for:!M105B4T.ayl
A2: Date: | B2: <date>
A3: Hen: | B3: <hen> | F3: Correct Sequence | G3: =Start!J2 -> 2212 | P3: Total Sequences in Data | Q3: =4994-COUNTBLANK(L7:L5000) -> 71 | V3: Total Sequences in Block Data | W3: =COUNTA(L7:L18) -> 12 | AA3: Total Sequences in Block Data | AB3: =COUNTA(L19:L30) -> 12 | AF3: Total Sequences in Block Data | AG3: =COUNTA(L31:L41) -> 11 | AK3: Total Sequences in Block Data | AL3: =COUNTA(L42:L53) -> 12 | AP3: Total Sequences in Block Data | AQ3: =COUNTA(L54:L65) -> 12 | AU3: Total Sequences in Block Data | AV3: =COUNTA(L66:L77) -> 12
P4: Total Sequences in Summary | Q4: =SUM(O7:O22) -> 70 | V4: Total Sequences in Block Summary | W4: =SUM(U7:U22) -> 12 | AA4: Total Sequences in Block Summary | AB4: =SUM(Z7:Z22) -> 12 | AF4: Total Sequences in Block Summary | AG4: =SUM(AE7:AE22) -> 11 | AK4: Total Sequences in Block Summary | AL4: =SUM(AJ7:AJ22) -> 12 | AP4: Total Sequences in Block Summary | AQ4: =SUM(AO7:AO22) -> 12 | AU4: Total Sequences in Block Summary | AV4: =SUM(AT7:AT22) -> 11
T5: Block 1 | Y5: Block 2 | AD5: Block 3 | AI5: Block 4 | AN5: Block 5 | AS5: Block 6
A6: Sequence Component 1 | B6: Time 1 | C6: Sequence Component 2 | D6: Time 2 | E6: Sequence Component 3 | F6: Time 3 | G6: Sequence Component 4 | H6: Time 4 | I6: Sequence Component 5 | J6: Time 5 | K6: Correct? 0=No 1=Yes | L6: Sequence | N6: Frequency | P6: Relative Frequency | Q6: Variability | T6: Frequency | V6: Relative Frequency | W6: Variability | Y6: Frequency | AA6: Relative Frequency | AB6: Variability | AD6: Frequency | AF6: Relative Frequency | AG6: Variability | AI6: Frequency | AK6: Relative Frequency | AL6: Variability | AN6: Frequency | AP6: Relative Frequency | AQ6: Variability | AS6: Frequency | AU6: Relative Frequency | AV6: Variability
A7: 12 | B7: 8 | C7: 23 | D7: 16 | E7: 24 | F7: 19 | G7: 23 | H7: 23 | K7: 0 | L7: 1222 | N7: 1111 | O7: =COUNTIF($L$7:$L$500,N7) -> 15 | P7: =O7/$Q$4 -> 0.2142857143 | Q7: =IF(P7=0,0,(P7*((LOG(P7))/LOG(2)))) -> -0.4762269474 | T7: =N7 -> 1111 | U7: =COUNTIF(L7:L18,T7) -> 0 | V7: =U7/(W4-U20) -> 0 | W7: =IF(V7=0,0,(V7*((LOG(V7))/LOG(2)))) -> 0 | Y7: =N7 -> 1111 | Z7: =COUNTIF(L19:L30,Y7) -> 0 | AA7: =Z7/(AB4-Z20) -> 0 | AB7: =IF(AA7=0,0,(AA7*((LOG(AA7))/LOG(2)))) -> 0 | AD7: =N7 -> 1111 | AE7: =COUNTIF(L31:L41,AD7) -> 6 | AF7: =AE7/(AG4-AE20) -> 0.5454545455 | AG7: =IF(AF7=0,0,(AF7*((LOG(AF7))/LOG(2)))) -> -0.4769831552 | AI7: =N7 -> 1111 | AJ7: =COUNTIF(L42:L53,AI7) -> 2 | AK7: =AJ7/(AL4-AJ20) -> 0.1666666667 | AL7: =IF(AK7=0,0,(AK7*((LOG(AK7))/LOG(2)))) -> -0.4308270835 | AN7: =N7 -> 1111 | AO7: =COUNTIF(L54:L65,AN7) -> 5 | AP7: =AO7/(AQ4-AO20) -> 0.4166666667 | AQ7: =IF(AP7=0,0,(AP7*((LOG(AP7))/LOG(2)))) -> -0.5262643358 | AS7: =N7 -> 1111 | AT7: =COUNTIF(L66:L77,AS7) -> 2 | AU7: =AT7/(AV4-AT20) -> 0.1818181818 | AV7: =IF(AU7=0,0,(AU7*((LOG(AU7))/LOG(2)))) -> -0.4471693852
A8: 12 | B8: 117 | C8: 23 | D8: 130 | E8: 24 | F8: 134 | G8: 23 | H8: 140 | K8: 0 | L8: 1222 | N8: 1112 | O8: =COUNTIF($L$7:$L$500,N8) -> 5 | P8: =O8/$Q$4 -> 0.07142857143 | Q8: =IF(P8=0,0,(P8*((LOG(P8))/LOG(2)))) -> -0.271953923 | T8: =N8 -> 1112 | U8: =COUNTIF(L7:L18,T8) -> 0 | V8: =U8/(W4-U20) -> 0 | W8: =IF(V8=0,0,(V8*((LOG(V8))/LOG(2)))) -> 0 | Y8: =N8 -> 1112 | Z8: =COUNTIF(L19:L30,Y8) -> 1 | AA8: =Z8/(AB4-Z20) -> 0.08333333333 | AB8: =IF(AA8=0,0,(AA8*((LOG(AA8))/LOG(2)))) -> -0.2987468751 | AD8: =N8 -> 1112 | AE8: =COUNTIF(L31:L41,AD8) -> 0 | AF8: =AE8/(AG4-AE20) -> 0 | AG8: =IF(AF8=0,0,(AF8*((LOG(AF8))/LOG(2)))) -> 0 | AI8: =N8 -> 1112 | AJ8: =COUNTIF(L42:L53,AI8) -> 1 | AK8: =AJ8/(AL4-AJ20) -> 0.08333333333 | AL8: =IF(AK8=0,0,(AK8*((LOG(AK8))/LOG(2)))) -> -0.2987468751 | AN8: =N8 -> 1112 | AO8: =COUNTIF(L54:L65,AN8) -> 2 | AP8: =AO8/(AQ4-AO20) -> 0.1666666667 | AQ8: =IF(AP8=0,0,(AP8*((LOG(AP8))/LOG(2)))) -> -0.4308270835 | AS8: =N8 -> 1112 | AT8: =COUNTIF(L66:L77,AS8) -> 1 | AU8: =AT8/(AV4-AT20) -> 0.09090909091 | AV8: =IF(AU8=0,0,(AU8*((LOG(AU8))/LOG(2)))) -> -0.3144937835
A9: 12 | B9: 234 | C9: 14 | D9: 245 | E9: 24 | F9: 251 | G9: 23 | H9: 255 | K9: 0 | L9: 1122 | N9: 1121 | O9: =COUNTIF($L$7:$L$500,N9) -> 1 | P9: =O9/$Q$4 -> 0.01428571429 | Q9: =IF(P9=0,0,(P9*((LOG(P9))/LOG(2)))) -> -0.08756118596 | T9: =N9 -> 1121 | U9: =COUNTIF(L7:L18,T9) -> 0 | V9: =U9/(W4-U20) -> 0 | W9: =IF(V9=0,0,(V9*((LOG(V9))/LOG(2)))) -> 0 | Y9: =N9 -> 1121 | Z9: =COUNTIF(L19:L30,Y9) -> 0 | AA9: =Z9/(AB4-Z20) -> 0 | AB9: =IF(AA9=0,0,(AA9*((LOG(AA9))/LOG(2)))) -> 0 | AD9: =N9 -> 1121 | AE9: =COUNTIF(L31:L41,AD9) -> 1 | AF9: =AE9/(AG4-AE20) -> 0.09090909091 | AG9: =IF(AF9=0,0,(AF9*((LOG(AF9))/LOG(2)))) -> -0.3144937835 | AI9: =N9 -> 1121 | AJ9: =COUNTIF(L42:L53,AI9) -> 0 | AK9: =AJ9/(AL4-AJ20) -> 0 | AL9: =IF(AK9=0,0,(AK9*((LOG(AK9))/LOG(2)))) -> 0 | AN9: =N9 -> 1121 | AO9: =COUNTIF(L54:L65,AN9) -> 0 | AP9: =AO9/(AQ4-AO20) -> 0 | AQ9: =IF(AP9=0,0,(AP9*((LOG(AP9))/LOG(2)))) -> 0 | AS9: =N9 -> 1121 | AT9: =COUNTIF(L66:L77,AS9) -> 0 | AU9: =AT9/(AV4-AT20) -> 0 | AV9: =IF(AU9=0,0,(AU9*((LOG(AU9))/LOG(2)))) -> 0
A10: 12 | B10: 353 | C10: 14 | D10: 355 | E10: 24 | F10: 367 | G10: 23 | H10: 371 | K10: 0 | L10: 1122 | N10: 1122 | O10: =COUNTIF($L$7:$L$500,N10) -> 20 | P10: =O10/$Q$4 -> 0.2857142857 | Q10: =IF(P10=0,0,(P10*((LOG(P10))/LOG(2)))) -> -0.5163871206 | T10: =N10 -> 1122 | U10: =COUNTIF(L7:L18,T10) -> 5 | V10: =U10/(W4-U20) -> 0.4166666667 | W10: =IF(V10=0,0,(V10*((LOG(V10))/LOG(2)))) -> -0.5262643358 | Y10: =N10 -> 1122 | Z10: =COUNTIF(L19:L30,Y10) -> 4 | AA10: =Z10/(AB4-Z20) -> 0.3333333333 | AB10: =IF(AA10=0,0,(AA10*((LOG(AA10))/LOG(2)))) -> -0.5283208336 | AD10: =N10 -> 1122 | AE10: =COUNTIF(L31:L41,AD10) -> 2 | AF10: =AE10/(AG4-AE20) -> 0.1818181818 | AG10: =IF(AF10=0,0,(AF10*((LOG(AF10))/LOG(2)))) -> -0.4471693852 | AI10: =N10 -> 1122 | AJ10: =COUNTIF(L42:L53,AI10) -> 4 | AK10: =AJ10/(AL4-AJ20) -> 0.3333333333 | AL10: =IF(AK10=0,0,(AK10*((LOG(AK10))/LOG(2)))) -> -0.5283208336 | AN10: =N10 -> 1122 | AO10: =COUNTIF(L54:L65,AN10) -> 3 | AP10: =AO10/(AQ4-AO20) -> 0.25 | AQ10: =IF(AP10=0,0,(AP10*((LOG(AP10))/LOG(2)))) -> -0.5 | AS10: =N10 -> 1122 | AT10: =COUNTIF(L66:L77,AS10) -> 2 | AU10: =AT10/(AV4-AT20) -> 0.1818181818 | AV10: =IF(AU10=0,0,(AU10*((LOG(AU10))/LOG(2)))) -> -0.4471693852
A11: 12 | B11: 469 | C11: 14 | D11: 472 | E11: 24 | F11: 484 | G11: 23 | H11: 488 | K11: 0 | L11: 1122 | N11: 1211 | O11: =COUNTIF($L$7:$L$500,N11) -> 1 | P11: =O11/$Q$4 -> 0.01428571429 | Q11: =IF(P11=0,0,(P11*((LOG(P11))/LOG(2)))) -> -0.08756118596 | T11: =N11 -> 1211 | U11: =COUNTIF(L7:L18,T11) -> 0 | V11: =U11/(W4-U20) -> 0 | W11: =IF(V11=0,0,(V11*((LOG(V11))/LOG(2)))) -> 0 | Y11: =N11 -> 1211 | Z11: =COUNTIF(L19:L30,Y11) -> 0 | AA11: =Z11/(AB4-Z20) -> 0 | AB11: =IF(AA11=0,0,(AA11*((LOG(AA11))/LOG(2)))) -> 0 | AD11: =N11 -> 1211 | AE11: =COUNTIF(L31:L41,AD11) -> 0 | AF11: =AE11/(AG4-AE20) -> 0 | AG11: =IF(AF11=0,0,(AF11*((LOG(AF11))/LOG(2)))) -> 0 | AI11: =N11 -> 1211 | AJ11: =COUNTIF(L42:L53,AI11) -> 0 | AK11: =AJ11/(AL4-AJ20) -> 0 | AL11: =IF(AK11=0,0,(AK11*((LOG(AK11))/LOG(2)))) -> 0 | AN11: =N11 -> 1211 | AO11: =COUNTIF(L54:L65,AN11) -> 0 | AP11: =AO11/(AQ4-AO20) -> 0 | AQ11: =IF(AP11=0,0,(AP11*((LOG(AP11))/LOG(2)))) -> 0 | AS11: =N11 -> 1211 | AT11: =COUNTIF(L66:L77,AS11) -> 1 | AU11: =AT11/(AV4-AT20) -> 0.09090909091 | AV11: =IF(AU11=0,0,(AU11*((LOG(AU11))/LOG(2)))) -> -0.3144937835
A12: 12 | B12: 586 | C12: 14 | D12: 589 | E12: 24 | F12: 600 | G12: 23 | H12: 603 | K12: 0 | L12: 1122 | N12: 1212 | O12: =COUNTIF($L$7:$L$500,N12) -> 1 | P12: =O12/$Q$4 -> 0.01428571429 | Q12: =IF(P12=0,0,(P12*((LOG(P12))/LOG(2)))) -> -0.08756118596 | T12: =N12 -> 1212 | U12: =COUNTIF(L7:L18,T12) -> 0 | V12: =U12/(W4-U20) -> 0 | W12: =IF(V12=0,0,(V12*((LOG(V12))/LOG(2)))) -> 0 | Y12: =N12 -> 1212 | Z12: =COUNTIF(L19:L30,Y12) -> 1 | AA12: =Z12/(AB4-Z20) -> 0.08333333333 | AB12: =IF(AA12=0,0,(AA12*((LOG(AA12))/LOG(2)))) -> -0.2987468751 | AD12: =N12 -> 1212 | AE12: =COUNTIF(L31:L41,AD12) -> 0 | AF12: =AE12/(AG4-AE20) -> 0 | AG12: =IF(AF12=0,0,(AF12*((LOG(AF12))/LOG(2)))) -> 0 | AI12: =N12 -> 1212 | AJ12: =COUNTIF(L42:L53,AI12) -> 0 | AK12: =AJ12/(AL4-AJ20) -> 0 | AL12: =IF(AK12=0,0,(AK12*((LOG(AK12))/LOG(2)))) -> 0 | AN12: =N12 -> 1212 | AO12: =COUNTIF(L54:L65,AN12) -> 0 | AP12: =AO12/(AQ4-AO20) -> 0 | AQ12: =IF(AP12=0,0,(AP12*((LOG(AP12))/LOG(2)))) -> 0 | AS12: =N12 -> 1212 | AT12: =COUNTIF(L66:L77,AS12) -> 0 | AU12: =AT12/(AV4-AT20) -> 0 | AV12: =IF(AU12=0,0,(AU12*((LOG(AU12))/LOG(2)))) -> 0
A13: 12 | B13: 698 | C13: 23 | D13: 712 | E13: 24 | F13: 721 | G13: 23 | H13: 728 | K13: 0 | L13: 1222 | N13: 1221 | O13: =COUNTIF($L$7:$L$500,N13) -> 0 | P13: =O13/$Q$4 -> 0 | Q13: =IF(P13=0,0,(P13*((LOG(P13))/LOG(2)))) -> 0 | T13: =N13 -> 1221 | U13: =COUNTIF(L7:L18,T13) -> 0 | V13: =U13/(W4-U20) -> 0 | W13: =IF(V13=0,0,(V13*((LOG(V13))/LOG(2)))) -> 0 | Y13: =N13 -> 1221 | Z13: =COUNTIF(L19:L30,Y13) -> 0 | AA13: =Z13/(AB4-Z20) -> 0 | AB13: =IF(AA13=0,0,(AA13*((LOG(AA13))/LOG(2)))) -> 0 | AD13: =N13 -> 1221 | AE13: =COUNTIF(L31:L41,AD13) -> 0 | AF13: =AE13/(AG4-AE20) -> 0 | AG13: =IF(AF13=0,0,(AF13*((LOG(AF13))/LOG(2)))) -> 0 | AI13: =N13 -> 1221 | AJ13: =COUNTIF(L42:L53,AI13) -> 0 | AK13: =AJ13/(AL4-AJ20) -> 0 | AL13: =IF(AK13=0,0,(AK13*((LOG(AK13))/LOG(2)))) -> 0 | AN13: =N13 -> 1221 | AO13: =COUNTIF(L54:L65,AN13) -> 0 | AP13: =AO13/(AQ4-AO20) -> 0 | AQ13: =IF(AP13=0,0,(AP13*((LOG(AP13))/LOG(2)))) -> 0 | AS13: =N13 -> 1221 | AT13: =COUNTIF(L66:L77,AS13) -> 0 | AU13: =AT13/(AV4-AT20) -> 0 | AV13: =IF(AU13=0,0,(AU13*((LOG(AU13))/LOG(2)))) -> 0
A14: 12 | B14: 860 | C14: 23 | D14: 877 | E14: 24 | F14: 889 | G14: 23 | H14: 895 | K14: 0 | L14: 1222 | N14: 1222 | O14: =COUNTIF($L$7:$L$500,N14) -> 15 | P14: =O14/$Q$4 -> 0.2142857143 | Q14: =IF(P14=0,0,(P14*((LOG(P14))/LOG(2)))) -> -0.4762269474 | T14: =N14 -> 1222 | U14: =COUNTIF(L7:L18,T14) -> 6 | V14: =U14/(W4-U20) -> 0.5 | W14: =IF(V14=0,0,(V14*((LOG(V14))/LOG(2)))) -> -0.5 | Y14: =N14 -> 1222 | Z14: =COUNTIF(L19:L30,Y14) -> 5 | AA14: =Z14/(AB4-Z20) -> 0.4166666667 | AB14: =IF(AA14=0,0,(AA14*((LOG(AA14))/LOG(2)))) -> -0.5262643358 | AD14: =N14 -> 1222 | AE14: =COUNTIF(L31:L41,AD14) -> 0 | AF14: =AE14/(AG4-AE20) -> 0 | AG14: =IF(AF14=0,0,(AF14*((LOG(AF14))/LOG(2)))) -> 0 | AI14: =N14 -> 1222 | AJ14: =COUNTIF(L42:L53,AI14) -> 1 | AK14: =AJ14/(AL4-AJ20) -> 0.08333333333 | AL14: =IF(AK14=0,0,(AK14*((LOG(AK14))/LOG(2)))) -> -0.2987468751 | AN14: =N14 -> 1222 | AO14: =COUNTIF(L54:L65,AN14) -> 1 | AP14: =AO14/(AQ4-AO20) -> 0.08333333333 | AQ14: =IF(AP14=0,0,(AP14*((LOG(AP14))/LOG(2)))) -> -0.2987468751 | AS14: =N14 -> 1222 | AT14: =COUNTIF(L66:L77,AS14) -> 2 | AU14: =AT14/(AV4-AT20) -> 0.1818181818 | AV14: =IF(AU14=0,0,(AU14*((LOG(AU14))/LOG(2)))) -> -0.4471693852
A15: 21 | B15: 1005 | C15: 21 | D15: 1013 | E15: 22 | F15: 1022 | G15: 23 | H15: 1030 | K15: 0 | L15: 2222 | N15: 2111 | O15: =COUNTIF($L$7:$L$500,N15) -> 1 | P15: =O15/$Q$4 -> 0.01428571429 | Q15: =IF(P15=0,0,(P15*((LOG(P15))/LOG(2)))) -> -0.08756118596 | T15: =N15 -> 2111 | U15: =COUNTIF(L7:L18,T15) -> 0 | V15: =U15/(W4-U20) -> 0 | W15: =IF(V15=0,0,(V15*((LOG(V15))/LOG(2)))) -> 0 | Y15: =N15 -> 2111 | Z15: =COUNTIF(L19:L30,Y15) -> 0 | AA15: =Z15/(AB4-Z20) -> 0 | AB15: =IF(AA15=0,0,(AA15*((LOG(AA15))/LOG(2)))) -> 0 | AD15: =N15 -> 2111 | AE15: =COUNTIF(L31:L41,AD15) -> 0 | AF15: =AE15/(AG4-AE20) -> 0 | AG15: =IF(AF15=0,0,(AF15*((LOG(AF15))/LOG(2)))) -> 0 | AI15: =N15 -> 2111 | AJ15: =COUNTIF(L42:L53,AI15) -> 1 | AK15: =AJ15/(AL4-AJ20) -> 0.08333333333 | AL15: =IF(AK15=0,0,(AK15*((LOG(AK15))/LOG(2)))) -> -0.2987468751 | AN15: =N15 -> 2111 | AO15: =COUNTIF(L54:L65,AN15) -> 0 | AP15: =AO15/(AQ4-AO20) -> 0 | AQ15: =IF(AP15=0,0,(AP15*((LOG(AP15))/LOG(2)))) -> 0 | AS15: =N15 -> 2111 | AT15: =COUNTIF(L66:L77,AS15) -> 0 | AU15: =AT15/(AV4-AT20) -> 0 | AV15: =IF(AU15=0,0,(AU15*((LOG(AU15))/LOG(2)))) -> 0
A16: 12 | B16: 1126 | C16: 23 | D16: 1134 | E16: 24 | F16: 1143 | G16: 23 | H16: 1148 | K16: 0 | L16: 1222 | N16: 2112 | O16: =COUNTIF($L$7:$L$500,N16) -> 3 | P16: =O16/$Q$4 -> 0.04285714286 | Q16: =IF(P16=0,0,(P16*((LOG(P16))/LOG(2)))) -> -0.1947565936 | T16: =N16 -> 2112 | U16: =COUNTIF(L7:L18,T16) -> 0 | V16: =U16/(W4-U20) -> 0 | W16: =IF(V16=0,0,(V16*((LOG(V16))/LOG(2)))) -> 0 | Y16: =N16 -> 2112 | Z16: =COUNTIF(L19:L30,Y16) -> 0 | AA16: =Z16/(AB4-Z20) -> 0 | AB16: =IF(AA16=0,0,(AA16*((LOG(AA16))/LOG(2)))) -> 0 | AD16: =N16 -> 2112 | AE16: =COUNTIF(L31:L41,AD16) -> 0 | AF16: =AE16/(AG4-AE20) -> 0 | AG16: =IF(AF16=0,0,(AF16*((LOG(AF16))/LOG(2)))) -> 0 | AI16: =N16 -> 2112 | AJ16: =COUNTIF(L42:L53,AI16) -> 2 | AK16: =AJ16/(AL4-AJ20) -> 0.1666666667 | AL16: =IF(AK16=0,0,(AK16*((LOG(AK16))/LOG(2)))) -> -0.4308270835 | AN16: =N16 -> 2112 | AO16: =COUNTIF(L54:L65,AN16) -> 1 | AP16: =AO16/(AQ4-AO20) -> 0.08333333333 | AQ16: =IF(AP16=0,0,(AP16*((LOG(AP16))/LOG(2)))) -> -0.2987468751 | AS16: =N16 -> 2112 | AT16: =COUNTIF(L66:L77,AS16) -> 0 | AU16: =AT16/(AV4-AT20) -> 0 | AV16: =IF(AU16=0,0,(AU16*((LOG(AU16))/LOG(2)))) -> 0
A17: 12 | B17: 1246 | C17: 14 | D17: 1249 | E17: 24 | F17: 1259 | G17: 23 | H17: 1266 | K17: 0 | L17: 1122 | N17: 2121 | O17: =COUNTIF($L$7:$L$500,N17) -> 0 | P17: =O17/$Q$4 -> 0 | Q17: =IF(P17=0,0,(P17*((LOG(P17))/LOG(2)))) -> 0 | T17: =N17 -> 2121 | U17: =COUNTIF(L7:L18,T17) -> 0 | V17: =U17/(W4-U20) -> 0 | W17: =IF(V17=0,0,(V17*((LOG(V17))/LOG(2)))) -> 0 | Y17: =N17 -> 2121 | Z17: =COUNTIF(L19:L30,Y17) -> 0 | AA17: =Z17/(AB4-Z20) -> 0 | AB17: =IF(AA17=0,0,(AA17*((LOG(AA17))/LOG(2)))) -> 0 | AD17: =N17 -> 2121 | AE17: =COUNTIF(L31:L41,AD17) -> 0 | AF17: =AE17/(AG4-AE20) -> 0 | AG17: =IF(AF17=0,0,(AF17*((LOG(AF17))/LOG(2)))) -> 0 | AI17: =N17 -> 2121 | AJ17: =COUNTIF(L42:L53,AI17) -> 0 | AK17: =AJ17/(AL4-AJ20) -> 0 | AL17: =IF(AK17=0,0,(AK17*((LOG(AK17))/LOG(2)))) -> 0 | AN17: =N17 -> 2121 | AO17: =COUNTIF(L54:L65,AN17) -> 0 | AP17: =AO17/(AQ4-AO20) -> 0 | AQ17: =IF(AP17=0,0,(AP17*((LOG(AP17))/LOG(2)))) -> 0 | AS17: =N17 -> 2121 | AT17: =COUNTIF(L66:L77,AS17) -> 0 | AU17: =AT17/(AV4-AT20) -> 0 | AV17: =IF(AU17=0,0,(AU17*((LOG(AU17))/LOG(2)))) -> 0
A18: 12 | B18: 1364 | C18: 23 | D18: 1377 | E18: 24 | F18: 1380 | G18: 23 | H18: 1387 | K18: 0 | L18: 1222 | N18: 2122 | O18: =COUNTIF($L$7:$L$500,N18) -> 1 | P18: =O18/$Q$4 -> 0.01428571429 | Q18: =IF(P18=0,0,(P18*((LOG(P18))/LOG(2)))) -> -0.08756118596 | T18: =N18 -> 2122 | U18: =COUNTIF(L7:L18,T18) -> 0 | V18: =U18/(W4-U20) -> 0 | W18: =IF(V18=0,0,(V18*((LOG(V18))/LOG(2)))) -> 0 | Y18: =N18 -> 2122 | Z18: =COUNTIF(L19:L30,Y18) -> 0 | AA18: =Z18/(AB4-Z20) -> 0 | AB18: =IF(AA18=0,0,(AA18*((LOG(AA18))/LOG(2)))) -> 0 | AD18: =N18 -> 2122 | AE18: =COUNTIF(L31:L41,AD18) -> 1 | AF18: =AE18/(AG4-AE20) -> 0.09090909091 | AG18: =IF(AF18=0,0,(AF18*((LOG(AF18))/LOG(2)))) -> -0.3144937835 | AI18: =N18 -> 2122 | AJ18: =COUNTIF(L42:L53,AI18) -> 0 | AK18: =AJ18/(AL4-AJ20) -> 0 | AL18: =IF(AK18=0,0,(AK18*((LOG(AK18))/LOG(2)))) -> 0 | AN18: =N18 -> 2122 | AO18: =COUNTIF(L54:L65,AN18) -> 0 | AP18: =AO18/(AQ4-AO20) -> 0 | AQ18: =IF(AP18=0,0,(AP18*((LOG(AP18))/LOG(2)))) -> 0 | AS18: =N18 -> 2122 | AT18: =COUNTIF(L66:L77,AS18) -> 0 | AU18: =AT18/(AV4-AT20) -> 0 | AV18: =IF(AU18=0,0,(AU18*((LOG(AU18))/LOG(2)))) -> 0
A19: 12 | B19: 1483 | C19: 14 | D19: 1487 | E19: 24 | F19: 1494 | G19: 23 | H19: 1499 | K19: 0 | L19: 1122 | N19: 2211 | O19: =COUNTIF($L$7:$L$500,N19) -> 2 | P19: =O19/$Q$4 -> 0.02857142857 | Q19: =IF(P19=0,0,(P19*((LOG(P19))/LOG(2)))) -> -0.1465509433 | T19: =N19 -> 2211 | U19: =COUNTIF(L7:L18,T19) -> 0 | V19: =U19/(W4-U20) -> 0 | W19: =IF(V19=0,0,(V19*((LOG(V19))/LOG(2)))) -> 0 | Y19: =N19 -> 2211 | Z19: =COUNTIF(L19:L30,Y19) -> 0 | AA19: =Z19/(AB4-Z20) -> 0 | AB19: =IF(AA19=0,0,(AA19*((LOG(AA19))/LOG(2)))) -> 0 | AD19: =N19 -> 2211 | AE19: =COUNTIF(L31:L41,AD19) -> 0 | AF19: =AE19/(AG4-AE20) -> 0 | AG19: =IF(AF19=0,0,(AF19*((LOG(AF19))/LOG(2)))) -> 0 | AI19: =N19 -> 2211 | AJ19: =COUNTIF(L42:L53,AI19) -> 0 | AK19: =AJ19/(AL4-AJ20) -> 0 | AL19: =IF(AK19=0,0,(AK19*((LOG(AK19))/LOG(2)))) -> 0 | AN19: =N19 -> 2211 | AO19: =COUNTIF(L54:L65,AN19) -> 0 | AP19: =AO19/(AQ4-AO20) -> 0 | AQ19: =IF(AP19=0,0,(AP19*((LOG(AP19))/LOG(2)))) -> 0 | AS19: =N19 -> 2211 | AT19: =COUNTIF(L66:L77,AS19) -> 2 | AU19: =AT19/(AV4-AT20) -> 0.1818181818 | AV19: =IF(AU19=0,0,(AU19*((LOG(AU19))/LOG(2)))) -> -0.4471693852
A20: 12 | B20: 1595 | C20: 14 | D20: 1598 | E20: 13 | F20: 1603 | G20: 23 | H20: 1610 | K20: 0 | L20: 1112 | N20: 2212 | O20: =COUNTIF($L$7:$L$500,N20) -> 0 | P20: =O20/$Q$4 -> 0 | Q20: =IF(P20=0,0,(P20*((LOG(P20))/LOG(2)))) -> 0 | T20: =N20 -> 2212 | U20: =COUNTIF(L7:L18,T20) -> 0 | Y20: =N20 -> 2212 | Z20: =COUNTIF(L19:L30,Y20) -> 0 | AD20: =N20 -> 2212 | AE20: =COUNTIF(L31:L41,AD20) -> 0 | AI20: =N20 -> 2212 | AJ20: =COUNTIF(L42:L53,AI20) -> 0 | AN20: =N20 -> 2212 | AO20: =COUNTIF(L54:L65,AN20) -> 0 | AS20: =N20 -> 2212 | AT20: =COUNTIF(L66:L77,AS20) -> 0
A21: 12 | B21: 1707 | C21: 14 | D21: 1710 | E21: 24 | F21: 1718 | G21: 23 | H21: 1722 | K21: 0 | L21: 1122 | N21: 2221 | O21: =COUNTIF($L$7:$L$500,N21) -> 0 | P21: =O21/$Q$4 -> 0 | Q21: =IF(P21=0,0,(P21*((LOG(P21))/LOG(2)))) -> 0 | T21: =N21 -> 2221 | U21: =COUNTIF(L7:L18,T21) -> 0 | V21: =U21/(W4-U20) -> 0 | W21: =IF(V21=0,0,(V21*((LOG(V21))/LOG(2)))) -> 0 | Y21: =N21 -> 2221 | Z21: =COUNTIF(L19:L30,Y21) -> 0 | AA21: =Z21/(AB4-Z20) -> 0 | AB21: =IF(AA21=0,0,(AA21*((LOG(AA21))/LOG(2)))) -> 0 | AD21: =N21 -> 2221 | AE21: =COUNTIF(L31:L41,AD21) -> 0 | AF21: =AE21/(AG4-AE20) -> 0 | AG21: =IF(AF21=0,0,(AF21*((LOG(AF21))/LOG(2)))) -> 0 | AI21: =N21 -> 2221 | AJ21: =COUNTIF(L42:L53,AI21) -> 0 | AK21: =AJ21/(AL4-AJ20) -> 0 | AL21: =IF(AK21=0,0,(AK21*((LOG(AK21))/LOG(2)))) -> 0 | AN21: =N21 -> 2221 | AO21: =COUNTIF(L54:L65,AN21) -> 0 | AP21: =AO21/(AQ4-AO20) -> 0 | AQ21: =IF(AP21=0,0,(AP21*((LOG(AP21))/LOG(2)))) -> 0 | AS21: =N21 -> 2221 | AT21: =COUNTIF(L66:L77,AS21) -> 0 | AU21: =AT21/(AV4-AT20) -> 0 | AV21: =IF(AU21=0,0,(AU21*((LOG(AU21))/LOG(2)))) -> 0
A22: 12 | B22: 1819 | C22: 23 | D22: 1836 | E22: 24 | F22: 1841 | G22: 23 | H22: 1847 | K22: 0 | L22: 1222 | N22: 2222 | O22: =COUNTIF($L$7:$L$500,N22) -> 5 | P22: =O22/$Q$4 -> 0.07142857143 | Q22: =IF(P22=0,0,(P22*((LOG(P22))/LOG(2)))) -> -0.271953923 | T22: =N22 -> 2222 | U22: =COUNTIF(L7:L18,T22) -> 1 | V22: =U22/(W4-U20) -> 0.08333333333 | W22: =IF(V22=0,0,(V22*((LOG(V22))/LOG(2)))) -> -0.2987468751 | Y22: =N22 -> 2222 | Z22: =COUNTIF(L19:L30,Y22) -> 1 | AA22: =Z22/(AB4-Z20) -> 0.08333333333 | AB22: =IF(AA22=0,0,(AA22*((LOG(AA22))/LOG(2)))) -> -0.2987468751 | AD22: =N22 -> 2222 | AE22: =COUNTIF(L31:L41,AD22) -> 1 | AF22: =AE22/(AG4-AE20) -> 0.09090909091 | AG22: =IF(AF22=0,0,(AF22*((LOG(AF22))/LOG(2)))) -> -0.3144937835 | AI22: =N22 -> 2222 | AJ22: =COUNTIF(L42:L53,AI22) -> 1 | AK22: =AJ22/(AL4-AJ20) -> 0.08333333333 | AL22: =IF(AK22=0,0,(AK22*((LOG(AK22))/LOG(2)))) -> -0.2987468751 | AN22: =N22 -> 2222 | AO22: =COUNTIF(L54:L65,AN22) -> 0 | AP22: =AO22/(AQ4-AO20) -> 0 | AQ22: =IF(AP22=0,0,(AP22*((LOG(AP22))/LOG(2)))) -> 0 | AS22: =N22 -> 2222 | AT22: =COUNTIF(L66:L77,AS22) -> 1 | AU22: =AT22/(AV4-AT20) -> 0.09090909091 | AV22: =IF(AU22=0,0,(AU22*((LOG(AU22))/LOG(2)))) -> -0.3144937835
A23: 12 | B23: 1946 | C23: 23 | D23: 1953 | E23: 24 | F23: 1956 | G23: 23 | H23: 1961 | K23: 0 | L23: 1222 | P23: =SUM(P7:P22) -> 1 | Q23: =-SUM(Q7:Q22) -> 2.791862328 | V23: =SUM(V7:V22) -> 1 | W23: =-SUM(W7:W22) -> 1.325011211 | AA23: =SUM(AA7:AA22) -> 1 | AB23: =-SUM(AB7:AB22) -> 1.950825795 | AF23: =SUM(AF7:AF22) -> 1 | AG23: =-SUM(AG7:AG22) -> 1.867633891 | AK23: =SUM(AK7:AK22) -> 1 | AL23: =-SUM(AL7:AL22) -> 2.584962501 | AP23: =SUM(AP7:AP22) -> 1 | AQ23: =-SUM(AQ7:AQ22) -> 2.054585169 | AU23: =SUM(AU7:AU22) -> 1 | AV23: =-SUM(AV7:AV22) -> 2.732158891
A24: 21 | B24: 2064 | C24: 21 | D24: 2072 | E24: 22 | F24: 2080 | G24: 23 | H24: 2086 | K24: 0 | L24: 2222 | P24: U= | Q24: =Q23/(LOG(Q4)/LOG(2)) -> 0.455495744 | V24: U1= | W24: =W23/(LOG(W4)/LOG(2)) -> 0.3696025302 | AA24: U2= | AB24: =AB23/(LOG(AB4)/LOG(2)) -> 0.5441690936 | AF24: U3= | AG24: =AG23/(LOG(AG4)/LOG(2)) -> 0.5398672663 | AK24: U4= | AL24: =AL23/(LOG(AL4)/LOG(2)) -> 0.7210570543 | AP24: U5= | AQ24: =AQ23/(LOG(AQ4)/LOG(2)) -> 0.5731120392 | AU24: U6= | AV24: =AV23/(LOG(AV4)/LOG(2)) -> 0.7897710354
A25: 12 | B25: 2197 | C25: 23 | D25: 2205 | E25: 24 | F25: 2213 | G25: 23 | H25: 2218 | K25: 0 | L25: 1222
A26: 12 | B26: 2315 | C26: 14 | D26: 2319 | E26: 24 | F26: 2329 | G26: 23 | H26: 2335 | K26: 0 | L26: 1122
A27: 12 | B27: 2437 | C27: 23 | D27: 2455 | E27: 24 | F27: 2467 | G27: 23 | H27: 2473 | K27: 0 | L27: 1222 | N27: Total Target Seq
A28: 12 | B28: 2573 | C28: 23 | D28: 2583 | E28: 24 | F28: 2587 | G28: 23 | H28: 2591 | K28: 0 | L28: 1222 | N28: =COUNTIF(L7:L77,G3) -> 0 | P28: 12 | Q28: 12 | R28: 11 | S28: 12 | T28: 12 | U28: 12
A29: 12 | B29: 2684 | C29: 23 | D29: 2685 | E29: 13 | F29: 2687 | G29: 23 | H29: 2703 | K29: 0 | L29: 1212 | P29: % of reinforcement given in 6 equal intervals based on number of trials
A30: 12 | B30: 2832 | C30: 14 | D30: 2836 | E30: 24 | F30: 2848 | G30: 23 | H30: 2858 | K30: 0 | L30: 1122 | P30: %_1 | Q30: %_2 | R30: %_3 | S30: %_4 | T30: %_5 | U30: %_6
A31: 12 | B31: 2954 | C31: 14 | D31: 2955 | E31: 24 | F31: 2971 | G31: 23 | H31: 2976 | K31: 0 | L31: 1122 | O31: target sequence | P31: =$G$3 -> 2212 | Q31: =$G$3 -> 2212 | R31: =$G$3 -> 2212 | S31: =$G$3 -> 2212 | T31: =$G$3 -> 2212 | U31: =$G$3 -> 2212
A32: 12 | B32: 3099 | C32: 14 | D32: 3102 | E32: 13 | F32: 3113 | G32: 14 | H32: 3120 | K32: 0 | L32: 1111 | O32: total reinforcement | P32: =U20 -> 0 | Q32: =Z20 -> 0 | R32: =AE20 -> 0 | S32: =AJ20 -> 0 | T32: =AO20 -> 0 | U32: =AT20 -> 0
A33: 12 | B33: 3246 | C33: 14 | D33: 3256 | E33: 13 | F33: 3265 | G33: 14 | H33: 3272 | K33: 0 | L33: 1111 | O33: % target
A34: 21 | B34: 3391 | C34: 21 | D34: 3394 | E34: 22 | F34: 3397 | G34: 23 | H34: 3405 | K34: 0 | L34: 2222 | O34: CCRF
A35: 21 | B35: 3534 | C35: 12 | D35: 3542 | E35: 24 | F35: 3550 | G35: 23 | H35: 3559 | K35: 0 | L35: 2122 | O35: % CCRf
A36: 12 | B36: 3656 | C36: 14 | D36: 3662 | E36: 13 | F36: 3664 | G36: 14 | H36: 3670 | K36: 0 | L36: 1111 | O36: average response rate | P36: =H18/P28 -> 115.5833333 | Q36: =(H30-H18)/Q28 -> 122.5833333 | R36: =(H41-H30)/R28 -> 136.4545455 | S36: =(H53-H41)/S28 -> 151.6666667 | T36: =(H65-H53)/T28 -> 214.8333333 | U36: =(H77-H65)/U28 -> -729.75
A37: 12 | B37: 3793 | C37: 14 | D37: 3797 | E37: 13 | F37: 3803 | G37: 14 | H37: 3808 | K37: 0 | L37: 1111
A38: 12 | B38: 3914 | C38: 14 | D38: 3919 | E38: 24 | F38: 3928 | G38: 23 | H38: 3934 | K38: 0 | L38: 1122
A39: 12 | B39: 4034 | C39: 14 | D39: 4037 | E39: 13 | F39: 4041 | G39: 14 | H39: 4044 | K39: 0 | L39: 1111
A40: 12 | B40: 4184 | C40: 14 | D40: 4188 | E40: 13 | F40: 4194 | G40: 14 | H40: 4198 | K40: 0 | L40: 1111
A41: 12 | B41: 4344 | C41: 14 | D41: 4350 | E41: 24 | F41: 4353 | G41: 14 | H41: 4359 | K41: 0 | L41: 1121
A42: 21 | B42: 4460 | C42: 12 | D42: 4471 | E42: 13 | F42: 4476 | G42: 23 | H42: 4491 | K42: 0 | L42: 2112
A43: 12 | B43: 4602 | C43: 14 | D43: 4607 | E43: 24 | F43: 4619 | G43: 23 | H43: 4624 | K43: 0 | L43: 1122
A44: 12 | B44: 4788 | C44: 23 | D44: 4803 | E44: 24 | F44: 4808 | G44: 23 | H44: 4813 | K44: 0 | L44: 1222
A45: 12 | B45: 4943 | C45: 14 | D45: 4946 | E45: 24 | F45: 4957 | G45: 23 | H45: 4959 | K45: 0 | L45: 1122
A46: 12 | B46: 5080 | C46: 14 | D46: 5083 | E46: 13 | F46: 5086 | G46: 14 | H46: 5091 | K46: 0 | L46: 1111
A47: 12 | B47: 5196 | C47: 14 | D47: 5199 | E47: 24 | F47: 5208 | G47: 23 | H47: 5214 | K47: 0 | L47: 1122
A48: 21 | B48: 5529 | C48: 21 | D48: 5535 | E48: 22 | F48: 5541 | G48: 23 | H48: 5548 | K48: 0 | L48: 2222
A49: 12 | B49: 5647 | C49: 14 | D49: 5649 | E49: 13 | F49: 5655 | G49: 23 | H49: 5671 | K49: 0 | L49: 1112
A50: 12 | B50: 5771 | C50: 14 | D50: 5774 | E50: 24 | F50: 5785 | G50: 23 | H50: 5794 | K50: 0 | L50: 1122
A51: 21 | B51: 5931 | C51: 12 | D51: 5938 | E51: 13 | F51: 5942 | G51: 23 | H51: 5949 | K51: 0 | L51: 2112
A52: 21 | B52: 6051 | C52: 12 | D52: 6061 | E52: 13 | F52: 6065 | G52: 14 | H52: 6069 | K52: 0 | L52: 2111
A53: 12 | B53: 6167 | C53: 14 | D53: 6169 | E53: 13 | F53: 6172 | G53: 14 | H53: 6179 | K53: 0 | L53: 1111
A54: 12 | B54: 6387 | C54: 23 | D54: 6393 | E54: 24 | F54: 6401 | G54: 23 | H54: 6407 | K54: 0 | L54: 1222
A55: 12 | B55: 6517 | C55: 14 | D55: 6519 | E55: 13 | F55: 6525 | G55: 23 | H55: 6539 | K55: 0 | L55: 1112
A56: 12 | B56: 6654 | C56: 14 | D56: 6658 | E56: 24 | F56: 6673 | G56: 23 | H56: 6677 | K56: 0 | L56: 1122
A57: 12 | B57: 6829 | C57: 14 | D57: 6833 | E57: 13 | F57: 6853 | G57: 14 | H57: 6863 | K57: 0 | L57: 1111
A58: 12 | B58: 6968 | C58: 14 | D58: 6972 | E58: 13 | F58: 6978 | G58: 14 | H58: 6983 | K58: 0 | L58: 1111
A59: 12 | B59: 7108 | C59: 14 | D59: 7111 | E59: 13 | F59: 7116 | G59: 14 | H59: 7124 | K59: 0 | L59: 1111
A60: 12 | B60: 7453 | C60: 14 | D60: 7456 | E60: 24 | F60: 7466 | G60: 23 | H60: 7473 | K60: 0 | L60: 1122
A61: 12 | B61: 7574 | C61: 14 | D61: 7579 | E61: 13 | F61: 7583 | G61: 23 | H61: 7596 | K61: 0 | L61: 1112
A62: 12 | B62: 7810 | C62: 14 | D62: 7813 | E62: 13 | F62: 7818 | G62: 14 | H62: 7824 | K62: 0 | L62: 1111
A63: 12 | B63: 8052 | C63: 14 | D63: 8056 | E63: 24 | F63: 8066 | G63: 23 | H63: 8072 | K63: 0 | L63: 1122
A64: 12 | B64: 8215 | C64: 14 | D64: 8218 | E64: 13 | F64: 8222 | G64: 14 | H64: 8227 | K64: 0 | L64: 1111
A65: 21 | B65: 8713 | C65: 12 | D65: 8744 | E65: 13 | F65: 8749 | G65: 23 | H65: 8757 | K65: 0 | L65: 2112
A66: 12 | B66: 8860 | C66: 23 | D66: 8868 | E66: 24 | F66: 8879 | G66: 23 | H66: 8886 | K66: 0 | L66: 1222
A67: 12 | B67: 8984 | C67: 14 | D67: 8989 | E67: 13 | F67: 8993 | G67: 23 | H67: 9002 | K67: 0 | L67: 1112
A68: 12 | B68: 9236 | C68: 14 | D68: 9242 | E68: 24 | F68: 9252 | G68: 23 | H68: 9257 | K68: 0 | L68: 1122
A69: 21 | B69: 12166 | C69: 21 | D69: 12170 | E69: 11 | F69: 12191 | G69: 12 | H69: 12194 | K69: 0 | L69: 2211
A70: 12 | B70: 12294 | C70: 23 | D70: 12304 | E70: 24 | F70: 12307 | G70: 23 | H70: 12311 | K70: 0 | L70: 1222
A71: 12 | B71: 12410 | C71: 14 | D71: 12413 | E71: 13 | F71: 12418 | G71: 14 | H71: 12422 | K71: 0 | L71: 1111
A72: 12 | B72: 12522 | C72: 14 | D72: 12525 | E72: 13 | F72: 12531 | G72: 14 | H72: 12536 | K72: 0 | L72: 1111
A73: 21 | B73: 12826 | C73: 21 | D73: 12831 | E73: 22 | F73: 12839 | G73: 23 | H73: 12845 | K73: 0 | L73: 2222
A74: 21 | B74: 12974 | C74: 21 | D74: 12977 | E74: 11 | F74: 12985 | G74: 12 | H74: 12990 | K74: 0 | L74: 2211
A75: 12 | B75: 13249 | C75: 14 | D75: 13255 | E75: 24 | F75: 13270 | G75: 23 | H75: 13276 | K75: 0 | L75: 1122
A76: 12 | B76: 14534 | C76: 23 | D76: 14544 | E76: 13 | F76: 14558 | G76: 14 | H76: 14564 | K76: 0 | L76: 1211
A77: 12 | B77: 22406 | L77: 1

Sheet !M106B1T.ayl
A1: Report for:!M106B1T.ayl
A2: Date: | B2: <date>
A3: Hen: | B3: <hen> | F3: Correct Sequence | G3: =Start!J2 -> 2212 | P3: Total Sequences in Data | Q3: =4994-COUNTBLANK(L7:L5000) -> 43 | V3: Total Sequences in Block Data | W3: =COUNTA(L7:L13) -> 7 | AA3: Total Sequences in Block Data | AB3: =COUNTA(L14:L20) -> 7 | AF3: Total Sequences in Block Data | AG3: =COUNTA(L21:L28) -> 8 | AK3: Total Sequences in Block Data | AL3: =COUNTA(L29:L35) -> 7 | AP3: Total Sequences in Block Data | AQ3: =COUNTA(L36:L42) -> 7 | AU3: Total Sequences in Block Data | AV3: =COUNTA(L43:L49) -> 7
P4: Total Sequences in Summary | Q4: =SUM(O7:O22) -> 43 | V4: Total Sequences in Block Summary | W4: =SUM(U7:U22) -> 7 | AA4: Total Sequences in Block Summary | AB4: =SUM(Z7:Z22) -> 7 | AF4: Total Sequences in Block Summary | AG4: =SUM(AE7:AE22) -> 8 | AK4: Total Sequences in Block Summary | AL4: =SUM(AJ7:AJ22) -> 7 | AP4: Total Sequences in Block Summary | AQ4: =SUM(AO7:AO22) -> 7 | AU4: Total Sequences in Block Summary | AV4: =SUM(AT7:AT22) -> 7
T5: Block 1 | Y5: Block 2 | AD5: Block 3 | AI5: Block 4 | AN5: Block 5 | AS5: Block 6
A6: Sequence Component 1 | B6: Time 1 | C6: Sequence Component 2 | D6: Time 2 | E6: Sequence Component 3 | F6: Time 3 | G6: Sequence Component 4 | H6: Time 4 | I6: Sequence Component 5 | J6: Time 5 | K6: Correct? 0=No 1=Yes | L6: Sequence | N6: Frequency | P6: Relative Frequency | Q6: Variability | T6: Frequency | V6: Relative Frequency | W6: Variability | Y6: Frequency | AA6: Relative Frequency | AB6: Variability | AD6: Frequency | AF6: Relative Frequency | AG6: Variability | AI6: Frequency | AK6: Relative Frequency | AL6: Variability | AN6: Frequency | AP6: Relative Frequency | AQ6: Variability | AS6: Frequency | AU6: Relative Frequency | AV6: Variability
A7: 21 | B7: 18 | C7: 21 | D7: 22 | E7: 22 | F7: 27 | G7: 23 | H7: 32 | K7: 0 | L7: 2222 | N7: 1111 | O7: =COUNTIF($L$7:$L$500,N7) -> 8 | P7: =O7/$Q$4 -> 0.1860465116 | Q7: =IF(P7=0,0,(P7*((LOG(P7))/LOG(2)))) -> -0.4513980939 | T7: =N7 -> 1111 | U7: =COUNTIF(L7:L13,T7) -> 1 | V7: =U7/(W4-U20) -> 0.1428571429 | W7: =IF(V7=0,0,(V7*((LOG(V7))/LOG(2)))) -> -0.4010507032 | Y7: =N7 -> 1111 | Z7: =COUNTIF(L14:L20,Y7) -> 1 | AA7: =Z7/(AB4-Z20) -> 0.1428571429 | AB7: =IF(AA7=0,0,(AA7*((LOG(AA7))/LOG(2)))) -> -0.4010507032 | AD7: =N7 -> 1111 | AE7: =COUNTIF(L21:L28,AD7) -> 3 | AF7: =AE7/(AG4-AE20) -> 0.375 | AG7: =IF(AF7=0,0,(AF7*((LOG(AF7))/LOG(2)))) -> -0.5306390622 | AI7: =N7 -> 1111 | AJ7: =COUNTIF(L29:L35,AI7) -> 2 | AK7: =AJ7/(AL4-AJ20) -> 0.2857142857 | AL7: =IF(AK7=0,0,(AK7*((LOG(AK7))/LOG(2)))) -> -0.5163871206 | AN7: =N7 -> 1111 | AO7: =COUNTIF(L36:L42,AN7) -> 0 | AP7: =AO7/(AQ4-AO20) -> 0 | AQ7: =IF(AP7=0,0,(AP7*((LOG(AP7))/LOG(2)))) -> 0 | AS7: =N7 -> 1111 | AT7: =COUNTIF(L43:L49,AS7) -> 1 | AU7: =AT7/(AV4-AT20) -> 0.1428571429 | AV7: =IF(AU7=0,0,(AU7*((LOG(AU7))/LOG(2)))) -> -0.4010507032
A8: 12 | B8: 129 | C8: 14 | D8: 134 | E8: 24 | F8: 146 | G8: 23 | H8: 150 | K8: 0 | L8: 1122 | N8: 1112 | O8: =COUNTIF($L$7:$L$500,N8) -> 5 | P8: =O8/$Q$4 -> 0.1162790698 | Q8: =IF(P8=0,0,(P8*((LOG(P8))/LOG(2)))) -> -0.360969379 | T8: =N8 -> 1112 | U8: =COUNTIF(L7:L13,T8) -> 1 | V8: =U8/(W4-U20) -> 0.1428571429 | W8: =IF(V8=0,0,(V8*((LOG(V8))/LOG(2)))) -> -0.4010507032 | Y8: =N8 -> 1112 | Z8: =COUNTIF(L14:L20,Y8) -> 1 | AA8: =Z8/(AB4-Z20) -> 0.1428571429 | AB8: =IF(AA8=0,0,(AA8*((LOG(AA8))/LOG(2)))) -> -0.4010507032 | AD8: =N8 -> 1112 | AE8: =COUNTIF(L21:L28,AD8) -> 2 | AF8: =AE8/(AG4-AE20) -> 0.25 | AG8: =IF(AF8=0,0,(AF8*((LOG(AF8))/LOG(2)))) -> -0.5 | AI8: =N8 -> 1112 | AJ8: =COUNTIF(L29:L35,AI8) -> 0 | AK8: =AJ8/(AL4-AJ20) -> 0 | AL8: =IF(AK8=0,0,(AK8*((LOG(AK8))/LOG(2)))) -> 0 | AN8: =N8 -> 1112 | AO8: =COUNTIF(L36:L42,AN8) -> 0 | AP8: =AO8/(AQ4-AO20) -> 0 | AQ8: =IF(AP8=0,0,(AP8*((LOG(AP8))/LOG(2)))) -> 0 | AS8: =N8 -> 1112 | AT8: =COUNTIF(L43:L49,AS8) -> 1 | AU8: =AT8/(AV4-AT20) -> 0.1428571429 | AV8: =IF(AU8=0,0,(AU8*((LOG(AU8))/LOG(2)))) -> -0.4010507032
A9: 12 | B9: 248 | C9: 23 | D9: 260 | E9: 24 | F9: 268 | G9: 23 | H9: 273 | K9: 0 | L9: 1222 | N9: 1121 | O9: =COUNTIF($L$7:$L$500,N9) -> 1 | P9: =O9/$Q$4 -> 0.02325581395 | Q9: =IF(P9=0,0,(P9*((LOG(P9))/LOG(2)))) -> -0.1261922036 | T9: =N9 -> 1121 | U9: =COUNTIF(L7:L13,T9) -> 0 | V9: =U9/(W4-U20) -> 0 | W9: =IF(V9=0,0,(V9*((LOG(V9))/LOG(2)))) -> 0 | Y9: =N9 -> 1121 | Z9: =COUNTIF(L14:L20,Y9) -> 0 | AA9: =Z9/(AB4-Z20) -> 0 | AB9: =IF(AA9=0,0,(AA9*((LOG(AA9))/LOG(2)))) -> 0 | AD9: =N9 -> 1121 | AE9: =COUNTIF(L21:L28,AD9) -> 0 | AF9: =AE9/(AG4-AE20) -> 0 | AG9: =IF(AF9=0,0,(AF9*((LOG(AF9))/LOG(2)))) -> 0 | AI9: =N9 -> 1121 | AJ9: =COUNTIF(L29:L35,AI9) -> 0 | AK9: =AJ9/(AL4-AJ20) -> 0 | AL9: =IF(AK9=0,0,(AK9*((LOG(AK9))/LOG(2)))) -> 0 | AN9: =N9 -> 1121 | AO9: =COUNTIF(L36:L42,AN9) -> 1 | AP9: =AO9/(AQ4-AO20) -> 0.1428571429 | AQ9: =IF(AP9=0,0,(AP9*((LOG(AP9))/LOG(2)))) -> -0.4010507032 | AS9: =N9 -> 1121 | AT9: =COUNTIF(L43:L49,AS9) -> 0 | AU9: =AT9/(AV4-AT20) -> 0 | AV9: =IF(AU9=0,0,(AU9*((LOG(AU9))/LOG(2)))) -> 0
A10: 12 | B10: 368 | C10: 14 | D10: 372 | E10: 13 | F10: 374 | G10: 14 | H10: 378 | K10: 0 | L10: 1111 | N10: 1122 | O10: =COUNTIF($L$7:$L$500,N10) -> 15 | P10: =O10/$Q$4 -> 0.3488372093 | Q10: =IF(P10=0,0,(P10*((LOG(P10))/LOG(2)))) -> -0.5300142415 | T10: =N10 -> 1122 | U10: =COUNTIF(L7:L13,T10) -> 3 | V10: =U10/(W4-U20) -> 0.4285714286 | W10: =IF(V10=0,0,(V10*((LOG(V10))/LOG(2)))) -> -0.5238824663 | Y10: =N10 -> 1122 | Z10: =COUNTIF(L14:L20,Y10) -> 5 | AA10: =Z10/(AB4-Z20) -> 0.7142857143 | AB10: =IF(AA10=0,0,(AA10*((LOG(AA10))/LOG(2)))) -> -0.346733448 | AD10: =N10 -> 1122 | AE10: =COUNTIF(L21:L28,AD10) -> 1 | AF10: =AE10/(AG4-AE20) -> 0.125 | AG10: =IF(AF10=0,0,(AF10*((LOG(AF10))/LOG(2)))) -> -0.375 | AI10: =N10 -> 1122 | AJ10: =COUNTIF(L29:L35,AI10) -> 2 | AK10: =AJ10/(AL4-AJ20) -> 0.2857142857 | AL10: =IF(AK10=0,0,(AK10*((LOG(AK10))/LOG(2)))) -> -0.5163871206 | AN10: =N10 -> 1122 | AO10: =COUNTIF(L36:L42,AN10) -> 2 | AP10: =AO10/(AQ4-AO20) -> 0.2857142857 | AQ10: =IF(AP10=0,0,(AP10*((LOG(AP10))/LOG(2)))) -> -0.5163871206 | AS10: =N10 -> 1122 | AT10: =COUNTIF(L43:L49,AS10) -> 2 | AU10: =AT10/(AV4-AT20) -> 0.2857142857 | AV10: =IF(AU10=0,0,(AU10*((LOG(AU10))/LOG(2)))) -> -0.5163871206
A11: 12 | B11: 476 | C11: 14 | D11: 479 | E11: 13 | F11: 482 | G11: 23 | H11: 491 | K11: 0 | L11: 1112 | N11: 1211 | O11: =COUNTIF($L$7:$L$500,N11) -> 1 | P11: =O11/$Q$4 -> 0.02325581395 | Q11: =IF(P11=0,0,(P11*((LOG(P11))/LOG(2)))) -> -0.1261922036 | T11: =N11 -> 1211 | U11: =COUNTIF(L7:L13,T11) -> 0 | V11: =U11/(W4-U20) -> 0 | W11: =IF(V11=0,0,(V11*((LOG(V11))/LOG(2)))) -> 0 | Y11: =N11 -> 1211 | Z11: =COUNTIF(L14:L20,Y11) -> 0 | AA11: =Z11/(AB4-Z20) -> 0 | AB11: =IF(AA11=0,0,(AA11*((LOG(AA11))/LOG(2)))) -> 0 | AD11: =N11 -> 1211 | AE11: =COUNTIF(L21:L28,AD11) -> 0 | AF11: =AE11/(AG4-AE20) -> 0 | AG11: =IF(AF11=0,0,(AF11*((LOG(AF11))/LOG(2)))) -> 0 | AI11: =N11 -> 1211 | AJ11: =COUNTIF(L29:L35,AI11) -> 0 | AK11: =AJ11/(AL4-AJ20) -> 0 | AL11: =IF(AK11=0,0,(AK11*((LOG(AK11))/LOG(2)))) -> 0 | AN11: =N11 -> 1211 | AO11: =COUNTIF(L36:L42,AN11) -> 1 | AP11: =AO11/(AQ4-AO20) -> 0.1428571429 | AQ11: =IF(AP11=0,0,(AP11*((LOG(AP11))/LOG(2)))) -> -0.4010507032 | AS11: =N11 -> 1211 | AT11: =COUNTIF(L43:L49,AS11) -> 0 | AU11: =AT11/(AV4-AT20) -> 0 | AV11: =IF(AU11=0,0,(AU11*((LOG(AU11))/LOG(2)))) -> 0
A12: 12 | B12: 588 | C12: 14 | D12: 594 | E12: 24 | F12: 604 | G12: 23 | H12: 613 | K12: 0 | L12: 1122 | N12: 1212 | O12: =COUNTIF($L$7:$L$500,N12) -> 0 | P12: =O12/$Q$4 -> 0 | Q12: =IF(P12=0,0,(P12*((LOG(P12))/LOG(2)))) -> 0 | T12: =N12 -> 1212 | U12: =COUNTIF(L7:L13,T12) -> 0 | V12: =U12/(W4-U20) -> 0 | W12: =IF(V12=0,0,(V12*((LOG(V12))/LOG(2)))) -> 0 | Y12: =N12 -> 1212 | Z12: =COUNTIF(L14:L20,Y12) -> 0 | AA12: =Z12/(AB4-Z20) -> 0 | AB12: =IF(AA12=0,0,(AA12*((LOG(AA12))/LOG(2)))) -> 0 | AD12: =N12 -> 1212 | AE12: =COUNTIF(L21:L28,AD12) -> 0 | AF12: =AE12/(AG4-AE20) -> 0 | AG12: =IF(AF12=0,0,(AF12*((LOG(AF12))/LOG(2)))) -> 0 | AI12: =N12 -> 1212 | AJ12: =COUNTIF(L29:L35,AI12) -> 0 | AK12: =AJ12/(AL4-AJ20) -> 0 | AL12: =IF(AK12=0,0,(AK12*((LOG(AK12))/LOG(2)))) -> 0 | AN12: =N12 -> 1212 | AO12: =COUNTIF(L36:L42,AN12) -> 0 | AP12: =AO12/(AQ4-AO20) -> 0 | AQ12: =IF(AP12=0,0,(AP12*((LOG(AP12))/LOG(2)))) -> 0 | AS12: =N12 -> 1212 | AT12: =COUNTIF(L43:L49,AS12) -> 0 | AU12: =AT12/(AV4-AT20) -> 0 | AV12: =IF(AU12=0,0,(AU12*((LOG(AU12))/LOG(2)))) -> 0
A13: 12 | B13: 710 | C13: 14 | D13: 713 | E13: 24 | F13: 725 | G13: 23 | H13: 728 | K13: 0 | L13: 1122 | N13: 1221 | O13: =COUNTIF($L$7:$L$500,N13) -> 1 | P13: =O13/$Q$4 -> 0.02325581395 | Q13: =IF(P13=0,0,(P13*((LOG(P13))/LOG(2)))) -> -0.1261922036 | T13: =N13 -> 1221 | U13: =COUNTIF(L7:L13,T13) -> 0 | V13: =U13/(W4-U20) -> 0 | W13: =IF(V13=0,0,(V13*((LOG(V13))/LOG(2)))) -> 0 | Y13: =N13 -> 1221 | Z13: =COUNTIF(L14:L20,Y13) -> 0 | AA13: =Z13/(AB4-Z20) -> 0 | AB13: =IF(AA13=0,0,(AA13*((LOG(AA13))/LOG(2)))) -> 0 | AD13: =N13 -> 1221 | AE13: =COUNTIF(L21:L28,AD13) -> 0 | AF13: =AE13/(AG4-AE20) -> 0 | AG13: =IF(AF13=0,0,(AF13*((LOG(AF13))/LOG(2)))) -> 0 | AI13: =N13 -> 1221 | AJ13: =COUNTIF(L29:L35,AI13) -> 0 | AK13: =AJ13/(AL4-AJ20) -> 0 | AL13: =IF(AK13=0,0,(AK13*((LOG(AK13))/LOG(2)))) -> 0 | AN13: =N13 -> 1221 | AO13: =COUNTIF(L36:L42,AN13) -> 0 | AP13: =AO13/(AQ4-AO20) -> 0 | AQ13: =IF(AP13=0,0,(AP13*((LOG(AP13))/LOG(2)))) -> 0 | AS13: =N13 -> 1221 | AT13: =COUNTIF(L43:L49,AS13) -> 1 | AU13: =AT13/(AV4-AT20) -> 0.1428571429 | AV13: =IF(AU13=0,0,(AU13*((LOG(AU13))/LOG(2)))) -> -0.4010507032
A14: 12 | B14: 822 | C14: 14 | D14: 825 | E14: 24 | F14: 834 | G14: 23 | H14: 843 | K14: 0 | L14: 1122 | N14: 1222 | O14: =COUNTIF($L$7:$L$500,N14) -> 6 | P14: =O14/$Q$4 -> 0.1395348837 | Q14: =IF(P14=0,0,(P14*((LOG(P14))/LOG(2)))) -> -0.3964607796 | T14: =N14 -> 1222 | U14: =COUNTIF(L7:L13,T14) -> 1 | V14: =U14/(W4-U20) -> 0.1428571429 | W14: =IF(V14=0,0,(V14*((LOG(V14))/LOG(2)))) -> -0.4010507032 | Y14: =N14 -> 1222 | Z14: =COUNTIF(L14:L20,Y14) -> 0 | AA14: =Z14/(AB4-Z20) -> 0 | AB14: =IF(AA14=0,0,(AA14*((LOG(AA14))/LOG(2)))) -> 0 | AD14: =N14 -> 1222 | AE14: =COUNTIF(L21:L28,AD14) -> 1 | AF14: =AE14/(AG4-AE20) -> 0.125 | AG14: =IF(AF14=0,0,(AF14*((LOG(AF14))/LOG(2)))) -> -0.375 | AI14: =N14 -> 1222 | AJ14: =COUNTIF(L29:L35,AI14) -> 1 | AK14: =AJ14/(AL4-AJ20) -> 0.1428571429 | AL14: =IF(AK14=0,0,(AK14*((LOG(AK14))/LOG(2)))) -> -0.4010507032 | AN14: =N14 -> 1222 | AO14: =COUNTIF(L36:L42,AN14) -> 1 | AP14: =AO14/(AQ4-AO20) -> 0.1428571429 | AQ14: =IF(AP14=0,0,(AP14*((LOG(AP14))/LOG(2)))) -> -0.4010507032 | AS14: =N14 -> 1222 | AT14: =COUNTIF(L43:L49,AS14) -> 2 | AU14: =AT14/(AV4-AT20) -> 0.2857142857 | AV14: =IF(AU14=0,0,(AU14*((LOG(AU14))/LOG(2)))) -> -0.5163871206
A15: 12 | B15: 942 | C15: 14 | D15: 947 | E15: 24 | F15: 958 | G15: 23 | H15: 961 | K15: 0 | L15: 1122 | N15: 2111 | O15: =COUNTIF($L$7:$L$500,N15) -> 2 | P15: =O15/$Q$4 -> 0.04651162791 | Q15: =IF(P15=0,0,(P15*((LOG(P15))/LOG(2)))) -> -0.2058727793 | T15: =N15 -> 2111 | U15: =COUNTIF(L7:L13,T15) -> 0 | V15: =U15/(W4-U20) -> 0 | W15: =IF(V15=0,0,(V15*((LOG(V15))/LOG(2)))) -> 0 | Y15: =N15 -> 2111 | Z15: =COUNTIF(L14:L20,Y15) -> 0 | AA15: =Z15/(AB4-Z20) -> 0 | AB15: =IF(AA15=0,0,(AA15*((LOG(AA15))/LOG(2)))) -> 0 | AD15: =N15 -> 2111 | AE15: =COUNTIF(L21:L28,AD15) -> 1 | AF15: =AE15/(AG4-AE20) -> 0.125 | AG15: =IF(AF15=0,0,(AF15*((LOG(AF15))/LOG(2)))) -> -0.375 | AI15: =N15 -> 2111 | AJ15: =COUNTIF(L29:L35,AI15) -> 1 | AK15: =AJ15/(AL4-AJ20) -> 0.1428571429 | AL15: =IF(AK15=0,0,(AK15*((LOG(AK15))/LOG(2)))) -> -0.4010507032 | AN15: =N15 -> 2111 | AO15: =COUNTIF(L36:L42,AN15) -> 0 | AP15: =AO15/(AQ4-AO20) -> 0 | AQ15: =IF(AP15=0,0,(AP15*((LOG(AP15))/LOG(2)))) -> 0 | AS15: =N15 -> 2111 | AT15: =COUNTIF(L43:L49,AS15) -> 0 | AU15: =AT15/(AV4-AT20) -> 0 | AV15: =IF(AU15=0,0,(AU15*((LOG(AU15))/LOG(2)))) -> 0
A16: 12 | B16: 1061 | C16: 14 | D16: 1064 | E16: 24 | F16: 1073 | G16: 23 | H16: 1077 | K16: 0 | L16: 1122 | N16: 2112 | O16: =COUNTIF($L$7:$L$500,N16) -> 0 | P16: =O16/$Q$4 -> 0 | Q16: =IF(P16=0,0,(P16*((LOG(P16))/LOG(2)))) -> 0 | T16: =N16 -> 2112 | U16: =COUNTIF(L7:L13,T16) -> 0 | V16: =U16/(W4-U20) -> 0 | W16: =IF(V16=0,0,(V16*((LOG(V16))/LOG(2)))) -> 0 | Y16: =N16 -> 2112 | Z16: =COUNTIF(L14:L20,Y16) -> 0 | AA16: =Z16/(AB4-Z20) -> 0 | AB16: =IF(AA16=0,0,(AA16*((LOG(AA16))/LOG(2)))) -> 0 | AD16: =N16 -> 2112 | AE16: =COUNTIF(L21:L28,AD16) -> 0 | AF16: =AE16/(AG4-AE20) -> 0 | AG16: =IF(AF16=0,0,(AF16*((LOG(AF16))/LOG(2)))) -> 0 | AI16: =N16 -> 2112 | AJ16: =COUNTIF(L29:L35,AI16) -> 0 | AK16: =AJ16/(AL4-AJ20) -> 0 | AL16: =IF(AK16=0,0,(AK16*((LOG(AK16))/LOG(2)))) -> 0 | AN16: =N16 -> 2112 | AO16: =COUNTIF(L36:L42,AN16) -> 0 | AP16: =AO16/(AQ4-AO20) -> 0 | AQ16: =IF(AP16=0,0,(AP16*((LOG(AP16))/LOG(2)))) -> 0 | AS16: =N16 -> 2112 | AT16: =COUNTIF(L43:L49,AS16) -> 0 | AU16: =AT16/(AV4-AT20) -> 0 | AV16: =IF(AU16=0,0,(AU16*((LOG(AU16))/LOG(2)))) -> 0
A17: 12 | B17: 1174 | C17: 14 | D17: 1176 | E17: 24 | F17: 1190 | G17: 23 | H17: 1193 | K17: 0 | L17: 1122 | N17: 2121 | O17: =COUNTIF($L$7:$L$500,N17) -> 0 | P17: =O17/$Q$4 -> 0 | Q17: =IF(P17=0,0,(P17*((LOG(P17))/LOG(2)))) -> 0 | T17: =N17 -> 2121 | U17: =COUNTIF(L7:L13,T17) -> 0 | V17: =U17/(W4-U20) -> 0 | W17: =IF(V17=0,0,(V17*((LOG(V17))/LOG(2)))) -> 0 | Y17: =N17 -> 2121 | Z17: =COUNTIF(L14:L20,Y17) -> 0 | AA17: =Z17/(AB4-Z20) -> 0 | AB17: =IF(AA17=0,0,(AA17*((LOG(AA17))/LOG(2)))) -> 0 | AD17: =N17 -> 2121 | AE17: =COUNTIF(L21:L28,AD17) -> 0 | AF17: =AE17/(AG4-AE20) -> 0 | AG17: =IF(AF17=0,0,(AF17*((LOG(AF17))/LOG(2)))) -> 0 | AI17: =N17 -> 2121 | AJ17: =COUNTIF(L29:L35,AI17) -> 0 | AK17: =AJ17/(AL4-AJ20) -> 0 | AL17: =IF(AK17=0,0,(AK17*((LOG(AK17))/LOG(2)))) -> 0 | AN17: =N17 -> 2121 | AO17: =COUNTIF(L36:L42,AN17) -> 0 | AP17: =AO17/(AQ4-AO20) -> 0 | AQ17: =IF(AP17=0,0,(AP17*((LOG(AP17))/LOG(2)))) -> 0 | AS17: =N17 -> 2121 | AT17: =COUNTIF(L43:L49,AS17) -> 0 | AU17: =AT17/(AV4-AT20) -> 0 | AV17: =IF(AU17=0,0,(AU17*((LOG(AU17))/LOG(2)))) -> 0
A18: 12 | B18: 1285 | C18: 14 | D18: 1294 | E18: 13 | F18: 1297 | G18: 14 | H18: 1302 | K18: 0 | L18: 1111 | N18: 2122 | O18: =COUNTIF($L$7:$L$500,N18) -> 0 | P18: =O18/$Q$4 -> 0 | Q18: =IF(P18=0,0,(P18*((LOG(P18))/LOG(2)))) -> 0 | T18: =N18 -> 2122 | U18: =COUNTIF(L7:L13,T18) -> 0 | V18: =U18/(W4-U20) -> 0 | W18: =IF(V18=0,0,(V18*((LOG(V18))/LOG(2)))) -> 0 | Y18: =N18 -> 2122 | Z18: =COUNTIF(L14:L20,Y18) -> 0 | AA18: =Z18/(AB4-Z20) -> 0 | AB18: =IF(AA18=0,0,(AA18*((LOG(AA18))/LOG(2)))) -> 0 | AD18: =N18 -> 2122 | AE18: =COUNTIF(L21:L28,AD18) -> 0 | AF18: =AE18/(AG4-AE20) -> 0 | AG18: =IF(AF18=0,0,(AF18*((LOG(AF18))/LOG(2)))) -> 0 | AI18: =N18 -> 2122 | AJ18: =COUNTIF(L29:L35,AI18) -> 0 | AK18: =AJ18/(AL4-AJ20) -> 0 | AL18: =IF(AK18=0,0,(AK18*((LOG(AK18))/LOG(2)))) -> 0 | AN18: =N18 -> 2122 | AO18: =COUNTIF(L36:L42,AN18) -> 0 | AP18: =AO18/(AQ4-AO20) -> 0 | AQ18: =IF(AP18=0,0,(AP18*((LOG(AP18))/LOG(2)))) -> 0 | AS18: =N18 -> 2122 | AT18: =COUNTIF(L43:L49,AS18) -> 0 | AU18: =AT18/(AV4-AT20) -> 0 | AV18: =IF(AU18=0,0,(AU18*((LOG(AU18))/LOG(2)))) -> 0
A19: 12 | B19: 1401 | C19: 14 | D19: 1405 | E19: 24 | F19: 1414 | G19: 23 | H19: 1427 | K19: 0 | L19: 1122 | N19: 2211 | O19: =COUNTIF($L$7:$L$500,N19) -> 1 | P19: =O19/$Q$4 -> 0.02325581395 | Q19: =IF(P19=0,0,(P19*((LOG(P19))/LOG(2)))) -> -0.1261922036 | T19: =N19 -> 2211 | U19: =COUNTIF(L7:L13,T19) -> 0 | V19: =U19/(W4-U20) -> 0 | W19: =IF(V19=0,0,(V19*((LOG(V19))/LOG(2)))) -> 0 | Y19: =N19 -> 2211 | Z19: =COUNTIF(L14:L20,Y19) -> 0 | AA19: =Z19/(AB4-Z20) -> 0 | AB19: =IF(AA19=0,0,(AA19*((LOG(AA19))/LOG(2)))) -> 0 | AD19: =N19 -> 2211 | AE19: =COUNTIF(L21:L28,AD19) -> 0 | AF19: =AE19/(AG4-AE20) -> 0 | AG19: =IF(AF19=0,0,(AF19*((LOG(AF19))/LOG(2)))) -> 0 | AI19: =N19 -> 2211 | AJ19: =COUNTIF(L29:L35,AI19) -> 0 | AK19: =AJ19/(AL4-AJ20) -> 0 | AL19: =IF(AK19=0,0,(AK19*((LOG(AK19))/LOG(2)))) -> 0 | AN19: =N19 -> 2211 | AO19: =COUNTIF(L36:L42,AN19) -> 1 | AP19: =AO19/(AQ4-AO20) -> 0.1428571429 | AQ19: =IF(AP19=0,0,(AP19*((LOG(AP19))/LOG(2)))) -> -0.4010507032 | AS19: =N19 -> 2211 | AT19: =COUNTIF(L43:L49,AS19) -> 0 | AU19: =AT19/(AV4-AT20) -> 0 | AV19: =IF(AU19=0,0,(AU19*((LOG(AU19))/LOG(2)))) -> 0
A20: 12 | B20: 1525 | C20: 14 | D20: 1528 | E20: 13 | F20: 1539 | G20: 23 | H20: 1551 | K20: 0 | L20: 1112 | N20: 2212 | O20: =COUNTIF($L$7:$L$500,N20) -> 0 | P20: =O20/$Q$4 -> 0 | Q20: =IF(P20=0,0,(P20*((LOG(P20))/LOG(2)))) -> 0 | T20: =N20 -> 2212 | U20: =COUNTIF(L7:L13,T20) -> 0 | Y20: =N20 -> 2212 | Z20: =COUNTIF(L14:L20,Y20) -> 0 | AD20: =N20 -> 2212 | AE20: =COUNTIF(L21:L28,AD20) -> 0 | AI20: =N20 -> 2212 | AJ20: =COUNTIF(L29:L35,AI20) -> 0 | AN20: =N20 -> 2212 | AO20: =COUNTIF(L36:L42,AN20) -> 0 | AS20: =N20 -> 2212 | AT20: =COUNTIF(L43:L49,AS20) -> 0
A21: 12 | B21: 1656 | C21: 14 | D21: 1660 | E21: 13 | F21: 1672 | G21: 14 | H21: 1677 | K21: 0 | L21: 1111 | N21: 2221 | O21: =COUNTIF($L$7:$L$500,N21) -> 1 | P21: =O21/$Q$4 -> 0.02325581395 | Q21: =IF(P21=0,0,(P21*((LOG(P21))/LOG(2)))) -> -0.1261922036 | T21: =N21 -> 2221 | U21: =COUNTIF(L7:L13,T21) -> 0 | V21: =U21/(W4-U20) -> 0 | W21: =IF(V21=0,0,(V21*((LOG(V21))/LOG(2)))) -> 0 | Y21: =N21 -> 2221 | Z21: =COUNTIF(L14:L20,Y21) -> 0 | AA21: =Z21/(AB4-Z20) -> 0 | AB21: =IF(AA21=0,0,(AA21*((LOG(AA21))/LOG(2)))) -> 0 | AD21: =N21 -> 2221 | AE21: =COUNTIF(L21:L28,AD21) -> 0 | AF21: =AE21/(AG4-AE20) -> 0 | AG21: =IF(AF21=0,0,(AF21*((LOG(AF21))/LOG(2)))) -> 0 | AI21: =N21 -> 2221 | AJ21: =COUNTIF(L29:L35,AI21) -> 0 | AK21: =AJ21/(AL4-AJ20) -> 0 | AL21: =IF(AK21=0,0,(AK21*((LOG(AK21))/LOG(2)))) -> 0 | AN21: =N21 -> 2221 | AO21: =COUNTIF(L36:L42,AN21) -> 1 | AP21: =AO21/(AQ4-AO20) -> 0.1428571429 | AQ21: =IF(AP21=0,0,(AP21*((LOG(AP21))/LOG(2)))) -> -0.4010507032 | AS21: =N21 -> 2221 | AT21: =COUNTIF(L43:L49,AS21) -> 0 | AU21: =AT21/(AV4-AT20) -> 0 | AV21: =IF(AU21=0,0,(AU21*((LOG(AU21))/LOG(2)))) -> 0
A22: 12 | B22: 1775 | C22: 14 | D22: 1778 | E22: 13 | F22: 1781 | G22: 14 | H22: 1796 | K22: 0 | L22: 1111 | N22: 2222 | O22: =COUNTIF($L$7:$L$500,N22) -> 2 | P22: =O22/$Q$4 -> 0.04651162791 | Q22: =IF(P22=0,0,(P22*((LOG(P22))/LOG(2)))) -> -0.2058727793 | T22: =N22 -> 2222 | U22: =COUNTIF(L7:L13,T22) -> 1 | V22: =U22/(W4-U20) -> 0.1428571429 | W22: =IF(V22=0,0,(V22*((LOG(V22))/LOG(2)))) -> -0.4010507032 | Y22: =N22 -> 2222 | Z22: =COUNTIF(L14:L20,Y22) -> 0 | AA22: =Z22/(AB4-Z20) -> 0 | AB22: =IF(AA22=0,0,(AA22*((LOG(AA22))/LOG(2)))) -> 0 | AD22: =N22 -> 2222 | AE22: =COUNTIF(L21:L28,AD22) -> 0 | AF22: =AE22/(AG4-AE20) -> 0 | AG22: =IF(AF22=0,0,(AF22*((LOG(AF22))/LOG(2)))) -> 0 | AI22: =N22 -> 2222 | AJ22: =COUNTIF(L29:L35,AI22) -> 1 | AK22: =AJ22/(AL4-AJ20) -> 0.1428571429 | AL22: =IF(AK22=0,0,(AK22*((LOG(AK22))/LOG(2)))) -> -0.4010507032 | AN22: =N22 -> 2222 | AO22: =COUNTIF(L36:L42,AN22) -> 0 | AP22: =AO22/(AQ4-AO20) -> 0 | AQ22: =IF(AP22=0,0,(AP22*((LOG(AP22))/LOG(2)))) -> 0 | AS22: =N22 -> 2222 | AT22: =COUNTIF(L43:L49,AS22) -> 0 | AU22: =AT22/(AV4-AT20) -> 0 | AV22: =IF(AU22=0,0,(AU22*((LOG(AU22))/LOG(2)))) -> 0
A23: 12 | B23: 1923 | C23: 23 | D23: 1932 | E23: 24 | F23: 1935 | G23: 23 | H23: 1939 | K23: 0 | L23: 1222 | P23: =SUM(P7:P22) -> 1 | Q23: =-SUM(Q7:Q22) -> 2.781549071 | V23: =SUM(V7:V22) -> 1 | W23: =-SUM(W7:W22) -> 2.128085279 | AA23: =SUM(AA7:AA22) -> 1 | AB23: =-SUM(AB7:AB22) -> 1.148834854 | AF23: =SUM(AF7:AF22) -> 1 | AG23: =-SUM(AG7:AG22) -> 2.155639062 | AK23: =SUM(AK7:AK22) -> 1 | AL23: =-SUM(AL7:AL22) -> 2.235926351 | AP23: =SUM(AP7:AP22) -> 1 | AQ23: =-SUM(AQ7:AQ22) -> 2.521640636 | AU23: =SUM(AU7:AU22) -> 1 | AV23: =-SUM(AV7:AV22) -> 2.235926351
A24: 12 | B24: 2040 | C24: 14 | D24: 2043 | E24: 24 | F24: 2055 | G24: 23 | H24: 2058 | K24: 0 | L24: 1122 | P24: U= | Q24: =Q23/(LOG(Q4)/LOG(2)) -> 0.5126084326 | V24: U1= | W24: =W23/(LOG(W4)/LOG(2)) -> 0.7580392711 | AA24: U2= | AB24: =AB23/(LOG(AB4)/LOG(2)) -> 0.4092232319 | AF24: U3= | AG24: =AG23/(LOG(AG4)/LOG(2)) -> 0.7185463541 | AK24: U4= | AL24: =AL23/(LOG(AL4)/LOG(2)) -> 0.7964530359 | AP24: U5= | AQ24: =AQ23/(LOG(AQ4)/LOG(2)) -> 0.898226518 | AU24: U6= | AV24: =AV23/(LOG(AV4)/LOG(2)) -> 0.7964530359
A25: 12 | B25: 2153 | C25: 14 | D25: 2156 | E25: 13 | F25: 2159 | G25: 14 | H25: 2177 | K25: 0 | L25: 1111
A26: 12 | B26: 2337 | C26: 14 | D26: 2346 | E26: 13 | F26: 2350 | G26: 23 | H26: 2365 | K26: 0 | L26: 1112
A27: 12 | B27: 2480 | C27: 14 | D27: 2490 | E27: 13 | F27: 2496 | G27: 23 | H27: 2511 | K27: 0 | L27: 1112 | N27: Total Target Seq
A28: 21 | B28: 2643 | C28: 12 | D28: 2665 | E28: 13 | F28: 2670 | G28: 14 | H28: 2676 | K28: 0 | L28: 2111 | N28: =COUNTIF(L7:L49,G3) -> 0 | P28: 7 | Q28: 7 | R28: 8 | S28: 7 | T28: 7 | U28: 7
A29: 21 | B29: 2774 | C29: 12 | D29: 2781 | E29: 13 | F29: 2786 | G29: 14 | H29: 2791 | K29: 0 | L29: 2111 | P29: % of reinforcement given in 6 equal intervals based on number of trials
A30: 12 | B30: 2887 | C30: 14 | D30: 2931 | E30: 24 | F30: 2941 | G30: 23 | H30: 2949 | K30: 0 | L30: 1122 | P30: %_1 | Q30: %_2 | R30: %_3 | S30: %_4 | T30: %_5 | U30: %_6
A31: 12 | B31: 3101 | C31: 14 | D31: 3110 | E31: 13 | F31: 3116 | G31: 14 | H31: 3123 | K31: 0 | L31: 1111 | O31: target sequence | P31: =$G$3 -> 2212 | Q31: =$G$3 -> 2212 | R31: =$G$3 -> 2212 | S31: =$G$3 -> 2212 | T31: =$G$3 -> 2212 | U31: =$G$3 -> 2212
A32: 12 | B32: 3357 | C32: 14 | D32: 3363 | E32: 24 | F32: 3375 | G32: 23 | H32: 3384 | K32: 0 | L32: 1122 | O32: total reinforcement | P32: =U20 -> 0 | Q32: =Z20 -> 0 | R32: =AE20 -> 0 | S32: =AJ20 -> 0 | T32: =AO20 -> 0 | U32: =AT20 -> 0
A33: 12 | B33: 3620 | C33: 14 | D33: 3628 | E33: 13 | F33: 3633 | G33: 14 | H33: 3641 | K33: 0 | L33: 1111 | O33: % target
A34: 21 | B34: 3761 | C34: 21 | D34: 3771 | E34: 22 | F34: 3781 | G34: 23 | H34: 3786 | K34: 0 | L34: 2222 | O34: CCRF
A35: 12 | B35: 3884 | C35: 23 | D35: 3894 | E35: 24 | F35: 3898 | G35: 23 | H35: 3903 | K35: 0 | L35: 1222 | O35: % CCRf
A36: 12 | B36: 4073 | C36: 23 | D36: 4075 | E36: 13 | F36: 4082 | G36: 14 | H36: 4089 | K36: 0 | L36: 1211 | O36: average response rate | P36: =H13/P28 -> 104 | Q36: =(H20-H13)/Q28 -> 117.5714286 | R36: =(H28-H20)/R28 -> 140.625 | S36: =(H35-H28)/S28 -> 175.2857143 | T36: =(H42-H35)/T28 -> 245.4285714 | U36: =(H49-H42)/U28 -> 2512.428571
A37: 21 | B37: 4419 | C37: 21 | D37: 4424 | E37: 11 | F37: 4437 | G37: 12 | H37: 4444 | K37: 0 | L37: 2211
A38: 12 | B38: 4674 | C38: 14 | D38: 4694 | E38: 24 | F38: 4697 | G38: 14 | H38: 4699 | K38: 0 | L38: 1121
A39: 12 | B39: 4834 | C39: 14 | D39: 4844 | E39: 24 | F39: 4848 | G39: 23 | H39: 4864 | K39: 0 | L39: 1122
A40: 21 | B40: 5255 | C40: 21 | D40: 5262 | E40: 22 | F40: 5269 | G40: 14 | H40: 5288 | K40: 0 | L40: 2221
A41: 12 | B41: 5387 | C41: 14 | D41: 5390 | E41: 24 | F41: 5399 | G41: 23 | H41: 5403 | K41: 0 | L41: 1122
A42: 12 | B42: 5600 | C42: 23 | D42: 5612 | E42: 24 | F42: 5615 | G42: 23 | H42: 5621 | K42: 0 | L42: 1222
A43: 12 | B43: 6941 | C43: 23 | D43: 6951 | E43: 24 | F43: 9958 | G43: 23 | H43: 9961 | K43: 0 | L43: 1222
A44: 12 | B44: 13680 | C44: 14 | D44: 13686 | E44: 13 | F44: 13691 | G44: 14 | H44: 13697 | K44: 0 | L44: 1111
A45: 12 | B45: 13817 | C45: 23 | D45: 13831 | E45: 24 | F45: 13837 | G45: 23 | H45: 13842 | K45: 0 | L45: 1222
A46: 12 | B46: 13940 | C46: 14 | D46: 13947 | E46: 24 | F46: 13962 | G46: 23 | H46: 13968 | K46: 0 | L46: 1122
A47: 12 | B47: 22665 | C47: 14 | D47: 22669 | E47: 13 | F47: 22674 | G47: 23 | H47: 22684 | K47: 0 | L47: 1112
A48: 12 | B48: 22793 | C48: 23 | D48: 22813 | E48: 24 | F48: 22823 | G48: 14 | H48: 22842 | K48: 0 | L48: 1221
A49: 12 | B49: 23163 | C49: 14 | D49: 23184 | E49: 24 | F49: 23199 | G49: 23 | H49: 23208 | K49: 0 | L49: 1122

Sheet !M109B2T.ayl
A1: Report for:!M109B2T.ayl
A2: Date: | B2: <date>
A3: Hen: | B3: <hen> | F3: Correct Sequence | G3: =Start!J2 -> 2212 | P3: Total Sequences in Data | Q3: =4994-COUNTBLANK(L7:L5000) -> 24 | V3: Total Sequences in Block Data | W3: =COUNTA(L7:L10) -> 4 | AA3: Total Sequences in Block Data | AB3: =COUNTA(L11:L14) -> 4 | AF3: Total Sequences in Block Data | AG3: =COUNTA(L15:L18) -> 4 | AK3: Total Sequences in Block Data | AL3: =COUNTA(L19:L22) -> 4 | AP3: Total Sequences in Block Data | AQ3: =COUNTA(L23:L26) -> 4 | AU3: Total Sequences in Block Data | AV3: =COUNTA(L27:L30) -> 4
P4: Total Sequences in Summary | Q4: =SUM(O7:O22) -> 24 | V4: Total Sequences in Block Summary | W4: =SUM(U7:U22) -> 4 | AA4: Total Sequences in Block Summary | AB4: =SUM(Z7:Z22) -> 4 | AF4: Total Sequences in Block Summary | AG4: =SUM(AE7:AE22) -> 4 | AK4: Total Sequences in Block Summary | AL4: =SUM(AJ7:AJ22) -> 4 | AP4: Total Sequences in Block Summary | AQ4: =SUM(AO7:AO22) -> 4 | AU4: Total Sequences in Block Summary | AV4: =SUM(AT7:AT22) -> 4
T5: Block 1 | Y5: Block 2 | AD5: Block 3 | AI5: Block 4 | AN5: Block 5 | AS5: Block 6
A6: Sequence Component 1 | B6: Time 1 | C6: Sequence Component 2 | D6: Time 2 | E6: Sequence Component 3 | F6: Time 3 | G6: Sequence Component 4 | H6: Time 4 | I6: Sequence Component 5 | J6: Time 5 | K6: Correct? 0=No 1=Yes | L6: Sequence | N6: Frequency | P6: Relative Frequency | Q6: Variability | T6: Frequency | V6: Relative Frequency | W6: Variability | Y6: Frequency | AA6: Relative Frequency | AB6: Variability | AD6: Frequency | AF6: Relative Frequency | AG6: Variability | AI6: Frequency | AK6: Relative Frequency | AL6: Variability | AN6: Frequency | AP6: Relative Frequency | AQ6: Variability | AS6: Frequency | AU6: Relative Frequency | AV6: Variability
A7: 12 | B7: 5 | C7: 23 | D7: 17 | E7: 24 | F7: 20 | G7: 23 | H7: 26 | K7: 0 | L7: 1222 | N7: 1111 | O7: =COUNTIF($L$7:$L$500,N7) -> 2 | P7: =O7/$Q$4 -> 0.08333333333 | Q7: =IF(P7=0,0,(P7*((LOG(P7))/LOG(2)))) -> -0.2987468751 | T7: =N7 -> 1111 | U7: =COUNTIF(L7:L10,T7) -> 0 | V7: =U7/(W4-U20) -> 0 | W7: =IF(V7=0,0,(V7*((LOG(V7))/LOG(2)))) -> 0 | Y7: =N7 -> 1111 | Z7: =COUNTIF(L11:L14,Y7) -> 0 | AA7: =Z7/(AB4-Z20) -> 0 | AB7: =IF(AA7=0,0,(AA7*((LOG(AA7))/LOG(2)))) -> 0 | AD7: =N7 -> 1111 | AE7: =COUNTIF(L15:L18,AD7) -> 0 | AF7: =AE7/(AG4-AE20) -> 0 | AG7: =IF(AF7=0,0,(AF7*((LOG(AF7))/LOG(2)))) -> 0 | AI7: =N7 -> 1111 | AJ7: =COUNTIF(L19:L22,AI7) -> 1 | AK7: =AJ7/(AL4-AJ20) -> 0.25 | AL7: =IF(AK7=0,0,(AK7*((LOG(AK7))/LOG(2)))) -> -0.5 | AN7: =N7 -> 1111 | AO7: =COUNTIF(L23:L26,AN7) -> 1 | AP7: =AO7/(AQ4-AO20) -> 0.25 | AQ7: =IF(AP7=0,0,(AP7*((LOG(AP7))/LOG(2)))) -> -0.5 | AS7: =N7 -> 1111 | AT7: =COUNTIF(L27:L30,AS7) -> 0 | AU7: =AT7/(AV4-AT20) -> 0 | AV7: =IF(AU7=0,0,(AU7*((LOG(AU7))/LOG(2)))) -> 0
A8: 12 | B8: 123 | C8: 14 | D8: 124 | E8: 13 | F8: 130 | G8: 23 | H8: 142 | K8: 0 | L8: 1112 | N8: 1112 | O8: =COUNTIF($L$7:$L$500,N8) -> 7 | P8: =O8/$Q$4 -> 0.2916666667 | Q8: =IF(P8=0,0,(P8*((LOG(P8))/LOG(2)))) -> -0.5184688771 | T8: =N8 -> 1112 | U8: =COUNTIF(L7:L10,T8) -> 1 | V8: =U8/(W4-U20) -> 0.25 | W8: =IF(V8=0,0,(V8*((LOG(V8))/LOG(2)))) -> -0.5 | Y8: =N8 -> 1112 | Z8: =COUNTIF(L11:L14,Y8) -> 2 | AA8: =Z8/(AB4-Z20) -> 0.5 | AB8: =IF(AA8=0,0,(AA8*((LOG(AA8))/LOG(2)))) -> -0.5 | AD8: =N8 -> 1112 | AE8: =COUNTIF(L15:L18,AD8) -> 3 | AF8: =AE8/(AG4-AE20) -> 0.75 | AG8: =IF(AF8=0,0,(AF8*((LOG(AF8))/LOG(2)))) -> -0.3112781245 | AI8: =N8 -> 1112 | AJ8: =COUNTIF(L19:L22,AI8) -> 1 | AK8: =AJ8/(AL4-AJ20) -> 0.25 | AL8: =IF(AK8=0,0,(AK8*((LOG(AK8))/LOG(2)))) -> -0.5 | AN8: =N8 -> 1112 | AO8: =COUNTIF(L23:L26,AN8) -> 0 | AP8: =AO8/(AQ4-AO20) -> 0 | AQ8: =IF(AP8=0,0,(AP8*((LOG(AP8))/LOG(2)))) -> 0 | AS8: =N8 -> 1112 | AT8: =COUNTIF(L27:L30,AS8) -> 0 | AU8: =AT8/(AV4-AT20) -> 0 | AV8: =IF(AU8=0,0,(AU8*((LOG(AU8))/LOG(2)))) -> 0
A9: 12 | B9: 240 | C9: 14 | D9: 243 | E9: 24 | F9: 254 | G9: 23 | H9: 261 | K9: 0 | L9: 1122 | N9: 1121 | O9: =COUNTIF($L$7:$L$500,N9) -> 0 | P9: =O9/$Q$4 -> 0 | Q9: =IF(P9=0,0,(P9*((LOG(P9))/LOG(2)))) -> 0 | T9: =N9 -> 1121 | U9: =COUNTIF(L7:L10,T9) -> 0 | V9: =U9/(W4-U20) -> 0 | W9: =IF(V9=0,0,(V9*((LOG(V9))/LOG(2)))) -> 0 | Y9: =N9 -> 1121 | Z9: =COUNTIF(L11:L14,Y9) -> 0 | AA9: =Z9/(AB4-Z20) -> 0 | AB9: =IF(AA9=0,0,(AA9*((LOG(AA9))/LOG(2)))) -> 0 | AD9: =N9 -> 1121 | AE9: =COUNTIF(L15:L18,AD9) -> 0 | AF9: =AE9/(AG4-AE20) -> 0 | AG9: =IF(AF9=0,0,(AF9*((LOG(AF9))/LOG(2)))) -> 0 | AI9: =N9 -> 1121 | AJ9: =COUNTIF(L19:L22,AI9) -> 0 | AK9: =AJ9/(AL4-AJ20) -> 0 | AL9: =IF(AK9=0,0,(AK9*((LOG(AK9))/LOG(2)))) -> 0 | AN9: =N9 -> 1121 | AO9: =COUNTIF(L23:L26,AN9) -> 0 | AP9: =AO9/(AQ4-AO20) -> 0 | AQ9: =IF(AP9=0,0,(AP9*((LOG(AP9))/LOG(2)))) -> 0 | AS9: =N9 -> 1121 | AT9: =COUNTIF(L27:L30,AS9) -> 0 | AU9: =AT9/(AV4-AT20) -> 0 | AV9: =IF(AU9=0,0,(AU9*((LOG(AU9))/LOG(2)))) -> 0
A10: 12 | B10: 369 | C10: 23 | D10: 380 | E10: 24 | F10: 385 | G10: 23 | H10: 392 | K10: 0 | L10: 1222 | N10: 1122 | O10: =COUNTIF($L$7:$L$500,N10) -> 5 | P10: =O10/$Q$4 -> 0.2083333333 | Q10: =IF(P10=0,0,(P10*((LOG(P10))/LOG(2)))) -> -0.4714655012 | T10: =N10 -> 1122 | U10: =COUNTIF(L7:L10,T10) -> 1 | V10: =U10/(W4-U20) -> 0.25 | W10: =IF(V10=0,0,(V10*((LOG(V10))/LOG(2)))) -> -0.5 | Y10: =N10 -> 1122 | Z10: =COUNTIF(L11:L14,Y10) -> 2 | AA10: =Z10/(AB4-Z20) -> 0.5 | AB10: =IF(AA10=0,0,(AA10*((LOG(AA10))/LOG(2)))) -> -0.5 | AD10: =N10 -> 1122 | AE10: =COUNTIF(L15:L18,AD10) -> 0 | AF10: =AE10/(AG4-AE20) -> 0 | AG10: =IF(AF10=0,0,(AF10*((LOG(AF10))/LOG(2)))) -> 0 | AI10: =N10 -> 1122 | AJ10: =COUNTIF(L19:L22,AI10) -> 1 | AK10: =AJ10/(AL4-AJ20) -> 0.25 | AL10: =IF(AK10=0,0,(AK10*((LOG(AK10))/LOG(2)))) -> -0.5 | AN10: =N10 -> 1122 | AO10: =COUNTIF(L23:L26,AN10) -> 0 | AP10: =AO10/(AQ4-AO20) -> 0 | AQ10: =IF(AP10=0,0,(AP10*((LOG(AP10))/LOG(2)))) -> 0 | AS10: =N10 -> 1122 | AT10: =COUNTIF(L27:L30,AS10) -> 1 | AU10: =AT10/(AV4-AT20) -> 0.25 | AV10: =IF(AU10=0,0,(AU10*((LOG(AU10))/LOG(2)))) -> -0.5
A11: 12 | B11: 492 | C11: 14 | D11: 503 | E11: 24 | F11: 516 | G11: 23 | H11: 517 | K11: 0 | L11: 1122 | N11: 1211 | O11: =COUNTIF($L$7:$L$500,N11) -> 0 | P11: =O11/$Q$4 -> 0 | Q11: =IF(P11=0,0,(P11*((LOG(P11))/LOG(2)))) -> 0 | T11: =N11 -> 1211 | U11: =COUNTIF(L7:L10,T11) -> 0 | V11: =U11/(W4-U20) -> 0 | W11: =IF(V11=0,0,(V11*((LOG(V11))/LOG(2)))) -> 0 | Y11: =N11 -> 1211 | Z11: =COUNTIF(L11:L14,Y11) -> 0 | AA11: =Z11/(AB4-Z20) -> 0 | AB11: =IF(AA11=0,0,(AA11*((LOG(AA11))/LOG(2)))) -> 0 | AD11: =N11 -> 1211 | AE11: =COUNTIF(L15:L18,AD11) -> 0 | AF11: =AE11/(AG4-AE20) -> 0 | AG11: =IF(AF11=0,0,(AF11*((LOG(AF11))/LOG(2)))) -> 0 | AI11: =N11 -> 1211 | AJ11: =COUNTIF(L19:L22,AI11) -> 0 | AK11: =AJ11/(AL4-AJ20) -> 0 | AL11: =IF(AK11=0,0,(AK11*((LOG(AK11))/LOG(2)))) -> 0 | AN11: =N11 -> 1211 | AO11: =COUNTIF(L23:L26,AN11) -> 0 | AP11: =AO11/(AQ4-AO20) -> 0 | AQ11: =IF(AP11=0,0,(AP11*((LOG(AP11))/LOG(2)))) -> 0 | AS11: =N11 -> 1211 | AT11: =COUNTIF(L27:L30,AS11) -> 0 | AU11: =AT11/(AV4-AT20) -> 0 | AV11: =IF(AU11=0,0,(AU11*((LOG(AU11))/LOG(2)))) -> 0
A12: 12 | B12: 609 | C12: 14 | D12: 612 | E12: 13 | F12: 616 | G12: 23 | H12: 627 | K12: 0 | L12: 1112 | N12: 1212 | O12: =COUNTIF($L$7:$L$500,N12) -> 0 | P12: =O12/$Q$4 -> 0 | Q12: =IF(P12=0,0,(P12*((LOG(P12))/LOG(2)))) -> 0 | T12: =N12 -> 1212 | U12: =COUNTIF(L7:L10,T12) -> 0 | V12: =U12/(W4-U20) -> 0 | W12: =IF(V12=0,0,(V12*((LOG(V12))/LOG(2)))) -> 0 | Y12: =N12 -> 1212 | Z12: =COUNTIF(L11:L14,Y12) -> 0 | AA12: =Z12/(AB4-Z20) -> 0 | AB12: =IF(AA12=0,0,(AA12*((LOG(AA12))/LOG(2)))) -> 0 | AD12: =N12 -> 1212 | AE12: =COUNTIF(L15:L18,AD12) -> 0 | AF12: =AE12/(AG4-AE20) -> 0 | AG12: =IF(AF12=0,0,(AF12*((LOG(AF12))/LOG(2)))) -> 0 | AI12: =N12 -> 1212 | AJ12: =COUNTIF(L19:L22,AI12) -> 0 | AK12: =AJ12/(AL4-AJ20) -> 0 | AL12: =IF(AK12=0,0,(AK12*((LOG(AK12))/LOG(2)))) -> 0 | AN12: =N12 -> 1212 | AO12: =COUNTIF(L23:L26,AN12) -> 0 | AP12: =AO12/(AQ4-AO20) -> 0 | AQ12: =IF(AP12=0,0,(AP12*((LOG(AP12))/LOG(2)))) -> 0 | AS12: =N12 -> 1212 | AT12: =COUNTIF(L27:L30,AS12) -> 0 | AU12: =AT12/(AV4-AT20) -> 0 | AV12: =IF(AU12=0,0,(AU12*((LOG(AU12))/LOG(2)))) -> 0
A13: 12 | B13: 726 | C13: 14 | D13: 729 | E13: 13 | F13: 735 | G13: 23 | H13: 753 | K13: 0 | L13: 1112 | N13: 1221 | O13: =COUNTIF($L$7:$L$500,N13) -> 0 | P13: =O13/$Q$4 -> 0 | Q13: =IF(P13=0,0,(P13*((LOG(P13))/LOG(2)))) -> 0 | T13: =N13 -> 1221 | U13: =COUNTIF(L7:L10,T13) -> 0 | V13: =U13/(W4-U20) -> 0 | W13: =IF(V13=0,0,(V13*((LOG(V13))/LOG(2)))) -> 0 | Y13: =N13 -> 1221 | Z13: =COUNTIF(L11:L14,Y13) -> 0 | AA13: =Z13/(AB4-Z20) -> 0 | AB13: =IF(AA13=0,0,(AA13*((LOG(AA13))/LOG(2)))) -> 0 | AD13: =N13 -> 1221 | AE13: =COUNTIF(L15:L18,AD13) -> 0 | AF13: =AE13/(AG4-AE20) -> 0 | AG13: =IF(AF13=0,0,(AF13*((LOG(AF13))/LOG(2)))) -> 0 | AI13: =N13 -> 1221 | AJ13: =COUNTIF(L19:L22,AI13) -> 0 | AK13: =AJ13/(AL4-AJ20) -> 0 | AL13: =IF(AK13=0,0,(AK13*((LOG(AK13))/LOG(2)))) -> 0 | AN13: =N13 -> 1221 | AO13: =COUNTIF(L23:L26,AN13) -> 0 | AP13: =AO13/(AQ4-AO20) -> 0 | AQ13: =IF(AP13=0,0,(AP13*((LOG(AP13))/LOG(2)))) -> 0 | AS13: =N13 -> 1221 | AT13: =COUNTIF(L27:L30,AS13) -> 0 | AU13: =AT13/(AV4-AT20) -> 0 | AV13: =IF(AU13=0,0,(AU13*((LOG(AU13))/LOG(2)))) -> 0
A14: 12 | B14: 853 | C14: 14 | D14: 858 | E14: 24 | F14: 870 | G14: 23 | H14: 873 | K14: 0 | L14: 1122 | N14: 1222 | O14: =COUNTIF($L$7:$L$500,N14) -> 3 | P14: =O14/$Q$4 -> 0.125 | Q14: =IF(P14=0,0,(P14*((LOG(P14))/LOG(2)))) -> -0.375 | T14: =N14 -> 1222 | U14: =COUNTIF(L7:L10,T14) -> 2 | V14: =U14/(W4-U20) -> 0.5 | W14: =IF(V14=0,0,(V14*((LOG(V14))/LOG(2)))) -> -0.5 | Y14: =N14 -> 1222 | Z14: =COUNTIF(L11:L14,Y14) -> 0 | AA14: =Z14/(AB4-Z20) -> 0 | AB14: =IF(AA14=0,0,(AA14*((LOG(AA14))/LOG(2)))) -> 0 | AD14: =N14 -> 1222 | AE14: =COUNTIF(L15:L18,AD14) -> 0 | AF14: =AE14/(AG4-AE20) -> 0 | AG14: =IF(AF14=0,0,(AF14*((LOG(AF14))/LOG(2)))) -> 0 | AI14: =N14 -> 1222 | AJ14: =COUNTIF(L19:L22,AI14) -> 1 | AK14: =AJ14/(AL4-AJ20) -> 0.25 | AL14: =IF(AK14=0,0,(AK14*((LOG(AK14))/LOG(2)))) -> -0.5 | AN14: =N14 -> 1222 | AO14: =COUNTIF(L23:L26,AN14) -> 0 | AP14: =AO14/(AQ4-AO20) -> 0 | AQ14: =IF(AP14=0,0,(AP14*((LOG(AP14))/LOG(2)))) -> 0 | AS14: =N14 -> 1222 | AT14: =COUNTIF(L27:L30,AS14) -> 0 | AU14: =AT14/(AV4-AT20) -> 0 | AV14: =IF(AU14=0,0,(AU14*((LOG(AU14))/LOG(2)))) -> 0
A15: 12 | B15: 1014 | C15: 14 | D15: 1018 | E15: 13 | F15: 1023 | G15: 23 | H15: 1037 | K15: 0 | L15: 1112 | N15: 2111 | O15: =COUNTIF($L$7:$L$500,N15) -> 1 | P15: =O15/$Q$4 -> 0.04166666667 | Q15: =IF(P15=0,0,(P15*((LOG(P15))/LOG(2)))) -> -0.1910401042 | T15: =N15 -> 2111 | U15: =COUNTIF(L7:L10,T15) -> 0 | V15: =U15/(W4-U20) -> 0 | W15: =IF(V15=0,0,(V15*((LOG(V15))/LOG(2)))) -> 0 | Y15: =N15 -> 2111 | Z15: =COUNTIF(L11:L14,Y15) -> 0 | AA15: =Z15/(AB4-Z20) -> 0 | AB15: =IF(AA15=0,0,(AA15*((LOG(AA15))/LOG(2)))) -> 0 | AD15: =N15 -> 2111 | AE15: =COUNTIF(L15:L18,AD15) -> 1 | AF15: =AE15/(AG4-AE20) -> 0.25 | AG15: =IF(AF15=0,0,(AF15*((LOG(AF15))/LOG(2)))) -> -0.5 | AI15: =N15 -> 2111 | AJ15: =COUNTIF(L19:L22,AI15) -> 0 | AK15: =AJ15/(AL4-AJ20) -> 0 | AL15: =IF(AK15=0,0,(AK15*((LOG(AK15))/LOG(2)))) -> 0 | AN15: =N15 -> 2111 | AO15: =COUNTIF(L23:L26,AN15) -> 0 | AP15: =AO15/(AQ4-AO20) -> 0 | AQ15: =IF(AP15=0,0,(AP15*((LOG(AP15))/LOG(2)))) -> 0 | AS15: =N15 -> 2111 | AT15: =COUNTIF(L27:L30,AS15) -> 0 | AU15: =AT15/(AV4-AT20) -> 0 | AV15: =IF(AU15=0,0,(AU15*((LOG(AU15))/LOG(2)))) -> 0
A16: 12 | B16: 1200 | C16: 14 | D16: 1204 | E16: 13 | F16: 1207 | G16: 23 | H16: 1218 | K16: 0 | L16: 1112 | N16: 2112 | O16: =COUNTIF($L$7:$L$500,N16) -> 0 | P16: =O16/$Q$4 -> 0 | Q16: =IF(P16=0,0,(P16*((LOG(P16))/LOG(2)))) -> 0 | T16: =N16 -> 2112 | U16: =COUNTIF(L7:L10,T16) -> 0 | V16: =U16/(W4-U20) -> 0 | W16: =IF(V16=0,0,(V16*((LOG(V16))/LOG(2)))) -> 0 | Y16: =N16 -> 2112 | Z16: =COUNTIF(L11:L14,Y16) -> 0 | AA16: =Z16/(AB4-Z20) -> 0 | AB16: =IF(AA16=0,0,(AA16*((LOG(AA16))/LOG(2)))) -> 0 | AD16: =N16 -> 2112 | AE16: =COUNTIF(L15:L18,AD16) -> 0 | AF16: =AE16/(AG4-AE20) -> 0 | AG16: =IF(AF16=0,0,(AF16*((LOG(AF16))/LOG(2)))) -> 0 | AI16: =N16 -> 2112 | AJ16: =COUNTIF(L19:L22,AI16) -> 0 | AK16: =AJ16/(AL4-AJ20) -> 0 | AL16: =IF(AK16=0,0,(AK16*((LOG(AK16))/LOG(2)))) -> 0 | AN16: =N16 -> 2112 | AO16: =COUNTIF(L23:L26,AN16) -> 0 | AP16: =AO16/(AQ4-AO20) -> 0 | AQ16: =IF(AP16=0,0,(AP16*((LOG(AP16))/LOG(2)))) -> 0 | AS16: =N16 -> 2112 | AT16: =COUNTIF(L27:L30,AS16) -> 0 | AU16: =AT16/(AV4-AT20) -> 0 | AV16: =IF(AU16=0,0,(AU16*((LOG(AU16))/LOG(2)))) -> 0
A17: 12 | B17: 1336 | C17: 14 | D17: 1341 | E17: 13 | F17: 1344 | G17: 23 | H17: 1356 | K17: 0 | L17: 1112 | N17: 2121 | O17: =COUNTIF($L$7:$L$500,N17) -> 0 | P17: =O17/$Q$4 -> 0 | Q17: =IF(P17=0,0,(P17*((LOG(P17))/LOG(2)))) -> 0 | T17: =N17 -> 2121 | U17: =COUNTIF(L7:L10,T17) -> 0 | V17: =U17/(W4-U20) -> 0 | W17: =IF(V17=0,0,(V17*((LOG(V17))/LOG(2)))) -> 0 | Y17: =N17 -> 2121 | Z17: =COUNTIF(L11:L14,Y17) -> 0 | AA17: =Z17/(AB4-Z20) -> 0 | AB17: =IF(AA17=0,0,(AA17*((LOG(AA17))/LOG(2)))) -> 0 | AD17: =N17 -> 2121 | AE17: =COUNTIF(L15:L18,AD17) -> 0 | AF17: =AE17/(AG4-AE20) -> 0 | AG17: =IF(AF17=0,0,(AF17*((LOG(AF17))/LOG(2)))) -> 0 | AI17: =N17 -> 2121 | AJ17: =COUNTIF(L19:L22,AI17) -> 0 | AK17: =AJ17/(AL4-AJ20) -> 0 | AL17: =IF(AK17=0,0,(AK17*((LOG(AK17))/LOG(2)))) -> 0 | AN17: =N17 -> 2121 | AO17: =COUNTIF(L23:L26,AN17) -> 0 | AP17: =AO17/(AQ4-AO20) -> 0 | AQ17: =IF(AP17=0,0,(AP17*((LOG(AP17))/LOG(2)))) -> 0 | AS17: =N17 -> 2121 | AT17: =COUNTIF(L27:L30,AS17) -> 0 | AU17: =AT17/(AV4-AT20) -> 0 | AV17: =IF(AU17=0,0,(AU17*((LOG(AU17))/LOG(2)))) -> 0
A18: 21 | B18: 1502 | C18: 12 | D18: 1511 | E18: 13 | F18: 1519 | G18: 14 | H18: 1523 | K18: 0 | L18: 2111 | N18: 2122 | O18: =COUNTIF($L$7:$L$500,N18) -> 2 | P18: =O18/$Q$4 -> 0.08333333333 | Q18: =IF(P18=0,0,(P18*((LOG(P18))/LOG(2)))) -> -0.2987468751 | T18: =N18 -> 2122 | U18: =COUNTIF(L7:L10,T18) -> 0 | V18: =U18/(W4-U20) -> 0 | W18: =IF(V18=0,0,(V18*((LOG(V18))/LOG(2)))) -> 0 | Y18: =N18 -> 2122 | Z18: =COUNTIF(L11:L14,Y18) -> 0 | AA18: =Z18/(AB4-Z20) -> 0 | AB18: =IF(AA18=0,0,(AA18*((LOG(AA18))/LOG(2)))) -> 0 | AD18: =N18 -> 2122 | AE18: =COUNTIF(L15:L18,AD18) -> 0 | AF18: =AE18/(AG4-AE20) -> 0 | AG18: =IF(AF18=0,0,(AF18*((LOG(AF18))/LOG(2)))) -> 0 | AI18: =N18 -> 2122 | AJ18: =COUNTIF(L19:L22,AI18) -> 0 | AK18: =AJ18/(AL4-AJ20) -> 0 | AL18: =IF(AK18=0,0,(AK18*((LOG(AK18))/LOG(2)))) -> 0 | AN18: =N18 -> 2122 | AO18: =COUNTIF(L23:L26,AN18) -> 1 | AP18: =AO18/(AQ4-AO20) -> 0.25 | AQ18: =IF(AP18=0,0,(AP18*((LOG(AP18))/LOG(2)))) -> -0.5 | AS18: =N18 -> 2122 | AT18: =COUNTIF(L27:L30,AS18) -> 1 | AU18: =AT18/(AV4-AT20) -> 0.25 | AV18: =IF(AU18=0,0,(AU18*((LOG(AU18))/LOG(2)))) -> -0.5
A19: 12 | B19: 1623 | C19: 23 | D19: 1636 | E19: 24 | F19: 1640 | G19: 23 | H19: 1647 | K19: 0 | L19: 1222 | N19: 2211 | O19: =COUNTIF($L$7:$L$500,N19) -> 2 | P19: =O19/$Q$4 -> 0.08333333333 | Q19: =IF(P19=0,0,(P19*((LOG(P19))/LOG(2)))) -> -0.2987468751 | T19: =N19 -> 2211 | U19: =COUNTIF(L7:L10,T19) -> 0 | V19: =U19/(W4-U20) -> 0 | W19: =IF(V19=0,0,(V19*((LOG(V19))/LOG(2)))) -> 0 | Y19: =N19 -> 2211 | Z19: =COUNTIF(L11:L14,Y19) -> 0 | AA19: =Z19/(AB4-Z20) -> 0 | AB19: =IF(AA19=0,0,(AA19*((LOG(AA19))/LOG(2)))) -> 0 | AD19: =N19 -> 2211 | AE19: =COUNTIF(L15:L18,AD19) -> 0 | AF19: =AE19/(AG4-AE20) -> 0 | AG19: =IF(AF19=0,0,(AF19*((LOG(AF19))/LOG(2)))) -> 0 | AI19: =N19 -> 2211 | AJ19: =COUNTIF(L19:L22,AI19) -> 0 | AK19: =AJ19/(AL4-AJ20) -> 0 | AL19: =IF(AK19=0,0,(AK19*((LOG(AK19))/LOG(2)))) -> 0 | AN19: =N19 -> 2211 | AO19: =COUNTIF(L23:L26,AN19) -> 1 | AP19: =AO19/(AQ4-AO20) -> 0.25 | AQ19: =IF(AP19=0,0,(AP19*((LOG(AP19))/LOG(2)))) -> -0.5 | AS19: =N19 -> 2211 | AT19: =COUNTIF(L27:L30,AS19) -> 1 | AU19: =AT19/(AV4-AT20) -> 0.25 | AV19: =IF(AU19=0,0,(AU19*((LOG(AU19))/LOG(2)))) -> -0.5
A20: 12 | B20: 1840 | C20: 14 | D20: 1843 | E20: 13 | F20: 1846 | G20: 23 | H20: 1859 | K20: 0 | L20: 1112 | N20: 2212 | O20: =COUNTIF($L$7:$L$500,N20) -> 0 | P20: =O20/$Q$4 -> 0 | Q20: =IF(P20=0,0,(P20*((LOG(P20))/LOG(2)))) -> 0 | T20: =N20 -> 2212 | U20: =COUNTIF(L7:L10,T20) -> 0 | Y20: =N20 -> 2212 | Z20: =COUNTIF(L11:L14,Y20) -> 0 | AD20: =N20 -> 2212 | AE20: =COUNTIF(L15:L18,AD20) -> 0 | AI20: =N20 -> 2212 | AJ20: =COUNTIF(L19:L22,AI20) -> 0 | AN20: =N20 -> 2212 | AO20: =COUNTIF(L23:L26,AN20) -> 0 | AS20: =N20 -> 2212 | AT20: =COUNTIF(L27:L30,AS20) -> 0
A21: 12 | B21: 1972 | C21: 14 | D21: 1988 | E21: 13 | F21: 1990 | G21: 14 | H21: 1996 | K21: 0 | L21: 1111 | N21: 2221 | O21: =COUNTIF($L$7:$L$500,N21) -> 1 | P21: =O21/$Q$4 -> 0.04166666667 | Q21: =IF(P21=0,0,(P21*((LOG(P21))/LOG(2)))) -> -0.1910401042 | T21: =N21 -> 2221 | U21: =COUNTIF(L7:L10,T21) -> 0 | V21: =U21/(W4-U20) -> 0 | W21: =IF(V21=0,0,(V21*((LOG(V21))/LOG(2)))) -> 0 | Y21: =N21 -> 2221 | Z21: =COUNTIF(L11:L14,Y21) -> 0 | AA21: =Z21/(AB4-Z20) -> 0 | AB21: =IF(AA21=0,0,(AA21*((LOG(AA21))/LOG(2)))) -> 0 | AD21: =N21 -> 2221 | AE21: =COUNTIF(L15:L18,AD21) -> 0 | AF21: =AE21/(AG4-AE20) -> 0 | AG21: =IF(AF21=0,0,(AF21*((LOG(AF21))/LOG(2)))) -> 0 | AI21: =N21 -> 2221 | AJ21: =COUNTIF(L19:L22,AI21) -> 0 | AK21: =AJ21/(AL4-AJ20) -> 0 | AL21: =IF(AK21=0,0,(AK21*((LOG(AK21))/LOG(2)))) -> 0 | AN21: =N21 -> 2221 | AO21: =COUNTIF(L23:L26,AN21) -> 0 | AP21: =AO21/(AQ4-AO20) -> 0 | AQ21: =IF(AP21=0,0,(AP21*((LOG(AP21))/LOG(2)))) -> 0 | AS21: =N21 -> 2221 | AT21: =COUNTIF(L27:L30,AS21) -> 1 | AU21: =AT21/(AV4-AT20) -> 0.25 | AV21: =IF(AU21=0,0,(AU21*((LOG(AU21))/LOG(2)))) -> -0.5
A22: 12 | B22: 2296 | C22: 14 | D22: 2299 | E22: 24 | F22: 2310 | G22: 23 | H22: 2316 | K22: 0 | L22: 1122 | N22: 2222 | O22: =COUNTIF($L$7:$L$500,N22) -> 1 | P22: =O22/$Q$4 -> 0.04166666667 | Q22: =IF(P22=0,0,(P22*((LOG(P22))/LOG(2)))) -> -0.1910401042 | T22: =N22 -> 2222 | U22: =COUNTIF(L7:L10,T22) -> 0 | V22: =U22/(W4-U20) -> 0 | W22: =IF(V22=0,0,(V22*((LOG(V22))/LOG(2)))) -> 0 | Y22: =N22 -> 2222 | Z22: =COUNTIF(L11:L14,Y22) -> 0 | AA22: =Z22/(AB4-Z20) -> 0 | AB22: =IF(AA22=0,0,(AA22*((LOG(AA22))/LOG(2)))) -> 0 | AD22: =N22 -> 2222 | AE22: =COUNTIF(L15:L18,AD22) -> 0 | AF22: =AE22/(AG4-AE20) -> 0 | AG22: =IF(AF22=0,0,(AF22*((LOG(AF22))/LOG(2)))) -> 0 | AI22: =N22 -> 2222 | AJ22: =COUNTIF(L19:L22,AI22) -> 0 | AK22: =AJ22/(AL4-AJ20) -> 0 | AL22: =IF(AK22=0,0,(AK22*((LOG(AK22))/LOG(2)))) -> 0 | AN22: =N22 -> 2222 | AO22: =COUNTIF(L23:L26,AN22) -> 1 | AP22: =AO22/(AQ4-AO20) -> 0.25 | AQ22: =IF(AP22=0,0,(AP22*((LOG(AP22))/LOG(2)))) -> -0.5 | AS22: =N22 -> 2222 | AT22: =COUNTIF(L27:L30,AS22) -> 0 | AU22: =AT22/(AV4-AT20) -> 0 | AV22: =IF(AU22=0,0,(AU22*((LOG(AU22))/LOG(2)))) -> 0
A23: 12 | B23: 2499 | C23: 14 | D23: 2505 | E23: 13 | F23: 2511 | G23: 14 | H23: 2518 | K23: 0 | L23: 1111 | P23: =SUM(P7:P22) -> 1 | Q23: =-SUM(Q7:Q22) -> 2.834295316 | V23: =SUM(V7:V22) -> 1 | W23: =-SUM(W7:W22) -> 1.5 | AA23: =SUM(AA7:AA22) -> 1 | AB23: =-SUM(AB7:AB22) -> 1 | AF23: =SUM(AF7:AF22) -> 1 | AG23: =-SUM(AG7:AG22) -> 0.8112781245 | AK23: =SUM(AK7:AK22) -> 1 | AL23: =-SUM(AL7:AL22) -> 2 | AP23: =SUM(AP7:AP22) -> 1 | AQ23: =-SUM(AQ7:AQ22) -> 2 | AU23: =SUM(AU7:AU22) -> 1 | AV23: =-SUM(AV7:AV22) -> 2
A24: 21 | B24: 2617 | C24: 21 | D24: 2637 | E24: 11 | F24: 2658 | G24: 12 | H24: 2665 | K24: 0 | L24: 2211 | P24: U= | Q24: =Q23/(LOG(Q4)/LOG(2)) -> 0.6181719732 | V24: U1= | W24: =W23/(LOG(W4)/LOG(2)) -> 0.75 | AA24: U2= | AB24: =AB23/(LOG(AB4)/LOG(2)) -> 0.5 | AF24: U3= | AG24: =AG23/(LOG(AG4)/LOG(2)) -> 0.4056390622 | AK24: U4= | AL24: =AL23/(LOG(AL4)/LOG(2)) -> 1 | AP24: U5= | AQ24: =AQ23/(LOG(AQ4)/LOG(2)) -> 1 | AU24: U6= | AV24: =AV23/(LOG(AV4)/LOG(2)) -> 1
A25: 21 | B25: 3409 | C25: 21 | D25: 3430 | E25: 22 | F25: 3438 | G25: 23 | H25: 3444 | K25: 0 | L25: 2222
A26: 21 | B26: 3794 | C26: 12 | D26: 3808 | E26: 24 | F26: 3828 | G26: 23 | H26: 3832 | K26: 0 | L26: 2122
A27: 21 | B27: 5012 | C27: 21 | D27: 5036 | E27: 22 | F27: 5040 | G27: 14 | H27: 5052 | K27: 0 | L27: 2221 | N27: Total Target Seq
A28: 21 | B28: 9901 | C28: 21 | D28: 15833 | E28: 11 | F28: 15847 | G28: 12 | H28: 15852 | K28: 0 | L28: 2211 | N28: =COUNTIF(L7:L30,G3) -> 0 | P28: 4 | Q28: 4 | R28: 4 | S28: 4 | T28: 4 | U28: 4
A29: 12 | B29: 19094 | C29: 14 | D29: 19097 | E29: 24 | F29: 19111 | G29: 23 | H29: 19117 | K29: 0 | L29: 1122 | P29: % of reinforcement given in 6 equal intervals based on number of trials
A30: 21 | B30: 22247 | C30: 12 | D30: 22255 | E30: 24 | F30: 22274 | G30: 23 | H30: 22279 | K30: 0 | L30: 2122 | P30: %_1 | Q30: %_2 | R30: %_3 | S30: %_4 | T30: %_5 | U30: %_6
O31: target sequence | P31: =$G$3 -> 2212 | Q31: =$G$3 -> 2212 | R31: =$G$3 -> 2212 | S31: =$G$3 -> 2212 | T31: =$G$3 -> 2212 | U31: =$G$3 -> 2212
O32: total reinforcement | P32: =U20 -> 0 | Q32: =Z20 -> 0 | R32: =AE20 -> 0 | S32: =AJ20 -> 0 | T32: =AO20 -> 0 | U32: =AT20 -> 0
O33: % target
O34: CCRF
O35: % CCRf
O36: average response rate | P36: =H10/P28 -> 98 | Q36: =(H14-H10)/Q28 -> 120.25 | R36: =(H18-H14)/R28 -> 162.5 | S36: =(H22-H18)/S28 -> 198.25 | T36: =(H26-H22)/T28 -> 379 | U36: =(H30-H26)/U28 -> 4611.75

Sheet !M110A5T.ayl
A1: Report for:!M110A5T.ayl
A2: Date: | B2: <date>
A3: Hen: | B3: <hen> | F3: Correct Sequence | G3: =Start!J2 -> 2212 | P3: Total Sequences in Data | Q3: =4994-COUNTBLANK(L7:L5000) -> 0 | V3: Total Sequences in Block Data | W3: =COUNTA(L6:L7) -> 1 | AA3: Total Sequences in Block Data | AB3: =COUNTA(L6:L7) -> 1 | AF3: Total Sequences in Block Data | AG3: =COUNTA(L6:L7) -> 1 | AK3: Total Sequences in Block Data | AL3: =COUNTA(L6:L7) -> 1 | AP3: Total Sequences in Block Data | AQ3: =COUNTA(L6:L7) -> 1 | AU3: Total Sequences in Block Data | AV3: =COUNTA(L6:L7) -> 1
P4: Total Sequences in Summary | Q4: =SUM(O7:O22) -> 0 | V4: Total Sequences in Block Summary | W4: =SUM(U7:U22) -> 0 | AA4: Total Sequences in Block Summary | AB4: =SUM(Z7:Z22) -> 0 | AF4: Total Sequences in Block Summary | AG4: =SUM(AE7:AE22) -> 0 | AK4: Total Sequences in Block Summary | AL4: =SUM(AJ7:AJ22) -> 0 | AP4: Total Sequences in Block Summary | AQ4: =SUM(AO7:AO22) -> 0 | AU4: Total Sequences in Block Summary | AV4: =SUM(AT7:AT22) -> 0
T5: Block 1 | Y5: Block 2 | AD5: Block 3 | AI5: Block 4 | AN5: Block 5 | AS5: Block 6
A6: Sequence Component 1 | B6: Time 1 | C6: Sequence Component 2 | D6: Time 2 | E6: Sequence Component 3 | F6: Time 3 | G6: Sequence Component 4 | H6: Time 4 | I6: Sequence Component 5 | J6: Time 5 | K6: Correct? 0=No 1=Yes | L6: Sequence | N6: Frequency | P6: Relative Frequency | Q6: Variability | T6: Frequency | V6: Relative Frequency | W6: Variability | Y6: Frequency | AA6: Relative Frequency | AB6: Variability | AD6: Frequency | AF6: Relative Frequency | AG6: Variability | AI6: Frequency | AK6: Relative Frequency | AL6: Variability | AN6: Frequency | AP6: Relative Frequency | AQ6: Variability | AS6: Frequency | AU6: Relative Frequency | AV6: Variability
N7: 1111 | O7: =COUNTIF($L$7:$L$500,N7) -> 0 | P7: =O7/$Q$4 ->  | Q7: =IF(P7=0,0,(P7*((LOG(P7))/LOG(2)))) ->  | T7: =N7 -> 1111 | U7: =COUNTIF(L6:L7,T7) -> 0 | V7: =U7/(W4-U20) ->  | W7: =IF(V7=0,0,(V7*((LOG(V7))/LOG(2)))) ->  | Y7: =N7 -> 1111 | Z7: =COUNTIF(L6:L7,Y7) -> 0 | AA7: =Z7/(AB4-Z20) ->  | AB7: =IF(AA7=0,0,(AA7*((LOG(AA7))/LOG(2)))) ->  | AD7: =N7 -> 1111 | AE7: =COUNTIF(L6:L7,AD7) -> 0 | AF7: =AE7/(AG4-AE20) ->  | AG7: =IF(AF7=0,0,(AF7*((LOG(AF7))/LOG(2)))) ->  | AI7: =N7 -> 1111 | AJ7: =COUNTIF(L6:L7,AI7) -> 0 | AK7: =AJ7/(AL4-AJ20) ->  | AL7: =IF(AK7=0,0,(AK7*((LOG(AK7))/LOG(2)))) ->  | AN7: =N7 -> 1111 | AO7: =COUNTIF(L6:L7,AN7) -> 0 | AP7: =AO7/(AQ4-AO20) ->  | AQ7: =IF(AP7=0,0,(AP7*((LOG(AP7))/LOG(2)))) ->  | AS7: =N7 -> 1111 | AT7: =COUNTIF(L6:L7,AS7) -> 0 | AU7: =AT7/(AV4-AT20) ->  | AV7: =IF(AU7=0,0,(AU7*((LOG(AU7))/LOG(2)))) -> 
N8: 1112 | O8: =COUNTIF($L$7:$L$500,N8) -> 0 | P8: =O8/$Q$4 ->  | Q8: =IF(P8=0,0,(P8*((LOG(P8))/LOG(2)))) ->  | T8: =N8 -> 1112 | U8: =COUNTIF(L6:L7,T8) -> 0 | V8: =U8/(W4-U20) ->  | W8: =IF(V8=0,0,(V8*((LOG(V8))/LOG(2)))) ->  | Y8: =N8 -> 1112 | Z8: =COUNTIF(L6:L7,Y8) -> 0 | AA8: =Z8/(AB4-Z20) ->  | AB8: =IF(AA8=0,0,(AA8*((LOG(AA8))/LOG(2)))) ->  | AD8: =N8 -> 1112 | AE8: =COUNTIF(L6:L7,AD8) -> 0 | AF8: =AE8/(AG4-AE20) ->  | AG8: =IF(AF8=0,0,(AF8*((LOG(AF8))/LOG(2)))) ->  | AI8: =N8 -> 1112 | AJ8: =COUNTIF(L6:L7,AI8) -> 0 | AK8: =AJ8/(AL4-AJ20) ->  | AL8: =IF(AK8=0,0,(AK8*((LOG(AK8))/LOG(2)))) ->  | AN8: =N8 -> 1112 | AO8: =COUNTIF(L6:L7,AN8) -> 0 | AP8: =AO8/(AQ4-AO20) ->  | AQ8: =IF(AP8=0,0,(AP8*((LOG(AP8))/LOG(2)))) ->  | AS8: =N8 -> 1112 | AT8: =COUNTIF(L6:L7,AS8) -> 0 | AU8: =AT8/(AV4-AT20) ->  | AV8: =IF(AU8=0,0,(AU8*((LOG(AU8))/LOG(2)))) -> 
N9: 1121 | O9: =COUNTIF($L$7:$L$500,N9) -> 0 | P9: =O9/$Q$4 ->  | Q9: =IF(P9=0,0,(P9*((LOG(P9))/LOG(2)))) ->  | T9: =N9 -> 1121 | U9: =COUNTIF(L6:L7,T9) -> 0 | V9: =U9/(W4-U20) ->  | W9: =IF(V9=0,0,(V9*((LOG(V9))/LOG(2)))) ->  | Y9: =N9 -> 1121 | Z9: =COUNTIF(L6:L7,Y9) -> 0 | AA9: =Z9/(AB4-Z20) ->  | AB9: =IF(AA9=0,0,(AA9*((LOG(AA9))/LOG(2)))) ->  | AD9: =N9 -> 1121 | AE9: =COUNTIF(L6:L7,AD9) -> 0 | AF9: =AE9/(AG4-AE20) ->  | AG9: =IF(AF9=0,0,(AF9*((LOG(AF9))/LOG(2)))) ->  | AI9: =N9 -> 1121 | AJ9: =COUNTIF(L6:L7,AI9) -> 0 | AK9: =AJ9/(AL4-AJ20) ->  | AL9: =IF(AK9=0,0,(AK9*((LOG(AK9))/LOG(2)))) ->  | AN9: =N9 -> 1121 | AO9: =COUNTIF(L6:L7,AN9) -> 0 | AP9: =AO9/(AQ4-AO20) ->  | AQ9: =IF(AP9=0,0,(AP9*((LOG(AP9))/LOG(2)))) ->  | AS9: =N9 -> 1121 | AT9: =COUNTIF(L6:L7,AS9) -> 0 | AU9: =AT9/(AV4-AT20) ->  | AV9: =IF(AU9=0,0,(AU9*((LOG(AU9))/LOG(2)))) -> 
N10: 1122 | O10: =COUNTIF($L$7:$L$500,N10) -> 0 | P10: =O10/$Q$4 ->  | Q10: =IF(P10=0,0,(P10*((LOG(P10))/LOG(2)))) ->  | T10: =N10 -> 1122 | U10: =COUNTIF(L6:L7,T10) -> 0 | V10: =U10/(W4-U20) ->  | W10: =IF(V10=0,0,(V10*((LOG(V10))/LOG(2)))) ->  | Y10: =N10 -> 1122 | Z10: =COUNTIF(L6:L7,Y10) -> 0 | AA10: =Z10/(AB4-Z20) ->  | AB10: =IF(AA10=0,0,(AA10*((LOG(AA10))/LOG(2)))) ->  | AD10: =N10 -> 1122 | AE10: =COUNTIF(L6:L7,AD10) -> 0 | AF10: =AE10/(AG4-AE20) ->  | AG10: =IF(AF10=0,0,(AF10*((LOG(AF10))/LOG(2)))) ->  | AI10: =N10 -> 1122 | AJ10: =COUNTIF(L6:L7,AI10) -> 0 | AK10: =AJ10/(AL4-AJ20) ->  | AL10: =IF(AK10=0,0,(AK10*((LOG(AK10))/LOG(2)))) ->  | AN10: =N10 -> 1122 | AO10: =COUNTIF(L6:L7,AN10) -> 0 | AP10: =AO10/(AQ4-AO20) ->  | AQ10: =IF(AP10=0,0,(AP10*((LOG(AP10))/LOG(2)))) ->  | AS10: =N10 -> 1122 | AT10: =COUNTIF(L6:L7,AS10) -> 0 | AU10: =AT10/(AV4-AT20) ->  | AV10: =IF(AU10=0,0,(AU10*((LOG(AU10))/LOG(2)))) -> 
N11: 1211 | O11: =COUNTIF($L$7:$L$500,N11) -> 0 | P11: =O11/$Q$4 ->  | Q11: =IF(P11=0,0,(P11*((LOG(P11))/LOG(2)))) ->  | T11: =N11 -> 1211 | U11: =COUNTIF(L6:L7,T11) -> 0 | V11: =U11/(W4-U20) ->  | W11: =IF(V11=0,0,(V11*((LOG(V11))/LOG(2)))) ->  | Y11: =N11 -> 1211 | Z11: =COUNTIF(L6:L7,Y11) -> 0 | AA11: =Z11/(AB4-Z20) ->  | AB11: =IF(AA11=0,0,(AA11*((LOG(AA11))/LOG(2)))) ->  | AD11: =N11 -> 1211 | AE11: =COUNTIF(L6:L7,AD11) -> 0 | AF11: =AE11/(AG4-AE20) ->  | AG11: =IF(AF11=0,0,(AF11*((LOG(AF11))/LOG(2)))) ->  | AI11: =N11 -> 1211 | AJ11: =COUNTIF(L6:L7,AI11) -> 0 | AK11: =AJ11/(AL4-AJ20) ->  | AL11: =IF(AK11=0,0,(AK11*((LOG(AK11))/LOG(2)))) ->  | AN11: =N11 -> 1211 | AO11: =COUNTIF(L6:L7,AN11) -> 0 | AP11: =AO11/(AQ4-AO20) ->  | AQ11: =IF(AP11=0,0,(AP11*((LOG(AP11))/LOG(2)))) ->  | AS11: =N11 -> 1211 | AT11: =COUNTIF(L6:L7,AS11) -> 0 | AU11: =AT11/(AV4-AT20) ->  | AV11: =IF(AU11=0,0,(AU11*((LOG(AU11))/LOG(2)))) -> 
N12: 1212 | O12: =COUNTIF($L$7:$L$500,N12) -> 0 | P12: =O12/$Q$4 ->  | Q12: =IF(P12=0,0,(P12*((LOG(P12))/LOG(2)))) ->  | T12: =N12 -> 1212 | U12: =COUNTIF(L6:L7,T12) -> 0 | V12: =U12/(W4-U20) ->  | W12: =IF(V12=0,0,(V12*((LOG(V12))/LOG(2)))) ->  | Y12: =N12 -> 1212 | Z12: =COUNTIF(L6:L7,Y12) -> 0 | AA12: =Z12/(AB4-Z20) ->  | AB12: =IF(AA12=0,0,(AA12*((LOG(AA12))/LOG(2)))) ->  | AD12: =N12 -> 1212 | AE12: =COUNTIF(L6:L7,AD12) -> 0 | AF12: =AE12/(AG4-AE20) ->  | AG12: =IF(AF12=0,0,(AF12*((LOG(AF12))/LOG(2)))) ->  | AI12: =N12 -> 1212 | AJ12: =COUNTIF(L6:L7,AI12) -> 0 | AK12: =AJ12/(AL4-AJ20) ->  | AL12: =IF(AK12=0,0,(AK12*((LOG(AK12))/LOG(2)))) ->  | AN12: =N12 -> 1212 | AO12: =COUNTIF(L6:L7,AN12) -> 0 | AP12: =AO12/(AQ4-AO20) ->  | AQ12: =IF(AP12=0,0,(AP12*((LOG(AP12))/LOG(2)))) ->  | AS12: =N12 -> 1212 | AT12: =COUNTIF(L6:L7,AS12) -> 0 | AU12: =AT12/(AV4-AT20) ->  | AV12: =IF(AU12=0,0,(AU12*((LOG(AU12))/LOG(2)))) -> 
N13: 1221 | O13: =COUNTIF($L$7:$L$500,N13) -> 0 | P13: =O13/$Q$4 ->  | Q13: =IF(P13=0,0,(P13*((LOG(P13))/LOG(2)))) ->  | T13: =N13 -> 1221 | U13: =COUNTIF(L6:L7,T13) -> 0 | V13: =U13/(W4-U20) ->  | W13: =IF(V13=0,0,(V13*((LOG(V13))/LOG(2)))) ->  | Y13: =N13 -> 1221 | Z13: =COUNTIF(L6:L7,Y13) -> 0 | AA13: =Z13/(AB4-Z20) ->  | AB13: =IF(AA13=0,0,(AA13*((LOG(AA13))/LOG(2)))) ->  | AD13: =N13 -> 1221 | AE13: =COUNTIF(L6:L7,AD13) -> 0 | AF13: =AE13/(AG4-AE20) ->  | AG13: =IF(AF13=0,0,(AF13*((LOG(AF13))/LOG(2)))) ->  | AI13: =N13 -> 1221 | AJ13: =COUNTIF(L6:L7,AI13) -> 0 | AK13: =AJ13/(AL4-AJ20) ->  | AL13: =IF(AK13=0,0,(AK13*((LOG(AK13))/LOG(2)))) ->  | AN13: =N13 -> 1221 | AO13: =COUNTIF(L6:L7,AN13) -> 0 | AP13: =AO13/(AQ4-AO20) ->  | AQ13: =IF(AP13=0,0,(AP13*((LOG(AP13))/LOG(2)))) ->  | AS13: =N13 -> 1221 | AT13: =COUNTIF(L6:L7,AS13) -> 0 | AU13: =AT13/(AV4-AT20) ->  | AV13: =IF(AU13=0,0,(AU13*((LOG(AU13))/LOG(2)))) -> 
N14: 1222 | O14: =COUNTIF($L$7:$L$500,N14) -> 0 | P14: =O14/$Q$4 ->  | Q14: =IF(P14=0,0,(P14*((LOG(P14))/LOG(2)))) ->  | T14: =N14 -> 1222 | U14: =COUNTIF(L6:L7,T14) -> 0 | V14: =U14/(W4-U20) ->  | W14: =IF(V14=0,0,(V14*((LOG(V14))/LOG(2)))) ->  | Y14: =N14 -> 1222 | Z14: =COUNTIF(L6:L7,Y14) -> 0 | AA14: =Z14/(AB4-Z20) ->  | AB14: =IF(AA14=0,0,(AA14*((LOG(AA14))/LOG(2)))) ->  | AD14: =N14 -> 1222 | AE14: =COUNTIF(L6:L7,AD14) -> 0 | AF14: =AE14/(AG4-AE20) ->  | AG14: =IF(AF14=0,0,(AF14*((LOG(AF14))/LOG(2)))) ->  | AI14: =N14 -> 1222 | AJ14: =COUNTIF(L6:L7,AI14) -> 0 | AK14: =AJ14/(AL4-AJ20) ->  | AL14: =IF(AK14=0,0,(AK14*((LOG(AK14))/LOG(2)))) ->  | AN14: =N14 -> 1222 | AO14: =COUNTIF(L6:L7,AN14) -> 0 | AP14: =AO14/(AQ4-AO20) ->  | AQ14: =IF(AP14=0,0,(AP14*((LOG(AP14))/LOG(2)))) ->  | AS14: =N14 -> 1222 | AT14: =COUNTIF(L6:L7,AS14) -> 0 | AU14: =AT14/(AV4-AT20) ->  | AV14: =IF(AU14=0,0,(AU14*((LOG(AU14))/LOG(2)))) -> 
N15: 2111 | O15: =COUNTIF($L$7:$L$500,N15) -> 0 | P15: =O15/$Q$4 ->  | Q15: =IF(P15=0,0,(P15*((LOG(P15))/LOG(2)))) ->  | T15: =N15 -> 2111 | U15: =COUNTIF(L6:L7,T15) -> 0 | V15: =U15/(W4-U20) ->  | W15: =IF(V15=0,0,(V15*((LOG(V15))/LOG(2)))) ->  | Y15: =N15 -> 2111 | Z15: =COUNTIF(L6:L7,Y15) -> 0 | AA15: =Z15/(AB4-Z20) ->  | AB15: =IF(AA15=0,0,(AA15*((LOG(AA15))/LOG(2)))) ->  | AD15: =N15 -> 2111 | AE15: =COUNTIF(L6:L7,AD15) -> 0 | AF15: =AE15/(AG4-AE20) ->  | AG15: =IF(AF15=0,0,(AF15*((LOG(AF15))/LOG(2)))) ->  | AI15: =N15 -> 2111 | AJ15: =COUNTIF(L6:L7,AI15) -> 0 | AK15: =AJ15/(AL4-AJ20) ->  | AL15: =IF(AK15=0,0,(AK15*((LOG(AK15))/LOG(2)))) ->  | AN15: =N15 -> 2111 | AO15: =COUNTIF(L6:L7,AN15) -> 0 | AP15: =AO15/(AQ4-AO20) ->  | AQ15: =IF(AP15=0,0,(AP15*((LOG(AP15))/LOG(2)))) ->  | AS15: =N15 -> 2111 | AT15: =COUNTIF(L6:L7,AS15) -> 0 | AU15: =AT15/(AV4-AT20) ->  | AV15: =IF(AU15=0,0,(AU15*((LOG(AU15))/LOG(2)))) -> 
N16: 2112 | O16: =COUNTIF($L$7:$L$500,N16) -> 0 | P16: =O16/$Q$4 ->  | Q16: =IF(P16=0,0,(P16*((LOG(P16))/LOG(2)))) ->  | T16: =N16 -> 2112 | U16: =COUNTIF(L6:L7,T16) -> 0 | V16: =U16/(W4-U20) ->  | W16: =IF(V16=0,0,(V16*((LOG(V16))/LOG(2)))) ->  | Y16: =N16 -> 2112 | Z16: =COUNTIF(L6:L7,Y16) -> 0 | AA16: =Z16/(AB4-Z20) ->  | AB16: =IF(AA16=0,0,(AA16*((LOG(AA16))/LOG(2)))) ->  | AD16: =N16 -> 2112 | AE16: =COUNTIF(L6:L7,AD16) -> 0 | AF16: =AE16/(AG4-AE20) ->  | AG16: =IF(AF16=0,0,(AF16*((LOG(AF16))/LOG(2)))) ->  | AI16: =N16 -> 2112 | AJ16: =COUNTIF(L6:L7,AI16) -> 0 | AK16: =AJ16/(AL4-AJ20) ->  | AL16: =IF(AK16=0,0,(AK16*((LOG(AK16))/LOG(2)))) ->  | AN16: =N16 -> 2112 | AO16: =COUNTIF(L6:L7,AN16) -> 0 | AP16: =AO16/(AQ4-AO20) ->  | AQ16: =IF(AP16=0,0,(AP16*((LOG(AP16))/LOG(2)))) ->  | AS16: =N16 -> 2112 | AT16: =COUNTIF(L6:L7,AS16) -> 0 | AU16: =AT16/(AV4-AT20) ->  | AV16: =IF(AU16=0,0,(AU16*((LOG(AU16))/LOG(2)))) -> 
N17: 2121 | O17: =COUNTIF($L$7:$L$500,N17) -> 0 | P17: =O17/$Q$4 ->  | Q17: =IF(P17=0,0,(P17*((LOG(P17))/LOG(2)))) ->  | T17: =N17 -> 2121 | U17: =COUNTIF(L6:L7,T17) -> 0 | V17: =U17/(W4-U20) ->  | W17: =IF(V17=0,0,(V17*((LOG(V17))/LOG(2)))) ->  | Y17: =N17 -> 2121 | Z17: =COUNTIF(L6:L7,Y17) -> 0 | AA17: =Z17/(AB4-Z20) ->  | AB17: =IF(AA17=0,0,(AA17*((LOG(AA17))/LOG(2)))) ->  | AD17: =N17 -> 2121 | AE17: =COUNTIF(L6:L7,AD17) -> 0 | AF17: =AE17/(AG4-AE20) ->  | AG17: =IF(AF17=0,0,(AF17*((LOG(AF17))/LOG(2)))) ->  | AI17: =N17 -> 2121 | AJ17: =COUNTIF(L6:L7,AI17) -> 0 | AK17: =AJ17/(AL4-AJ20) ->  | AL17: =IF(AK17=0,0,(AK17*((LOG(AK17))/LOG(2)))) ->  | AN17: =N17 -> 2121 | AO17: =COUNTIF(L6:L7,AN17) -> 0 | AP17: =AO17/(AQ4-AO20) ->  | AQ17: =IF(AP17=0,0,(AP17*((LOG(AP17))/LOG(2)))) ->  | AS17: =N17 -> 2121 | AT17: =COUNTIF(L6:L7,AS17) -> 0 | AU17: =AT17/(AV4-AT20) ->  | AV17: =IF(AU17=0,0,(AU17*((LOG(AU17))/LOG(2)))) -> 
N18: 2122 | O18: =COUNTIF($L$7:$L$500,N18) -> 0 | P18: =O18/$Q$4 ->  | Q18: =IF(P18=0,0,(P18*((LOG(P18))/LOG(2)))) ->  | T18: =N18 -> 2122 | U18: =COUNTIF(L6:L7,T18) -> 0 | V18: =U18/(W4-U20) ->  | W18: =IF(V18=0,0,(V18*((LOG(V18))/LOG(2)))) ->  | Y18: =N18 -> 2122 | Z18: =COUNTIF(L6:L7,Y18) -> 0 | AA18: =Z18/(AB4-Z20) ->  | AB18: =IF(AA18=0,0,(AA18*((LOG(AA18))/LOG(2)))) ->  | AD18: =N18 -> 2122 | AE18: =COUNTIF(L6:L7,AD18) -> 0 | AF18: =AE18/(AG4-AE20) ->  | AG18: =IF(AF18=0,0,(AF18*((LOG(AF18))/LOG(2)))) ->  | AI18: =N18 -> 2122 | AJ18: =COUNTIF(L6:L7,AI18) -> 0 | AK18: =AJ18/(AL4-AJ20) ->  | AL18: =IF(AK18=0,0,(AK18*((LOG(AK18))/LOG(2)))) ->  | AN18: =N18 -> 2122 | AO18: =COUNTIF(L6:L7,AN18) -> 0 | AP18: =AO18/(AQ4-AO20) ->  | AQ18: =IF(AP18=0,0,(AP18*((LOG(AP18))/LOG(2)))) ->  | AS18: =N18 -> 2122 | AT18: =COUNTIF(L6:L7,AS18) -> 0 | AU18: =AT18/(AV4-AT20) ->  | AV18: =IF(AU18=0,0,(AU18*((LOG(AU18))/LOG(2)))) -> 
N19: 2211 | O19: =COUNTIF($L$7:$L$500,N19) -> 0 | P19: =O19/$Q$4 ->  | Q19: =IF(P19=0,0,(P19*((LOG(P19))/LOG(2)))) ->  | T19: =N19 -> 2211 | U19: =COUNTIF(L6:L7,T19) -> 0 | V19: =U19/(W4-U20) ->  | W19: =IF(V19=0,0,(V19*((LOG(V19))/LOG(2)))) ->  | Y19: =N19 -> 2211 | Z19: =COUNTIF(L6:L7,Y19) -> 0 | AA19: =Z19/(AB4-Z20) ->  | AB19: =IF(AA19=0,0,(AA19*((LOG(AA19))/LOG(2)))) ->  | AD19: =N19 -> 2211 | AE19: =COUNTIF(L6:L7,AD19) -> 0 | AF19: =AE19/(AG4-AE20) ->  | AG19: =IF(AF19=0,0,(AF19*((LOG(AF19))/LOG(2)))) ->  | AI19: =N19 -> 2211 | AJ19: =COUNTIF(L6:L7,AI19) -> 0 | AK19: =AJ19/(AL4-AJ20) ->  | AL19: =IF(AK19=0,0,(AK19*((LOG(AK19))/LOG(2)))) ->  | AN19: =N19 -> 2211 | AO19: =COUNTIF(L6:L7,AN19) -> 0 | AP19: =AO19/(AQ4-AO20) ->  | AQ19: =IF(AP19=0,0,(AP19*((LOG(AP19))/LOG(2)))) ->  | AS19: =N19 -> 2211 | AT19: =COUNTIF(L6:L7,AS19) -> 0 | AU19: =AT19/(AV4-AT20) ->  | AV19: =IF(AU19=0,0,(AU19*((LOG(AU19))/LOG(2)))) -> 
N20: 2212 | O20: =COUNTIF($L$7:$L$500,N20) -> 0 | P20: =O20/$Q$4 ->  | Q20: =IF(P20=0,0,(P20*((LOG(P20))/LOG(2)))) ->  | T20: =N20 -> 2212 | U20: =COUNTIF(L6:L7,T20) -> 0 | Y20: =N20 -> 2212 | Z20: =COUNTIF(L6:L7,Y20) -> 0 | AD20: =N20 -> 2212 | AE20: =COUNTIF(L6:L7,AD20) -> 0 | AI20: =N20 -> 2212 | AJ20: =COUNTIF(L6:L7,AI20) -> 0 | AN20: =N20 -> 2212 | AO20: =COUNTIF(L6:L7,AN20) -> 0 | AS20: =N20 -> 2212 | AT20: =COUNTIF(L6:L7,AS20) -> 0
N21: 2221 | O21: =COUNTIF($L$7:$L$500,N21) -> 0 | P21: =O21/$Q$4 ->  | Q21: =IF(P21=0,0,(P21*((LOG(P21))/LOG(2)))) ->  | T21: =N21 -> 2221 | U21: =COUNTIF(L6:L7,T21) -> 0 | V21: =U21/(W4-U20) ->  | W21: =IF(V21=0,0,(V21*((LOG(V21))/LOG(2)))) ->  | Y21: =N21 -> 2221 | Z21: =COUNTIF(L6:L7,Y21) -> 0 | AA21: =Z21/(AB4-Z20) ->  | AB21: =IF(AA21=0,0,(AA21*((LOG(AA21))/LOG(2)))) ->  | AD21: =N21 -> 2221 | AE21: =COUNTIF(L6:L7,AD21) -> 0 | AF21: =AE21/(AG4-AE20) ->  | AG21: =IF(AF21=0,0,(AF21*((LOG(AF21))/LOG(2)))) ->  | AI21: =N21 -> 2221 | AJ21: =COUNTIF(L6:L7,AI21) -> 0 | AK21: =AJ21/(AL4-AJ20) ->  | AL21: =IF(AK21=0,0,(AK21*((LOG(AK21))/LOG(2)))) ->  | AN21: =N21 -> 2221 | AO21: =COUNTIF(L6:L7,AN21) -> 0 | AP21: =AO21/(AQ4-AO20) ->  | AQ21: =IF(AP21=0,0,(AP21*((LOG(AP21))/LOG(2)))) ->  | AS21: =N21 -> 2221 | AT21: =COUNTIF(L6:L7,AS21) -> 0 | AU21: =AT21/(AV4-AT20) ->  | AV21: =IF(AU21=0,0,(AU21*((LOG(AU21))/LOG(2)))) -> 
N22: 2222 | O22: =COUNTIF($L$7:$L$500,N22) -> 0 | P22: =O22/$Q$4 ->  | Q22: =IF(P22=0,0,(P22*((LOG(P22))/LOG(2)))) ->  | T22: =N22 -> 2222 | U22: =COUNTIF(L6:L7,T22) -> 0 | V22: =U22/(W4-U20) ->  | W22: =IF(V22=0,0,(V22*((LOG(V22))/LOG(2)))) ->  | Y22: =N22 -> 2222 | Z22: =COUNTIF(L6:L7,Y22) -> 0 | AA22: =Z22/(AB4-Z20) ->  | AB22: =IF(AA22=0,0,(AA22*((LOG(AA22))/LOG(2)))) ->  | AD22: =N22 -> 2222 | AE22: =COUNTIF(L6:L7,AD22) -> 0 | AF22: =AE22/(AG4-AE20) ->  | AG22: =IF(AF22=0,0,(AF22*((LOG(AF22))/LOG(2)))) ->  | AI22: =N22 -> 2222 | AJ22: =COUNTIF(L6:L7,AI22) -> 0 | AK22: =AJ22/(AL4-AJ20) ->  | AL22: =IF(AK22=0,0,(AK22*((LOG(AK22))/LOG(2)))) ->  | AN22: =N22 -> 2222 | AO22: =COUNTIF(L6:L7,AN22) -> 0 | AP22: =AO22/(AQ4-AO20) ->  | AQ22: =IF(AP22=0,0,(AP22*((LOG(AP22))/LOG(2)))) ->  | AS22: =N22 -> 2222 | AT22: =COUNTIF(L6:L7,AS22) -> 0 | AU22: =AT22/(AV4-AT20) ->  | AV22: =IF(AU22=0,0,(AU22*((LOG(AU22))/LOG(2)))) -> 
P23: =SUM(P7:P22) ->  | Q23: =-SUM(Q7:Q22) ->  | V23: =SUM(V7:V22) ->  | W23: =-SUM(W7:W22) ->  | AA23: =SUM(AA7:AA22) ->  | AB23: =-SUM(AB7:AB22) ->  | AF23: =SUM(AF7:AF22) ->  | AG23: =-SUM(AG7:AG22) ->  | AK23: =SUM(AK7:AK22) ->  | AL23: =-SUM(AL7:AL22) ->  | AP23: =SUM(AP7:AP22) ->  | AQ23: =-SUM(AQ7:AQ22) ->  | AU23: =SUM(AU7:AU22) ->  | AV23: =-SUM(AV7:AV22) -> 
P24: U= | Q24: =Q23/(LOG(Q4)/LOG(2)) ->  | V24: U1= | W24: =W23/(LOG(W4)/LOG(2)) ->  | AA24: U2= | AB24: =AB23/(LOG(AB4)/LOG(2)) ->  | AF24: U3= | AG24: =AG23/(LOG(AG4)/LOG(2)) ->  | AK24: U4= | AL24: =AL23/(LOG(AL4)/LOG(2)) ->  | AP24: U5= | AQ24: =AQ23/(LOG(AQ4)/LOG(2)) ->  | AU24: U6= | AV24: =AV23/(LOG(AV4)/LOG(2)) -> 
N27: Total Target Seq
N28: =COUNTIF(L6:L7,G3) -> 0 | P28: 0 | Q28: 0 | R28: 0 | S28: 0 | T28: 0 | U28: 0
P29: % of reinforcement given in 6 equal intervals based on number of trials
P30: %_1 | Q30: %_2 | R30: %_3 | S30: %_4 | T30: %_5 | U30: %_6
O31: target sequence | P31: =$G$3 -> 2212 | Q31: =$G$3 -> 2212 | R31: =$G$3 -> 2212 | S31: =$G$3 -> 2212 | T31: =$G$3 -> 2212 | U31: =$G$3 -> 2212
O32: total reinforcement | P32: =U20 -> 0 | Q32: =Z20 -> 0 | R32: =AE20 -> 0 | S32: =AJ20 -> 0 | T32: =AO20 -> 0 | U32: =AT20 -> 0
O33: % target
O34: CCRF
O35: % CCRf
O36: average response rate | P36: =H6/P28 ->  | Q36: =(H6-H6)/Q28 ->  | R36: =(H6-H6)/R28 ->  | S36: =(H6-H6)/S28 ->  | T36: =(H6-H6)/T28 ->  | U36: =(H6-H6)/U28 -> 

Sheet !M111B3T.ayl
A1: Report for:!M111B3T.ayl
A2: Date: | B2: <date>
A3: Hen: | B3: <hen> | F3: Correct Sequence | G3: =Start!J2 -> 2212 | P3: Total Sequences in Data | Q3: =4994-COUNTBLANK(L7:L5000) -> 32 | V3: Total Sequences in Block Data | W3: =COUNTA(L7:L11) -> 5 | AA3: Total Sequences in Block Data | AB3: =COUNTA(L12:L17) -> 6 | AF3: Total Sequences in Block Data | AG3: =COUNTA(L18:L22) -> 5 | AK3: Total Sequences in Block Data | AL3: =COUNTA(L23:L27) -> 5 | AP3: Total Sequences in Block Data | AQ3: =COUNTA(L28:L33) -> 6 | AU3: Total Sequences in Block Data | AV3: =COUNTA(L34:L38) -> 5
P4: Total Sequences in Summary | Q4: =SUM(O7:O22) -> 32 | V4: Total Sequences in Block Summary | W4: =SUM(U7:U22) -> 5 | AA4: Total Sequences in Block Summary | AB4: =SUM(Z7:Z22) -> 6 | AF4: Total Sequences in Block Summary | AG4: =SUM(AE7:AE22) -> 5 | AK4: Total Sequences in Block Summary | AL4: =SUM(AJ7:AJ22) -> 5 | AP4: Total Sequences in Block Summary | AQ4: =SUM(AO7:AO22) -> 6 | AU4: Total Sequences in Block Summary | AV4: =SUM(AT7:AT22) -> 5
T5: Block 1 | Y5: Block 2 | AD5: Block 3 | AI5: Block 4 | AN5: Block 5 | AS5: Block 6
A6: Sequence Component 1 | B6: Time 1 | C6: Sequence Component 2 | D6: Time 2 | E6: Sequence Component 3 | F6: Time 3 | G6: Sequence Component 4 | H6: Time 4 | I6: Sequence Component 5 | J6: Time 5 | K6: Correct? 0=No 1=Yes | L6: Sequence | N6: Frequency | P6: Relative Frequency | Q6: Variability | T6: Frequency | V6: Relative Frequency | W6: Variability | Y6: Frequency | AA6: Relative Frequency | AB6: Variability | AD6: Frequency | AF6: Relative Frequency | AG6: Variability | AI6: Frequency | AK6: Relative Frequency | AL6: Variability | AN6: Frequency | AP6: Relative Frequency | AQ6: Variability | AS6: Frequency | AU6: Relative Frequency | AV6: Variability
A7: 21 | B7: 245 | C7: 21 | D7: 248 | E7: 11 | F7: 250 | G7: 21 | H7: 252 | K7: 0 | L7: 2212 | N7: 1111 | O7: =COUNTIF($L$7:$L$500,N7) -> 5 | P7: =O7/$Q$4 -> 0.15625 | Q7: =IF(P7=0,0,(P7*((LOG(P7))/LOG(2)))) -> -0.4184487352 | T7: =N7 -> 1111 | U7: =COUNTIF(L7:L11,T7) -> 0 | V7: =U7/(W4-U20) -> 0 | W7: =IF(V7=0,0,(V7*((LOG(V7))/LOG(2)))) -> 0 | Y7: =N7 -> 1111 | Z7: =COUNTIF(L12:L17,Y7) -> 0 | AA7: =Z7/(AB4-Z20) -> 0 | AB7: =IF(AA7=0,0,(AA7*((LOG(AA7))/LOG(2)))) -> 0 | AD7: =N7 -> 1111 | AE7: =COUNTIF(L18:L22,AD7) -> 0 | AF7: =AE7/(AG4-AE20) -> 0 | AG7: =IF(AF7=0,0,(AF7*((LOG(AF7))/LOG(2)))) -> 0 | AI7: =N7 -> 1111 | AJ7: =COUNTIF(L23:L27,AI7) -> 2 | AK7: =AJ7/(AL4-AJ20) -> 0.4 | AL7: =IF(AK7=0,0,(AK7*((LOG(AK7))/LOG(2)))) -> -0.528771238 | AN7: =N7 -> 1111 | AO7: =COUNTIF(L28:L33,AN7) -> 1 | AP7: =AO7/(AQ4-AO20) -> 0.1666666667 | AQ7: =IF(AP7=0,0,(AP7*((LOG(AP7))/LOG(2)))) -> -0.4308270835 | AS7: =N7 -> 1111 | AT7: =COUNTIF(L34:L38,AS7) -> 2 | AU7: =AT7/(AV4-AT20) -> 0.4 | AV7: =IF(AU7=0,0,(AU7*((LOG(AU7))/LOG(2)))) -> -0.528771238
A8: 21 | B8: 500 | C8: 21 | D8: 503 | E8: 22 | F8: 508 | G8: 23 | H8: 521 | K8: 0 | L8: 2222 | N8: 1112 | O8: =COUNTIF($L$7:$L$500,N8) -> 6 | P8: =O8/$Q$4 -> 0.1875 | Q8: =IF(P8=0,0,(P8*((LOG(P8))/LOG(2)))) -> -0.4528195311 | T8: =N8 -> 1112 | U8: =COUNTIF(L7:L11,T8) -> 0 | V8: =U8/(W4-U20) -> 0 | W8: =IF(V8=0,0,(V8*((LOG(V8))/LOG(2)))) -> 0 | Y8: =N8 -> 1112 | Z8: =COUNTIF(L12:L17,Y8) -> 1 | AA8: =Z8/(AB4-Z20) -> 0.1666666667 | AB8: =IF(AA8=0,0,(AA8*((LOG(AA8))/LOG(2)))) -> -0.4308270835 | AD8: =N8 -> 1112 | AE8: =COUNTIF(L18:L22,AD8) -> 2 | AF8: =AE8/(AG4-AE20) -> 0.4 | AG8: =IF(AF8=0,0,(AF8*((LOG(AF8))/LOG(2)))) -> -0.528771238 | AI8: =N8 -> 1112 | AJ8: =COUNTIF(L23:L27,AI8) -> 1 | AK8: =AJ8/(AL4-AJ20) -> 0.2 | AL8: =IF(AK8=0,0,(AK8*((LOG(AK8))/LOG(2)))) -> -0.464385619 | AN8: =N8 -> 1112 | AO8: =COUNTIF(L28:L33,AN8) -> 1 | AP8: =AO8/(AQ4-AO20) -> 0.1666666667 | AQ8: =IF(AP8=0,0,(AP8*((LOG(AP8))/LOG(2)))) -> -0.4308270835 | AS8: =N8 -> 1112 | AT8: =COUNTIF(L34:L38,AS8) -> 1 | AU8: =AT8/(AV4-AT20) -> 0.2 | AV8: =IF(AU8=0,0,(AU8*((LOG(AU8))/LOG(2)))) -> -0.464385619
A9: 12 | B9: 620 | C9: 23 | D9: 629 | E9: 24 | F9: 633 | G9: 23 | H9: 637 | K9: 0 | L9: 1222 | N9: 1121 | O9: =COUNTIF($L$7:$L$500,N9) -> 2 | P9: =O9/$Q$4 -> 0.0625 | Q9: =IF(P9=0,0,(P9*((LOG(P9))/LOG(2)))) -> -0.25 | T9: =N9 -> 1121 | U9: =COUNTIF(L7:L11,T9) -> 0 | V9: =U9/(W4-U20) -> 0 | W9: =IF(V9=0,0,(V9*((LOG(V9))/LOG(2)))) -> 0 | Y9: =N9 -> 1121 | Z9: =COUNTIF(L12:L17,Y9) -> 0 | AA9: =Z9/(AB4-Z20) -> 0 | AB9: =IF(AA9=0,0,(AA9*((LOG(AA9))/LOG(2)))) -> 0 | AD9: =N9 -> 1121 | AE9: =COUNTIF(L18:L22,AD9) -> 0 | AF9: =AE9/(AG4-AE20) -> 0 | AG9: =IF(AF9=0,0,(AF9*((LOG(AF9))/LOG(2)))) -> 0 | AI9: =N9 -> 1121 | AJ9: =COUNTIF(L23:L27,AI9) -> 0 | AK9: =AJ9/(AL4-AJ20) -> 0 | AL9: =IF(AK9=0,0,(AK9*((LOG(AK9))/LOG(2)))) -> 0 | AN9: =N9 -> 1121 | AO9: =COUNTIF(L28:L33,AN9) -> 1 | AP9: =AO9/(AQ4-AO20) -> 0.1666666667 | AQ9: =IF(AP9=0,0,(AP9*((LOG(AP9))/LOG(2)))) -> -0.4308270835 | AS9: =N9 -> 1121 | AT9: =COUNTIF(L34:L38,AS9) -> 1 | AU9: =AT9/(AV4-AT20) -> 0.2 | AV9: =IF(AU9=0,0,(AU9*((LOG(AU9))/LOG(2)))) -> -0.464385619
A10: 12 | B10: 733 | C10: 14 | D10: 735 | E10: 24 | F10: 746 | G10: 23 | H10: 749 | K10: 0 | L10: 1122 | N10: 1122 | O10: =COUNTIF($L$7:$L$500,N10) -> 8 | P10: =O10/$Q$4 -> 0.25 | Q10: =IF(P10=0,0,(P10*((LOG(P10))/LOG(2)))) -> -0.5 | T10: =N10 -> 1122 | U10: =COUNTIF(L7:L11,T10) -> 2 | V10: =U10/(W4-U20) -> 0.5 | W10: =IF(V10=0,0,(V10*((LOG(V10))/LOG(2)))) -> -0.5 | Y10: =N10 -> 1122 | Z10: =COUNTIF(L12:L17,Y10) -> 2 | AA10: =Z10/(AB4-Z20) -> 0.3333333333 | AB10: =IF(AA10=0,0,(AA10*((LOG(AA10))/LOG(2)))) -> -0.5283208336 | AD10: =N10 -> 1122 | AE10: =COUNTIF(L18:L22,AD10) -> 2 | AF10: =AE10/(AG4-AE20) -> 0.4 | AG10: =IF(AF10=0,0,(AF10*((LOG(AF10))/LOG(2)))) -> -0.528771238 | AI10: =N10 -> 1122 | AJ10: =COUNTIF(L23:L27,AI10) -> 1 | AK10: =AJ10/(AL4-AJ20) -> 0.2 | AL10: =IF(AK10=0,0,(AK10*((LOG(AK10))/LOG(2)))) -> -0.464385619 | AN10: =N10 -> 1122 | AO10: =COUNTIF(L28:L33,AN10) -> 1 | AP10: =AO10/(AQ4-AO20) -> 0.1666666667 | AQ10: =IF(AP10=0,0,(AP10*((LOG(AP10))/LOG(2)))) -> -0.4308270835 | AS10: =N10 -> 1122 | AT10: =COUNTIF(L34:L38,AS10) -> 0 | AU10: =AT10/(AV4-AT20) -> 0 | AV10: =IF(AU10=0,0,(AU10*((LOG(AU10))/LOG(2)))) -> 0
A11: 12 | B11: 847 | C11: 14 | D11: 849 | E11: 24 | F11: 862 | G11: 23 | H11: 866 | K11: 0 | L11: 1122 | N11: 1211 | O11: =COUNTIF($L$7:$L$500,N11) -> 0 | P11: =O11/$Q$4 -> 0 | Q11: =IF(P11=0,0,(P11*((LOG(P11))/LOG(2)))) -> 0 | T11: =N11 -> 1211 | U11: =COUNTIF(L7:L11,T11) -> 0 | V11: =U11/(W4-U20) -> 0 | W11: =IF(V11=0,0,(V11*((LOG(V11))/LOG(2)))) -> 0 | Y11: =N11 -> 1211 | Z11: =COUNTIF(L12:L17,Y11) -> 0 | AA11: =Z11/(AB4-Z20) -> 0 | AB11: =IF(AA11=0,0,(AA11*((LOG(AA11))/LOG(2)))) -> 0 | AD11: =N11 -> 1211 | AE11: =COUNTIF(L18:L22,AD11) -> 0 | AF11: =AE11/(AG4-AE20) -> 0 | AG11: =IF(AF11=0,0,(AF11*((LOG(AF11))/LOG(2)))) -> 0 | AI11: =N11 -> 1211 | AJ11: =COUNTIF(L23:L27,AI11) -> 0 | AK11: =AJ11/(AL4-AJ20) -> 0 | AL11: =IF(AK11=0,0,(AK11*((LOG(AK11))/LOG(2)))) -> 0 | AN11: =N11 -> 1211 | AO11: =COUNTIF(L28:L33,AN11) -> 0 | AP11: =AO11/(AQ4-AO20) -> 0 | AQ11: =IF(AP11=0,0,(AP11*((LOG(AP11))/LOG(2)))) -> 0 | AS11: =N11 -> 1211 | AT11: =COUNTIF(L34:L38,AS11) -> 0 | AU11: =AT11/(AV4-AT20) -> 0 | AV11: =IF(AU11=0,0,(AU11*((LOG(AU11))/LOG(2)))) -> 0
A12: 21 | B12: 1037 | C12: 21 | D12: 1040 | E12: 22 | F12: 1047 | G12: 23 | H12: 1064 | K12: 0 | L12: 2222 | N12: 1212 | O12: =COUNTIF($L$7:$L$500,N12) -> 1 | P12: =O12/$Q$4 -> 0.03125 | Q12: =IF(P12=0,0,(P12*((LOG(P12))/LOG(2)))) -> -0.15625 | T12: =N12 -> 1212 | U12: =COUNTIF(L7:L11,T12) -> 0 | V12: =U12/(W4-U20) -> 0 | W12: =IF(V12=0,0,(V12*((LOG(V12))/LOG(2)))) -> 0 | Y12: =N12 -> 1212 | Z12: =COUNTIF(L12:L17,Y12) -> 0 | AA12: =Z12/(AB4-Z20) -> 0 | AB12: =IF(AA12=0,0,(AA12*((LOG(AA12))/LOG(2)))) -> 0 | AD12: =N12 -> 1212 | AE12: =COUNTIF(L18:L22,AD12) -> 0 | AF12: =AE12/(AG4-AE20) -> 0 | AG12: =IF(AF12=0,0,(AF12*((LOG(AF12))/LOG(2)))) -> 0 | AI12: =N12 -> 1212 | AJ12: =COUNTIF(L23:L27,AI12) -> 0 | AK12: =AJ12/(AL4-AJ20) -> 0 | AL12: =IF(AK12=0,0,(AK12*((LOG(AK12))/LOG(2)))) -> 0 | AN12: =N12 -> 1212 | AO12: =COUNTIF(L28:L33,AN12) -> 0 | AP12: =AO12/(AQ4-AO20) -> 0 | AQ12: =IF(AP12=0,0,(AP12*((LOG(AP12))/LOG(2)))) -> 0 | AS12: =N12 -> 1212 | AT12: =COUNTIF(L34:L38,AS12) -> 1 | AU12: =AT12/(AV4-AT20) -> 0.2 | AV12: =IF(AU12=0,0,(AU12*((LOG(AU12))/LOG(2)))) -> -0.464385619
A13: 12 | B13: 1185 | C13: 23 | D13: 1188 | E13: 24 | F13: 1193 | G13: 23 | H13: 1205 | K13: 0 | L13: 1222 | N13: 1221 | O13: =COUNTIF($L$7:$L$500,N13) -> 1 | P13: =O13/$Q$4 -> 0.03125 | Q13: =IF(P13=0,0,(P13*((LOG(P13))/LOG(2)))) -> -0.15625 | T13: =N13 -> 1221 | U13: =COUNTIF(L7:L11,T13) -> 0 | V13: =U13/(W4-U20) -> 0 | W13: =IF(V13=0,0,(V13*((LOG(V13))/LOG(2)))) -> 0 | Y13: =N13 -> 1221 | Z13: =COUNTIF(L12:L17,Y13) -> 1 | AA13: =Z13/(AB4-Z20) -> 0.1666666667 | AB13: =IF(AA13=0,0,(AA13*((LOG(AA13))/LOG(2)))) -> -0.4308270835 | AD13: =N13 -> 1221 | AE13: =COUNTIF(L18:L22,AD13) -> 0 | AF13: =AE13/(AG4-AE20) -> 0 | AG13: =IF(AF13=0,0,(AF13*((LOG(AF13))/LOG(2)))) -> 0 | AI13: =N13 -> 1221 | AJ13: =COUNTIF(L23:L27,AI13) -> 0 | AK13: =AJ13/(AL4-AJ20) -> 0 | AL13: =IF(AK13=0,0,(AK13*((LOG(AK13))/LOG(2)))) -> 0 | AN13: =N13 -> 1221 | AO13: =COUNTIF(L28:L33,AN13) -> 0 | AP13: =AO13/(AQ4-AO20) -> 0 | AQ13: =IF(AP13=0,0,(AP13*((LOG(AP13))/LOG(2)))) -> 0 | AS13: =N13 -> 1221 | AT13: =COUNTIF(L34:L38,AS13) -> 0 | AU13: =AT13/(AV4-AT20) -> 0 | AV13: =IF(AU13=0,0,(AU13*((LOG(AU13))/LOG(2)))) -> 0
A14: 12 | B14: 1311 | C14: 14 | D14: 1314 | E14: 24 | F14: 1324 | G14: 23 | H14: 1333 | K14: 0 | L14: 1122 | N14: 1222 | O14: =COUNTIF($L$7:$L$500,N14) -> 3 | P14: =O14/$Q$4 -> 0.09375 | Q14: =IF(P14=0,0,(P14*((LOG(P14))/LOG(2)))) -> -0.3201597656 | T14: =N14 -> 1222 | U14: =COUNTIF(L7:L11,T14) -> 1 | V14: =U14/(W4-U20) -> 0.25 | W14: =IF(V14=0,0,(V14*((LOG(V14))/LOG(2)))) -> -0.5 | Y14: =N14 -> 1222 | Z14: =COUNTIF(L12:L17,Y14) -> 1 | AA14: =Z14/(AB4-Z20) -> 0.1666666667 | AB14: =IF(AA14=0,0,(AA14*((LOG(AA14))/LOG(2)))) -> -0.4308270835 | AD14: =N14 -> 1222 | AE14: =COUNTIF(L18:L22,AD14) -> 1 | AF14: =AE14/(AG4-AE20) -> 0.2 | AG14: =IF(AF14=0,0,(AF14*((LOG(AF14))/LOG(2)))) -> -0.464385619 | AI14: =N14 -> 1222 | AJ14: =COUNTIF(L23:L27,AI14) -> 0 | AK14: =AJ14/(AL4-AJ20) -> 0 | AL14: =IF(AK14=0,0,(AK14*((LOG(AK14))/LOG(2)))) -> 0 | AN14: =N14 -> 1222 | AO14: =COUNTIF(L28:L33,AN14) -> 0 | AP14: =AO14/(AQ4-AO20) -> 0 | AQ14: =IF(AP14=0,0,(AP14*((LOG(AP14))/LOG(2)))) -> 0 | AS14: =N14 -> 1222 | AT14: =COUNTIF(L34:L38,AS14) -> 0 | AU14: =AT14/(AV4-AT20) -> 0 | AV14: =IF(AU14=0,0,(AU14*((LOG(AU14))/LOG(2)))) -> 0
A15: 12 | B15: 1442 | C15: 14 | D15: 1443 | E15: 13 | F15: 1449 | G15: 23 | H15: 1456 | K15: 0 | L15: 1112 | N15: 2111 | O15: =COUNTIF($L$7:$L$500,N15) -> 0 | P15: =O15/$Q$4 -> 0 | Q15: =IF(P15=0,0,(P15*((LOG(P15))/LOG(2)))) -> 0 | T15: =N15 -> 2111 | U15: =COUNTIF(L7:L11,T15) -> 0 | V15: =U15/(W4-U20) -> 0 | W15: =IF(V15=0,0,(V15*((LOG(V15))/LOG(2)))) -> 0 | Y15: =N15 -> 2111 | Z15: =COUNTIF(L12:L17,Y15) -> 0 | AA15: =Z15/(AB4-Z20) -> 0 | AB15: =IF(AA15=0,0,(AA15*((LOG(AA15))/LOG(2)))) -> 0 | AD15: =N15 -> 2111 | AE15: =COUNTIF(L18:L22,AD15) -> 0 | AF15: =AE15/(AG4-AE20) -> 0 | AG15: =IF(AF15=0,0,(AF15*((LOG(AF15))/LOG(2)))) -> 0 | AI15: =N15 -> 2111 | AJ15: =COUNTIF(L23:L27,AI15) -> 0 | AK15: =AJ15/(AL4-AJ20) -> 0 | AL15: =IF(AK15=0,0,(AK15*((LOG(AK15))/LOG(2)))) -> 0 | AN15: =N15 -> 2111 | AO15: =COUNTIF(L28:L33,AN15) -> 0 | AP15: =AO15/(AQ4-AO20) -> 0 | AQ15: =IF(AP15=0,0,(AP15*((LOG(AP15))/LOG(2)))) -> 0 | AS15: =N15 -> 2111 | AT15: =COUNTIF(L34:L38,AS15) -> 0 | AU15: =AT15/(AV4-AT20) -> 0 | AV15: =IF(AU15=0,0,(AU15*((LOG(AU15))/LOG(2)))) -> 0
A16: 12 | B16: 1554 | C16: 14 | D16: 1557 | E16: 24 | F16: 1566 | G16: 23 | H16: 1573 | K16: 0 | L16: 1122 | N16: 2112 | O16: =COUNTIF($L$7:$L$500,N16) -> 0 | P16: =O16/$Q$4 -> 0 | Q16: =IF(P16=0,0,(P16*((LOG(P16))/LOG(2)))) -> 0 | T16: =N16 -> 2112 | U16: =COUNTIF(L7:L11,T16) -> 0 | V16: =U16/(W4-U20) -> 0 | W16: =IF(V16=0,0,(V16*((LOG(V16))/LOG(2)))) -> 0 | Y16: =N16 -> 2112 | Z16: =COUNTIF(L12:L17,Y16) -> 0 | AA16: =Z16/(AB4-Z20) -> 0 | AB16: =IF(AA16=0,0,(AA16*((LOG(AA16))/LOG(2)))) -> 0 | AD16: =N16 -> 2112 | AE16: =COUNTIF(L18:L22,AD16) -> 0 | AF16: =AE16/(AG4-AE20) -> 0 | AG16: =IF(AF16=0,0,(AF16*((LOG(AF16))/LOG(2)))) -> 0 | AI16: =N16 -> 2112 | AJ16: =COUNTIF(L23:L27,AI16) -> 0 | AK16: =AJ16/(AL4-AJ20) -> 0 | AL16: =IF(AK16=0,0,(AK16*((LOG(AK16))/LOG(2)))) -> 0 | AN16: =N16 -> 2112 | AO16: =COUNTIF(L28:L33,AN16) -> 0 | AP16: =AO16/(AQ4-AO20) -> 0 | AQ16: =IF(AP16=0,0,(AP16*((LOG(AP16))/LOG(2)))) -> 0 | AS16: =N16 -> 2112 | AT16: =COUNTIF(L34:L38,AS16) -> 0 | AU16: =AT16/(AV4-AT20) -> 0 | AV16: =IF(AU16=0,0,(AU16*((LOG(AU16))/LOG(2)))) -> 0
A17: 12 | B17: 1702 | C17: 23 | D17: 1710 | E17: 24 | F17: 1716 | G17: 14 | H17: 1739 | K17: 0 | L17: 1221 | N17: 2121 | O17: =COUNTIF($L$7:$L$500,N17) -> 0 | P17: =O17/$Q$4 -> 0 | Q17: =IF(P17=0,0,(P17*((LOG(P17))/LOG(2)))) -> 0 | T17: =N17 -> 2121 | U17: =COUNTIF(L7:L11,T17) -> 0 | V17: =U17/(W4-U20) -> 0 | W17: =IF(V17=0,0,(V17*((LOG(V17))/LOG(2)))) -> 0 | Y17: =N17 -> 2121 | Z17: =COUNTIF(L12:L17,Y17) -> 0 | AA17: =Z17/(AB4-Z20) -> 0 | AB17: =IF(AA17=0,0,(AA17*((LOG(AA17))/LOG(2)))) -> 0 | AD17: =N17 -> 2121 | AE17: =COUNTIF(L18:L22,AD17) -> 0 | AF17: =AE17/(AG4-AE20) -> 0 | AG17: =IF(AF17=0,0,(AF17*((LOG(AF17))/LOG(2)))) -> 0 | AI17: =N17 -> 2121 | AJ17: =COUNTIF(L23:L27,AI17) -> 0 | AK17: =AJ17/(AL4-AJ20) -> 0 | AL17: =IF(AK17=0,0,(AK17*((LOG(AK17))/LOG(2)))) -> 0 | AN17: =N17 -> 2121 | AO17: =COUNTIF(L28:L33,AN17) -> 0 | AP17: =AO17/(AQ4-AO20) -> 0 | AQ17: =IF(AP17=0,0,(AP17*((LOG(AP17))/LOG(2)))) -> 0 | AS17: =N17 -> 2121 | AT17: =COUNTIF(L34:L38,AS17) -> 0 | AU17: =AT17/(AV4-AT20) -> 0 | AV17: =IF(AU17=0,0,(AU17*((LOG(AU17))/LOG(2)))) -> 0
A18: 12 | B18: 1836 | C18: 14 | D18: 1841 | E18: 24 | F18: 1848 | G18: 23 | H18: 1854 | K18: 0 | L18: 1122 | N18: 2122 | O18: =COUNTIF($L$7:$L$500,N18) -> 0 | P18: =O18/$Q$4 -> 0 | Q18: =IF(P18=0,0,(P18*((LOG(P18))/LOG(2)))) -> 0 | T18: =N18 -> 2122 | U18: =COUNTIF(L7:L11,T18) -> 0 | V18: =U18/(W4-U20) -> 0 | W18: =IF(V18=0,0,(V18*((LOG(V18))/LOG(2)))) -> 0 | Y18: =N18 -> 2122 | Z18: =COUNTIF(L12:L17,Y18) -> 0 | AA18: =Z18/(AB4-Z20) -> 0 | AB18: =IF(AA18=0,0,(AA18*((LOG(AA18))/LOG(2)))) -> 0 | AD18: =N18 -> 2122 | AE18: =COUNTIF(L18:L22,AD18) -> 0 | AF18: =AE18/(AG4-AE20) -> 0 | AG18: =IF(AF18=0,0,(AF18*((LOG(AF18))/LOG(2)))) -> 0 | AI18: =N18 -> 2122 | AJ18: =COUNTIF(L23:L27,AI18) -> 0 | AK18: =AJ18/(AL4-AJ20) -> 0 | AL18: =IF(AK18=0,0,(AK18*((LOG(AK18))/LOG(2)))) -> 0 | AN18: =N18 -> 2122 | AO18: =COUNTIF(L28:L33,AN18) -> 0 | AP18: =AO18/(AQ4-AO20) -> 0 | AQ18: =IF(AP18=0,0,(AP18*((LOG(AP18))/LOG(2)))) -> 0 | AS18: =N18 -> 2122 | AT18: =COUNTIF(L34:L38,AS18) -> 0 | AU18: =AT18/(AV4-AT20) -> 0 | AV18: =IF(AU18=0,0,(AU18*((LOG(AU18))/LOG(2)))) -> 0
A19: 12 | B19: 1956 | C19: 14 | D19: 1961 | E19: 13 | F19: 2111 | G19: 23 | H19: 2120 | K19: 0 | L19: 1112 | N19: 2211 | O19: =COUNTIF($L$7:$L$500,N19) -> 1 | P19: =O19/$Q$4 -> 0.03125 | Q19: =IF(P19=0,0,(P19*((LOG(P19))/LOG(2)))) -> -0.15625 | T19: =N19 -> 2211 | U19: =COUNTIF(L7:L11,T19) -> 0 | V19: =U19/(W4-U20) -> 0 | W19: =IF(V19=0,0,(V19*((LOG(V19))/LOG(2)))) -> 0 | Y19: =N19 -> 2211 | Z19: =COUNTIF(L12:L17,Y19) -> 0 | AA19: =Z19/(AB4-Z20) -> 0 | AB19: =IF(AA19=0,0,(AA19*((LOG(AA19))/LOG(2)))) -> 0 | AD19: =N19 -> 2211 | AE19: =COUNTIF(L18:L22,AD19) -> 0 | AF19: =AE19/(AG4-AE20) -> 0 | AG19: =IF(AF19=0,0,(AF19*((LOG(AF19))/LOG(2)))) -> 0 | AI19: =N19 -> 2211 | AJ19: =COUNTIF(L23:L27,AI19) -> 0 | AK19: =AJ19/(AL4-AJ20) -> 0 | AL19: =IF(AK19=0,0,(AK19*((LOG(AK19))/LOG(2)))) -> 0 | AN19: =N19 -> 2211 | AO19: =COUNTIF(L28:L33,AN19) -> 1 | AP19: =AO19/(AQ4-AO20) -> 0.1666666667 | AQ19: =IF(AP19=0,0,(AP19*((LOG(AP19))/LOG(2)))) -> -0.4308270835 | AS19: =N19 -> 2211 | AT19: =COUNTIF(L34:L38,AS19) -> 0 | AU19: =AT19/(AV4-AT20) -> 0 | AV19: =IF(AU19=0,0,(AU19*((LOG(AU19))/LOG(2)))) -> 0
A20: 12 | B20: 2219 | C20: 14 | D20: 2221 | E20: 24 | F20: 2234 | G20: 23 | H20: 2243 | K20: 0 | L20: 1122 | N20: 2212 | O20: =COUNTIF($L$7:$L$500,N20) -> 1 | P20: =O20/$Q$4 -> 0.03125 | Q20: =IF(P20=0,0,(P20*((LOG(P20))/LOG(2)))) -> -0.15625 | T20: =N20 -> 2212 | U20: =COUNTIF(L7:L11,T20) -> 1 | Y20: =N20 -> 2212 | Z20: =COUNTIF(L12:L17,Y20) -> 0 | AD20: =N20 -> 2212 | AE20: =COUNTIF(L18:L22,AD20) -> 0 | AI20: =N20 -> 2212 | AJ20: =COUNTIF(L23:L27,AI20) -> 0 | AN20: =N20 -> 2212 | AO20: =COUNTIF(L28:L33,AN20) -> 0 | AS20: =N20 -> 2212 | AT20: =COUNTIF(L34:L38,AS20) -> 0
A21: 12 | B21: 2340 | C21: 23 | D21: 2351 | E21: 24 | F21: 2358 | G21: 23 | H21: 2365 | K21: 0 | L21: 1222 | N21: 2221 | O21: =COUNTIF($L$7:$L$500,N21) -> 1 | P21: =O21/$Q$4 -> 0.03125 | Q21: =IF(P21=0,0,(P21*((LOG(P21))/LOG(2)))) -> -0.15625 | T21: =N21 -> 2221 | U21: =COUNTIF(L7:L11,T21) -> 0 | V21: =U21/(W4-U20) -> 0 | W21: =IF(V21=0,0,(V21*((LOG(V21))/LOG(2)))) -> 0 | Y21: =N21 -> 2221 | Z21: =COUNTIF(L12:L17,Y21) -> 0 | AA21: =Z21/(AB4-Z20) -> 0 | AB21: =IF(AA21=0,0,(AA21*((LOG(AA21))/LOG(2)))) -> 0 | AD21: =N21 -> 2221 | AE21: =COUNTIF(L18:L22,AD21) -> 0 | AF21: =AE21/(AG4-AE20) -> 0 | AG21: =IF(AF21=0,0,(AF21*((LOG(AF21))/LOG(2)))) -> 0 | AI21: =N21 -> 2221 | AJ21: =COUNTIF(L23:L27,AI21) -> 0 | AK21: =AJ21/(AL4-AJ20) -> 0 | AL21: =IF(AK21=0,0,(AK21*((LOG(AK21))/LOG(2)))) -> 0 | AN21: =N21 -> 2221 | AO21: =COUNTIF(L28:L33,AN21) -> 1 | AP21: =AO21/(AQ4-AO20) -> 0.1666666667 | AQ21: =IF(AP21=0,0,(AP21*((LOG(AP21))/LOG(2)))) -> -0.4308270835 | AS21: =N21 -> 2221 | AT21: =COUNTIF(L34:L38,AS21) -> 0 | AU21: =AT21/(AV4-AT20) -> 0 | AV21: =IF(AU21=0,0,(AU21*((LOG(AU21))/LOG(2)))) -> 0
A22: 12 | B22: 2465 | C22: 14 | D22: 2467 | E22: 13 | F22: 2469 | G22: 23 | H22: 2480 | K22: 0 | L22: 1112 | N22: 2222 | O22: =COUNTIF($L$7:$L$500,N22) -> 3 | P22: =O22/$Q$4 -> 0.09375 | Q22: =IF(P22=0,0,(P22*((LOG(P22))/LOG(2)))) -> -0.3201597656 | T22: =N22 -> 2222 | U22: =COUNTIF(L7:L11,T22) -> 1 | V22: =U22/(W4-U20) -> 0.25 | W22: =IF(V22=0,0,(V22*((LOG(V22))/LOG(2)))) -> -0.5 | Y22: =N22 -> 2222 | Z22: =COUNTIF(L12:L17,Y22) -> 1 | AA22: =Z22/(AB4-Z20) -> 0.1666666667 | AB22: =IF(AA22=0,0,(AA22*((LOG(AA22))/LOG(2)))) -> -0.4308270835 | AD22: =N22 -> 2222 | AE22: =COUNTIF(L18:L22,AD22) -> 0 | AF22: =AE22/(AG4-AE20) -> 0 | AG22: =IF(AF22=0,0,(AF22*((LOG(AF22))/LOG(2)))) -> 0 | AI22: =N22 -> 2222 | AJ22: =COUNTIF(L23:L27,AI22) -> 1 | AK22: =AJ22/(AL4-AJ20) -> 0.2 | AL22: =IF(AK22=0,0,(AK22*((LOG(AK22))/LOG(2)))) -> -0.464385619 | AN22: =N22 -> 2222 | AO22: =COUNTIF(L28:L33,AN22) -> 0 | AP22: =AO22/(AQ4-AO20) -> 0 | AQ22: =IF(AP22=0,0,(AP22*((LOG(AP22))/LOG(2)))) -> 0 | AS22: =N22 -> 2222 | AT22: =COUNTIF(L34:L38,AS22) -> 0 | AU22: =AT22/(AV4-AT20) -> 0 | AV22: =IF(AU22=0,0,(AU22*((LOG(AU22))/LOG(2)))) -> 0
A23: 12 | B23: 2594 | C23: 14 | D23: 2601 | E23: 13 | F23: 2604 | G23: 14 | H23: 2608 | K23: 0 | L23: 1111 | P23: =SUM(P7:P22) -> 1 | Q23: =-SUM(Q7:Q22) -> 3.042837797 | V23: =SUM(V7:V22) -> 1 | W23: =-SUM(W7:W22) -> 1.5 | AA23: =SUM(AA7:AA22) -> 1 | AB23: =-SUM(AB7:AB22) -> 2.251629167 | AF23: =SUM(AF7:AF22) -> 1 | AG23: =-SUM(AG7:AG22) -> 1.521928095 | AK23: =SUM(AK7:AK22) -> 1 | AL23: =-SUM(AL7:AL22) -> 1.921928095 | AP23: =SUM(AP7:AP22) -> 1 | AQ23: =-SUM(AQ7:AQ22) -> 2.584962501 | AU23: =SUM(AU7:AU22) -> 1 | AV23: =-SUM(AV7:AV22) -> 1.921928095
A24: 12 | B24: 2748 | C24: 14 | D24: 2761 | E24: 13 | F24: 2764 | G24: 23 | H24: 2775 | K24: 0 | L24: 1112 | P24: U= | Q24: =Q23/(LOG(Q4)/LOG(2)) -> 0.6085675595 | V24: U1= | W24: =W23/(LOG(W4)/LOG(2)) -> 0.6460148371 | AA24: U2= | AB24: =AB23/(LOG(AB4)/LOG(2)) -> 0.8710490643 | AF24: U3= | AG24: =AG23/(LOG(AG4)/LOG(2)) -> 0.6554587535 | AK24: U4= | AL24: =AL23/(LOG(AL4)/LOG(2)) -> 0.8277293768 | AP24: U5= | AQ24: =AQ23/(LOG(AQ4)/LOG(2)) -> 1 | AU24: U6= | AV24: =AV23/(LOG(AV4)/LOG(2)) -> 0.8277293768
A25: 12 | B25: 2883 | C25: 14 | D25: 2886 | E25: 13 | F25: 2892 | G25: 14 | H25: 2895 | K25: 0 | L25: 1111
A26: 21 | B26: 3018 | C26: 21 | D26: 3026 | E26: 22 | F26: 3034 | G26: 23 | H26: 3043 | K26: 0 | L26: 2222
A27: 12 | B27: 3142 | C27: 14 | D27: 3149 | E27: 24 | F27: 3170 | G27: 23 | H27: 3177 | K27: 0 | L27: 1122 | N27: Total Target Seq
A28: 21 | B28: 3283 | C28: 21 | D28: 3309 | E28: 11 | F28: 3459 | G28: 12 | H28: 3463 | K28: 0 | L28: 2211 | N28: =COUNTIF(L7:L38,G3) -> 1 | P28: 5 | Q28: 6 | R28: 5 | S28: 5 | T28: 6 | U28: 5
A29: 12 | B29: 3635 | C29: 14 | D29: 3639 | E29: 13 | F29: 3643 | G29: 23 | H29: 3663 | K29: 0 | L29: 1112 | P29: % of reinforcement given in 6 equal intervals based on number of trials
A30: 12 | B30: 4171 | C30: 14 | D30: 4174 | E30: 24 | F30: 4186 | G30: 14 | H30: 4453 | K30: 0 | L30: 1121 | P30: %_1 | Q30: %_2 | R30: %_3 | S30: %_4 | T30: %_5 | U30: %_6
A31: 21 | B31: 4786 | C31: 21 | D31: 4803 | E31: 22 | F31: 4806 | G31: 14 | H31: 4823 | K31: 0 | L31: 2221 | O31: target sequence | P31: =$G$3 -> 2212 | Q31: =$G$3 -> 2212 | R31: =$G$3 -> 2212 | S31: =$G$3 -> 2212 | T31: =$G$3 -> 2212 | U31: =$G$3 -> 2212
A32: 12 | B32: 4976 | C32: 14 | D32: 4981 | E32: 24 | F32: 4993 | G32: 23 | H32: 4997 | K32: 0 | L32: 1122 | O32: total reinforcement | P32: =U20 -> 1 | Q32: =Z20 -> 0 | R32: =AE20 -> 0 | S32: =AJ20 -> 0 | T32: =AO20 -> 0 | U32: =AT20 -> 0
A33: 12 | B33: 5344 | C33: 14 | D33: 5347 | E33: 13 | F33: 5369 | G33: 14 | H33: 5383 | K33: 0 | L33: 1111 | O33: % target
A34: 12 | B34: 5510 | C34: 14 | D34: 5514 | E34: 13 | F34: 5519 | G34: 14 | H34: 5594 | K34: 0 | L34: 1111 | O34: CCRF
A35: 12 | B35: 7778 | C35: 14 | D35: 7780 | E35: 13 | F35: 7783 | G35: 23 | H35: 7793 | K35: 0 | L35: 1112 | O35: % CCRf
A36: 12 | B36: 8147 | C36: 14 | D36: 8154 | E36: 13 | F36: 8159 | G36: 14 | H36: 8163 | K36: 0 | L36: 1111 | O36: average response rate | P36: =H11/P28 -> 173.2 | Q36: =(H17-H11)/Q28 -> 145.5 | R36: =(H22-H17)/R28 -> 148.2 | S36: =(H27-H22)/S28 -> 139.4 | T36: =(H33-H27)/T28 -> 367.6666667 | U36: =(H38-H33)/U28 -> 3513.8
A37: 12 | B37: 10982 | C37: 23 | D37: 11002 | E37: 13 | F37: 11019 | G37: 23 | H37: 11033 | K37: 0 | L37: 1212
A38: 12 | B38: 15741 | C38: 14 | D38: 22919 | E38: 24 | F38: 22938 | G38: 14 | H38: 22952 | K38: 0 | L38: 1121

Sheet !M112B2T.ayl
A1: Report for:!M112B2T.ayl
A2: Date: | B2: <date>
A3: Hen: | B3: <hen> | F3: Correct Sequence | G3: =Start!J2 -> 2212 | P3: Total Sequences in Data | Q3: =4994-COUNTBLANK(L7:L5000) -> 17 | V3: Total Sequences in Block Data | W3: =COUNTA(L7:L9) -> 3 | AA3: Total Sequences in Block Data | AB3: =COUNTA(L10:L12) -> 3 | AF3: Total Sequences in Block Data | AG3: =COUNTA(L13:L14) -> 2 | AK3: Total Sequences in Block Data | AL3: =COUNTA(L15:L17) -> 3 | AP3: Total Sequences in Block Data | AQ3: =COUNTA(L18:L20) -> 3 | AU3: Total Sequences in Block Data | AV3: =COUNTA(L21:L23) -> 3
P4: Total Sequences in Summary | Q4: =SUM(O7:O22) -> 16 | V4: Total Sequences in Block Summary | W4: =SUM(U7:U22) -> 3 | AA4: Total Sequences in Block Summary | AB4: =SUM(Z7:Z22) -> 3 | AF4: Total Sequences in Block Summary | AG4: =SUM(AE7:AE22) -> 2 | AK4: Total Sequences in Block Summary | AL4: =SUM(AJ7:AJ22) -> 3 | AP4: Total Sequences in Block Summary | AQ4: =SUM(AO7:AO22) -> 3 | AU4: Total Sequences in Block Summary | AV4: =SUM(AT7:AT22) -> 2
T5: Block 1 | Y5: Block 2 | AD5: Block 3 | AI5: Block 4 | AN5: Block 5 | AS5: Block 6
A6: Sequence Component 1 | B6: Time 1 | C6: Sequence Component 2 | D6: Time 2 | E6: Sequence Component 3 | F6: Time 3 | G6: Sequence Component 4 | H6: Time 4 | I6: Sequence Component 5 | J6: Time 5 | K6: Correct? 0=No 1=Yes | L6: Sequence | N6: Frequency | P6: Relative Frequency | Q6: Variability | T6: Frequency | V6: Relative Frequency | W6: Variability | Y6: Frequency | AA6: Relative Frequency | AB6: Variability | AD6: Frequency | AF6: Relative Frequency | AG6: Variability | AI6: Frequency | AK6: Relative Frequency | AL6: Variability | AN6: Frequency | AP6: Relative Frequency | AQ6: Variability | AS6: Frequency | AU6: Relative Frequency | AV6: Variability
A7: 12 | B7: 9 | C7: 14 | D7: 11 | E7: 24 | F7: 24 | G7: 23 | H7: 30 | K7: 0 | L7: 1122 | N7: 1111 | O7: =COUNTIF($L$7:$L$500,N7) -> 3 | P7: =O7/$Q$4 -> 0.1875 | Q7: =IF(P7=0,0,(P7*((LOG(P7))/LOG(2)))) -> -0.4528195311 | T7: =N7 -> 1111 | U7: =COUNTIF(L7:L9,T7) -> 0 | V7: =U7/(W4-U20) -> 0 | W7: =IF(V7=0,0,(V7*((LOG(V7))/LOG(2)))) -> 0 | Y7: =N7 -> 1111 | Z7: =COUNTIF(L10:L12,Y7) -> 1 | AA7: =Z7/(AB4-Z20) -> 0.3333333333 | AB7: =IF(AA7=0,0,(AA7*((LOG(AA7))/LOG(2)))) -> -0.5283208336 | AD7: =N7 -> 1111 | AE7: =COUNTIF(L13:L14,AD7) -> 0 | AF7: =AE7/(AG4-AE20) -> 0 | AG7: =IF(AF7=0,0,(AF7*((LOG(AF7))/LOG(2)))) -> 0 | AI7: =N7 -> 1111 | AJ7: =COUNTIF(L15:L17,AI7) -> 0 | AK7: =AJ7/(AL4-AJ20) -> 0 | AL7: =IF(AK7=0,0,(AK7*((LOG(AK7))/LOG(2)))) -> 0 | AN7: =N7 -> 1111 | AO7: =COUNTIF(L18:L20,AN7) -> 2 | AP7: =AO7/(AQ4-AO20) -> 0.6666666667 | AQ7: =IF(AP7=0,0,(AP7*((LOG(AP7))/LOG(2)))) -> -0.3899750005 | AS7: =N7 -> 1111 | AT7: =COUNTIF(L21:L23,AS7) -> 0 | AU7: =AT7/(AV4-AT20) -> 0 | AV7: =IF(AU7=0,0,(AU7*((LOG(AU7))/LOG(2)))) -> 0
A8: 12 | B8: 128 | C8: 23 | D8: 141 | E8: 24 | F8: 148 | G8: 23 | H8: 154 | K8: 0 | L8: 1222 | N8: 1112 | O8: =COUNTIF($L$7:$L$500,N8) -> 4 | P8: =O8/$Q$4 -> 0.25 | Q8: =IF(P8=0,0,(P8*((LOG(P8))/LOG(2)))) -> -0.5 | T8: =N8 -> 1112 | U8: =COUNTIF(L7:L9,T8) -> 1 | V8: =U8/(W4-U20) -> 0.3333333333 | W8: =IF(V8=0,0,(V8*((LOG(V8))/LOG(2)))) -> -0.5283208336 | Y8: =N8 -> 1112 | Z8: =COUNTIF(L10:L12,Y8) -> 1 | AA8: =Z8/(AB4-Z20) -> 0.3333333333 | AB8: =IF(AA8=0,0,(AA8*((LOG(AA8))/LOG(2)))) -> -0.5283208336 | AD8: =N8 -> 1112 | AE8: =COUNTIF(L13:L14,AD8) -> 0 | AF8: =AE8/(AG4-AE20) -> 0 | AG8: =IF(AF8=0,0,(AF8*((LOG(AF8))/LOG(2)))) -> 0 | AI8: =N8 -> 1112 | AJ8: =COUNTIF(L15:L17,AI8) -> 1 | AK8: =AJ8/(AL4-AJ20) -> 0.3333333333 | AL8: =IF(AK8=0,0,(AK8*((LOG(AK8))/LOG(2)))) -> -0.5283208336 | AN8: =N8 -> 1112 | AO8: =COUNTIF(L18:L20,AN8) -> 1 | AP8: =AO8/(AQ4-AO20) -> 0.3333333333 | AQ8: =IF(AP8=0,0,(AP8*((LOG(AP8))/LOG(2)))) -> -0.5283208336 | AS8: =N8 -> 1112 | AT8: =COUNTIF(L21:L23,AS8) -> 0 | AU8: =AT8/(AV4-AT20) -> 0 | AV8: =IF(AU8=0,0,(AU8*((LOG(AU8))/LOG(2)))) -> 0
A9: 12 | B9: 253 | C9: 14 | D9: 256 | E9: 13 | F9: 261 | G9: 23 | H9: 271 | K9: 0 | L9: 1112 | N9: 1121 | O9: =COUNTIF($L$7:$L$500,N9) -> 0 | P9: =O9/$Q$4 -> 0 | Q9: =IF(P9=0,0,(P9*((LOG(P9))/LOG(2)))) -> 0 | T9: =N9 -> 1121 | U9: =COUNTIF(L7:L9,T9) -> 0 | V9: =U9/(W4-U20) -> 0 | W9: =IF(V9=0,0,(V9*((LOG(V9))/LOG(2)))) -> 0 | Y9: =N9 -> 1121 | Z9: =COUNTIF(L10:L12,Y9) -> 0 | AA9: =Z9/(AB4-Z20) -> 0 | AB9: =IF(AA9=0,0,(AA9*((LOG(AA9))/LOG(2)))) -> 0 | AD9: =N9 -> 1121 | AE9: =COUNTIF(L13:L14,AD9) -> 0 | AF9: =AE9/(AG4-AE20) -> 0 | AG9: =IF(AF9=0,0,(AF9*((LOG(AF9))/LOG(2)))) -> 0 | AI9: =N9 -> 1121 | AJ9: =COUNTIF(L15:L17,AI9) -> 0 | AK9: =AJ9/(AL4-AJ20) -> 0 | AL9: =IF(AK9=0,0,(AK9*((LOG(AK9))/LOG(2)))) -> 0 | AN9: =N9 -> 1121 | AO9: =COUNTIF(L18:L20,AN9) -> 0 | AP9: =AO9/(AQ4-AO20) -> 0 | AQ9: =IF(AP9=0,0,(AP9*((LOG(AP9))/LOG(2)))) -> 0 | AS9: =N9 -> 1121 | AT9: =COUNTIF(L21:L23,AS9) -> 0 | AU9: =AT9/(AV4-AT20) -> 0 | AV9: =IF(AU9=0,0,(AU9*((LOG(AU9))/LOG(2)))) -> 0
A10: 12 | B10: 369 | C10: 14 | D10: 373 | E10: 24 | F10: 384 | G10: 23 | H10: 391 | K10: 0 | L10: 1122 | N10: 1122 | O10: =COUNTIF($L$7:$L$500,N10) -> 2 | P10: =O10/$Q$4 -> 0.125 | Q10: =IF(P10=0,0,(P10*((LOG(P10))/LOG(2)))) -> -0.375 | T10: =N10 -> 1122 | U10: =COUNTIF(L7:L9,T10) -> 1 | V10: =U10/(W4-U20) -> 0.3333333333 | W10: =IF(V10=0,0,(V10*((LOG(V10))/LOG(2)))) -> -0.5283208336 | Y10: =N10 -> 1122 | Z10: =COUNTIF(L10:L12,Y10) -> 1 | AA10: =Z10/(AB4-Z20) -> 0.3333333333 | AB10: =IF(AA10=0,0,(AA10*((LOG(AA10))/LOG(2)))) -> -0.5283208336 | AD10: =N10 -> 1122 | AE10: =COUNTIF(L13:L14,AD10) -> 0 | AF10: =AE10/(AG4-AE20) -> 0 | AG10: =IF(AF10=0,0,(AF10*((LOG(AF10))/LOG(2)))) -> 0 | AI10: =N10 -> 1122 | AJ10: =COUNTIF(L15:L17,AI10) -> 0 | AK10: =AJ10/(AL4-AJ20) -> 0 | AL10: =IF(AK10=0,0,(AK10*((LOG(AK10))/LOG(2)))) -> 0 | AN10: =N10 -> 1122 | AO10: =COUNTIF(L18:L20,AN10) -> 0 | AP10: =AO10/(AQ4-AO20) -> 0 | AQ10: =IF(AP10=0,0,(AP10*((LOG(AP10))/LOG(2)))) -> 0 | AS10: =N10 -> 1122 | AT10: =COUNTIF(L21:L23,AS10) -> 0 | AU10: =AT10/(AV4-AT20) -> 0 | AV10: =IF(AU10=0,0,(AU10*((LOG(AU10))/LOG(2)))) -> 0
A11: 12 | B11: 516 | C11: 14 | D11: 542 | E11: 13 | F11: 545 | G11: 14 | H11: 551 | K11: 0 | L11: 1111 | N11: 1211 | O11: =COUNTIF($L$7:$L$500,N11) -> 2 | P11: =O11/$Q$4 -> 0.125 | Q11: =IF(P11=0,0,(P11*((LOG(P11))/LOG(2)))) -> -0.375 | T11: =N11 -> 1211 | U11: =COUNTIF(L7:L9,T11) -> 0 | V11: =U11/(W4-U20) -> 0 | W11: =IF(V11=0,0,(V11*((LOG(V11))/LOG(2)))) -> 0 | Y11: =N11 -> 1211 | Z11: =COUNTIF(L10:L12,Y11) -> 0 | AA11: =Z11/(AB4-Z20) -> 0 | AB11: =IF(AA11=0,0,(AA11*((LOG(AA11))/LOG(2)))) -> 0 | AD11: =N11 -> 1211 | AE11: =COUNTIF(L13:L14,AD11) -> 0 | AF11: =AE11/(AG4-AE20) -> 0 | AG11: =IF(AF11=0,0,(AF11*((LOG(AF11))/LOG(2)))) -> 0 | AI11: =N11 -> 1211 | AJ11: =COUNTIF(L15:L17,AI11) -> 1 | AK11: =AJ11/(AL4-AJ20) -> 0.3333333333 | AL11: =IF(AK11=0,0,(AK11*((LOG(AK11))/LOG(2)))) -> -0.5283208336 | AN11: =N11 -> 1211 | AO11: =COUNTIF(L18:L20,AN11) -> 0 | AP11: =AO11/(AQ4-AO20) -> 0 | AQ11: =IF(AP11=0,0,(AP11*((LOG(AP11))/LOG(2)))) -> 0 | AS11: =N11 -> 1211 | AT11: =COUNTIF(L21:L23,AS11) -> 1 | AU11: =AT11/(AV4-AT20) -> 0.5 | AV11: =IF(AU11=0,0,(AU11*((LOG(AU11))/LOG(2)))) -> -0.5
A12: 12 | B12: 664 | C12: 14 | D12: 667 | E12: 13 | F12: 671 | G12: 23 | H12: 686 | K12: 0 | L12: 1112 | N12: 1212 | O12: =COUNTIF($L$7:$L$500,N12) -> 0 | P12: =O12/$Q$4 -> 0 | Q12: =IF(P12=0,0,(P12*((LOG(P12))/LOG(2)))) -> 0 | T12: =N12 -> 1212 | U12: =COUNTIF(L7:L9,T12) -> 0 | V12: =U12/(W4-U20) -> 0 | W12: =IF(V12=0,0,(V12*((LOG(V12))/LOG(2)))) -> 0 | Y12: =N12 -> 1212 | Z12: =COUNTIF(L10:L12,Y12) -> 0 | AA12: =Z12/(AB4-Z20) -> 0 | AB12: =IF(AA12=0,0,(AA12*((LOG(AA12))/LOG(2)))) -> 0 | AD12: =N12 -> 1212 | AE12: =COUNTIF(L13:L14,AD12) -> 0 | AF12: =AE12/(AG4-AE20) -> 0 | AG12: =IF(AF12=0,0,(AF12*((LOG(AF12))/LOG(2)))) -> 0 | AI12: =N12 -> 1212 | AJ12: =COUNTIF(L15:L17,AI12) -> 0 | AK12: =AJ12/(AL4-AJ20) -> 0 | AL12: =IF(AK12=0,0,(AK12*((LOG(AK12))/LOG(2)))) -> 0 | AN12: =N12 -> 1212 | AO12: =COUNTIF(L18:L20,AN12) -> 0 | AP12: =AO12/(AQ4-AO20) -> 0 | AQ12: =IF(AP12=0,0,(AP12*((LOG(AP12))/LOG(2)))) -> 0 | AS12: =N12 -> 1212 | AT12: =COUNTIF(L21:L23,AS12) -> 0 | AU12: =AT12/(AV4-AT20) -> 0 | AV12: =IF(AU12=0,0,(AU12*((LOG(AU12))/LOG(2)))) -> 0
A13: 12 | B13: 814 | C13: 23 | D13: 829 | E13: 24 | F13: 832 | G13: 23 | H13: 837 | K13: 0 | L13: 1222 | N13: 1221 | O13: =COUNTIF($L$7:$L$500,N13) -> 0 | P13: =O13/$Q$4 -> 0 | Q13: =IF(P13=0,0,(P13*((LOG(P13))/LOG(2)))) -> 0 | T13: =N13 -> 1221 | U13: =COUNTIF(L7:L9,T13) -> 0 | V13: =U13/(W4-U20) -> 0 | W13: =IF(V13=0,0,(V13*((LOG(V13))/LOG(2)))) -> 0 | Y13: =N13 -> 1221 | Z13: =COUNTIF(L10:L12,Y13) -> 0 | AA13: =Z13/(AB4-Z20) -> 0 | AB13: =IF(AA13=0,0,(AA13*((LOG(AA13))/LOG(2)))) -> 0 | AD13: =N13 -> 1221 | AE13: =COUNTIF(L13:L14,AD13) -> 0 | AF13: =AE13/(AG4-AE20) -> 0 | AG13: =IF(AF13=0,0,(AF13*((LOG(AF13))/LOG(2)))) -> 0 | AI13: =N13 -> 1221 | AJ13: =COUNTIF(L15:L17,AI13) -> 0 | AK13: =AJ13/(AL4-AJ20) -> 0 | AL13: =IF(AK13=0,0,(AK13*((LOG(AK13))/LOG(2)))) -> 0 | AN13: =N13 -> 1221 | AO13: =COUNTIF(L18:L20,AN13) -> 0 | AP13: =AO13/(AQ4-AO20) -> 0 | AQ13: =IF(AP13=0,0,(AP13*((LOG(AP13))/LOG(2)))) -> 0 | AS13: =N13 -> 1221 | AT13: =COUNTIF(L21:L23,AS13) -> 0 | AU13: =AT13/(AV4-AT20) -> 0 | AV13: =IF(AU13=0,0,(AU13*((LOG(AU13))/LOG(2)))) -> 0
A14: 21 | B14: 1505 | C14: 21 | D14: 1508 | E14: 22 | F14: 1514 | G14: 23 | H14: 1521 | K14: 0 | L14: 2222 | N14: 1222 | O14: =COUNTIF($L$7:$L$500,N14) -> 4 | P14: =O14/$Q$4 -> 0.25 | Q14: =IF(P14=0,0,(P14*((LOG(P14))/LOG(2)))) -> -0.5 | T14: =N14 -> 1222 | U14: =COUNTIF(L7:L9,T14) -> 1 | V14: =U14/(W4-U20) -> 0.3333333333 | W14: =IF(V14=0,0,(V14*((LOG(V14))/LOG(2)))) -> -0.5283208336 | Y14: =N14 -> 1222 | Z14: =COUNTIF(L10:L12,Y14) -> 0 | AA14: =Z14/(AB4-Z20) -> 0 | AB14: =IF(AA14=0,0,(AA14*((LOG(AA14))/LOG(2)))) -> 0 | AD14: =N14 -> 1222 | AE14: =COUNTIF(L13:L14,AD14) -> 1 | AF14: =AE14/(AG4-AE20) -> 0.5 | AG14: =IF(AF14=0,0,(AF14*((LOG(AF14))/LOG(2)))) -> -0.5 | AI14: =N14 -> 1222 | AJ14: =COUNTIF(L15:L17,AI14) -> 1 | AK14: =AJ14/(AL4-AJ20) -> 0.3333333333 | AL14: =IF(AK14=0,0,(AK14*((LOG(AK14))/LOG(2)))) -> -0.5283208336 | AN14: =N14 -> 1222 | AO14: =COUNTIF(L18:L20,AN14) -> 0 | AP14: =AO14/(AQ4-AO20) -> 0 | AQ14: =IF(AP14=0,0,(AP14*((LOG(AP14))/LOG(2)))) -> 0 | AS14: =N14 -> 1222 | AT14: =COUNTIF(L21:L23,AS14) -> 1 | AU14: =AT14/(AV4-AT20) -> 0.5 | AV14: =IF(AU14=0,0,(AU14*((LOG(AU14))/LOG(2)))) -> -0.5
A15: 12 | B15: 1643 | C15: 23 | D15: 1658 | E15: 24 | F15: 1664 | G15: 23 | H15: 1670 | K15: 0 | L15: 1222 | N15: 2111 | O15: =COUNTIF($L$7:$L$500,N15) -> 0 | P15: =O15/$Q$4 -> 0 | Q15: =IF(P15=0,0,(P15*((LOG(P15))/LOG(2)))) -> 0 | T15: =N15 -> 2111 | U15: =COUNTIF(L7:L9,T15) -> 0 | V15: =U15/(W4-U20) -> 0 | W15: =IF(V15=0,0,(V15*((LOG(V15))/LOG(2)))) -> 0 | Y15: =N15 -> 2111 | Z15: =COUNTIF(L10:L12,Y15) -> 0 | AA15: =Z15/(AB4-Z20) -> 0 | AB15: =IF(AA15=0,0,(AA15*((LOG(AA15))/LOG(2)))) -> 0 | AD15: =N15 -> 2111 | AE15: =COUNTIF(L13:L14,AD15) -> 0 | AF15: =AE15/(AG4-AE20) -> 0 | AG15: =IF(AF15=0,0,(AF15*((LOG(AF15))/LOG(2)))) -> 0 | AI15: =N15 -> 2111 | AJ15: =COUNTIF(L15:L17,AI15) -> 0 | AK15: =AJ15/(AL4-AJ20) -> 0 | AL15: =IF(AK15=0,0,(AK15*((LOG(AK15))/LOG(2)))) -> 0 | AN15: =N15 -> 2111 | AO15: =COUNTIF(L18:L20,AN15) -> 0 | AP15: =AO15/(AQ4-AO20) -> 0 | AQ15: =IF(AP15=0,0,(AP15*((LOG(AP15))/LOG(2)))) -> 0 | AS15: =N15 -> 2111 | AT15: =COUNTIF(L21:L23,AS15) -> 0 | AU15: =AT15/(AV4-AT20) -> 0 | AV15: =IF(AU15=0,0,(AU15*((LOG(AU15))/LOG(2)))) -> 0
A16: 12 | B16: 1774 | C16: 14 | D16: 1780 | E16: 13 | F16: 1783 | G16: 23 | H16: 1794 | K16: 0 | L16: 1112 | N16: 2112 | O16: =COUNTIF($L$7:$L$500,N16) -> 0 | P16: =O16/$Q$4 -> 0 | Q16: =IF(P16=0,0,(P16*((LOG(P16))/LOG(2)))) -> 0 | T16: =N16 -> 2112 | U16: =COUNTIF(L7:L9,T16) -> 0 | V16: =U16/(W4-U20) -> 0 | W16: =IF(V16=0,0,(V16*((LOG(V16))/LOG(2)))) -> 0 | Y16: =N16 -> 2112 | Z16: =COUNTIF(L10:L12,Y16) -> 0 | AA16: =Z16/(AB4-Z20) -> 0 | AB16: =IF(AA16=0,0,(AA16*((LOG(AA16))/LOG(2)))) -> 0 | AD16: =N16 -> 2112 | AE16: =COUNTIF(L13:L14,AD16) -> 0 | AF16: =AE16/(AG4-AE20) -> 0 | AG16: =IF(AF16=0,0,(AF16*((LOG(AF16))/LOG(2)))) -> 0 | AI16: =N16 -> 2112 | AJ16: =COUNTIF(L15:L17,AI16) -> 0 | AK16: =AJ16/(AL4-AJ20) -> 0 | AL16: =IF(AK16=0,0,(AK16*((LOG(AK16))/LOG(2)))) -> 0 | AN16: =N16 -> 2112 | AO16: =COUNTIF(L18:L20,AN16) -> 0 | AP16: =AO16/(AQ4-AO20) -> 0 | AQ16: =IF(AP16=0,0,(AP16*((LOG(AP16))/LOG(2)))) -> 0 | AS16: =N16 -> 2112 | AT16: =COUNTIF(L21:L23,AS16) -> 0 | AU16: =AT16/(AV4-AT20) -> 0 | AV16: =IF(AU16=0,0,(AU16*((LOG(AU16))/LOG(2)))) -> 0
A17: 12 | B17: 1919 | C17: 23 | D17: 1932 | E17: 13 | F17: 1947 | G17: 14 | H17: 1950 | K17: 0 | L17: 1211 | N17: 2121 | O17: =COUNTIF($L$7:$L$500,N17) -> 0 | P17: =O17/$Q$4 -> 0 | Q17: =IF(P17=0,0,(P17*((LOG(P17))/LOG(2)))) -> 0 | T17: =N17 -> 2121 | U17: =COUNTIF(L7:L9,T17) -> 0 | V17: =U17/(W4-U20) -> 0 | W17: =IF(V17=0,0,(V17*((LOG(V17))/LOG(2)))) -> 0 | Y17: =N17 -> 2121 | Z17: =COUNTIF(L10:L12,Y17) -> 0 | AA17: =Z17/(AB4-Z20) -> 0 | AB17: =IF(AA17=0,0,(AA17*((LOG(AA17))/LOG(2)))) -> 0 | AD17: =N17 -> 2121 | AE17: =COUNTIF(L13:L14,AD17) -> 0 | AF17: =AE17/(AG4-AE20) -> 0 | AG17: =IF(AF17=0,0,(AF17*((LOG(AF17))/LOG(2)))) -> 0 | AI17: =N17 -> 2121 | AJ17: =COUNTIF(L15:L17,AI17) -> 0 | AK17: =AJ17/(AL4-AJ20) -> 0 | AL17: =IF(AK17=0,0,(AK17*((LOG(AK17))/LOG(2)))) -> 0 | AN17: =N17 -> 2121 | AO17: =COUNTIF(L18:L20,AN17) -> 0 | AP17: =AO17/(AQ4-AO20) -> 0 | AQ17: =IF(AP17=0,0,(AP17*((LOG(AP17))/LOG(2)))) -> 0 | AS17: =N17 -> 2121 | AT17: =COUNTIF(L21:L23,AS17) -> 0 | AU17: =AT17/(AV4-AT20) -> 0 | AV17: =IF(AU17=0,0,(AU17*((LOG(AU17))/LOG(2)))) -> 0
A18: 12 | B18: 2056 | C18: 14 | D18: 2062 | E18: 13 | F18: 2067 | G18: 14 | H18: 2225 | K18: 0 | L18: 1111 | N18: 2122 | O18: =COUNTIF($L$7:$L$500,N18) -> 0 | P18: =O18/$Q$4 -> 0 | Q18: =IF(P18=0,0,(P18*((LOG(P18))/LOG(2)))) -> 0 | T18: =N18 -> 2122 | U18: =COUNTIF(L7:L9,T18) -> 0 | V18: =U18/(W4-U20) -> 0 | W18: =IF(V18=0,0,(V18*((LOG(V18))/LOG(2)))) -> 0 | Y18: =N18 -> 2122 | Z18: =COUNTIF(L10:L12,Y18) -> 0 | AA18: =Z18/(AB4-Z20) -> 0 | AB18: =IF(AA18=0,0,(AA18*((LOG(AA18))/LOG(2)))) -> 0 | AD18: =N18 -> 2122 | AE18: =COUNTIF(L13:L14,AD18) -> 0 | AF18: =AE18/(AG4-AE20) -> 0 | AG18: =IF(AF18=0,0,(AF18*((LOG(AF18))/LOG(2)))) -> 0 | AI18: =N18 -> 2122 | AJ18: =COUNTIF(L15:L17,AI18) -> 0 | AK18: =AJ18/(AL4-AJ20) -> 0 | AL18: =IF(AK18=0,0,(AK18*((LOG(AK18))/LOG(2)))) -> 0 | AN18: =N18 -> 2122 | AO18: =COUNTIF(L18:L20,AN18) -> 0 | AP18: =AO18/(AQ4-AO20) -> 0 | AQ18: =IF(AP18=0,0,(AP18*((LOG(AP18))/LOG(2)))) -> 0 | AS18: =N18 -> 2122 | AT18: =COUNTIF(L21:L23,AS18) -> 0 | AU18: =AT18/(AV4-AT20) -> 0 | AV18: =IF(AU18=0,0,(AU18*((LOG(AU18))/LOG(2)))) -> 0
A19: 12 | B19: 2541 | C19: 14 | D19: 2560 | E19: 13 | F19: 4880 | G19: 23 | H19: 4891 | K19: 0 | L19: 1112 | N19: 2211 | O19: =COUNTIF($L$7:$L$500,N19) -> 0 | P19: =O19/$Q$4 -> 0 | Q19: =IF(P19=0,0,(P19*((LOG(P19))/LOG(2)))) -> 0 | T19: =N19 -> 2211 | U19: =COUNTIF(L7:L9,T19) -> 0 | V19: =U19/(W4-U20) -> 0 | W19: =IF(V19=0,0,(V19*((LOG(V19))/LOG(2)))) -> 0 | Y19: =N19 -> 2211 | Z19: =COUNTIF(L10:L12,Y19) -> 0 | AA19: =Z19/(AB4-Z20) -> 0 | AB19: =IF(AA19=0,0,(AA19*((LOG(AA19))/LOG(2)))) -> 0 | AD19: =N19 -> 2211 | AE19: =COUNTIF(L13:L14,AD19) -> 0 | AF19: =AE19/(AG4-AE20) -> 0 | AG19: =IF(AF19=0,0,(AF19*((LOG(AF19))/LOG(2)))) -> 0 | AI19: =N19 -> 2211 | AJ19: =COUNTIF(L15:L17,AI19) -> 0 | AK19: =AJ19/(AL4-AJ20) -> 0 | AL19: =IF(AK19=0,0,(AK19*((LOG(AK19))/LOG(2)))) -> 0 | AN19: =N19 -> 2211 | AO19: =COUNTIF(L18:L20,AN19) -> 0 | AP19: =AO19/(AQ4-AO20) -> 0 | AQ19: =IF(AP19=0,0,(AP19*((LOG(AP19))/LOG(2)))) -> 0 | AS19: =N19 -> 2211 | AT19: =COUNTIF(L21:L23,AS19) -> 0 | AU19: =AT19/(AV4-AT20) -> 0 | AV19: =IF(AU19=0,0,(AU19*((LOG(AU19))/LOG(2)))) -> 0
A20: 12 | B20: 5209 | C20: 14 | D20: 5214 | E20: 13 | F20: 5267 | G20: 14 | H20: 5273 | K20: 0 | L20: 1111 | N20: 2212 | O20: =COUNTIF($L$7:$L$500,N20) -> 0 | P20: =O20/$Q$4 -> 0 | Q20: =IF(P20=0,0,(P20*((LOG(P20))/LOG(2)))) -> 0 | T20: =N20 -> 2212 | U20: =COUNTIF(L7:L9,T20) -> 0 | Y20: =N20 -> 2212 | Z20: =COUNTIF(L10:L12,Y20) -> 0 | AD20: =N20 -> 2212 | AE20: =COUNTIF(L13:L14,AD20) -> 0 | AI20: =N20 -> 2212 | AJ20: =COUNTIF(L15:L17,AI20) -> 0 | AN20: =N20 -> 2212 | AO20: =COUNTIF(L18:L20,AN20) -> 0 | AS20: =N20 -> 2212 | AT20: =COUNTIF(L21:L23,AS20) -> 0
A21: 12 | B21: 11878 | C21: 23 | D21: 11893 | E21: 24 | F21: 11899 | G21: 23 | H21: 11903 | K21: 0 | L21: 1222 | N21: 2221 | O21: =COUNTIF($L$7:$L$500,N21) -> 0 | P21: =O21/$Q$4 -> 0 | Q21: =IF(P21=0,0,(P21*((LOG(P21))/LOG(2)))) -> 0 | T21: =N21 -> 2221 | U21: =COUNTIF(L7:L9,T21) -> 0 | V21: =U21/(W4-U20) -> 0 | W21: =IF(V21=0,0,(V21*((LOG(V21))/LOG(2)))) -> 0 | Y21: =N21 -> 2221 | Z21: =COUNTIF(L10:L12,Y21) -> 0 | AA21: =Z21/(AB4-Z20) -> 0 | AB21: =IF(AA21=0,0,(AA21*((LOG(AA21))/LOG(2)))) -> 0 | AD21: =N21 -> 2221 | AE21: =COUNTIF(L13:L14,AD21) -> 0 | AF21: =AE21/(AG4-AE20) -> 0 | AG21: =IF(AF21=0,0,(AF21*((LOG(AF21))/LOG(2)))) -> 0 | AI21: =N21 -> 2221 | AJ21: =COUNTIF(L15:L17,AI21) -> 0 | AK21: =AJ21/(AL4-AJ20) -> 0 | AL21: =IF(AK21=0,0,(AK21*((LOG(AK21))/LOG(2)))) -> 0 | AN21: =N21 -> 2221 | AO21: =COUNTIF(L18:L20,AN21) -> 0 | AP21: =AO21/(AQ4-AO20) -> 0 | AQ21: =IF(AP21=0,0,(AP21*((LOG(AP21))/LOG(2)))) -> 0 | AS21: =N21 -> 2221 | AT21: =COUNTIF(L21:L23,AS21) -> 0 | AU21: =AT21/(AV4-AT20) -> 0 | AV21: =IF(AU21=0,0,(AU21*((LOG(AU21))/LOG(2)))) -> 0
A22: 12 | B22: 12056 | C22: 23 | D22: 18547 | E22: 13 | F22: 18708 | G22: 14 | H22: 18712 | K22: 0 | L22: 1211 | N22: 2222 | O22: =COUNTIF($L$7:$L$500,N22) -> 1 | P22: =O22/$Q$4 -> 0.0625 | Q22: =IF(P22=0,0,(P22*((LOG(P22))/LOG(2)))) -> -0.25 | T22: =N22 -> 2222 | U22: =COUNTIF(L7:L9,T22) -> 0 | V22: =U22/(W4-U20) -> 0 | W22: =IF(V22=0,0,(V22*((LOG(V22))/LOG(2)))) -> 0 | Y22: =N22 -> 2222 | Z22: =COUNTIF(L10:L12,Y22) -> 0 | AA22: =Z22/(AB4-Z20) -> 0 | AB22: =IF(AA22=0,0,(AA22*((LOG(AA22))/LOG(2)))) -> 0 | AD22: =N22 -> 2222 | AE22: =COUNTIF(L13:L14,AD22) -> 1 | AF22: =AE22/(AG4-AE20) -> 0.5 | AG22: =IF(AF22=0,0,(AF22*((LOG(AF22))/LOG(2)))) -> -0.5 | AI22: =N22 -> 2222 | AJ22: =COUNTIF(L15:L17,AI22) -> 0 | AK22: =AJ22/(AL4-AJ20) -> 0 | AL22: =IF(AK22=0,0,(AK22*((LOG(AK22))/LOG(2)))) -> 0 | AN22: =N22 -> 2222 | AO22: =COUNTIF(L18:L20,AN22) -> 0 | AP22: =AO22/(AQ4-AO20) -> 0 | AQ22: =IF(AP22=0,0,(AP22*((LOG(AP22))/LOG(2)))) -> 0 | AS22: =N22 -> 2222 | AT22: =COUNTIF(L21:L23,AS22) -> 0 | AU22: =AT22/(AV4-AT20) -> 0 | AV22: =IF(AU22=0,0,(AU22*((LOG(AU22))/LOG(2)))) -> 0
A23: 21 | B23: 21786 | C23: 21 | D23: 21793 | L23: 22 | P23: =SUM(P7:P22) -> 1 | Q23: =-SUM(Q7:Q22) -> 2.452819531 | V23: =SUM(V7:V22) -> 1 | W23: =-SUM(W7:W22) -> 1.584962501 | AA23: =SUM(AA7:AA22) -> 1 | AB23: =-SUM(AB7:AB22) -> 1.584962501 | AF23: =SUM(AF7:AF22) -> 1 | AG23: =-SUM(AG7:AG22) -> 1 | AK23: =SUM(AK7:AK22) -> 1 | AL23: =-SUM(AL7:AL22) -> 1.584962501 | AP23: =SUM(AP7:AP22) -> 1 | AQ23: =-SUM(AQ7:AQ22) -> 0.9182958341 | AU23: =SUM(AU7:AU22) -> 1 | AV23: =-SUM(AV7:AV22) -> 1
P24: U= | Q24: =Q23/(LOG(Q4)/LOG(2)) -> 0.6132048828 | V24: U1= | W24: =W23/(LOG(W4)/LOG(2)) -> 1 | AA24: U2= | AB24: =AB23/(LOG(AB4)/LOG(2)) -> 1 | AF24: U3= | AG24: =AG23/(LOG(AG4)/LOG(2)) -> 1 | AK24: U4= | AL24: =AL23/(LOG(AL4)/LOG(2)) -> 1 | AP24: U5= | AQ24: =AQ23/(LOG(AQ4)/LOG(2)) -> 0.5793801643 | AU24: U6= | AV24: =AV23/(LOG(AV4)/LOG(2)) -> 1
N27: Total Target Seq
N28: =COUNTIF(L7:L23,G3) -> 0 | P28: 3 | Q28: 3 | R28: 2 | S28: 3 | T28: 3 | U28: 3
P29: % of reinforcement given in 6 equal intervals based on number of trials
P30: %_1 | Q30: %_2 | R30: %_3 | S30: %_4 | T30: %_5 | U30: %_6
O31: target sequence | P31: =$G$3 -> 2212 | Q31: =$G$3 -> 2212 | R31: =$G$3 -> 2212 | S31: =$G$3 -> 2212 | T31: =$G$3 -> 2212 | U31: =$G$3 -> 2212
O32: total reinforcement | P32: =U20 -> 0 | Q32: =Z20 -> 0 | R32: =AE20 -> 0 | S32: =AJ20 -> 0 | T32: =AO20 -> 0 | U32: =AT20 -> 0
O33: % target
O34: CCRF
O35: % CCRf
O36: average response rate | P36: =H9/P28 -> 90.33333333 | Q36: =(H12-H9)/Q28 -> 138.3333333 | R36: =(H14-H12)/R28 -> 417.5 | S36: =(H17-H14)/S28 -> 143 | T36: =(H20-H17)/T28 -> 1107.666667 | U36: =(H23-H20)/U28 -> -1757.666667

Sheet !M113A5T.ayl
A1: Report for:!M113A5T.ayl
A2: Date: | B2: <date>
A3: Hen: | B3: <hen> | F3: Correct Sequence | G3: =Start!J2 -> 2212 | P3: Total Sequences in Data | Q3: =4994-COUNTBLANK(L7:L5000) -> 51 | V3: Total Sequences in Block Data | W3: =COUNTA(L7:L15) -> 9 | AA3: Total Sequences in Block Data | AB3: =COUNTA(L16:L23) -> 8 | AF3: Total Sequences in Block Data | AG3: =COUNTA(L24:L32) -> 9 | AK3: Total Sequences in Block Data | AL3: =COUNTA(L33:L40) -> 8 | AP3: Total Sequences in Block Data | AQ3: =COUNTA(L41:L49) -> 9 | AU3: Total Sequences in Block Data | AV3: =COUNTA(L50:L57) -> 8
P4: Total Sequences in Summary | Q4: =SUM(O7:O22) -> 51 | V4: Total Sequences in Block Summary | W4: =SUM(U7:U22) -> 9 | AA4: Total Sequences in Block Summary | AB4: =SUM(Z7:Z22) -> 8 | AF4: Total Sequences in Block Summary | AG4: =SUM(AE7:AE22) -> 9 | AK4: Total Sequences in Block Summary | AL4: =SUM(AJ7:AJ22) -> 8 | AP4: Total Sequences in Block Summary | AQ4: =SUM(AO7:AO22) -> 9 | AU4: Total Sequences in Block Summary | AV4: =SUM(AT7:AT22) -> 8
T5: Block 1 | Y5: Block 2 | AD5: Block 3 | AI5: Block 4 | AN5: Block 5 | AS5: Block 6
A6: Sequence Component 1 | B6: Time 1 | C6: Sequence Component 2 | D6: Time 2 | E6: Sequence Component 3 | F6: Time 3 | G6: Sequence Component 4 | H6: Time 4 | I6: Sequence Component 5 | J6: Time 5 | K6: Correct? 0=No 1=Yes | L6: Sequence | N6: Frequency | P6: Relative Frequency | Q6: Variability | T6: Frequency | V6: Relative Frequency | W6: Variability | Y6: Frequency | AA6: Relative Frequency | AB6: Variability | AD6: Frequency | AF6: Relative Frequency | AG6: Variability | AI6: Frequency | AK6: Relative Frequency | AL6: Variability | AN6: Frequency | AP6: Relative Frequency | AQ6: Variability | AS6: Frequency | AU6: Relative Frequency | AV6: Variability
A7: 12 | B7: 10 | C7: 23 | D7: 21 | E7: 24 | F7: 26 | G7: 23 | H7: 34 | K7: 0 | L7: 1222 | N7: 1111 | O7: =COUNTIF($L$7:$L$500,N7) -> 8 | P7: =O7/$Q$4 -> 0.1568627451 | Q7: =IF(P7=0,0,(P7*((LOG(P7))/LOG(2)))) -> -0.4192039752 | T7: =N7 -> 1111 | U7: =COUNTIF(L7:L15,T7) -> 1 | V7: =U7/(W4-U20) -> 0.1111111111 | W7: =IF(V7=0,0,(V7*((LOG(V7))/LOG(2)))) -> -0.352213889 | Y7: =N7 -> 1111 | Z7: =COUNTIF(L16:L23,Y7) -> 1 | AA7: =Z7/(AB4-Z20) -> 0.125 | AB7: =IF(AA7=0,0,(AA7*((LOG(AA7))/LOG(2)))) -> -0.375 | AD7: =N7 -> 1111 | AE7: =COUNTIF(L24:L32,AD7) -> 2 | AF7: =AE7/(AG4-AE20) -> 0.2222222222 | AG7: =IF(AF7=0,0,(AF7*((LOG(AF7))/LOG(2)))) -> -0.4822055559 | AI7: =N7 -> 1111 | AJ7: =COUNTIF(L33:L40,AI7) -> 1 | AK7: =AJ7/(AL4-AJ20) -> 0.125 | AL7: =IF(AK7=0,0,(AK7*((LOG(AK7))/LOG(2)))) -> -0.375 | AN7: =N7 -> 1111 | AO7: =COUNTIF(L41:L49,AN7) -> 2 | AP7: =AO7/(AQ4-AO20) -> 0.2222222222 | AQ7: =IF(AP7=0,0,(AP7*((LOG(AP7))/LOG(2)))) -> -0.4822055559 | AS7: =N7 -> 1111 | AT7: =COUNTIF(L50:L57,AS7) -> 1 | AU7: =AT7/(AV4-AT20) -> 0.125 | AV7: =IF(AU7=0,0,(AU7*((LOG(AU7))/LOG(2)))) -> -0.375
A8: 12 | B8: 131 | C8: 14 | D8: 138 | E8: 24 | F8: 148 | G8: 23 | H8: 152 | K8: 0 | L8: 1122 | N8: 1112 | O8: =COUNTIF($L$7:$L$500,N8) -> 4 | P8: =O8/$Q$4 -> 0.07843137255 | Q8: =IF(P8=0,0,(P8*((LOG(P8))/LOG(2)))) -> -0.2880333602 | T8: =N8 -> 1112 | U8: =COUNTIF(L7:L15,T8) -> 2 | V8: =U8/(W4-U20) -> 0.2222222222 | W8: =IF(V8=0,0,(V8*((LOG(V8))/LOG(2)))) -> -0.4822055559 | Y8: =N8 -> 1112 | Z8: =COUNTIF(L16:L23,Y8) -> 1 | AA8: =Z8/(AB4-Z20) -> 0.125 | AB8: =IF(AA8=0,0,(AA8*((LOG(AA8))/LOG(2)))) -> -0.375 | AD8: =N8 -> 1112 | AE8: =COUNTIF(L24:L32,AD8) -> 0 | AF8: =AE8/(AG4-AE20) -> 0 | AG8: =IF(AF8=0,0,(AF8*((LOG(AF8))/LOG(2)))) -> 0 | AI8: =N8 -> 1112 | AJ8: =COUNTIF(L33:L40,AI8) -> 0 | AK8: =AJ8/(AL4-AJ20) -> 0 | AL8: =IF(AK8=0,0,(AK8*((LOG(AK8))/LOG(2)))) -> 0 | AN8: =N8 -> 1112 | AO8: =COUNTIF(L41:L49,AN8) -> 0 | AP8: =AO8/(AQ4-AO20) -> 0 | AQ8: =IF(AP8=0,0,(AP8*((LOG(AP8))/LOG(2)))) -> 0 | AS8: =N8 -> 1112 | AT8: =COUNTIF(L50:L57,AS8) -> 1 | AU8: =AT8/(AV4-AT20) -> 0.125 | AV8: =IF(AU8=0,0,(AU8*((LOG(AU8))/LOG(2)))) -> -0.375
A9: 12 | B9: 409 | C9: 23 | D9: 422 | E9: 24 | F9: 424 | G9: 23 | H9: 429 | K9: 0 | L9: 1222 | N9: 1121 | O9: =COUNTIF($L$7:$L$500,N9) -> 2 | P9: =O9/$Q$4 -> 0.03921568627 | Q9: =IF(P9=0,0,(P9*((LOG(P9))/LOG(2)))) -> -0.1832323664 | T9: =N9 -> 1121 | U9: =COUNTIF(L7:L15,T9) -> 0 | V9: =U9/(W4-U20) -> 0 | W9: =IF(V9=0,0,(V9*((LOG(V9))/LOG(2)))) -> 0 | Y9: =N9 -> 1121 | Z9: =COUNTIF(L16:L23,Y9) -> 0 | AA9: =Z9/(AB4-Z20) -> 0 | AB9: =IF(AA9=0,0,(AA9*((LOG(AA9))/LOG(2)))) -> 0 | AD9: =N9 -> 1121 | AE9: =COUNTIF(L24:L32,AD9) -> 0 | AF9: =AE9/(AG4-AE20) -> 0 | AG9: =IF(AF9=0,0,(AF9*((LOG(AF9))/LOG(2)))) -> 0 | AI9: =N9 -> 1121 | AJ9: =COUNTIF(L33:L40,AI9) -> 0 | AK9: =AJ9/(AL4-AJ20) -> 0 | AL9: =IF(AK9=0,0,(AK9*((LOG(AK9))/LOG(2)))) -> 0 | AN9: =N9 -> 1121 | AO9: =COUNTIF(L41:L49,AN9) -> 2 | AP9: =AO9/(AQ4-AO20) -> 0.2222222222 | AQ9: =IF(AP9=0,0,(AP9*((LOG(AP9))/LOG(2)))) -> -0.4822055559 | AS9: =N9 -> 1121 | AT9: =COUNTIF(L50:L57,AS9) -> 0 | AU9: =AT9/(AV4-AT20) -> 0 | AV9: =IF(AU9=0,0,(AU9*((LOG(AU9))/LOG(2)))) -> 0
A10: 12 | B10: 638 | C10: 23 | D10: 648 | E10: 24 | F10: 653 | G10: 23 | H10: 658 | K10: 0 | L10: 1222 | N10: 1122 | O10: =COUNTIF($L$7:$L$500,N10) -> 9 | P10: =O10/$Q$4 -> 0.1764705882 | Q10: =IF(P10=0,0,(P10*((LOG(P10))/LOG(2)))) -> -0.4416177072 | T10: =N10 -> 1122 | U10: =COUNTIF(L7:L15,T10) -> 2 | V10: =U10/(W4-U20) -> 0.2222222222 | W10: =IF(V10=0,0,(V10*((LOG(V10))/LOG(2)))) -> -0.4822055559 | Y10: =N10 -> 1122 | Z10: =COUNTIF(L16:L23,Y10) -> 2 | AA10: =Z10/(AB4-Z20) -> 0.25 | AB10: =IF(AA10=0,0,(AA10*((LOG(AA10))/LOG(2)))) -> -0.5 | AD10: =N10 -> 1122 | AE10: =COUNTIF(L24:L32,AD10) -> 2 | AF10: =AE10/(AG4-AE20) -> 0.2222222222 | AG10: =IF(AF10=0,0,(AF10*((LOG(AF10))/LOG(2)))) -> -0.4822055559 | AI10: =N10 -> 1122 | AJ10: =COUNTIF(L33:L40,AI10) -> 1 | AK10: =AJ10/(AL4-AJ20) -> 0.125 | AL10: =IF(AK10=0,0,(AK10*((LOG(AK10))/LOG(2)))) -> -0.375 | AN10: =N10 -> 1122 | AO10: =COUNTIF(L41:L49,AN10) -> 1 | AP10: =AO10/(AQ4-AO20) -> 0.1111111111 | AQ10: =IF(AP10=0,0,(AP10*((LOG(AP10))/LOG(2)))) -> -0.352213889 | AS10: =N10 -> 1122 | AT10: =COUNTIF(L50:L57,AS10) -> 1 | AU10: =AT10/(AV4-AT20) -> 0.125 | AV10: =IF(AU10=0,0,(AU10*((LOG(AU10))/LOG(2)))) -> -0.375
A11: 12 | B11: 756 | C11: 14 | D11: 758 | E11: 24 | F11: 769 | G11: 23 | H11: 773 | K11: 0 | L11: 1122 | N11: 1211 | O11: =COUNTIF($L$7:$L$500,N11) -> 1 | P11: =O11/$Q$4 -> 0.01960784314 | Q11: =IF(P11=0,0,(P11*((LOG(P11))/LOG(2)))) -> -0.1112240263 | T11: =N11 -> 1211 | U11: =COUNTIF(L7:L15,T11) -> 0 | V11: =U11/(W4-U20) -> 0 | W11: =IF(V11=0,0,(V11*((LOG(V11))/LOG(2)))) -> 0 | Y11: =N11 -> 1211 | Z11: =COUNTIF(L16:L23,Y11) -> 0 | AA11: =Z11/(AB4-Z20) -> 0 | AB11: =IF(AA11=0,0,(AA11*((LOG(AA11))/LOG(2)))) -> 0 | AD11: =N11 -> 1211 | AE11: =COUNTIF(L24:L32,AD11) -> 0 | AF11: =AE11/(AG4-AE20) -> 0 | AG11: =IF(AF11=0,0,(AF11*((LOG(AF11))/LOG(2)))) -> 0 | AI11: =N11 -> 1211 | AJ11: =COUNTIF(L33:L40,AI11) -> 0 | AK11: =AJ11/(AL4-AJ20) -> 0 | AL11: =IF(AK11=0,0,(AK11*((LOG(AK11))/LOG(2)))) -> 0 | AN11: =N11 -> 1211 | AO11: =COUNTIF(L41:L49,AN11) -> 0 | AP11: =AO11/(AQ4-AO20) -> 0 | AQ11: =IF(AP11=0,0,(AP11*((LOG(AP11))/LOG(2)))) -> 0 | AS11: =N11 -> 1211 | AT11: =COUNTIF(L50:L57,AS11) -> 1 | AU11: =AT11/(AV4-AT20) -> 0.125 | AV11: =IF(AU11=0,0,(AU11*((LOG(AU11))/LOG(2)))) -> -0.375
A12: 12 | B12: 872 | C12: 14 | D12: 875 | E12: 13 | F12: 881 | G12: 14 | H12: 888 | K12: 0 | L12: 1111 | N12: 1212 | O12: =COUNTIF($L$7:$L$500,N12) -> 0 | P12: =O12/$Q$4 -> 0 | Q12: =IF(P12=0,0,(P12*((LOG(P12))/LOG(2)))) -> 0 | T12: =N12 -> 1212 | U12: =COUNTIF(L7:L15,T12) -> 0 | V12: =U12/(W4-U20) -> 0 | W12: =IF(V12=0,0,(V12*((LOG(V12))/LOG(2)))) -> 0 | Y12: =N12 -> 1212 | Z12: =COUNTIF(L16:L23,Y12) -> 0 | AA12: =Z12/(AB4-Z20) -> 0 | AB12: =IF(AA12=0,0,(AA12*((LOG(AA12))/LOG(2)))) -> 0 | AD12: =N12 -> 1212 | AE12: =COUNTIF(L24:L32,AD12) -> 0 | AF12: =AE12/(AG4-AE20) -> 0 | AG12: =IF(AF12=0,0,(AF12*((LOG(AF12))/LOG(2)))) -> 0 | AI12: =N12 -> 1212 | AJ12: =COUNTIF(L33:L40,AI12) -> 0 | AK12: =AJ12/(AL4-AJ20) -> 0 | AL12: =IF(AK12=0,0,(AK12*((LOG(AK12))/LOG(2)))) -> 0 | AN12: =N12 -> 1212 | AO12: =COUNTIF(L41:L49,AN12) -> 0 | AP12: =AO12/(AQ4-AO20) -> 0 | AQ12: =IF(AP12=0,0,(AP12*((LOG(AP12))/LOG(2)))) -> 0 | AS12: =N12 -> 1212 | AT12: =COUNTIF(L50:L57,AS12) -> 0 | AU12: =AT12/(AV4-AT20) -> 0 | AV12: =IF(AU12=0,0,(AU12*((LOG(AU12))/LOG(2)))) -> 0
A13: 12 | B13: 990 | C13: 14 | D13: 992 | E13: 13 | F13: 995 | G13: 23 | H13: 1005 | K13: 0 | L13: 1112 | N13: 1221 | O13: =COUNTIF($L$7:$L$500,N13) -> 0 | P13: =O13/$Q$4 -> 0 | Q13: =IF(P13=0,0,(P13*((LOG(P13))/LOG(2)))) -> 0 | T13: =N13 -> 1221 | U13: =COUNTIF(L7:L15,T13) -> 0 | V13: =U13/(W4-U20) -> 0 | W13: =IF(V13=0,0,(V13*((LOG(V13))/LOG(2)))) -> 0 | Y13: =N13 -> 1221 | Z13: =COUNTIF(L16:L23,Y13) -> 0 | AA13: =Z13/(AB4-Z20) -> 0 | AB13: =IF(AA13=0,0,(AA13*((LOG(AA13))/LOG(2)))) -> 0 | AD13: =N13 -> 1221 | AE13: =COUNTIF(L24:L32,AD13) -> 0 | AF13: =AE13/(AG4-AE20) -> 0 | AG13: =IF(AF13=0,0,(AF13*((LOG(AF13))/LOG(2)))) -> 0 | AI13: =N13 -> 1221 | AJ13: =COUNTIF(L33:L40,AI13) -> 0 | AK13: =AJ13/(AL4-AJ20) -> 0 | AL13: =IF(AK13=0,0,(AK13*((LOG(AK13))/LOG(2)))) -> 0 | AN13: =N13 -> 1221 | AO13: =COUNTIF(L41:L49,AN13) -> 0 | AP13: =AO13/(AQ4-AO20) -> 0 | AQ13: =IF(AP13=0,0,(AP13*((LOG(AP13))/LOG(2)))) -> 0 | AS13: =N13 -> 1221 | AT13: =COUNTIF(L50:L57,AS13) -> 0 | AU13: =AT13/(AV4-AT20) -> 0 | AV13: =IF(AU13=0,0,(AU13*((LOG(AU13))/LOG(2)))) -> 0
A14: 12 | B14: 1104 | C14: 14 | D14: 1106 | E14: 13 | F14: 1111 | G14: 23 | H14: 1123 | K14: 0 | L14: 1112 | N14: 1222 | O14: =COUNTIF($L$7:$L$500,N14) -> 18 | P14: =O14/$Q$4 -> 0.3529411765 | Q14: =IF(P14=0,0,(P14*((LOG(P14))/LOG(2)))) -> -0.5302942378 | T14: =N14 -> 1222 | U14: =COUNTIF(L7:L15,T14) -> 3 | V14: =U14/(W4-U20) -> 0.3333333333 | W14: =IF(V14=0,0,(V14*((LOG(V14))/LOG(2)))) -> -0.5283208336 | Y14: =N14 -> 1222 | Z14: =COUNTIF(L16:L23,Y14) -> 3 | AA14: =Z14/(AB4-Z20) -> 0.375 | AB14: =IF(AA14=0,0,(AA14*((LOG(AA14))/LOG(2)))) -> -0.5306390622 | AD14: =N14 -> 1222 | AE14: =COUNTIF(L24:L32,AD14) -> 5 | AF14: =AE14/(AG4-AE20) -> 0.5555555556 | AG14: =IF(AF14=0,0,(AF14*((LOG(AF14))/LOG(2)))) -> -0.4711093925 | AI14: =N14 -> 1222 | AJ14: =COUNTIF(L33:L40,AI14) -> 3 | AK14: =AJ14/(AL4-AJ20) -> 0.375 | AL14: =IF(AK14=0,0,(AK14*((LOG(AK14))/LOG(2)))) -> -0.5306390622 | AN14: =N14 -> 1222 | AO14: =COUNTIF(L41:L49,AN14) -> 1 | AP14: =AO14/(AQ4-AO20) -> 0.1111111111 | AQ14: =IF(AP14=0,0,(AP14*((LOG(AP14))/LOG(2)))) -> -0.352213889 | AS14: =N14 -> 1222 | AT14: =COUNTIF(L50:L57,AS14) -> 3 | AU14: =AT14/(AV4-AT20) -> 0.375 | AV14: =IF(AU14=0,0,(AU14*((LOG(AU14))/LOG(2)))) -> -0.5306390622
A15: 21 | B15: 1266 | C15: 21 | D15: 1285 | E15: 22 | F15: 1290 | G15: 23 | H15: 1296 | K15: 0 | L15: 2222 | N15: 2111 | O15: =COUNTIF($L$7:$L$500,N15) -> 0 | P15: =O15/$Q$4 -> 0 | Q15: =IF(P15=0,0,(P15*((LOG(P15))/LOG(2)))) -> 0 | T15: =N15 -> 2111 | U15: =COUNTIF(L7:L15,T15) -> 0 | V15: =U15/(W4-U20) -> 0 | W15: =IF(V15=0,0,(V15*((LOG(V15))/LOG(2)))) -> 0 | Y15: =N15 -> 2111 | Z15: =COUNTIF(L16:L23,Y15) -> 0 | AA15: =Z15/(AB4-Z20) -> 0 | AB15: =IF(AA15=0,0,(AA15*((LOG(AA15))/LOG(2)))) -> 0 | AD15: =N15 -> 2111 | AE15: =COUNTIF(L24:L32,AD15) -> 0 | AF15: =AE15/(AG4-AE20) -> 0 | AG15: =IF(AF15=0,0,(AF15*((LOG(AF15))/LOG(2)))) -> 0 | AI15: =N15 -> 2111 | AJ15: =COUNTIF(L33:L40,AI15) -> 0 | AK15: =AJ15/(AL4-AJ20) -> 0 | AL15: =IF(AK15=0,0,(AK15*((LOG(AK15))/LOG(2)))) -> 0 | AN15: =N15 -> 2111 | AO15: =COUNTIF(L41:L49,AN15) -> 0 | AP15: =AO15/(AQ4-AO20) -> 0 | AQ15: =IF(AP15=0,0,(AP15*((LOG(AP15))/LOG(2)))) -> 0 | AS15: =N15 -> 2111 | AT15: =COUNTIF(L50:L57,AS15) -> 0 | AU15: =AT15/(AV4-AT20) -> 0 | AV15: =IF(AU15=0,0,(AU15*((LOG(AU15))/LOG(2)))) -> 0
A16: 12 | B16: 1396 | C16: 23 | D16: 1406 | E16: 24 | F16: 1410 | G16: 23 | H16: 1414 | K16: 0 | L16: 1222 | N16: 2112 | O16: =COUNTIF($L$7:$L$500,N16) -> 0 | P16: =O16/$Q$4 -> 0 | Q16: =IF(P16=0,0,(P16*((LOG(P16))/LOG(2)))) -> 0 | T16: =N16 -> 2112 | U16: =COUNTIF(L7:L15,T16) -> 0 | V16: =U16/(W4-U20) -> 0 | W16: =IF(V16=0,0,(V16*((LOG(V16))/LOG(2)))) -> 0 | Y16: =N16 -> 2112 | Z16: =COUNTIF(L16:L23,Y16) -> 0 | AA16: =Z16/(AB4-Z20) -> 0 | AB16: =IF(AA16=0,0,(AA16*((LOG(AA16))/LOG(2)))) -> 0 | AD16: =N16 -> 2112 | AE16: =COUNTIF(L24:L32,AD16) -> 0 | AF16: =AE16/(AG4-AE20) -> 0 | AG16: =IF(AF16=0,0,(AF16*((LOG(AF16))/LOG(2)))) -> 0 | AI16: =N16 -> 2112 | AJ16: =COUNTIF(L33:L40,AI16) -> 0 | AK16: =AJ16/(AL4-AJ20) -> 0 | AL16: =IF(AK16=0,0,(AK16*((LOG(AK16))/LOG(2)))) -> 0 | AN16: =N16 -> 2112 | AO16: =COUNTIF(L41:L49,AN16) -> 0 | AP16: =AO16/(AQ4-AO20) -> 0 | AQ16: =IF(AP16=0,0,(AP16*((LOG(AP16))/LOG(2)))) -> 0 | AS16: =N16 -> 2112 | AT16: =COUNTIF(L50:L57,AS16) -> 0 | AU16: =AT16/(AV4-AT20) -> 0 | AV16: =IF(AU16=0,0,(AU16*((LOG(AU16))/LOG(2)))) -> 0
A17: 12 | B17: 1553 | C17: 23 | D17: 1561 | E17: 24 | F17: 1564 | G17: 23 | H17: 1568 | K17: 0 | L17: 1222 | N17: 2121 | O17: =COUNTIF($L$7:$L$500,N17) -> 0 | P17: =O17/$Q$4 -> 0 | Q17: =IF(P17=0,0,(P17*((LOG(P17))/LOG(2)))) -> 0 | T17: =N17 -> 2121 | U17: =COUNTIF(L7:L15,T17) -> 0 | V17: =U17/(W4-U20) -> 0 | W17: =IF(V17=0,0,(V17*((LOG(V17))/LOG(2)))) -> 0 | Y17: =N17 -> 2121 | Z17: =COUNTIF(L16:L23,Y17) -> 0 | AA17: =Z17/(AB4-Z20) -> 0 | AB17: =IF(AA17=0,0,(AA17*((LOG(AA17))/LOG(2)))) -> 0 | AD17: =N17 -> 2121 | AE17: =COUNTIF(L24:L32,AD17) -> 0 | AF17: =AE17/(AG4-AE20) -> 0 | AG17: =IF(AF17=0,0,(AF17*((LOG(AF17))/LOG(2)))) -> 0 | AI17: =N17 -> 2121 | AJ17: =COUNTIF(L33:L40,AI17) -> 0 | AK17: =AJ17/(AL4-AJ20) -> 0 | AL17: =IF(AK17=0,0,(AK17*((LOG(AK17))/LOG(2)))) -> 0 | AN17: =N17 -> 2121 | AO17: =COUNTIF(L41:L49,AN17) -> 0 | AP17: =AO17/(AQ4-AO20) -> 0 | AQ17: =IF(AP17=0,0,(AP17*((LOG(AP17))/LOG(2)))) -> 0 | AS17: =N17 -> 2121 | AT17: =COUNTIF(L50:L57,AS17) -> 0 | AU17: =AT17/(AV4-AT20) -> 0 | AV17: =IF(AU17=0,0,(AU17*((LOG(AU17))/LOG(2)))) -> 0
A18: 21 | B18: 1680 | C18: 21 | D18: 1686 | E18: 22 | F18: 1691 | G18: 23 | H18: 1700 | K18: 0 | L18: 2222 | N18: 2122 | O18: =COUNTIF($L$7:$L$500,N18) -> 1 | P18: =O18/$Q$4 -> 0.01960784314 | Q18: =IF(P18=0,0,(P18*((LOG(P18))/LOG(2)))) -> -0.1112240263 | T18: =N18 -> 2122 | U18: =COUNTIF(L7:L15,T18) -> 0 | V18: =U18/(W4-U20) -> 0 | W18: =IF(V18=0,0,(V18*((LOG(V18))/LOG(2)))) -> 0 | Y18: =N18 -> 2122 | Z18: =COUNTIF(L16:L23,Y18) -> 0 | AA18: =Z18/(AB4-Z20) -> 0 | AB18: =IF(AA18=0,0,(AA18*((LOG(AA18))/LOG(2)))) -> 0 | AD18: =N18 -> 2122 | AE18: =COUNTIF(L24:L32,AD18) -> 0 | AF18: =AE18/(AG4-AE20) -> 0 | AG18: =IF(AF18=0,0,(AF18*((LOG(AF18))/LOG(2)))) -> 0 | AI18: =N18 -> 2122 | AJ18: =COUNTIF(L33:L40,AI18) -> 0 | AK18: =AJ18/(AL4-AJ20) -> 0 | AL18: =IF(AK18=0,0,(AK18*((LOG(AK18))/LOG(2)))) -> 0 | AN18: =N18 -> 2122 | AO18: =COUNTIF(L41:L49,AN18) -> 1 | AP18: =AO18/(AQ4-AO20) -> 0.1111111111 | AQ18: =IF(AP18=0,0,(AP18*((LOG(AP18))/LOG(2)))) -> -0.352213889 | AS18: =N18 -> 2122 | AT18: =COUNTIF(L50:L57,AS18) -> 0 | AU18: =AT18/(AV4-AT20) -> 0 | AV18: =IF(AU18=0,0,(AU18*((LOG(AU18))/LOG(2)))) -> 0
A19: 12 | B19: 1799 | C19: 14 | D19: 1802 | E19: 24 | F19: 1812 | G19: 23 | H19: 1816 | K19: 0 | L19: 1122 | N19: 2211 | O19: =COUNTIF($L$7:$L$500,N19) -> 1 | P19: =O19/$Q$4 -> 0.01960784314 | Q19: =IF(P19=0,0,(P19*((LOG(P19))/LOG(2)))) -> -0.1112240263 | T19: =N19 -> 2211 | U19: =COUNTIF(L7:L15,T19) -> 0 | V19: =U19/(W4-U20) -> 0 | W19: =IF(V19=0,0,(V19*((LOG(V19))/LOG(2)))) -> 0 | Y19: =N19 -> 2211 | Z19: =COUNTIF(L16:L23,Y19) -> 0 | AA19: =Z19/(AB4-Z20) -> 0 | AB19: =IF(AA19=0,0,(AA19*((LOG(AA19))/LOG(2)))) -> 0 | AD19: =N19 -> 2211 | AE19: =COUNTIF(L24:L32,AD19) -> 0 | AF19: =AE19/(AG4-AE20) -> 0 | AG19: =IF(AF19=0,0,(AF19*((LOG(AF19))/LOG(2)))) -> 0 | AI19: =N19 -> 2211 | AJ19: =COUNTIF(L33:L40,AI19) -> 1 | AK19: =AJ19/(AL4-AJ20) -> 0.125 | AL19: =IF(AK19=0,0,(AK19*((LOG(AK19))/LOG(2)))) -> -0.375 | AN19: =N19 -> 2211 | AO19: =COUNTIF(L41:L49,AN19) -> 0 | AP19: =AO19/(AQ4-AO20) -> 0 | AQ19: =IF(AP19=0,0,(AP19*((LOG(AP19))/LOG(2)))) -> 0 | AS19: =N19 -> 2211 | AT19: =COUNTIF(L50:L57,AS19) -> 0 | AU19: =AT19/(AV4-AT20) -> 0 | AV19: =IF(AU19=0,0,(AU19*((LOG(AU19))/LOG(2)))) -> 0
A20: 12 | B20: 1914 | C20: 14 | D20: 1926 | E20: 13 | F20: 1935 | G20: 14 | H20: 1943 | K20: 0 | L20: 1111 | N20: 2212 | O20: =COUNTIF($L$7:$L$500,N20) -> 0 | P20: =O20/$Q$4 -> 0 | Q20: =IF(P20=0,0,(P20*((LOG(P20))/LOG(2)))) -> 0 | T20: =N20 -> 2212 | U20: =COUNTIF(L7:L15,T20) -> 0 | Y20: =N20 -> 2212 | Z20: =COUNTIF(L16:L23,Y20) -> 0 | AD20: =N20 -> 2212 | AE20: =COUNTIF(L24:L32,AD20) -> 0 | AI20: =N20 -> 2212 | AJ20: =COUNTIF(L33:L40,AI20) -> 0 | AN20: =N20 -> 2212 | AO20: =COUNTIF(L41:L49,AN20) -> 0 | AS20: =N20 -> 2212 | AT20: =COUNTIF(L50:L57,AS20) -> 0
A21: 12 | B21: 2048 | C21: 14 | D21: 2055 | E21: 24 | F21: 2070 | G21: 23 | H21: 2073 | K21: 0 | L21: 1122 | N21: 2221 | O21: =COUNTIF($L$7:$L$500,N21) -> 0 | P21: =O21/$Q$4 -> 0 | Q21: =IF(P21=0,0,(P21*((LOG(P21))/LOG(2)))) -> 0 | T21: =N21 -> 2221 | U21: =COUNTIF(L7:L15,T21) -> 0 | V21: =U21/(W4-U20) -> 0 | W21: =IF(V21=0,0,(V21*((LOG(V21))/LOG(2)))) -> 0 | Y21: =N21 -> 2221 | Z21: =COUNTIF(L16:L23,Y21) -> 0 | AA21: =Z21/(AB4-Z20) -> 0 | AB21: =IF(AA21=0,0,(AA21*((LOG(AA21))/LOG(2)))) -> 0 | AD21: =N21 -> 2221 | AE21: =COUNTIF(L24:L32,AD21) -> 0 | AF21: =AE21/(AG4-AE20) -> 0 | AG21: =IF(AF21=0,0,(AF21*((LOG(AF21))/LOG(2)))) -> 0 | AI21: =N21 -> 2221 | AJ21: =COUNTIF(L33:L40,AI21) -> 0 | AK21: =AJ21/(AL4-AJ20) -> 0 | AL21: =IF(AK21=0,0,(AK21*((LOG(AK21))/LOG(2)))) -> 0 | AN21: =N21 -> 2221 | AO21: =COUNTIF(L41:L49,AN21) -> 0 | AP21: =AO21/(AQ4-AO20) -> 0 | AQ21: =IF(AP21=0,0,(AP21*((LOG(AP21))/LOG(2)))) -> 0 | AS21: =N21 -> 2221 | AT21: =COUNTIF(L50:L57,AS21) -> 0 | AU21: =AT21/(AV4-AT20) -> 0 | AV21: =IF(AU21=0,0,(AU21*((LOG(AU21))/LOG(2)))) -> 0
A22: 12 | B22: 2172 | C22: 14 | D22: 2175 | E22: 13 | F22: 2181 | G22: 23 | H22: 2195 | K22: 0 | L22: 1112 | N22: 2222 | O22: =COUNTIF($L$7:$L$500,N22) -> 7 | P22: =O22/$Q$4 -> 0.137254902 | Q22: =IF(P22=0,0,(P22*((LOG(P22))/LOG(2)))) -> -0.3932449596 | T22: =N22 -> 2222 | U22: =COUNTIF(L7:L15,T22) -> 1 | V22: =U22/(W4-U20) -> 0.1111111111 | W22: =IF(V22=0,0,(V22*((LOG(V22))/LOG(2)))) -> -0.352213889 | Y22: =N22 -> 2222 | Z22: =COUNTIF(L16:L23,Y22) -> 1 | AA22: =Z22/(AB4-Z20) -> 0.125 | AB22: =IF(AA22=0,0,(AA22*((LOG(AA22))/LOG(2)))) -> -0.375 | AD22: =N22 -> 2222 | AE22: =COUNTIF(L24:L32,AD22) -> 0 | AF22: =AE22/(AG4-AE20) -> 0 | AG22: =IF(AF22=0,0,(AF22*((LOG(AF22))/LOG(2)))) -> 0 | AI22: =N22 -> 2222 | AJ22: =COUNTIF(L33:L40,AI22) -> 2 | AK22: =AJ22/(AL4-AJ20) -> 0.25 | AL22: =IF(AK22=0,0,(AK22*((LOG(AK22))/LOG(2)))) -> -0.5 | AN22: =N22 -> 2222 | AO22: =COUNTIF(L41:L49,AN22) -> 2 | AP22: =AO22/(AQ4-AO20) -> 0.2222222222 | AQ22: =IF(AP22=0,0,(AP22*((LOG(AP22))/LOG(2)))) -> -0.4822055559 | AS22: =N22 -> 2222 | AT22: =COUNTIF(L50:L57,AS22) -> 1 | AU22: =AT22/(AV4-AT20) -> 0.125 | AV22: =IF(AU22=0,0,(AU22*((LOG(AU22))/LOG(2)))) -> -0.375
A23: 12 | B23: 2301 | C23: 23 | D23: 2312 | E23: 24 | F23: 2316 | G23: 23 | H23: 2319 | K23: 0 | L23: 1222 | P23: =SUM(P7:P22) -> 1 | Q23: =-SUM(Q7:Q22) -> 2.589298685 | V23: =SUM(V7:V22) -> 1 | W23: =-SUM(W7:W22) -> 2.197159723 | AA23: =SUM(AA7:AA22) -> 1 | AB23: =-SUM(AB7:AB22) -> 2.155639062 | AF23: =SUM(AF7:AF22) -> 1 | AG23: =-SUM(AG7:AG22) -> 1.435520504 | AK23: =SUM(AK7:AK22) -> 1 | AL23: =-SUM(AL7:AL22) -> 2.155639062 | AP23: =SUM(AP7:AP22) -> 1 | AQ23: =-SUM(AQ7:AQ22) -> 2.503258335 | AU23: =SUM(AU7:AU22) -> 1 | AV23: =-SUM(AV7:AV22) -> 2.405639062
A24: 12 | B24: 2594 | C24: 23 | D24: 2609 | E24: 24 | F24: 2612 | G24: 23 | H24: 2618 | K24: 0 | L24: 1222 | P24: U= | Q24: =Q23/(LOG(Q4)/LOG(2)) -> 0.4564711793 | V24: U1= | W24: =W23/(LOG(W4)/LOG(2)) -> 0.6931267214 | AA24: U2= | AB24: =AB23/(LOG(AB4)/LOG(2)) -> 0.7185463541 | AF24: U3= | AG24: =AG23/(LOG(AG4)/LOG(2)) -> 0.452856299 | AK24: U4= | AL24: =AL23/(LOG(AL4)/LOG(2)) -> 0.7185463541 | AP24: U5= | AQ24: =AQ23/(LOG(AQ4)/LOG(2)) -> 0.7896900821 | AU24: U6= | AV24: =AV23/(LOG(AV4)/LOG(2)) -> 0.8018796874
A25: 12 | B25: 2757 | C25: 23 | D25: 2765 | E25: 24 | F25: 2769 | G25: 23 | H25: 2774 | K25: 0 | L25: 1222
A26: 12 | B26: 2874 | C26: 14 | D26: 2877 | E26: 24 | F26: 2887 | G26: 23 | H26: 2892 | K26: 0 | L26: 1122
A27: 12 | B27: 2999 | C27: 23 | D27: 3015 | E27: 24 | F27: 3020 | G27: 23 | H27: 3027 | K27: 0 | L27: 1222 | N27: Total Target Seq
A28: 12 | B28: 3128 | C28: 23 | D28: 3140 | E28: 24 | F28: 3146 | G28: 23 | H28: 3151 | K28: 0 | L28: 1222 | N28: =COUNTIF(L7:L57,G3) -> 0 | P28: 9 | Q28: 8 | R28: 9 | S28: 8 | T28: 9 | U28: 8
A29: 12 | B29: 3272 | C29: 14 | D29: 3275 | E29: 24 | F29: 3288 | G29: 23 | H29: 3294 | K29: 0 | L29: 1122 | P29: % of reinforcement given in 6 equal intervals based on number of trials
A30: 12 | B30: 3398 | C30: 14 | D30: 3403 | E30: 13 | F30: 3409 | G30: 14 | H30: 3414 | K30: 0 | L30: 1111 | P30: %_1 | Q30: %_2 | R30: %_3 | S30: %_4 | T30: %_5 | U30: %_6
A31: 12 | B31: 3521 | C31: 23 | D31: 3533 | E31: 24 | F31: 3542 | G31: 23 | H31: 3547 | K31: 0 | L31: 1222 | O31: target sequence | P31: =$G$3 -> 2212 | Q31: =$G$3 -> 2212 | R31: =$G$3 -> 2212 | S31: =$G$3 -> 2212 | T31: =$G$3 -> 2212 | U31: =$G$3 -> 2212
A32: 12 | B32: 3646 | C32: 14 | D32: 3649 | E32: 13 | F32: 3657 | G32: 14 | H32: 3660 | K32: 0 | L32: 1111 | O32: total reinforcement | P32: =U20 -> 0 | Q32: =Z20 -> 0 | R32: =AE20 -> 0 | S32: =AJ20 -> 0 | T32: =AO20 -> 0 | U32: =AT20 -> 0
A33: 12 | B33: 3777 | C33: 23 | D33: 3789 | E33: 24 | F33: 3798 | G33: 23 | H33: 3803 | K33: 0 | L33: 1222 | O33: % target
A34: 21 | B34: 3914 | C34: 21 | D34: 3928 | E34: 22 | F34: 3933 | G34: 23 | H34: 3938 | K34: 0 | L34: 2222 | O34: CCRF
A35: 12 | B35: 4052 | C35: 23 | D35: 4064 | E35: 24 | F35: 4071 | G35: 23 | H35: 4075 | K35: 0 | L35: 1222 | O35: % CCRf
A36: 12 | B36: 4217 | C36: 14 | D36: 4226 | E36: 24 | F36: 4239 | G36: 23 | H36: 4245 | K36: 0 | L36: 1122 | O36: average response rate | P36: =H15/P28 -> 144 | Q36: =(H23-H15)/Q28 -> 127.875 | R36: =(H32-H23)/R28 -> 149 | S36: =(H40-H32)/S28 -> 145.375 | T36: =(H49-H40)/T28 -> 439.6666667 | U36: =(H57-H49)/U28 -> 1874
A37: 21 | B37: 4349 | C37: 21 | D37: 4351 | E37: 11 | F37: 4368 | G37: 12 | H37: 4374 | K37: 0 | L37: 2211
A38: 12 | B38: 4490 | C38: 23 | D38: 4503 | E38: 24 | F38: 4507 | G38: 23 | H38: 4512 | K38: 0 | L38: 1222
A39: 12 | B39: 4631 | C39: 14 | D39: 4649 | E39: 13 | F39: 4652 | G39: 14 | H39: 4656 | K39: 0 | L39: 1111
A40: 21 | B40: 4793 | C40: 21 | D40: 4808 | E40: 22 | F40: 4811 | G40: 23 | H40: 4823 | K40: 0 | L40: 2222
A41: 12 | B41: 4921 | C41: 14 | D41: 4926 | E41: 13 | F41: 5022 | G41: 14 | H41: 5027 | K41: 0 | L41: 1111
A42: 21 | B42: 5148 | C42: 12 | D42: 5219 | E42: 24 | F42: 5234 | G42: 23 | H42: 5242 | K42: 0 | L42: 2122
A43: 21 | B43: 5414 | C43: 21 | D43: 5421 | E43: 22 | F43: 5428 | G43: 23 | H43: 5436 | K43: 0 | L43: 2222
A44: 21 | B44: 6086 | C44: 21 | D44: 6129 | E44: 22 | F44: 6132 | G44: 23 | H44: 6139 | K44: 0 | L44: 2222
A45: 12 | B45: 6374 | C45: 14 | D45: 6377 | E45: 24 | F45: 6397 | G45: 23 | H45: 6401 | K45: 0 | L45: 1122
A46: 12 | B46: 6527 | C46: 14 | D46: 6549 | E46: 13 | F46: 6552 | G46: 14 | H46: 6559 | K46: 0 | L46: 1111
A47: 12 | B47: 7716 | C47: 14 | D47: 7748 | E47: 24 | F47: 7754 | G47: 14 | H47: 7762 | K47: 0 | L47: 1121
A48: 12 | B48: 8616 | C48: 23 | D48: 8624 | E48: 24 | F48: 8628 | G48: 23 | H48: 8636 | K48: 0 | L48: 1222
A49: 12 | B49: 8753 | C49: 14 | D49: 8756 | E49: 24 | F49: 8766 | G49: 14 | H49: 8780 | K49: 0 | L49: 1121
A50: 12 | B50: 9095 | C50: 23 | D50: 9104 | E50: 24 | F50: 9108 | G50: 23 | H50: 9114 | K50: 0 | L50: 1222
A51: 12 | B51: 9426 | C51: 14 | D51: 9428 | E51: 13 | F51: 9448 | G51: 23 | H51: 9452 | K51: 0 | L51: 1112
A52: 12 | B52: 10280 | C52: 23 | D52: 10308 | E52: 24 | F52: 10316 | G52: 23 | H52: 10323 | K52: 0 | L52: 1222
A53: 12 | B53: 10847 | C53: 23 | D53: 10863 | E53: 24 | F53: 10869 | G53: 23 | H53: 10877 | K53: 0 | L53: 1222
A54: 12 | B54: 12593 | C54: 14 | D54: 12598 | E54: 24 | F54: 12608 | G54: 23 | H54: 12613 | K54: 0 | L54: 1122
A55: 12 | B55: 21430 | C55: 23 | D55: 21441 | E55: 13 | F55: 21453 | G55: 14 | H55: 21456 | K55: 0 | L55: 1211
A56: 21 | B56: 23572 | C56: 21 | D56: 23575 | E56: 22 | F56: 23581 | G56: 23 | H56: 23590 | K56: 0 | L56: 2222
A57: 12 | B57: 23730 | C57: 14 | D57: 23733 | E57: 13 | F57: 23757 | G57: 14 | H57: 23772 | K57: 0 | L57: 1111

Sheet !M114B5T.ayl
A1: Report for:!M114B5T.ayl
A2: Date: | B2: <date>
A3: Hen: | B3: <hen> | F3: Correct Sequence | G3: =Start!J2 -> 2212 | P3: Total Sequences in Data | Q3: =4994-COUNTBLANK(L7:L5000) -> 35 | V3: Total Sequences in Block Data | W3: =COUNTA(L7:L12) -> 6 | AA3: Total Sequences in Block Data | AB3: =COUNTA(L13:L18) -> 6 | AF3: Total Sequences in Block Data | AG3: =COUNTA(L19:L23) -> 5 | AK3: Total Sequences in Block Data | AL3: =COUNTA(L24:L29) -> 6 | AP3: Total Sequences in Block Data | AQ3: =COUNTA(L30:L35) -> 6 | AU3: Total Sequences in Block Data | AV3: =COUNTA(L36:L41) -> 6
P4: Total Sequences in Summary | Q4: =SUM(O7:O22) -> 34 | V4: Total Sequences in Block Summary | W4: =SUM(U7:U22) -> 6 | AA4: Total Sequences in Block Summary | AB4: =SUM(Z7:Z22) -> 6 | AF4: Total Sequences in Block Summary | AG4: =SUM(AE7:AE22) -> 5 | AK4: Total Sequences in Block Summary | AL4: =SUM(AJ7:AJ22) -> 6 | AP4: Total Sequences in Block Summary | AQ4: =SUM(AO7:AO22) -> 6 | AU4: Total Sequences in Block Summary | AV4: =SUM(AT7:AT22) -> 5
T5: Block 1 | Y5: Block 2 | AD5: Block 3 | AI5: Block 4 | AN5: Block 5 | AS5: Block 6
A6: Sequence Component 1 | B6: Time 1 | C6: Sequence Component 2 | D6: Time 2 | E6: Sequence Component 3 | F6: Time 3 | G6: Sequence Component 4 | H6: Time 4 | I6: Sequence Component 5 | J6: Time 5 | K6: Correct? 0=No 1=Yes | L6: Sequence | N6: Frequency | P6: Relative Frequency | Q6: Variability | T6: Frequency | V6: Relative Frequency | W6: Variability | Y6: Frequency | AA6: Relative Frequency | AB6: Variability | AD6: Frequency | AF6: Relative Frequency | AG6: Variability | AI6: Frequency | AK6: Relative Frequency | AL6: Variability | AN6: Frequency | AP6: Relative Frequency | AQ6: Variability | AS6: Frequency | AU6: Relative Frequency | AV6: Variability
A7: 12 | B7: 323 | C7: 14 | D7: 327 | E7: 13 | F7: 331 | G7: 23 | H7: 344 | K7: 0 | L7: 1112 | N7: 1111 | O7: =COUNTIF($L$7:$L$500,N7) -> 9 | P7: =O7/$Q$4 -> 0.2647058824 | Q7: =IF(P7=0,0,(P7*((LOG(P7))/LOG(2)))) -> -0.5075835458 | T7: =N7 -> 1111 | U7: =COUNTIF(L7:L12,T7) -> 0 | V7: =U7/(W4-U20) -> 0 | W7: =IF(V7=0,0,(V7*((LOG(V7))/LOG(2)))) -> 0 | Y7: =N7 -> 1111 | Z7: =COUNTIF(L13:L18,Y7) -> 2 | AA7: =Z7/(AB4-Z20) -> 0.3333333333 | AB7: =IF(AA7=0,0,(AA7*((LOG(AA7))/LOG(2)))) -> -0.5283208336 | AD7: =N7 -> 1111 | AE7: =COUNTIF(L19:L23,AD7) -> 2 | AF7: =AE7/(AG4-AE20) -> 0.4 | AG7: =IF(AF7=0,0,(AF7*((LOG(AF7))/LOG(2)))) -> -0.528771238 | AI7: =N7 -> 1111 | AJ7: =COUNTIF(L24:L29,AI7) -> 2 | AK7: =AJ7/(AL4-AJ20) -> 0.3333333333 | AL7: =IF(AK7=0,0,(AK7*((LOG(AK7))/LOG(2)))) -> -0.5283208336 | AN7: =N7 -> 1111 | AO7: =COUNTIF(L30:L35,AN7) -> 2 | AP7: =AO7/(AQ4-AO20) -> 0.3333333333 | AQ7: =IF(AP7=0,0,(AP7*((LOG(AP7))/LOG(2)))) -> -0.5283208336 | AS7: =N7 -> 1111 | AT7: =COUNTIF(L36:L41,AS7) -> 1 | AU7: =AT7/(AV4-AT20) -> 0.2 | AV7: =IF(AU7=0,0,(AU7*((LOG(AU7))/LOG(2)))) -> -0.464385619
A8: 12 | B8: 464 | C8: 23 | D8: 474 | E8: 24 | F8: 477 | G8: 23 | H8: 484 | K8: 0 | L8: 1222 | N8: 1112 | O8: =COUNTIF($L$7:$L$500,N8) -> 5 | P8: =O8/$Q$4 -> 0.1470588235 | Q8: =IF(P8=0,0,(P8*((LOG(P8))/LOG(2)))) -> -0.4066962862 | T8: =N8 -> 1112 | U8: =COUNTIF(L7:L12,T8) -> 1 | V8: =U8/(W4-U20) -> 0.1666666667 | W8: =IF(V8=0,0,(V8*((LOG(V8))/LOG(2)))) -> -0.4308270835 | Y8: =N8 -> 1112 | Z8: =COUNTIF(L13:L18,Y8) -> 1 | AA8: =Z8/(AB4-Z20) -> 0.1666666667 | AB8: =IF(AA8=0,0,(AA8*((LOG(AA8))/LOG(2)))) -> -0.4308270835 | AD8: =N8 -> 1112 | AE8: =COUNTIF(L19:L23,AD8) -> 0 | AF8: =AE8/(AG4-AE20) -> 0 | AG8: =IF(AF8=0,0,(AF8*((LOG(AF8))/LOG(2)))) -> 0 | AI8: =N8 -> 1112 | AJ8: =COUNTIF(L24:L29,AI8) -> 0 | AK8: =AJ8/(AL4-AJ20) -> 0 | AL8: =IF(AK8=0,0,(AK8*((LOG(AK8))/LOG(2)))) -> 0 | AN8: =N8 -> 1112 | AO8: =COUNTIF(L30:L35,AN8) -> 1 | AP8: =AO8/(AQ4-AO20) -> 0.1666666667 | AQ8: =IF(AP8=0,0,(AP8*((LOG(AP8))/LOG(2)))) -> -0.4308270835 | AS8: =N8 -> 1112 | AT8: =COUNTIF(L36:L41,AS8) -> 2 | AU8: =AT8/(AV4-AT20) -> 0.4 | AV8: =IF(AU8=0,0,(AU8*((LOG(AU8))/LOG(2)))) -> -0.528771238
A9: 12 | B9: 581 | C9: 14 | D9: 584 | E9: 24 | F9: 592 | G9: 23 | H9: 596 | K9: 0 | L9: 1122 | N9: 1121 | O9: =COUNTIF($L$7:$L$500,N9) -> 0 | P9: =O9/$Q$4 -> 0 | Q9: =IF(P9=0,0,(P9*((LOG(P9))/LOG(2)))) -> 0 | T9: =N9 -> 1121 | U9: =COUNTIF(L7:L12,T9) -> 0 | V9: =U9/(W4-U20) -> 0 | W9: =IF(V9=0,0,(V9*((LOG(V9))/LOG(2)))) -> 0 | Y9: =N9 -> 1121 | Z9: =COUNTIF(L13:L18,Y9) -> 0 | AA9: =Z9/(AB4-Z20) -> 0 | AB9: =IF(AA9=0,0,(AA9*((LOG(AA9))/LOG(2)))) -> 0 | AD9: =N9 -> 1121 | AE9: =COUNTIF(L19:L23,AD9) -> 0 | AF9: =AE9/(AG4-AE20) -> 0 | AG9: =IF(AF9=0,0,(AF9*((LOG(AF9))/LOG(2)))) -> 0 | AI9: =N9 -> 1121 | AJ9: =COUNTIF(L24:L29,AI9) -> 0 | AK9: =AJ9/(AL4-AJ20) -> 0 | AL9: =IF(AK9=0,0,(AK9*((LOG(AK9))/LOG(2)))) -> 0 | AN9: =N9 -> 1121 | AO9: =COUNTIF(L30:L35,AN9) -> 0 | AP9: =AO9/(AQ4-AO20) -> 0 | AQ9: =IF(AP9=0,0,(AP9*((LOG(AP9))/LOG(2)))) -> 0 | AS9: =N9 -> 1121 | AT9: =COUNTIF(L36:L41,AS9) -> 0 | AU9: =AT9/(AV4-AT20) -> 0 | AV9: =IF(AU9=0,0,(AU9*((LOG(AU9))/LOG(2)))) -> 0
A10: 12 | B10: 694 | C10: 23 | D10: 707 | E10: 24 | F10: 709 | G10: 14 | H10: 738 | K10: 0 | L10: 1221 | N10: 1122 | O10: =COUNTIF($L$7:$L$500,N10) -> 8 | P10: =O10/$Q$4 -> 0.2352941176 | Q10: =IF(P10=0,0,(P10*((LOG(P10))/LOG(2)))) -> -0.4911677274 | T10: =N10 -> 1122 | U10: =COUNTIF(L7:L12,T10) -> 3 | V10: =U10/(W4-U20) -> 0.5 | W10: =IF(V10=0,0,(V10*((LOG(V10))/LOG(2)))) -> -0.5 | Y10: =N10 -> 1122 | Z10: =COUNTIF(L13:L18,Y10) -> 1 | AA10: =Z10/(AB4-Z20) -> 0.1666666667 | AB10: =IF(AA10=0,0,(AA10*((LOG(AA10))/LOG(2)))) -> -0.4308270835 | AD10: =N10 -> 1122 | AE10: =COUNTIF(L19:L23,AD10) -> 2 | AF10: =AE10/(AG4-AE20) -> 0.4 | AG10: =IF(AF10=0,0,(AF10*((LOG(AF10))/LOG(2)))) -> -0.528771238 | AI10: =N10 -> 1122 | AJ10: =COUNTIF(L24:L29,AI10) -> 1 | AK10: =AJ10/(AL4-AJ20) -> 0.1666666667 | AL10: =IF(AK10=0,0,(AK10*((LOG(AK10))/LOG(2)))) -> -0.4308270835 | AN10: =N10 -> 1122 | AO10: =COUNTIF(L30:L35,AN10) -> 0 | AP10: =AO10/(AQ4-AO20) -> 0 | AQ10: =IF(AP10=0,0,(AP10*((LOG(AP10))/LOG(2)))) -> 0 | AS10: =N10 -> 1122 | AT10: =COUNTIF(L36:L41,AS10) -> 1 | AU10: =AT10/(AV4-AT20) -> 0.2 | AV10: =IF(AU10=0,0,(AU10*((LOG(AU10))/LOG(2)))) -> -0.464385619
A11: 12 | B11: 866 | C11: 14 | D11: 888 | E11: 24 | F11: 905 | G11: 23 | H11: 918 | K11: 0 | L11: 1122 | N11: 1211 | O11: =COUNTIF($L$7:$L$500,N11) -> 1 | P11: =O11/$Q$4 -> 0.02941176471 | Q11: =IF(P11=0,0,(P11*((LOG(P11))/LOG(2)))) -> -0.14963126 | T11: =N11 -> 1211 | U11: =COUNTIF(L7:L12,T11) -> 0 | V11: =U11/(W4-U20) -> 0 | W11: =IF(V11=0,0,(V11*((LOG(V11))/LOG(2)))) -> 0 | Y11: =N11 -> 1211 | Z11: =COUNTIF(L13:L18,Y11) -> 0 | AA11: =Z11/(AB4-Z20) -> 0 | AB11: =IF(AA11=0,0,(AA11*((LOG(AA11))/LOG(2)))) -> 0 | AD11: =N11 -> 1211 | AE11: =COUNTIF(L19:L23,AD11) -> 0 | AF11: =AE11/(AG4-AE20) -> 0 | AG11: =IF(AF11=0,0,(AF11*((LOG(AF11))/LOG(2)))) -> 0 | AI11: =N11 -> 1211 | AJ11: =COUNTIF(L24:L29,AI11) -> 1 | AK11: =AJ11/(AL4-AJ20) -> 0.1666666667 | AL11: =IF(AK11=0,0,(AK11*((LOG(AK11))/LOG(2)))) -> -0.4308270835 | AN11: =N11 -> 1211 | AO11: =COUNTIF(L30:L35,AN11) -> 0 | AP11: =AO11/(AQ4-AO20) -> 0 | AQ11: =IF(AP11=0,0,(AP11*((LOG(AP11))/LOG(2)))) -> 0 | AS11: =N11 -> 1211 | AT11: =COUNTIF(L36:L41,AS11) -> 0 | AU11: =AT11/(AV4-AT20) -> 0 | AV11: =IF(AU11=0,0,(AU11*((LOG(AU11))/LOG(2)))) -> 0
A12: 12 | B12: 1019 | C12: 14 | D12: 1024 | E12: 24 | F12: 1038 | G12: 23 | H12: 1048 | K12: 0 | L12: 1122 | N12: 1212 | O12: =COUNTIF($L$7:$L$500,N12) -> 0 | P12: =O12/$Q$4 -> 0 | Q12: =IF(P12=0,0,(P12*((LOG(P12))/LOG(2)))) -> 0 | T12: =N12 -> 1212 | U12: =COUNTIF(L7:L12,T12) -> 0 | V12: =U12/(W4-U20) -> 0 | W12: =IF(V12=0,0,(V12*((LOG(V12))/LOG(2)))) -> 0 | Y12: =N12 -> 1212 | Z12: =COUNTIF(L13:L18,Y12) -> 0 | AA12: =Z12/(AB4-Z20) -> 0 | AB12: =IF(AA12=0,0,(AA12*((LOG(AA12))/LOG(2)))) -> 0 | AD12: =N12 -> 1212 | AE12: =COUNTIF(L19:L23,AD12) -> 0 | AF12: =AE12/(AG4-AE20) -> 0 | AG12: =IF(AF12=0,0,(AF12*((LOG(AF12))/LOG(2)))) -> 0 | AI12: =N12 -> 1212 | AJ12: =COUNTIF(L24:L29,AI12) -> 0 | AK12: =AJ12/(AL4-AJ20) -> 0 | AL12: =IF(AK12=0,0,(AK12*((LOG(AK12))/LOG(2)))) -> 0 | AN12: =N12 -> 1212 | AO12: =COUNTIF(L30:L35,AN12) -> 0 | AP12: =AO12/(AQ4-AO20) -> 0 | AQ12: =IF(AP12=0,0,(AP12*((LOG(AP12))/LOG(2)))) -> 0 | AS12: =N12 -> 1212 | AT12: =COUNTIF(L36:L41,AS12) -> 0 | AU12: =AT12/(AV4-AT20) -> 0 | AV12: =IF(AU12=0,0,(AU12*((LOG(AU12))/LOG(2)))) -> 0
A13: 12 | B13: 1154 | C13: 14 | D13: 1167 | E13: 24 | F13: 1181 | G13: 23 | H13: 1189 | K13: 0 | L13: 1122 | N13: 1221 | O13: =COUNTIF($L$7:$L$500,N13) -> 1 | P13: =O13/$Q$4 -> 0.02941176471 | Q13: =IF(P13=0,0,(P13*((LOG(P13))/LOG(2)))) -> -0.14963126 | T13: =N13 -> 1221 | U13: =COUNTIF(L7:L12,T13) -> 1 | V13: =U13/(W4-U20) -> 0.1666666667 | W13: =IF(V13=0,0,(V13*((LOG(V13))/LOG(2)))) -> -0.4308270835 | Y13: =N13 -> 1221 | Z13: =COUNTIF(L13:L18,Y13) -> 0 | AA13: =Z13/(AB4-Z20) -> 0 | AB13: =IF(AA13=0,0,(AA13*((LOG(AA13))/LOG(2)))) -> 0 | AD13: =N13 -> 1221 | AE13: =COUNTIF(L19:L23,AD13) -> 0 | AF13: =AE13/(AG4-AE20) -> 0 | AG13: =IF(AF13=0,0,(AF13*((LOG(AF13))/LOG(2)))) -> 0 | AI13: =N13 -> 1221 | AJ13: =COUNTIF(L24:L29,AI13) -> 0 | AK13: =AJ13/(AL4-AJ20) -> 0 | AL13: =IF(AK13=0,0,(AK13*((LOG(AK13))/LOG(2)))) -> 0 | AN13: =N13 -> 1221 | AO13: =COUNTIF(L30:L35,AN13) -> 0 | AP13: =AO13/(AQ4-AO20) -> 0 | AQ13: =IF(AP13=0,0,(AP13*((LOG(AP13))/LOG(2)))) -> 0 | AS13: =N13 -> 1221 | AT13: =COUNTIF(L36:L41,AS13) -> 0 | AU13: =AT13/(AV4-AT20) -> 0 | AV13: =IF(AU13=0,0,(AU13*((LOG(AU13))/LOG(2)))) -> 0
A14: 12 | B14: 1299 | C14: 14 | D14: 1301 | E14: 13 | F14: 1305 | G14: 14 | H14: 1316 | K14: 0 | L14: 1111 | N14: 1222 | O14: =COUNTIF($L$7:$L$500,N14) -> 7 | P14: =O14/$Q$4 -> 0.2058823529 | Q14: =IF(P14=0,0,(P14*((LOG(P14))/LOG(2)))) -> -0.4694339834 | T14: =N14 -> 1222 | U14: =COUNTIF(L7:L12,T14) -> 1 | V14: =U14/(W4-U20) -> 0.1666666667 | W14: =IF(V14=0,0,(V14*((LOG(V14))/LOG(2)))) -> -0.4308270835 | Y14: =N14 -> 1222 | Z14: =COUNTIF(L13:L18,Y14) -> 2 | AA14: =Z14/(AB4-Z20) -> 0.3333333333 | AB14: =IF(AA14=0,0,(AA14*((LOG(AA14))/LOG(2)))) -> -0.5283208336 | AD14: =N14 -> 1222 | AE14: =COUNTIF(L19:L23,AD14) -> 0 | AF14: =AE14/(AG4-AE20) -> 0 | AG14: =IF(AF14=0,0,(AF14*((LOG(AF14))/LOG(2)))) -> 0 | AI14: =N14 -> 1222 | AJ14: =COUNTIF(L24:L29,AI14) -> 1 | AK14: =AJ14/(AL4-AJ20) -> 0.1666666667 | AL14: =IF(AK14=0,0,(AK14*((LOG(AK14))/LOG(2)))) -> -0.4308270835 | AN14: =N14 -> 1222 | AO14: =COUNTIF(L30:L35,AN14) -> 2 | AP14: =AO14/(AQ4-AO20) -> 0.3333333333 | AQ14: =IF(AP14=0,0,(AP14*((LOG(AP14))/LOG(2)))) -> -0.5283208336 | AS14: =N14 -> 1222 | AT14: =COUNTIF(L36:L41,AS14) -> 1 | AU14: =AT14/(AV4-AT20) -> 0.2 | AV14: =IF(AU14=0,0,(AU14*((LOG(AU14))/LOG(2)))) -> -0.464385619
A15: 12 | B15: 1473 | C15: 14 | D15: 1479 | E15: 13 | F15: 1483 | G15: 14 | H15: 1488 | K15: 0 | L15: 1111 | N15: 2111 | O15: =COUNTIF($L$7:$L$500,N15) -> 3 | P15: =O15/$Q$4 -> 0.08823529412 | Q15: =IF(P15=0,0,(P15*((LOG(P15))/LOG(2)))) -> -0.3090441477 | T15: =N15 -> 2111 | U15: =COUNTIF(L7:L12,T15) -> 0 | V15: =U15/(W4-U20) -> 0 | W15: =IF(V15=0,0,(V15*((LOG(V15))/LOG(2)))) -> 0 | Y15: =N15 -> 2111 | Z15: =COUNTIF(L13:L18,Y15) -> 0 | AA15: =Z15/(AB4-Z20) -> 0 | AB15: =IF(AA15=0,0,(AA15*((LOG(AA15))/LOG(2)))) -> 0 | AD15: =N15 -> 2111 | AE15: =COUNTIF(L19:L23,AD15) -> 1 | AF15: =AE15/(AG4-AE20) -> 0.2 | AG15: =IF(AF15=0,0,(AF15*((LOG(AF15))/LOG(2)))) -> -0.464385619 | AI15: =N15 -> 2111 | AJ15: =COUNTIF(L24:L29,AI15) -> 1 | AK15: =AJ15/(AL4-AJ20) -> 0.1666666667 | AL15: =IF(AK15=0,0,(AK15*((LOG(AK15))/LOG(2)))) -> -0.4308270835 | AN15: =N15 -> 2111 | AO15: =COUNTIF(L30:L35,AN15) -> 1 | AP15: =AO15/(AQ4-AO20) -> 0.1666666667 | AQ15: =IF(AP15=0,0,(AP15*((LOG(AP15))/LOG(2)))) -> -0.4308270835 | AS15: =N15 -> 2111 | AT15: =COUNTIF(L36:L41,AS15) -> 0 | AU15: =AT15/(AV4-AT20) -> 0 | AV15: =IF(AU15=0,0,(AU15*((LOG(AU15))/LOG(2)))) -> 0
A16: 12 | B16: 1587 | C16: 23 | D16: 1597 | E16: 24 | F16: 1601 | G16: 23 | H16: 1605 | K16: 0 | L16: 1222 | N16: 2112 | O16: =COUNTIF($L$7:$L$500,N16) -> 0 | P16: =O16/$Q$4 -> 0 | Q16: =IF(P16=0,0,(P16*((LOG(P16))/LOG(2)))) -> 0 | T16: =N16 -> 2112 | U16: =COUNTIF(L7:L12,T16) -> 0 | V16: =U16/(W4-U20) -> 0 | W16: =IF(V16=0,0,(V16*((LOG(V16))/LOG(2)))) -> 0 | Y16: =N16 -> 2112 | Z16: =COUNTIF(L13:L18,Y16) -> 0 | AA16: =Z16/(AB4-Z20) -> 0 | AB16: =IF(AA16=0,0,(AA16*((LOG(AA16))/LOG(2)))) -> 0 | AD16: =N16 -> 2112 | AE16: =COUNTIF(L19:L23,AD16) -> 0 | AF16: =AE16/(AG4-AE20) -> 0 | AG16: =IF(AF16=0,0,(AF16*((LOG(AF16))/LOG(2)))) -> 0 | AI16: =N16 -> 2112 | AJ16: =COUNTIF(L24:L29,AI16) -> 0 | AK16: =AJ16/(AL4-AJ20) -> 0 | AL16: =IF(AK16=0,0,(AK16*((LOG(AK16))/LOG(2)))) -> 0 | AN16: =N16 -> 2112 | AO16: =COUNTIF(L30:L35,AN16) -> 0 | AP16: =AO16/(AQ4-AO20) -> 0 | AQ16: =IF(AP16=0,0,(AP16*((LOG(AP16))/LOG(2)))) -> 0 | AS16: =N16 -> 2112 | AT16: =COUNTIF(L36:L41,AS16) -> 0 | AU16: =AT16/(AV4-AT20) -> 0 | AV16: =IF(AU16=0,0,(AU16*((LOG(AU16))/LOG(2)))) -> 0
A17: 12 | B17: 1713 | C17: 23 | D17: 1728 | E17: 24 | F17: 1750 | G17: 23 | H17: 1752 | K17: 0 | L17: 1222 | N17: 2121 | O17: =COUNTIF($L$7:$L$500,N17) -> 0 | P17: =O17/$Q$4 -> 0 | Q17: =IF(P17=0,0,(P17*((LOG(P17))/LOG(2)))) -> 0 | T17: =N17 -> 2121 | U17: =COUNTIF(L7:L12,T17) -> 0 | V17: =U17/(W4-U20) -> 0 | W17: =IF(V17=0,0,(V17*((LOG(V17))/LOG(2)))) -> 0 | Y17: =N17 -> 2121 | Z17: =COUNTIF(L13:L18,Y17) -> 0 | AA17: =Z17/(AB4-Z20) -> 0 | AB17: =IF(AA17=0,0,(AA17*((LOG(AA17))/LOG(2)))) -> 0 | AD17: =N17 -> 2121 | AE17: =COUNTIF(L19:L23,AD17) -> 0 | AF17: =AE17/(AG4-AE20) -> 0 | AG17: =IF(AF17=0,0,(AF17*((LOG(AF17))/LOG(2)))) -> 0 | AI17: =N17 -> 2121 | AJ17: =COUNTIF(L24:L29,AI17) -> 0 | AK17: =AJ17/(AL4-AJ20) -> 0 | AL17: =IF(AK17=0,0,(AK17*((LOG(AK17))/LOG(2)))) -> 0 | AN17: =N17 -> 2121 | AO17: =COUNTIF(L30:L35,AN17) -> 0 | AP17: =AO17/(AQ4-AO20) -> 0 | AQ17: =IF(AP17=0,0,(AP17*((LOG(AP17))/LOG(2)))) -> 0 | AS17: =N17 -> 2121 | AT17: =COUNTIF(L36:L41,AS17) -> 0 | AU17: =AT17/(AV4-AT20) -> 0 | AV17: =IF(AU17=0,0,(AU17*((LOG(AU17))/LOG(2)))) -> 0
A18: 12 | B18: 1852 | C18: 14 | D18: 1854 | E18: 13 | F18: 1859 | G18: 23 | H18: 1873 | K18: 0 | L18: 1112 | N18: 2122 | O18: =COUNTIF($L$7:$L$500,N18) -> 0 | P18: =O18/$Q$4 -> 0 | Q18: =IF(P18=0,0,(P18*((LOG(P18))/LOG(2)))) -> 0 | T18: =N18 -> 2122 | U18: =COUNTIF(L7:L12,T18) -> 0 | V18: =U18/(W4-U20) -> 0 | W18: =IF(V18=0,0,(V18*((LOG(V18))/LOG(2)))) -> 0 | Y18: =N18 -> 2122 | Z18: =COUNTIF(L13:L18,Y18) -> 0 | AA18: =Z18/(AB4-Z20) -> 0 | AB18: =IF(AA18=0,0,(AA18*((LOG(AA18))/LOG(2)))) -> 0 | AD18: =N18 -> 2122 | AE18: =COUNTIF(L19:L23,AD18) -> 0 | AF18: =AE18/(AG4-AE20) -> 0 | AG18: =IF(AF18=0,0,(AF18*((LOG(AF18))/LOG(2)))) -> 0 | AI18: =N18 -> 2122 | AJ18: =COUNTIF(L24:L29,AI18) -> 0 | AK18: =AJ18/(AL4-AJ20) -> 0 | AL18: =IF(AK18=0,0,(AK18*((LOG(AK18))/LOG(2)))) -> 0 | AN18: =N18 -> 2122 | AO18: =COUNTIF(L30:L35,AN18) -> 0 | AP18: =AO18/(AQ4-AO20) -> 0 | AQ18: =IF(AP18=0,0,(AP18*((LOG(AP18))/LOG(2)))) -> 0 | AS18: =N18 -> 2122 | AT18: =COUNTIF(L36:L41,AS18) -> 0 | AU18: =AT18/(AV4-AT20) -> 0 | AV18: =IF(AU18=0,0,(AU18*((LOG(AU18))/LOG(2)))) -> 0
A19: 12 | B19: 1972 | C19: 14 | D19: 1974 | E19: 13 | F19: 1976 | G19: 14 | H19: 1982 | K19: 0 | L19: 1111 | N19: 2211 | O19: =COUNTIF($L$7:$L$500,N19) -> 0 | P19: =O19/$Q$4 -> 0 | Q19: =IF(P19=0,0,(P19*((LOG(P19))/LOG(2)))) -> 0 | T19: =N19 -> 2211 | U19: =COUNTIF(L7:L12,T19) -> 0 | V19: =U19/(W4-U20) -> 0 | W19: =IF(V19=0,0,(V19*((LOG(V19))/LOG(2)))) -> 0 | Y19: =N19 -> 2211 | Z19: =COUNTIF(L13:L18,Y19) -> 0 | AA19: =Z19/(AB4-Z20) -> 0 | AB19: =IF(AA19=0,0,(AA19*((LOG(AA19))/LOG(2)))) -> 0 | AD19: =N19 -> 2211 | AE19: =COUNTIF(L19:L23,AD19) -> 0 | AF19: =AE19/(AG4-AE20) -> 0 | AG19: =IF(AF19=0,0,(AF19*((LOG(AF19))/LOG(2)))) -> 0 | AI19: =N19 -> 2211 | AJ19: =COUNTIF(L24:L29,AI19) -> 0 | AK19: =AJ19/(AL4-AJ20) -> 0 | AL19: =IF(AK19=0,0,(AK19*((LOG(AK19))/LOG(2)))) -> 0 | AN19: =N19 -> 2211 | AO19: =COUNTIF(L30:L35,AN19) -> 0 | AP19: =AO19/(AQ4-AO20) -> 0 | AQ19: =IF(AP19=0,0,(AP19*((LOG(AP19))/LOG(2)))) -> 0 | AS19: =N19 -> 2211 | AT19: =COUNTIF(L36:L41,AS19) -> 0 | AU19: =AT19/(AV4-AT20) -> 0 | AV19: =IF(AU19=0,0,(AU19*((LOG(AU19))/LOG(2)))) -> 0
A20: 12 | B20: 2096 | C20: 14 | D20: 2100 | E20: 24 | F20: 2125 | G20: 23 | H20: 2131 | K20: 0 | L20: 1122 | N20: 2212 | O20: =COUNTIF($L$7:$L$500,N20) -> 0 | P20: =O20/$Q$4 -> 0 | Q20: =IF(P20=0,0,(P20*((LOG(P20))/LOG(2)))) -> 0 | T20: =N20 -> 2212 | U20: =COUNTIF(L7:L12,T20) -> 0 | Y20: =N20 -> 2212 | Z20: =COUNTIF(L13:L18,Y20) -> 0 | AD20: =N20 -> 2212 | AE20: =COUNTIF(L19:L23,AD20) -> 0 | AI20: =N20 -> 2212 | AJ20: =COUNTIF(L24:L29,AI20) -> 0 | AN20: =N20 -> 2212 | AO20: =COUNTIF(L30:L35,AN20) -> 0 | AS20: =N20 -> 2212 | AT20: =COUNTIF(L36:L41,AS20) -> 0
A21: 12 | B21: 2232 | C21: 14 | D21: 2235 | E21: 24 | F21: 2245 | G21: 23 | H21: 2249 | K21: 0 | L21: 1122 | N21: 2221 | O21: =COUNTIF($L$7:$L$500,N21) -> 0 | P21: =O21/$Q$4 -> 0 | Q21: =IF(P21=0,0,(P21*((LOG(P21))/LOG(2)))) -> 0 | T21: =N21 -> 2221 | U21: =COUNTIF(L7:L12,T21) -> 0 | V21: =U21/(W4-U20) -> 0 | W21: =IF(V21=0,0,(V21*((LOG(V21))/LOG(2)))) -> 0 | Y21: =N21 -> 2221 | Z21: =COUNTIF(L13:L18,Y21) -> 0 | AA21: =Z21/(AB4-Z20) -> 0 | AB21: =IF(AA21=0,0,(AA21*((LOG(AA21))/LOG(2)))) -> 0 | AD21: =N21 -> 2221 | AE21: =COUNTIF(L19:L23,AD21) -> 0 | AF21: =AE21/(AG4-AE20) -> 0 | AG21: =IF(AF21=0,0,(AF21*((LOG(AF21))/LOG(2)))) -> 0 | AI21: =N21 -> 2221 | AJ21: =COUNTIF(L24:L29,AI21) -> 0 | AK21: =AJ21/(AL4-AJ20) -> 0 | AL21: =IF(AK21=0,0,(AK21*((LOG(AK21))/LOG(2)))) -> 0 | AN21: =N21 -> 2221 | AO21: =COUNTIF(L30:L35,AN21) -> 0 | AP21: =AO21/(AQ4-AO20) -> 0 | AQ21: =IF(AP21=0,0,(AP21*((LOG(AP21))/LOG(2)))) -> 0 | AS21: =N21 -> 2221 | AT21: =COUNTIF(L36:L41,AS21) -> 0 | AU21: =AT21/(AV4-AT20) -> 0 | AV21: =IF(AU21=0,0,(AU21*((LOG(AU21))/LOG(2)))) -> 0
A22: 21 | B22: 2372 | C22: 12 | D22: 2384 | E22: 13 | F22: 2389 | G22: 14 | H22: 2400 | K22: 0 | L22: 2111 | N22: 2222 | O22: =COUNTIF($L$7:$L$500,N22) -> 0 | P22: =O22/$Q$4 -> 0 | Q22: =IF(P22=0,0,(P22*((LOG(P22))/LOG(2)))) -> 0 | T22: =N22 -> 2222 | U22: =COUNTIF(L7:L12,T22) -> 0 | V22: =U22/(W4-U20) -> 0 | W22: =IF(V22=0,0,(V22*((LOG(V22))/LOG(2)))) -> 0 | Y22: =N22 -> 2222 | Z22: =COUNTIF(L13:L18,Y22) -> 0 | AA22: =Z22/(AB4-Z20) -> 0 | AB22: =IF(AA22=0,0,(AA22*((LOG(AA22))/LOG(2)))) -> 0 | AD22: =N22 -> 2222 | AE22: =COUNTIF(L19:L23,AD22) -> 0 | AF22: =AE22/(AG4-AE20) -> 0 | AG22: =IF(AF22=0,0,(AF22*((LOG(AF22))/LOG(2)))) -> 0 | AI22: =N22 -> 2222 | AJ22: =COUNTIF(L24:L29,AI22) -> 0 | AK22: =AJ22/(AL4-AJ20) -> 0 | AL22: =IF(AK22=0,0,(AK22*((LOG(AK22))/LOG(2)))) -> 0 | AN22: =N22 -> 2222 | AO22: =COUNTIF(L30:L35,AN22) -> 0 | AP22: =AO22/(AQ4-AO20) -> 0 | AQ22: =IF(AP22=0,0,(AP22*((LOG(AP22))/LOG(2)))) -> 0 | AS22: =N22 -> 2222 | AT22: =COUNTIF(L36:L41,AS22) -> 0 | AU22: =AT22/(AV4-AT20) -> 0 | AV22: =IF(AU22=0,0,(AU22*((LOG(AU22))/LOG(2)))) -> 0
A23: 12 | B23: 2510 | C23: 14 | D23: 2513 | E23: 13 | F23: 2517 | G23: 14 | H23: 2539 | K23: 0 | L23: 1111 | P23: =SUM(P7:P22) -> 1 | Q23: =-SUM(Q7:Q22) -> 2.483188211 | V23: =SUM(V7:V22) -> 1 | W23: =-SUM(W7:W22) -> 1.79248125 | AA23: =SUM(AA7:AA22) -> 1 | AB23: =-SUM(AB7:AB22) -> 1.918295834 | AF23: =SUM(AF7:AF22) -> 1 | AG23: =-SUM(AG7:AG22) -> 1.521928095 | AK23: =SUM(AK7:AK22) -> 1 | AL23: =-SUM(AL7:AL22) -> 2.251629167 | AP23: =SUM(AP7:AP22) -> 1 | AQ23: =-SUM(AQ7:AQ22) -> 1.918295834 | AU23: =SUM(AU7:AU22) -> 1 | AV23: =-SUM(AV7:AV22) -> 1.921928095
A24: 21 | B24: 2664 | C24: 12 | D24: 2673 | E24: 13 | F24: 2676 | G24: 14 | H24: 2681 | K24: 0 | L24: 2111 | P24: U= | Q24: =Q23/(LOG(Q4)/LOG(2)) -> 0.4880995278 | V24: U1= | W24: =W23/(LOG(W4)/LOG(2)) -> 0.6934264036 | AA24: U2= | AB24: =AB23/(LOG(AB4)/LOG(2)) -> 0.7420981285 | AF24: U3= | AG24: =AG23/(LOG(AG4)/LOG(2)) -> 0.6554587535 | AK24: U4= | AL24: =AL23/(LOG(AL4)/LOG(2)) -> 0.8710490643 | AP24: U5= | AQ24: =AQ23/(LOG(AQ4)/LOG(2)) -> 0.7420981285 | AU24: U6= | AV24: =AV23/(LOG(AV4)/LOG(2)) -> 0.8277293768
A25: 12 | B25: 2815 | C25: 14 | D25: 2817 | E25: 13 | F25: 2831 | G25: 14 | H25: 2833 | K25: 0 | L25: 1111
A26: 12 | B26: 2941 | C26: 14 | D26: 2946 | E26: 13 | F26: 2950 | G26: 14 | H26: 2953 | K26: 0 | L26: 1111
A27: 12 | B27: 3117 | C27: 23 | D27: 3125 | E27: 13 | F27: 3137 | G27: 14 | H27: 3146 | K27: 0 | L27: 1211 | N27: Total Target Seq
A28: 12 | B28: 3266 | C28: 14 | D28: 3269 | E28: 24 | F28: 3283 | G28: 23 | H28: 3293 | K28: 0 | L28: 1122 | N28: =COUNTIF(L7:L41,G3) -> 0 | P28: 6 | Q28: 6 | R28: 5 | S28: 6 | T28: 6 | U28: 6
A29: 12 | B29: 3402 | C29: 23 | D29: 3419 | E29: 24 | F29: 3426 | G29: 23 | H29: 3432 | K29: 0 | L29: 1222 | P29: % of reinforcement given in 6 equal intervals based on number of trials
A30: 12 | B30: 3548 | C30: 14 | D30: 3551 | E30: 13 | F30: 3559 | G30: 14 | H30: 3578 | K30: 0 | L30: 1111 | P30: %_1 | Q30: %_2 | R30: %_3 | S30: %_4 | T30: %_5 | U30: %_6
A31: 21 | B31: 3751 | C31: 12 | D31: 3773 | E31: 13 | F31: 3778 | G31: 14 | H31: 3781 | K31: 0 | L31: 2111 | O31: target sequence | P31: =$G$3 -> 2212 | Q31: =$G$3 -> 2212 | R31: =$G$3 -> 2212 | S31: =$G$3 -> 2212 | T31: =$G$3 -> 2212 | U31: =$G$3 -> 2212
A32: 12 | B32: 6132 | C32: 23 | D32: 6141 | E32: 24 | F32: 6145 | G32: 23 | H32: 6151 | K32: 0 | L32: 1222 | O32: total reinforcement | P32: =U20 -> 0 | Q32: =Z20 -> 0 | R32: =AE20 -> 0 | S32: =AJ20 -> 0 | T32: =AO20 -> 0 | U32: =AT20 -> 0
A33: 12 | B33: 6265 | C33: 14 | D33: 6268 | E33: 13 | F33: 6275 | G33: 23 | H33: 6288 | K33: 0 | L33: 1112 | O33: % target
A34: 12 | B34: 6424 | C34: 14 | D34: 6434 | E34: 13 | F34: 6440 | G34: 14 | H34: 6445 | K34: 0 | L34: 1111 | O34: CCRF
A35: 12 | B35: 6771 | C35: 23 | D35: 6788 | E35: 24 | F35: 6793 | G35: 23 | H35: 6801 | K35: 0 | L35: 1222 | O35: % CCRf
A36: 12 | B36: 10688 | C36: 23 | D36: 10703 | E36: 24 | F36: 10708 | G36: 23 | H36: 10714 | K36: 0 | L36: 1222 | O36: average response rate | P36: =H12/P28 -> 174.6666667 | Q36: =(H18-H12)/Q28 -> 137.5 | R36: =(H23-H18)/R28 -> 133.2 | S36: =(H29-H23)/S28 -> 148.8333333 | T36: =(H35-H29)/T28 -> 561.5 | U36: =(H41-H35)/U28 -> -1133.5
A37: 12 | B37: 10830 | C37: 14 | D37: 10845 | E37: 13 | F37: 10851 | G37: 23 | H37: 10860 | K37: 0 | L37: 1112
A38: 12 | B38: 10961 | C38: 14 | D38: 10964 | E38: 13 | F38: 10967 | G38: 14 | H38: 10982 | K38: 0 | L38: 1111
A39: 12 | B39: 11108 | C39: 14 | D39: 11112 | E39: 24 | F39: 11121 | G39: 23 | H39: 11139 | K39: 0 | L39: 1122
A40: 12 | B40: 19777 | C40: 14 | D40: 19783 | E40: 13 | F40: 19811 | G40: 23 | H40: 20034 | K40: 0 | L40: 1112
A41: 12 | B41: 23123 | C41: 14 | D41: 23126 | L41: 11

Sheet !M115A3T.ayl
A1: Report for:!M115A3T.ayl
A2: Date: | B2: <date>
A3: Hen: | B3: <hen> | F3: Correct Sequence | G3: =Start!J2 -> 2212 | P3: Total Sequences in Data | Q3: =4994-COUNTBLANK(L7:L5000) -> 27 | V3: Total Sequences in Block Data | W3: =COUNTA(L7:L11) -> 5 | AA3: Total Sequences in Block Data | AB3: =COUNTA(L12:L15) -> 4 | AF3: Total Sequences in Block Data | AG3: =COUNTA(L16:L20) -> 5 | AK3: Total Sequences in Block Data | AL3: =COUNTA(L21:L24) -> 4 | AP3: Total Sequences in Block Data | AQ3: =COUNTA(L25:L29) -> 5 | AU3: Total Sequences in Block Data | AV3: =COUNTA(L30:L33) -> 4
P4: Total Sequences in Summary | Q4: =SUM(O7:O22) -> 27 | V4: Total Sequences in Block Summary | W4: =SUM(U7:U22) -> 5 | AA4: Total Sequences in Block Summary | AB4: =SUM(Z7:Z22) -> 4 | AF4: Total Sequences in Block Summary | AG4: =SUM(AE7:AE22) -> 5 | AK4: Total Sequences in Block Summary | AL4: =SUM(AJ7:AJ22) -> 4 | AP4: Total Sequences in Block Summary | AQ4: =SUM(AO7:AO22) -> 5 | AU4: Total Sequences in Block Summary | AV4: =SUM(AT7:AT22) -> 4
T5: Block 1 | Y5: Block 2 | AD5: Block 3 | AI5: Block 4 | AN5: Block 5 | AS5: Block 6
A6: Sequence Component 1 | B6: Time 1 | C6: Sequence Component 2 | D6: Time 2 | E6: Sequence Component 3 | F6: Time 3 | G6: Sequence Component 4 | H6: Time 4 | I6: Sequence Component 5 | J6: Time 5 | K6: Correct? 0=No 1=Yes | L6: Sequence | N6: Frequency | P6: Relative Frequency | Q6: Variability | T6: Frequency | V6: Relative Frequency | W6: Variability | Y6: Frequency | AA6: Relative Frequency | AB6: Variability | AD6: Frequency | AF6: Relative Frequency | AG6: Variability | AI6: Frequency | AK6: Relative Frequency | AL6: Variability | AN6: Frequency | AP6: Relative Frequency | AQ6: Variability | AS6: Frequency | AU6: Relative Frequency | AV6: Variability
A7: 21 | B7: 24 | C7: 21 | D7: 29 | E7: 22 | F7: 35 | G7: 23 | H7: 46 | K7: 0 | L7: 2222 | N7: 1111 | O7: =COUNTIF($L$7:$L$500,N7) -> 7 | P7: =O7/$Q$4 -> 0.2592592593 | Q7: =IF(P7=0,0,(P7*((LOG(P7))/LOG(2)))) -> -0.5049158541 | T7: =N7 -> 1111 | U7: =COUNTIF(L7:L11,T7) -> 0 | V7: =U7/(W4-U20) -> 0 | W7: =IF(V7=0,0,(V7*((LOG(V7))/LOG(2)))) -> 0 | Y7: =N7 -> 1111 | Z7: =COUNTIF(L12:L15,Y7) -> 3 | AA7: =Z7/(AB4-Z20) -> 0.75 | AB7: =IF(AA7=0,0,(AA7*((LOG(AA7))/LOG(2)))) -> -0.3112781245 | AD7: =N7 -> 1111 | AE7: =COUNTIF(L16:L20,AD7) -> 1 | AF7: =AE7/(AG4-AE20) -> 0.2 | AG7: =IF(AF7=0,0,(AF7*((LOG(AF7))/LOG(2)))) -> -0.464385619 | AI7: =N7 -> 1111 | AJ7: =COUNTIF(L21:L24,AI7) -> 0 | AK7: =AJ7/(AL4-AJ20) -> 0 | AL7: =IF(AK7=0,0,(AK7*((LOG(AK7))/LOG(2)))) -> 0 | AN7: =N7 -> 1111 | AO7: =COUNTIF(L25:L29,AN7) -> 3 | AP7: =AO7/(AQ4-AO20) -> 0.6 | AQ7: =IF(AP7=0,0,(AP7*((LOG(AP7))/LOG(2)))) -> -0.4421793565 | AS7: =N7 -> 1111 | AT7: =COUNTIF(L30:L33,AS7) -> 0 | AU7: =AT7/(AV4-AT20) -> 0 | AV7: =IF(AU7=0,0,(AU7*((LOG(AU7))/LOG(2)))) -> 0
A8: 12 | B8: 146 | C8: 23 | D8: 157 | E8: 24 | F8: 160 | G8: 23 | H8: 163 | K8: 0 | L8: 1222 | N8: 1112 | O8: =COUNTIF($L$7:$L$500,N8) -> 3 | P8: =O8/$Q$4 -> 0.1111111111 | Q8: =IF(P8=0,0,(P8*((LOG(P8))/LOG(2)))) -> -0.352213889 | T8: =N8 -> 1112 | U8: =COUNTIF(L7:L11,T8) -> 1 | V8: =U8/(W4-U20) -> 0.2 | W8: =IF(V8=0,0,(V8*((LOG(V8))/LOG(2)))) -> -0.464385619 | Y8: =N8 -> 1112 | Z8: =COUNTIF(L12:L15,Y8) -> 0 | AA8: =Z8/(AB4-Z20) -> 0 | AB8: =IF(AA8=0,0,(AA8*((LOG(AA8))/LOG(2)))) -> 0 | AD8: =N8 -> 1112 | AE8: =COUNTIF(L16:L20,AD8) -> 0 | AF8: =AE8/(AG4-AE20) -> 0 | AG8: =IF(AF8=0,0,(AF8*((LOG(AF8))/LOG(2)))) -> 0 | AI8: =N8 -> 1112 | AJ8: =COUNTIF(L21:L24,AI8) -> 1 | AK8: =AJ8/(AL4-AJ20) -> 0.25 | AL8: =IF(AK8=0,0,(AK8*((LOG(AK8))/LOG(2)))) -> -0.5 | AN8: =N8 -> 1112 | AO8: =COUNTIF(L25:L29,AN8) -> 0 | AP8: =AO8/(AQ4-AO20) -> 0 | AQ8: =IF(AP8=0,0,(AP8*((LOG(AP8))/LOG(2)))) -> 0 | AS8: =N8 -> 1112 | AT8: =COUNTIF(L30:L33,AS8) -> 1 | AU8: =AT8/(AV4-AT20) -> 0.25 | AV8: =IF(AU8=0,0,(AU8*((LOG(AU8))/LOG(2)))) -> -0.5
A9: 12 | B9: 261 | C9: 23 | D9: 273 | E9: 24 | F9: 276 | G9: 23 | H9: 281 | K9: 0 | L9: 1222 | N9: 1121 | O9: =COUNTIF($L$7:$L$500,N9) -> 0 | P9: =O9/$Q$4 -> 0 | Q9: =IF(P9=0,0,(P9*((LOG(P9))/LOG(2)))) -> 0 | T9: =N9 -> 1121 | U9: =COUNTIF(L7:L11,T9) -> 0 | V9: =U9/(W4-U20) -> 0 | W9: =IF(V9=0,0,(V9*((LOG(V9))/LOG(2)))) -> 0 | Y9: =N9 -> 1121 | Z9: =COUNTIF(L12:L15,Y9) -> 0 | AA9: =Z9/(AB4-Z20) -> 0 | AB9: =IF(AA9=0,0,(AA9*((LOG(AA9))/LOG(2)))) -> 0 | AD9: =N9 -> 1121 | AE9: =COUNTIF(L16:L20,AD9) -> 0 | AF9: =AE9/(AG4-AE20) -> 0 | AG9: =IF(AF9=0,0,(AF9*((LOG(AF9))/LOG(2)))) -> 0 | AI9: =N9 -> 1121 | AJ9: =COUNTIF(L21:L24,AI9) -> 0 | AK9: =AJ9/(AL4-AJ20) -> 0 | AL9: =IF(AK9=0,0,(AK9*((LOG(AK9))/LOG(2)))) -> 0 | AN9: =N9 -> 1121 | AO9: =COUNTIF(L25:L29,AN9) -> 0 | AP9: =AO9/(AQ4-AO20) -> 0 | AQ9: =IF(AP9=0,0,(AP9*((LOG(AP9))/LOG(2)))) -> 0 | AS9: =N9 -> 1121 | AT9: =COUNTIF(L30:L33,AS9) -> 0 | AU9: =AT9/(AV4-AT20) -> 0 | AV9: =IF(AU9=0,0,(AU9*((LOG(AU9))/LOG(2)))) -> 0
A10: 12 | B10: 379 | C10: 23 | D10: 393 | E10: 24 | F10: 397 | G10: 23 | H10: 403 | K10: 0 | L10: 1222 | N10: 1122 | O10: =COUNTIF($L$7:$L$500,N10) -> 6 | P10: =O10/$Q$4 -> 0.2222222222 | Q10: =IF(P10=0,0,(P10*((LOG(P10))/LOG(2)))) -> -0.4822055559 | T10: =N10 -> 1122 | U10: =COUNTIF(L7:L11,T10) -> 0 | V10: =U10/(W4-U20) -> 0 | W10: =IF(V10=0,0,(V10*((LOG(V10))/LOG(2)))) -> 0 | Y10: =N10 -> 1122 | Z10: =COUNTIF(L12:L15,Y10) -> 1 | AA10: =Z10/(AB4-Z20) -> 0.25 | AB10: =IF(AA10=0,0,(AA10*((LOG(AA10))/LOG(2)))) -> -0.5 | AD10: =N10 -> 1122 | AE10: =COUNTIF(L16:L20,AD10) -> 2 | AF10: =AE10/(AG4-AE20) -> 0.4 | AG10: =IF(AF10=0,0,(AF10*((LOG(AF10))/LOG(2)))) -> -0.528771238 | AI10: =N10 -> 1122 | AJ10: =COUNTIF(L21:L24,AI10) -> 2 | AK10: =AJ10/(AL4-AJ20) -> 0.5 | AL10: =IF(AK10=0,0,(AK10*((LOG(AK10))/LOG(2)))) -> -0.5 | AN10: =N10 -> 1122 | AO10: =COUNTIF(L25:L29,AN10) -> 1 | AP10: =AO10/(AQ4-AO20) -> 0.2 | AQ10: =IF(AP10=0,0,(AP10*((LOG(AP10))/LOG(2)))) -> -0.464385619 | AS10: =N10 -> 1122 | AT10: =COUNTIF(L30:L33,AS10) -> 0 | AU10: =AT10/(AV4-AT20) -> 0 | AV10: =IF(AU10=0,0,(AU10*((LOG(AU10))/LOG(2)))) -> 0
A11: 12 | B11: 510 | C11: 14 | D11: 513 | E11: 13 | F11: 519 | G11: 23 | H11: 535 | K11: 0 | L11: 1112 | N11: 1211 | O11: =COUNTIF($L$7:$L$500,N11) -> 1 | P11: =O11/$Q$4 -> 0.03703703704 | Q11: =IF(P11=0,0,(P11*((LOG(P11))/LOG(2)))) -> -0.1761069445 | T11: =N11 -> 1211 | U11: =COUNTIF(L7:L11,T11) -> 0 | V11: =U11/(W4-U20) -> 0 | W11: =IF(V11=0,0,(V11*((LOG(V11))/LOG(2)))) -> 0 | Y11: =N11 -> 1211 | Z11: =COUNTIF(L12:L15,Y11) -> 0 | AA11: =Z11/(AB4-Z20) -> 0 | AB11: =IF(AA11=0,0,(AA11*((LOG(AA11))/LOG(2)))) -> 0 | AD11: =N11 -> 1211 | AE11: =COUNTIF(L16:L20,AD11) -> 0 | AF11: =AE11/(AG4-AE20) -> 0 | AG11: =IF(AF11=0,0,(AF11*((LOG(AF11))/LOG(2)))) -> 0 | AI11: =N11 -> 1211 | AJ11: =COUNTIF(L21:L24,AI11) -> 0 | AK11: =AJ11/(AL4-AJ20) -> 0 | AL11: =IF(AK11=0,0,(AK11*((LOG(AK11))/LOG(2)))) -> 0 | AN11: =N11 -> 1211 | AO11: =COUNTIF(L25:L29,AN11) -> 0 | AP11: =AO11/(AQ4-AO20) -> 0 | AQ11: =IF(AP11=0,0,(AP11*((LOG(AP11))/LOG(2)))) -> 0 | AS11: =N11 -> 1211 | AT11: =COUNTIF(L30:L33,AS11) -> 1 | AU11: =AT11/(AV4-AT20) -> 0.25 | AV11: =IF(AU11=0,0,(AU11*((LOG(AU11))/LOG(2)))) -> -0.5
A12: 12 | B12: 637 | C12: 14 | D12: 641 | E12: 13 | F12: 644 | G12: 14 | H12: 649 | K12: 0 | L12: 1111 | N12: 1212 | O12: =COUNTIF($L$7:$L$500,N12) -> 0 | P12: =O12/$Q$4 -> 0 | Q12: =IF(P12=0,0,(P12*((LOG(P12))/LOG(2)))) -> 0 | T12: =N12 -> 1212 | U12: =COUNTIF(L7:L11,T12) -> 0 | V12: =U12/(W4-U20) -> 0 | W12: =IF(V12=0,0,(V12*((LOG(V12))/LOG(2)))) -> 0 | Y12: =N12 -> 1212 | Z12: =COUNTIF(L12:L15,Y12) -> 0 | AA12: =Z12/(AB4-Z20) -> 0 | AB12: =IF(AA12=0,0,(AA12*((LOG(AA12))/LOG(2)))) -> 0 | AD12: =N12 -> 1212 | AE12: =COUNTIF(L16:L20,AD12) -> 0 | AF12: =AE12/(AG4-AE20) -> 0 | AG12: =IF(AF12=0,0,(AF12*((LOG(AF12))/LOG(2)))) -> 0 | AI12: =N12 -> 1212 | AJ12: =COUNTIF(L21:L24,AI12) -> 0 | AK12: =AJ12/(AL4-AJ20) -> 0 | AL12: =IF(AK12=0,0,(AK12*((LOG(AK12))/LOG(2)))) -> 0 | AN12: =N12 -> 1212 | AO12: =COUNTIF(L25:L29,AN12) -> 0 | AP12: =AO12/(AQ4-AO20) -> 0 | AQ12: =IF(AP12=0,0,(AP12*((LOG(AP12))/LOG(2)))) -> 0 | AS12: =N12 -> 1212 | AT12: =COUNTIF(L30:L33,AS12) -> 0 | AU12: =AT12/(AV4-AT20) -> 0 | AV12: =IF(AU12=0,0,(AU12*((LOG(AU12))/LOG(2)))) -> 0
A13: 12 | B13: 762 | C13: 14 | D13: 777 | E13: 13 | F13: 792 | G13: 14 | H13: 808 | K13: 0 | L13: 1111 | N13: 1221 | O13: =COUNTIF($L$7:$L$500,N13) -> 1 | P13: =O13/$Q$4 -> 0.03703703704 | Q13: =IF(P13=0,0,(P13*((LOG(P13))/LOG(2)))) -> -0.1761069445 | T13: =N13 -> 1221 | U13: =COUNTIF(L7:L11,T13) -> 0 | V13: =U13/(W4-U20) -> 0 | W13: =IF(V13=0,0,(V13*((LOG(V13))/LOG(2)))) -> 0 | Y13: =N13 -> 1221 | Z13: =COUNTIF(L12:L15,Y13) -> 0 | AA13: =Z13/(AB4-Z20) -> 0 | AB13: =IF(AA13=0,0,(AA13*((LOG(AA13))/LOG(2)))) -> 0 | AD13: =N13 -> 1221 | AE13: =COUNTIF(L16:L20,AD13) -> 0 | AF13: =AE13/(AG4-AE20) -> 0 | AG13: =IF(AF13=0,0,(AF13*((LOG(AF13))/LOG(2)))) -> 0 | AI13: =N13 -> 1221 | AJ13: =COUNTIF(L21:L24,AI13) -> 1 | AK13: =AJ13/(AL4-AJ20) -> 0.25 | AL13: =IF(AK13=0,0,(AK13*((LOG(AK13))/LOG(2)))) -> -0.5 | AN13: =N13 -> 1221 | AO13: =COUNTIF(L25:L29,AN13) -> 0 | AP13: =AO13/(AQ4-AO20) -> 0 | AQ13: =IF(AP13=0,0,(AP13*((LOG(AP13))/LOG(2)))) -> 0 | AS13: =N13 -> 1221 | AT13: =COUNTIF(L30:L33,AS13) -> 0 | AU13: =AT13/(AV4-AT20) -> 0 | AV13: =IF(AU13=0,0,(AU13*((LOG(AU13))/LOG(2)))) -> 0
A14: 12 | B14: 915 | C14: 14 | D14: 918 | E14: 24 | F14: 927 | G14: 23 | H14: 935 | K14: 0 | L14: 1122 | N14: 1222 | O14: =COUNTIF($L$7:$L$500,N14) -> 4 | P14: =O14/$Q$4 -> 0.1481481481 | Q14: =IF(P14=0,0,(P14*((LOG(P14))/LOG(2)))) -> -0.4081314818 | T14: =N14 -> 1222 | U14: =COUNTIF(L7:L11,T14) -> 3 | V14: =U14/(W4-U20) -> 0.6 | W14: =IF(V14=0,0,(V14*((LOG(V14))/LOG(2)))) -> -0.4421793565 | Y14: =N14 -> 1222 | Z14: =COUNTIF(L12:L15,Y14) -> 0 | AA14: =Z14/(AB4-Z20) -> 0 | AB14: =IF(AA14=0,0,(AA14*((LOG(AA14))/LOG(2)))) -> 0 | AD14: =N14 -> 1222 | AE14: =COUNTIF(L16:L20,AD14) -> 0 | AF14: =AE14/(AG4-AE20) -> 0 | AG14: =IF(AF14=0,0,(AF14*((LOG(AF14))/LOG(2)))) -> 0 | AI14: =N14 -> 1222 | AJ14: =COUNTIF(L21:L24,AI14) -> 0 | AK14: =AJ14/(AL4-AJ20) -> 0 | AL14: =IF(AK14=0,0,(AK14*((LOG(AK14))/LOG(2)))) -> 0 | AN14: =N14 -> 1222 | AO14: =COUNTIF(L25:L29,AN14) -> 0 | AP14: =AO14/(AQ4-AO20) -> 0 | AQ14: =IF(AP14=0,0,(AP14*((LOG(AP14))/LOG(2)))) -> 0 | AS14: =N14 -> 1222 | AT14: =COUNTIF(L30:L33,AS14) -> 1 | AU14: =AT14/(AV4-AT20) -> 0.25 | AV14: =IF(AU14=0,0,(AU14*((LOG(AU14))/LOG(2)))) -> -0.5
A15: 12 | B15: 1047 | C15: 14 | D15: 1055 | E15: 13 | F15: 1060 | G15: 14 | H15: 1067 | K15: 0 | L15: 1111 | N15: 2111 | O15: =COUNTIF($L$7:$L$500,N15) -> 0 | P15: =O15/$Q$4 -> 0 | Q15: =IF(P15=0,0,(P15*((LOG(P15))/LOG(2)))) -> 0 | T15: =N15 -> 2111 | U15: =COUNTIF(L7:L11,T15) -> 0 | V15: =U15/(W4-U20) -> 0 | W15: =IF(V15=0,0,(V15*((LOG(V15))/LOG(2)))) -> 0 | Y15: =N15 -> 2111 | Z15: =COUNTIF(L12:L15,Y15) -> 0 | AA15: =Z15/(AB4-Z20) -> 0 | AB15: =IF(AA15=0,0,(AA15*((LOG(AA15))/LOG(2)))) -> 0 | AD15: =N15 -> 2111 | AE15: =COUNTIF(L16:L20,AD15) -> 0 | AF15: =AE15/(AG4-AE20) -> 0 | AG15: =IF(AF15=0,0,(AF15*((LOG(AF15))/LOG(2)))) -> 0 | AI15: =N15 -> 2111 | AJ15: =COUNTIF(L21:L24,AI15) -> 0 | AK15: =AJ15/(AL4-AJ20) -> 0 | AL15: =IF(AK15=0,0,(AK15*((LOG(AK15))/LOG(2)))) -> 0 | AN15: =N15 -> 2111 | AO15: =COUNTIF(L25:L29,AN15) -> 0 | AP15: =AO15/(AQ4-AO20) -> 0 | AQ15: =IF(AP15=0,0,(AP15*((LOG(AP15))/LOG(2)))) -> 0 | AS15: =N15 -> 2111 | AT15: =COUNTIF(L30:L33,AS15) -> 0 | AU15: =AT15/(AV4-AT20) -> 0 | AV15: =IF(AU15=0,0,(AU15*((LOG(AU15))/LOG(2)))) -> 0
A16: 12 | B16: 1313 | C16: 14 | D16: 1327 | E16: 13 | F16: 1332 | G16: 14 | H16: 1337 | K16: 0 | L16: 1111 | N16: 2112 | O16: =COUNTIF($L$7:$L$500,N16) -> 0 | P16: =O16/$Q$4 -> 0 | Q16: =IF(P16=0,0,(P16*((LOG(P16))/LOG(2)))) -> 0 | T16: =N16 -> 2112 | U16: =COUNTIF(L7:L11,T16) -> 0 | V16: =U16/(W4-U20) -> 0 | W16: =IF(V16=0,0,(V16*((LOG(V16))/LOG(2)))) -> 0 | Y16: =N16 -> 2112 | Z16: =COUNTIF(L12:L15,Y16) -> 0 | AA16: =Z16/(AB4-Z20) -> 0 | AB16: =IF(AA16=0,0,(AA16*((LOG(AA16))/LOG(2)))) -> 0 | AD16: =N16 -> 2112 | AE16: =COUNTIF(L16:L20,AD16) -> 0 | AF16: =AE16/(AG4-AE20) -> 0 | AG16: =IF(AF16=0,0,(AF16*((LOG(AF16))/LOG(2)))) -> 0 | AI16: =N16 -> 2112 | AJ16: =COUNTIF(L21:L24,AI16) -> 0 | AK16: =AJ16/(AL4-AJ20) -> 0 | AL16: =IF(AK16=0,0,(AK16*((LOG(AK16))/LOG(2)))) -> 0 | AN16: =N16 -> 2112 | AO16: =COUNTIF(L25:L29,AN16) -> 0 | AP16: =AO16/(AQ4-AO20) -> 0 | AQ16: =IF(AP16=0,0,(AP16*((LOG(AP16))/LOG(2)))) -> 0 | AS16: =N16 -> 2112 | AT16: =COUNTIF(L30:L33,AS16) -> 0 | AU16: =AT16/(AV4-AT20) -> 0 | AV16: =IF(AU16=0,0,(AU16*((LOG(AU16))/LOG(2)))) -> 0
A17: 21 | B17: 1473 | C17: 21 | D17: 1477 | E17: 22 | F17: 1482 | G17: 23 | H17: 1487 | K17: 0 | L17: 2222 | N17: 2121 | O17: =COUNTIF($L$7:$L$500,N17) -> 0 | P17: =O17/$Q$4 -> 0 | Q17: =IF(P17=0,0,(P17*((LOG(P17))/LOG(2)))) -> 0 | T17: =N17 -> 2121 | U17: =COUNTIF(L7:L11,T17) -> 0 | V17: =U17/(W4-U20) -> 0 | W17: =IF(V17=0,0,(V17*((LOG(V17))/LOG(2)))) -> 0 | Y17: =N17 -> 2121 | Z17: =COUNTIF(L12:L15,Y17) -> 0 | AA17: =Z17/(AB4-Z20) -> 0 | AB17: =IF(AA17=0,0,(AA17*((LOG(AA17))/LOG(2)))) -> 0 | AD17: =N17 -> 2121 | AE17: =COUNTIF(L16:L20,AD17) -> 0 | AF17: =AE17/(AG4-AE20) -> 0 | AG17: =IF(AF17=0,0,(AF17*((LOG(AF17))/LOG(2)))) -> 0 | AI17: =N17 -> 2121 | AJ17: =COUNTIF(L21:L24,AI17) -> 0 | AK17: =AJ17/(AL4-AJ20) -> 0 | AL17: =IF(AK17=0,0,(AK17*((LOG(AK17))/LOG(2)))) -> 0 | AN17: =N17 -> 2121 | AO17: =COUNTIF(L25:L29,AN17) -> 0 | AP17: =AO17/(AQ4-AO20) -> 0 | AQ17: =IF(AP17=0,0,(AP17*((LOG(AP17))/LOG(2)))) -> 0 | AS17: =N17 -> 2121 | AT17: =COUNTIF(L30:L33,AS17) -> 0 | AU17: =AT17/(AV4-AT20) -> 0 | AV17: =IF(AU17=0,0,(AU17*((LOG(AU17))/LOG(2)))) -> 0
A18: 12 | B18: 1587 | C18: 14 | D18: 1589 | E18: 24 | F18: 1596 | G18: 23 | H18: 1600 | K18: 0 | L18: 1122 | N18: 2122 | O18: =COUNTIF($L$7:$L$500,N18) -> 0 | P18: =O18/$Q$4 -> 0 | Q18: =IF(P18=0,0,(P18*((LOG(P18))/LOG(2)))) -> 0 | T18: =N18 -> 2122 | U18: =COUNTIF(L7:L11,T18) -> 0 | V18: =U18/(W4-U20) -> 0 | W18: =IF(V18=0,0,(V18*((LOG(V18))/LOG(2)))) -> 0 | Y18: =N18 -> 2122 | Z18: =COUNTIF(L12:L15,Y18) -> 0 | AA18: =Z18/(AB4-Z20) -> 0 | AB18: =IF(AA18=0,0,(AA18*((LOG(AA18))/LOG(2)))) -> 0 | AD18: =N18 -> 2122 | AE18: =COUNTIF(L16:L20,AD18) -> 0 | AF18: =AE18/(AG4-AE20) -> 0 | AG18: =IF(AF18=0,0,(AF18*((LOG(AF18))/LOG(2)))) -> 0 | AI18: =N18 -> 2122 | AJ18: =COUNTIF(L21:L24,AI18) -> 0 | AK18: =AJ18/(AL4-AJ20) -> 0 | AL18: =IF(AK18=0,0,(AK18*((LOG(AK18))/LOG(2)))) -> 0 | AN18: =N18 -> 2122 | AO18: =COUNTIF(L25:L29,AN18) -> 0 | AP18: =AO18/(AQ4-AO20) -> 0 | AQ18: =IF(AP18=0,0,(AP18*((LOG(AP18))/LOG(2)))) -> 0 | AS18: =N18 -> 2122 | AT18: =COUNTIF(L30:L33,AS18) -> 0 | AU18: =AT18/(AV4-AT20) -> 0 | AV18: =IF(AU18=0,0,(AU18*((LOG(AU18))/LOG(2)))) -> 0
A19: 12 | B19: 1727 | C19: 14 | D19: 1729 | E19: 24 | F19: 1742 | G19: 23 | H19: 1746 | K19: 0 | L19: 1122 | N19: 2211 | O19: =COUNTIF($L$7:$L$500,N19) -> 0 | P19: =O19/$Q$4 -> 0 | Q19: =IF(P19=0,0,(P19*((LOG(P19))/LOG(2)))) -> 0 | T19: =N19 -> 2211 | U19: =COUNTIF(L7:L11,T19) -> 0 | V19: =U19/(W4-U20) -> 0 | W19: =IF(V19=0,0,(V19*((LOG(V19))/LOG(2)))) -> 0 | Y19: =N19 -> 2211 | Z19: =COUNTIF(L12:L15,Y19) -> 0 | AA19: =Z19/(AB4-Z20) -> 0 | AB19: =IF(AA19=0,0,(AA19*((LOG(AA19))/LOG(2)))) -> 0 | AD19: =N19 -> 2211 | AE19: =COUNTIF(L16:L20,AD19) -> 0 | AF19: =AE19/(AG4-AE20) -> 0 | AG19: =IF(AF19=0,0,(AF19*((LOG(AF19))/LOG(2)))) -> 0 | AI19: =N19 -> 2211 | AJ19: =COUNTIF(L21:L24,AI19) -> 0 | AK19: =AJ19/(AL4-AJ20) -> 0 | AL19: =IF(AK19=0,0,(AK19*((LOG(AK19))/LOG(2)))) -> 0 | AN19: =N19 -> 2211 | AO19: =COUNTIF(L25:L29,AN19) -> 0 | AP19: =AO19/(AQ4-AO20) -> 0 | AQ19: =IF(AP19=0,0,(AP19*((LOG(AP19))/LOG(2)))) -> 0 | AS19: =N19 -> 2211 | AT19: =COUNTIF(L30:L33,AS19) -> 0 | AU19: =AT19/(AV4-AT20) -> 0 | AV19: =IF(AU19=0,0,(AU19*((LOG(AU19))/LOG(2)))) -> 0
A20: 21 | B20: 1873 | C20: 21 | D20: 1875 | E20: 22 | F20: 1881 | G20: 23 | H20: 1886 | K20: 0 | L20: 2222 | N20: 2212 | O20: =COUNTIF($L$7:$L$500,N20) -> 0 | P20: =O20/$Q$4 -> 0 | Q20: =IF(P20=0,0,(P20*((LOG(P20))/LOG(2)))) -> 0 | T20: =N20 -> 2212 | U20: =COUNTIF(L7:L11,T20) -> 0 | Y20: =N20 -> 2212 | Z20: =COUNTIF(L12:L15,Y20) -> 0 | AD20: =N20 -> 2212 | AE20: =COUNTIF(L16:L20,AD20) -> 0 | AI20: =N20 -> 2212 | AJ20: =COUNTIF(L21:L24,AI20) -> 0 | AN20: =N20 -> 2212 | AO20: =COUNTIF(L25:L29,AN20) -> 0 | AS20: =N20 -> 2212 | AT20: =COUNTIF(L30:L33,AS20) -> 0
A21: 12 | B21: 1997 | C21: 14 | D21: 1999 | E21: 24 | F21: 2012 | G21: 23 | H21: 2016 | K21: 0 | L21: 1122 | N21: 2221 | O21: =COUNTIF($L$7:$L$500,N21) -> 0 | P21: =O21/$Q$4 -> 0 | Q21: =IF(P21=0,0,(P21*((LOG(P21))/LOG(2)))) -> 0 | T21: =N21 -> 2221 | U21: =COUNTIF(L7:L11,T21) -> 0 | V21: =U21/(W4-U20) -> 0 | W21: =IF(V21=0,0,(V21*((LOG(V21))/LOG(2)))) -> 0 | Y21: =N21 -> 2221 | Z21: =COUNTIF(L12:L15,Y21) -> 0 | AA21: =Z21/(AB4-Z20) -> 0 | AB21: =IF(AA21=0,0,(AA21*((LOG(AA21))/LOG(2)))) -> 0 | AD21: =N21 -> 2221 | AE21: =COUNTIF(L16:L20,AD21) -> 0 | AF21: =AE21/(AG4-AE20) -> 0 | AG21: =IF(AF21=0,0,(AF21*((LOG(AF21))/LOG(2)))) -> 0 | AI21: =N21 -> 2221 | AJ21: =COUNTIF(L21:L24,AI21) -> 0 | AK21: =AJ21/(AL4-AJ20) -> 0 | AL21: =IF(AK21=0,0,(AK21*((LOG(AK21))/LOG(2)))) -> 0 | AN21: =N21 -> 2221 | AO21: =COUNTIF(L25:L29,AN21) -> 0 | AP21: =AO21/(AQ4-AO20) -> 0 | AQ21: =IF(AP21=0,0,(AP21*((LOG(AP21))/LOG(2)))) -> 0 | AS21: =N21 -> 2221 | AT21: =COUNTIF(L30:L33,AS21) -> 0 | AU21: =AT21/(AV4-AT20) -> 0 | AV21: =IF(AU21=0,0,(AU21*((LOG(AU21))/LOG(2)))) -> 0
A22: 12 | B22: 2158 | C22: 14 | D22: 2164 | E22: 24 | F22: 2184 | G22: 23 | H22: 2188 | K22: 0 | L22: 1122 | N22: 2222 | O22: =COUNTIF($L$7:$L$500,N22) -> 5 | P22: =O22/$Q$4 -> 0.1851851852 | Q22: =IF(P22=0,0,(P22*((LOG(P22))/LOG(2)))) -> -0.4505480384 | T22: =N22 -> 2222 | U22: =COUNTIF(L7:L11,T22) -> 1 | V22: =U22/(W4-U20) -> 0.2 | W22: =IF(V22=0,0,(V22*((LOG(V22))/LOG(2)))) -> -0.464385619 | Y22: =N22 -> 2222 | Z22: =COUNTIF(L12:L15,Y22) -> 0 | AA22: =Z22/(AB4-Z20) -> 0 | AB22: =IF(AA22=0,0,(AA22*((LOG(AA22))/LOG(2)))) -> 0 | AD22: =N22 -> 2222 | AE22: =COUNTIF(L16:L20,AD22) -> 2 | AF22: =AE22/(AG4-AE20) -> 0.4 | AG22: =IF(AF22=0,0,(AF22*((LOG(AF22))/LOG(2)))) -> -0.528771238 | AI22: =N22 -> 2222 | AJ22: =COUNTIF(L21:L24,AI22) -> 0 | AK22: =AJ22/(AL4-AJ20) -> 0 | AL22: =IF(AK22=0,0,(AK22*((LOG(AK22))/LOG(2)))) -> 0 | AN22: =N22 -> 2222 | AO22: =COUNTIF(L25:L29,AN22) -> 1 | AP22: =AO22/(AQ4-AO20) -> 0.2 | AQ22: =IF(AP22=0,0,(AP22*((LOG(AP22))/LOG(2)))) -> -0.464385619 | AS22: =N22 -> 2222 | AT22: =COUNTIF(L30:L33,AS22) -> 1 | AU22: =AT22/(AV4-AT20) -> 0.25 | AV22: =IF(AU22=0,0,(AU22*((LOG(AU22))/LOG(2)))) -> -0.5
A23: 12 | B23: 2877 | C23: 23 | D23: 2890 | E23: 24 | F23: 2897 | G23: 14 | H23: 2913 | K23: 0 | L23: 1221 | P23: =SUM(P7:P22) -> 1 | Q23: =-SUM(Q7:Q22) -> 2.550228708 | V23: =SUM(V7:V22) -> 1 | W23: =-SUM(W7:W22) -> 1.370950594 | AA23: =SUM(AA7:AA22) -> 1 | AB23: =-SUM(AB7:AB22) -> 0.8112781245 | AF23: =SUM(AF7:AF22) -> 1 | AG23: =-SUM(AG7:AG22) -> 1.521928095 | AK23: =SUM(AK7:AK22) -> 1 | AL23: =-SUM(AL7:AL22) -> 1.5 | AP23: =SUM(AP7:AP22) -> 1 | AQ23: =-SUM(AQ7:AQ22) -> 1.370950594 | AU23: =SUM(AU7:AU22) -> 1 | AV23: =-SUM(AV7:AV22) -> 2
A24: 12 | B24: 3044 | C24: 14 | D24: 3052 | E24: 13 | F24: 3055 | G24: 23 | H24: 3069 | K24: 0 | L24: 1112 | P24: U= | Q24: =Q23/(LOG(Q4)/LOG(2)) -> 0.5363383902 | V24: U1= | W24: =W23/(LOG(W4)/LOG(2)) -> 0.5904362833 | AA24: U2= | AB24: =AB23/(LOG(AB4)/LOG(2)) -> 0.4056390622 | AF24: U3= | AG24: =AG23/(LOG(AG4)/LOG(2)) -> 0.6554587535 | AK24: U4= | AL24: =AL23/(LOG(AL4)/LOG(2)) -> 0.75 | AP24: U5= | AQ24: =AQ23/(LOG(AQ4)/LOG(2)) -> 0.5904362833 | AU24: U6= | AV24: =AV23/(LOG(AV4)/LOG(2)) -> 1
A25: 12 | B25: 3216 | C25: 14 | D25: 3218 | E25: 13 | F25: 3221 | G25: 14 | H25: 3225 | K25: 0 | L25: 1111
A26: 21 | B26: 3828 | C26: 21 | D26: 3870 | E26: 22 | F26: 3876 | G26: 23 | H26: 3882 | K26: 0 | L26: 2222
A27: 12 | B27: 4274 | C27: 14 | D27: 4277 | E27: 13 | F27: 4294 | G27: 14 | H27: 4300 | K27: 0 | L27: 1111 | N27: Total Target Seq
A28: 12 | B28: 5006 | C28: 14 | D28: 5011 | E28: 24 | F28: 5025 | G28: 23 | H28: 5033 | K28: 0 | L28: 1122 | N28: =COUNTIF(L7:L33,G3) -> 0 | P28: 5 | Q28: 4 | R28: 5 | S28: 4 | T28: 5 | U28: 4
A29: 12 | B29: 5146 | C29: 14 | D29: 5150 | E29: 13 | F29: 5166 | G29: 14 | H29: 5170 | K29: 0 | L29: 1111 | P29: % of reinforcement given in 6 equal intervals based on number of trials
A30: 12 | B30: 5285 | C30: 14 | D30: 7080 | E30: 13 | F30: 8139 | G30: 23 | H30: 8151 | K30: 0 | L30: 1112 | P30: %_1 | Q30: %_2 | R30: %_3 | S30: %_4 | T30: %_5 | U30: %_6
A31: 12 | B31: 8799 | C31: 23 | D31: 8813 | E31: 24 | F31: 8817 | G31: 23 | H31: 8824 | K31: 0 | L31: 1222 | O31: target sequence | P31: =$G$3 -> 2212 | Q31: =$G$3 -> 2212 | R31: =$G$3 -> 2212 | S31: =$G$3 -> 2212 | T31: =$G$3 -> 2212 | U31: =$G$3 -> 2212
A32: 21 | B32: 9493 | C32: 21 | D32: 9497 | E32: 22 | F32: 9502 | G32: 23 | H32: 9508 | K32: 0 | L32: 2222 | O32: total reinforcement | P32: =U20 -> 0 | Q32: =Z20 -> 0 | R32: =AE20 -> 0 | S32: =AJ20 -> 0 | T32: =AO20 -> 0 | U32: =AT20 -> 0
A33: 12 | B33: 13358 | C33: 23 | D33: 13367 | E33: 13 | F33: 13378 | G33: 14 | H33: 13381 | K33: 0 | L33: 1211 | O33: % target
O34: CCRF
O35: % CCRf
O36: average response rate | P36: =H11/P28 -> 107 | Q36: =(H15-H11)/Q28 -> 133 | R36: =(H20-H15)/R28 -> 163.8 | S36: =(H24-H20)/S28 -> 295.75 | T36: =(H29-H24)/T28 -> 420.2 | U36: =(H33-H29)/U28 -> 2052.75

Sheet !M116B2T.ayl
A1: Report for:!M116B2T.ayl
A2: Date: | B2: <date>
A3: Hen: | B3: <hen> | F3: Correct Sequence | G3: =Start!J2 -> 2212 | P3: Total Sequences in Data | Q3: =4994-COUNTBLANK(L7:L5000) -> 14 | V3: Total Sequences in Block Data | W3: =COUNTA(L7:L8) -> 2 | AA3: Total Sequences in Block Data | AB3: =COUNTA(L9:L11) -> 3 | AF3: Total Sequences in Block Data | AG3: =COUNTA(L12:L13) -> 2 | AK3: Total Sequences in Block Data | AL3: =COUNTA(L14:L15) -> 2 | AP3: Total Sequences in Block Data | AQ3: =COUNTA(L16:L18) -> 3 | AU3: Total Sequences in Block Data | AV3: =COUNTA(L19:L20) -> 2
P4: Total Sequences in Summary | Q4: =SUM(O7:O22) -> 14 | V4: Total Sequences in Block Summary | W4: =SUM(U7:U22) -> 2 | AA4: Total Sequences in Block Summary | AB4: =SUM(Z7:Z22) -> 3 | AF4: Total Sequences in Block Summary | AG4: =SUM(AE7:AE22) -> 2 | AK4: Total Sequences in Block Summary | AL4: =SUM(AJ7:AJ22) -> 2 | AP4: Total Sequences in Block Summary | AQ4: =SUM(AO7:AO22) -> 3 | AU4: Total Sequences in Block Summary | AV4: =SUM(AT7:AT22) -> 2
T5: Block 1 | Y5: Block 2 | AD5: Block 3 | AI5: Block 4 | AN5: Block 5 | AS5: Block 6
A6: Sequence Component 1 | B6: Time 1 | C6: Sequence Component 2 | D6: Time 2 | E6: Sequence Component 3 | F6: Time 3 | G6: Sequence Component 4 | H6: Time 4 | I6: Sequence Component 5 | J6: Time 5 | K6: Correct? 0=No 1=Yes | L6: Sequence | N6: Frequency | P6: Relative Frequency | Q6: Variability | T6: Frequency | V6: Relative Frequency | W6: Variability | Y6: Frequency | AA6: Relative Frequency | AB6: Variability | AD6: Frequency | AF6: Relative Frequency | AG6: Variability | AI6: Frequency | AK6: Relative Frequency | AL6: Variability | AN6: Frequency | AP6: Relative Frequency | AQ6: Variability | AS6: Frequency | AU6: Relative Frequency | AV6: Variability
A7: 21 | B7: 266 | C7: 21 | D7: 270 | E7: 22 | F7: 273 | G7: 23 | H7: 280 | K7: 0 | L7: 2222 | N7: 1111 | O7: =COUNTIF($L$7:$L$500,N7) -> 4 | P7: =O7/$Q$4 -> 0.2857142857 | Q7: =IF(P7=0,0,(P7*((LOG(P7))/LOG(2)))) -> -0.5163871206 | T7: =N7 -> 1111 | U7: =COUNTIF(L7:L8,T7) -> 0 | V7: =U7/(W4-U20) -> 0 | W7: =IF(V7=0,0,(V7*((LOG(V7))/LOG(2)))) -> 0 | Y7: =N7 -> 1111 | Z7: =COUNTIF(L9:L11,Y7) -> 0 | AA7: =Z7/(AB4-Z20) -> 0 | AB7: =IF(AA7=0,0,(AA7*((LOG(AA7))/LOG(2)))) -> 0 | AD7: =N7 -> 1111 | AE7: =COUNTIF(L12:L13,AD7) -> 1 | AF7: =AE7/(AG4-AE20) -> 0.5 | AG7: =IF(AF7=0,0,(AF7*((LOG(AF7))/LOG(2)))) -> -0.5 | AI7: =N7 -> 1111 | AJ7: =COUNTIF(L14:L15,AI7) -> 1 | AK7: =AJ7/(AL4-AJ20) -> 0.5 | AL7: =IF(AK7=0,0,(AK7*((LOG(AK7))/LOG(2)))) -> -0.5 | AN7: =N7 -> 1111 | AO7: =COUNTIF(L16:L18,AN7) -> 2 | AP7: =AO7/(AQ4-AO20) -> 0.6666666667 | AQ7: =IF(AP7=0,0,(AP7*((LOG(AP7))/LOG(2)))) -> -0.3899750005 | AS7: =N7 -> 1111 | AT7: =COUNTIF(L19:L20,AS7) -> 0 | AU7: =AT7/(AV4-AT20) -> 0 | AV7: =IF(AU7=0,0,(AU7*((LOG(AU7))/LOG(2)))) -> 0
A8: 12 | B8: 372 | C8: 14 | D8: 375 | E8: 24 | F8: 384 | G8: 23 | H8: 387 | K8: 0 | L8: 1122 | N8: 1112 | O8: =COUNTIF($L$7:$L$500,N8) -> 2 | P8: =O8/$Q$4 -> 0.1428571429 | Q8: =IF(P8=0,0,(P8*((LOG(P8))/LOG(2)))) -> -0.4010507032 | T8: =N8 -> 1112 | U8: =COUNTIF(L7:L8,T8) -> 0 | V8: =U8/(W4-U20) -> 0 | W8: =IF(V8=0,0,(V8*((LOG(V8))/LOG(2)))) -> 0 | Y8: =N8 -> 1112 | Z8: =COUNTIF(L9:L11,Y8) -> 1 | AA8: =Z8/(AB4-Z20) -> 0.3333333333 | AB8: =IF(AA8=0,0,(AA8*((LOG(AA8))/LOG(2)))) -> -0.5283208336 | AD8: =N8 -> 1112 | AE8: =COUNTIF(L12:L13,AD8) -> 1 | AF8: =AE8/(AG4-AE20) -> 0.5 | AG8: =IF(AF8=0,0,(AF8*((LOG(AF8))/LOG(2)))) -> -0.5 | AI8: =N8 -> 1112 | AJ8: =COUNTIF(L14:L15,AI8) -> 0 | AK8: =AJ8/(AL4-AJ20) -> 0 | AL8: =IF(AK8=0,0,(AK8*((LOG(AK8))/LOG(2)))) -> 0 | AN8: =N8 -> 1112 | AO8: =COUNTIF(L16:L18,AN8) -> 0 | AP8: =AO8/(AQ4-AO20) -> 0 | AQ8: =IF(AP8=0,0,(AP8*((LOG(AP8))/LOG(2)))) -> 0 | AS8: =N8 -> 1112 | AT8: =COUNTIF(L19:L20,AS8) -> 0 | AU8: =AT8/(AV4-AT20) -> 0 | AV8: =IF(AU8=0,0,(AU8*((LOG(AU8))/LOG(2)))) -> 0
A9: 12 | B9: 485 | C9: 23 | D9: 495 | E9: 24 | F9: 500 | G9: 23 | H9: 506 | K9: 0 | L9: 1222 | N9: 1121 | O9: =COUNTIF($L$7:$L$500,N9) -> 0 | P9: =O9/$Q$4 -> 0 | Q9: =IF(P9=0,0,(P9*((LOG(P9))/LOG(2)))) -> 0 | T9: =N9 -> 1121 | U9: =COUNTIF(L7:L8,T9) -> 0 | V9: =U9/(W4-U20) -> 0 | W9: =IF(V9=0,0,(V9*((LOG(V9))/LOG(2)))) -> 0 | Y9: =N9 -> 1121 | Z9: =COUNTIF(L9:L11,Y9) -> 0 | AA9: =Z9/(AB4-Z20) -> 0 | AB9: =IF(AA9=0,0,(AA9*((LOG(AA9))/LOG(2)))) -> 0 | AD9: =N9 -> 1121 | AE9: =COUNTIF(L12:L13,AD9) -> 0 | AF9: =AE9/(AG4-AE20) -> 0 | AG9: =IF(AF9=0,0,(AF9*((LOG(AF9))/LOG(2)))) -> 0 | AI9: =N9 -> 1121 | AJ9: =COUNTIF(L14:L15,AI9) -> 0 | AK9: =AJ9/(AL4-AJ20) -> 0 | AL9: =IF(AK9=0,0,(AK9*((LOG(AK9))/LOG(2)))) -> 0 | AN9: =N9 -> 1121 | AO9: =COUNTIF(L16:L18,AN9) -> 0 | AP9: =AO9/(AQ4-AO20) -> 0 | AQ9: =IF(AP9=0,0,(AP9*((LOG(AP9))/LOG(2)))) -> 0 | AS9: =N9 -> 1121 | AT9: =COUNTIF(L19:L20,AS9) -> 0 | AU9: =AT9/(AV4-AT20) -> 0 | AV9: =IF(AU9=0,0,(AU9*((LOG(AU9))/LOG(2)))) -> 0
A10: 12 | B10: 598 | C10: 14 | D10: 603 | E10: 24 | F10: 615 | G10: 23 | H10: 623 | K10: 0 | L10: 1122 | N10: 1122 | O10: =COUNTIF($L$7:$L$500,N10) -> 3 | P10: =O10/$Q$4 -> 0.2142857143 | Q10: =IF(P10=0,0,(P10*((LOG(P10))/LOG(2)))) -> -0.4762269474 | T10: =N10 -> 1122 | U10: =COUNTIF(L7:L8,T10) -> 1 | V10: =U10/(W4-U20) -> 0.5 | W10: =IF(V10=0,0,(V10*((LOG(V10))/LOG(2)))) -> -0.5 | Y10: =N10 -> 1122 | Z10: =COUNTIF(L9:L11,Y10) -> 1 | AA10: =Z10/(AB4-Z20) -> 0.3333333333 | AB10: =IF(AA10=0,0,(AA10*((LOG(AA10))/LOG(2)))) -> -0.5283208336 | AD10: =N10 -> 1122 | AE10: =COUNTIF(L12:L13,AD10) -> 0 | AF10: =AE10/(AG4-AE20) -> 0 | AG10: =IF(AF10=0,0,(AF10*((LOG(AF10))/LOG(2)))) -> 0 | AI10: =N10 -> 1122 | AJ10: =COUNTIF(L14:L15,AI10) -> 1 | AK10: =AJ10/(AL4-AJ20) -> 0.5 | AL10: =IF(AK10=0,0,(AK10*((LOG(AK10))/LOG(2)))) -> -0.5 | AN10: =N10 -> 1122 | AO10: =COUNTIF(L16:L18,AN10) -> 0 | AP10: =AO10/(AQ4-AO20) -> 0 | AQ10: =IF(AP10=0,0,(AP10*((LOG(AP10))/LOG(2)))) -> 0 | AS10: =N10 -> 1122 | AT10: =COUNTIF(L19:L20,AS10) -> 0 | AU10: =AT10/(AV4-AT20) -> 0 | AV10: =IF(AU10=0,0,(AU10*((LOG(AU10))/LOG(2)))) -> 0
A11: 12 | B11: 723 | C11: 14 | D11: 725 | E11: 13 | F11: 727 | G11: 23 | H11: 739 | K11: 0 | L11: 1112 | N11: 1211 | O11: =COUNTIF($L$7:$L$500,N11) -> 0 | P11: =O11/$Q$4 -> 0 | Q11: =IF(P11=0,0,(P11*((LOG(P11))/LOG(2)))) -> 0 | T11: =N11 -> 1211 | U11: =COUNTIF(L7:L8,T11) -> 0 | V11: =U11/(W4-U20) -> 0 | W11: =IF(V11=0,0,(V11*((LOG(V11))/LOG(2)))) -> 0 | Y11: =N11 -> 1211 | Z11: =COUNTIF(L9:L11,Y11) -> 0 | AA11: =Z11/(AB4-Z20) -> 0 | AB11: =IF(AA11=0,0,(AA11*((LOG(AA11))/LOG(2)))) -> 0 | AD11: =N11 -> 1211 | AE11: =COUNTIF(L12:L13,AD11) -> 0 | AF11: =AE11/(AG4-AE20) -> 0 | AG11: =IF(AF11=0,0,(AF11*((LOG(AF11))/LOG(2)))) -> 0 | AI11: =N11 -> 1211 | AJ11: =COUNTIF(L14:L15,AI11) -> 0 | AK11: =AJ11/(AL4-AJ20) -> 0 | AL11: =IF(AK11=0,0,(AK11*((LOG(AK11))/LOG(2)))) -> 0 | AN11: =N11 -> 1211 | AO11: =COUNTIF(L16:L18,AN11) -> 0 | AP11: =AO11/(AQ4-AO20) -> 0 | AQ11: =IF(AP11=0,0,(AP11*((LOG(AP11))/LOG(2)))) -> 0 | AS11: =N11 -> 1211 | AT11: =COUNTIF(L19:L20,AS11) -> 0 | AU11: =AT11/(AV4-AT20) -> 0 | AV11: =IF(AU11=0,0,(AU11*((LOG(AU11))/LOG(2)))) -> 0
A12: 12 | B12: 851 | C12: 14 | D12: 853 | E12: 13 | F12: 868 | G12: 23 | H12: 881 | K12: 0 | L12: 1112 | N12: 1212 | O12: =COUNTIF($L$7:$L$500,N12) -> 0 | P12: =O12/$Q$4 -> 0 | Q12: =IF(P12=0,0,(P12*((LOG(P12))/LOG(2)))) -> 0 | T12: =N12 -> 1212 | U12: =COUNTIF(L7:L8,T12) -> 0 | V12: =U12/(W4-U20) -> 0 | W12: =IF(V12=0,0,(V12*((LOG(V12))/LOG(2)))) -> 0 | Y12: =N12 -> 1212 | Z12: =COUNTIF(L9:L11,Y12) -> 0 | AA12: =Z12/(AB4-Z20) -> 0 | AB12: =IF(AA12=0,0,(AA12*((LOG(AA12))/LOG(2)))) -> 0 | AD12: =N12 -> 1212 | AE12: =COUNTIF(L12:L13,AD12) -> 0 | AF12: =AE12/(AG4-AE20) -> 0 | AG12: =IF(AF12=0,0,(AF12*((LOG(AF12))/LOG(2)))) -> 0 | AI12: =N12 -> 1212 | AJ12: =COUNTIF(L14:L15,AI12) -> 0 | AK12: =AJ12/(AL4-AJ20) -> 0 | AL12: =IF(AK12=0,0,(AK12*((LOG(AK12))/LOG(2)))) -> 0 | AN12: =N12 -> 1212 | AO12: =COUNTIF(L16:L18,AN12) -> 0 | AP12: =AO12/(AQ4-AO20) -> 0 | AQ12: =IF(AP12=0,0,(AP12*((LOG(AP12))/LOG(2)))) -> 0 | AS12: =N12 -> 1212 | AT12: =COUNTIF(L19:L20,AS12) -> 0 | AU12: =AT12/(AV4-AT20) -> 0 | AV12: =IF(AU12=0,0,(AU12*((LOG(AU12))/LOG(2)))) -> 0
A13: 12 | B13: 1033 | C13: 14 | D13: 1049 | E13: 13 | F13: 1056 | G13: 14 | H13: 1062 | K13: 0 | L13: 1111 | N13: 1221 | O13: =COUNTIF($L$7:$L$500,N13) -> 0 | P13: =O13/$Q$4 -> 0 | Q13: =IF(P13=0,0,(P13*((LOG(P13))/LOG(2)))) -> 0 | T13: =N13 -> 1221 | U13: =COUNTIF(L7:L8,T13) -> 0 | V13: =U13/(W4-U20) -> 0 | W13: =IF(V13=0,0,(V13*((LOG(V13))/LOG(2)))) -> 0 | Y13: =N13 -> 1221 | Z13: =COUNTIF(L9:L11,Y13) -> 0 | AA13: =Z13/(AB4-Z20) -> 0 | AB13: =IF(AA13=0,0,(AA13*((LOG(AA13))/LOG(2)))) -> 0 | AD13: =N13 -> 1221 | AE13: =COUNTIF(L12:L13,AD13) -> 0 | AF13: =AE13/(AG4-AE20) -> 0 | AG13: =IF(AF13=0,0,(AF13*((LOG(AF13))/LOG(2)))) -> 0 | AI13: =N13 -> 1221 | AJ13: =COUNTIF(L14:L15,AI13) -> 0 | AK13: =AJ13/(AL4-AJ20) -> 0 | AL13: =IF(AK13=0,0,(AK13*((LOG(AK13))/LOG(2)))) -> 0 | AN13: =N13 -> 1221 | AO13: =COUNTIF(L16:L18,AN13) -> 0 | AP13: =AO13/(AQ4-AO20) -> 0 | AQ13: =IF(AP13=0,0,(AP13*((LOG(AP13))/LOG(2)))) -> 0 | AS13: =N13 -> 1221 | AT13: =COUNTIF(L19:L20,AS13) -> 0 | AU13: =AT13/(AV4-AT20) -> 0 | AV13: =IF(AU13=0,0,(AU13*((LOG(AU13))/LOG(2)))) -> 0
A14: 12 | B14: 1171 | C14: 14 | D14: 1175 | E14: 24 | F14: 1184 | G14: 23 | H14: 1192 | K14: 0 | L14: 1122 | N14: 1222 | O14: =COUNTIF($L$7:$L$500,N14) -> 1 | P14: =O14/$Q$4 -> 0.07142857143 | Q14: =IF(P14=0,0,(P14*((LOG(P14))/LOG(2)))) -> -0.271953923 | T14: =N14 -> 1222 | U14: =COUNTIF(L7:L8,T14) -> 0 | V14: =U14/(W4-U20) -> 0 | W14: =IF(V14=0,0,(V14*((LOG(V14))/LOG(2)))) -> 0 | Y14: =N14 -> 1222 | Z14: =COUNTIF(L9:L11,Y14) -> 1 | AA14: =Z14/(AB4-Z20) -> 0.3333333333 | AB14: =IF(AA14=0,0,(AA14*((LOG(AA14))/LOG(2)))) -> -0.5283208336 | AD14: =N14 -> 1222 | AE14: =COUNTIF(L12:L13,AD14) -> 0 | AF14: =AE14/(AG4-AE20) -> 0 | AG14: =IF(AF14=0,0,(AF14*((LOG(AF14))/LOG(2)))) -> 0 | AI14: =N14 -> 1222 | AJ14: =COUNTIF(L14:L15,AI14) -> 0 | AK14: =AJ14/(AL4-AJ20) -> 0 | AL14: =IF(AK14=0,0,(AK14*((LOG(AK14))/LOG(2)))) -> 0 | AN14: =N14 -> 1222 | AO14: =COUNTIF(L16:L18,AN14) -> 0 | AP14: =AO14/(AQ4-AO20) -> 0 | AQ14: =IF(AP14=0,0,(AP14*((LOG(AP14))/LOG(2)))) -> 0 | AS14: =N14 -> 1222 | AT14: =COUNTIF(L19:L20,AS14) -> 0 | AU14: =AT14/(AV4-AT20) -> 0 | AV14: =IF(AU14=0,0,(AU14*((LOG(AU14))/LOG(2)))) -> 0
A15: 12 | B15: 1513 | C15: 14 | D15: 1539 | E15: 13 | F15: 1543 | G15: 14 | H15: 1553 | K15: 0 | L15: 1111 | N15: 2111 | O15: =COUNTIF($L$7:$L$500,N15) -> 1 | P15: =O15/$Q$4 -> 0.07142857143 | Q15: =IF(P15=0,0,(P15*((LOG(P15))/LOG(2)))) -> -0.271953923 | T15: =N15 -> 2111 | U15: =COUNTIF(L7:L8,T15) -> 0 | V15: =U15/(W4-U20) -> 0 | W15: =IF(V15=0,0,(V15*((LOG(V15))/LOG(2)))) -> 0 | Y15: =N15 -> 2111 | Z15: =COUNTIF(L9:L11,Y15) -> 0 | AA15: =Z15/(AB4-Z20) -> 0 | AB15: =IF(AA15=0,0,(AA15*((LOG(AA15))/LOG(2)))) -> 0 | AD15: =N15 -> 2111 | AE15: =COUNTIF(L12:L13,AD15) -> 0 | AF15: =AE15/(AG4-AE20) -> 0 | AG15: =IF(AF15=0,0,(AF15*((LOG(AF15))/LOG(2)))) -> 0 | AI15: =N15 -> 2111 | AJ15: =COUNTIF(L14:L15,AI15) -> 0 | AK15: =AJ15/(AL4-AJ20) -> 0 | AL15: =IF(AK15=0,0,(AK15*((LOG(AK15))/LOG(2)))) -> 0 | AN15: =N15 -> 2111 | AO15: =COUNTIF(L16:L18,AN15) -> 1 | AP15: =AO15/(AQ4-AO20) -> 0.3333333333 | AQ15: =IF(AP15=0,0,(AP15*((LOG(AP15))/LOG(2)))) -> -0.5283208336 | AS15: =N15 -> 2111 | AT15: =COUNTIF(L19:L20,AS15) -> 0 | AU15: =AT15/(AV4-AT20) -> 0 | AV15: =IF(AU15=0,0,(AU15*((LOG(AU15))/LOG(2)))) -> 0
A16: 12 | B16: 1684 | C16: 14 | D16: 1689 | E16: 13 | F16: 1693 | G16: 14 | H16: 1698 | K16: 0 | L16: 1111 | N16: 2112 | O16: =COUNTIF($L$7:$L$500,N16) -> 1 | P16: =O16/$Q$4 -> 0.07142857143 | Q16: =IF(P16=0,0,(P16*((LOG(P16))/LOG(2)))) -> -0.271953923 | T16: =N16 -> 2112 | U16: =COUNTIF(L7:L8,T16) -> 0 | V16: =U16/(W4-U20) -> 0 | W16: =IF(V16=0,0,(V16*((LOG(V16))/LOG(2)))) -> 0 | Y16: =N16 -> 2112 | Z16: =COUNTIF(L9:L11,Y16) -> 0 | AA16: =Z16/(AB4-Z20) -> 0 | AB16: =IF(AA16=0,0,(AA16*((LOG(AA16))/LOG(2)))) -> 0 | AD16: =N16 -> 2112 | AE16: =COUNTIF(L12:L13,AD16) -> 0 | AF16: =AE16/(AG4-AE20) -> 0 | AG16: =IF(AF16=0,0,(AF16*((LOG(AF16))/LOG(2)))) -> 0 | AI16: =N16 -> 2112 | AJ16: =COUNTIF(L14:L15,AI16) -> 0 | AK16: =AJ16/(AL4-AJ20) -> 0 | AL16: =IF(AK16=0,0,(AK16*((LOG(AK16))/LOG(2)))) -> 0 | AN16: =N16 -> 2112 | AO16: =COUNTIF(L16:L18,AN16) -> 0 | AP16: =AO16/(AQ4-AO20) -> 0 | AQ16: =IF(AP16=0,0,(AP16*((LOG(AP16))/LOG(2)))) -> 0 | AS16: =N16 -> 2112 | AT16: =COUNTIF(L19:L20,AS16) -> 1 | AU16: =AT16/(AV4-AT20) -> 0.5 | AV16: =IF(AU16=0,0,(AU16*((LOG(AU16))/LOG(2)))) -> -0.5
A17: 21 | B17: 2996 | C17: 12 | D17: 3013 | E17: 13 | F17: 3022 | G17: 14 | H17: 3029 | K17: 0 | L17: 2111 | N17: 2121 | O17: =COUNTIF($L$7:$L$500,N17) -> 0 | P17: =O17/$Q$4 -> 0 | Q17: =IF(P17=0,0,(P17*((LOG(P17))/LOG(2)))) -> 0 | T17: =N17 -> 2121 | U17: =COUNTIF(L7:L8,T17) -> 0 | V17: =U17/(W4-U20) -> 0 | W17: =IF(V17=0,0,(V17*((LOG(V17))/LOG(2)))) -> 0 | Y17: =N17 -> 2121 | Z17: =COUNTIF(L9:L11,Y17) -> 0 | AA17: =Z17/(AB4-Z20) -> 0 | AB17: =IF(AA17=0,0,(AA17*((LOG(AA17))/LOG(2)))) -> 0 | AD17: =N17 -> 2121 | AE17: =COUNTIF(L12:L13,AD17) -> 0 | AF17: =AE17/(AG4-AE20) -> 0 | AG17: =IF(AF17=0,0,(AF17*((LOG(AF17))/LOG(2)))) -> 0 | AI17: =N17 -> 2121 | AJ17: =COUNTIF(L14:L15,AI17) -> 0 | AK17: =AJ17/(AL4-AJ20) -> 0 | AL17: =IF(AK17=0,0,(AK17*((LOG(AK17))/LOG(2)))) -> 0 | AN17: =N17 -> 2121 | AO17: =COUNTIF(L16:L18,AN17) -> 0 | AP17: =AO17/(AQ4-AO20) -> 0 | AQ17: =IF(AP17=0,0,(AP17*((LOG(AP17))/LOG(2)))) -> 0 | AS17: =N17 -> 2121 | AT17: =COUNTIF(L19:L20,AS17) -> 0 | AU17: =AT17/(AV4-AT20) -> 0 | AV17: =IF(AU17=0,0,(AU17*((LOG(AU17))/LOG(2)))) -> 0
A18: 12 | B18: 3154 | C18: 14 | D18: 3159 | E18: 13 | F18: 3167 | G18: 14 | H18: 3174 | K18: 0 | L18: 1111 | N18: 2122 | O18: =COUNTIF($L$7:$L$500,N18) -> 0 | P18: =O18/$Q$4 -> 0 | Q18: =IF(P18=0,0,(P18*((LOG(P18))/LOG(2)))) -> 0 | T18: =N18 -> 2122 | U18: =COUNTIF(L7:L8,T18) -> 0 | V18: =U18/(W4-U20) -> 0 | W18: =IF(V18=0,0,(V18*((LOG(V18))/LOG(2)))) -> 0 | Y18: =N18 -> 2122 | Z18: =COUNTIF(L9:L11,Y18) -> 0 | AA18: =Z18/(AB4-Z20) -> 0 | AB18: =IF(AA18=0,0,(AA18*((LOG(AA18))/LOG(2)))) -> 0 | AD18: =N18 -> 2122 | AE18: =COUNTIF(L12:L13,AD18) -> 0 | AF18: =AE18/(AG4-AE20) -> 0 | AG18: =IF(AF18=0,0,(AF18*((LOG(AF18))/LOG(2)))) -> 0 | AI18: =N18 -> 2122 | AJ18: =COUNTIF(L14:L15,AI18) -> 0 | AK18: =AJ18/(AL4-AJ20) -> 0 | AL18: =IF(AK18=0,0,(AK18*((LOG(AK18))/LOG(2)))) -> 0 | AN18: =N18 -> 2122 | AO18: =COUNTIF(L16:L18,AN18) -> 0 | AP18: =AO18/(AQ4-AO20) -> 0 | AQ18: =IF(AP18=0,0,(AP18*((LOG(AP18))/LOG(2)))) -> 0 | AS18: =N18 -> 2122 | AT18: =COUNTIF(L19:L20,AS18) -> 0 | AU18: =AT18/(AV4-AT20) -> 0 | AV18: =IF(AU18=0,0,(AU18*((LOG(AU18))/LOG(2)))) -> 0
A19: 21 | B19: 3344 | C19: 21 | D19: 5247 | E19: 11 | F19: 9967 | G19: 12 | H19: 9972 | K19: 0 | L19: 2211 | N19: 2211 | O19: =COUNTIF($L$7:$L$500,N19) -> 1 | P19: =O19/$Q$4 -> 0.07142857143 | Q19: =IF(P19=0,0,(P19*((LOG(P19))/LOG(2)))) -> -0.271953923 | T19: =N19 -> 2211 | U19: =COUNTIF(L7:L8,T19) -> 0 | V19: =U19/(W4-U20) -> 0 | W19: =IF(V19=0,0,(V19*((LOG(V19))/LOG(2)))) -> 0 | Y19: =N19 -> 2211 | Z19: =COUNTIF(L9:L11,Y19) -> 0 | AA19: =Z19/(AB4-Z20) -> 0 | AB19: =IF(AA19=0,0,(AA19*((LOG(AA19))/LOG(2)))) -> 0 | AD19: =N19 -> 2211 | AE19: =COUNTIF(L12:L13,AD19) -> 0 | AF19: =AE19/(AG4-AE20) -> 0 | AG19: =IF(AF19=0,0,(AF19*((LOG(AF19))/LOG(2)))) -> 0 | AI19: =N19 -> 2211 | AJ19: =COUNTIF(L14:L15,AI19) -> 0 | AK19: =AJ19/(AL4-AJ20) -> 0 | AL19: =IF(AK19=0,0,(AK19*((LOG(AK19))/LOG(2)))) -> 0 | AN19: =N19 -> 2211 | AO19: =COUNTIF(L16:L18,AN19) -> 0 | AP19: =AO19/(AQ4-AO20) -> 0 | AQ19: =IF(AP19=0,0,(AP19*((LOG(AP19))/LOG(2)))) -> 0 | AS19: =N19 -> 2211 | AT19: =COUNTIF(L19:L20,AS19) -> 1 | AU19: =AT19/(AV4-AT20) -> 0.5 | AV19: =IF(AU19=0,0,(AU19*((LOG(AU19))/LOG(2)))) -> -0.5
A20: 21 | B20: 20831 | C20: 12 | D20: 21594 | E20: 13 | F20: 21729 | G20: 23 | H20: 21739 | K20: 0 | L20: 2112 | N20: 2212 | O20: =COUNTIF($L$7:$L$500,N20) -> 0 | P20: =O20/$Q$4 -> 0 | Q20: =IF(P20=0,0,(P20*((LOG(P20))/LOG(2)))) -> 0 | T20: =N20 -> 2212 | U20: =COUNTIF(L7:L8,T20) -> 0 | Y20: =N20 -> 2212 | Z20: =COUNTIF(L9:L11,Y20) -> 0 | AD20: =N20 -> 2212 | AE20: =COUNTIF(L12:L13,AD20) -> 0 | AI20: =N20 -> 2212 | AJ20: =COUNTIF(L14:L15,AI20) -> 0 | AN20: =N20 -> 2212 | AO20: =COUNTIF(L16:L18,AN20) -> 0 | AS20: =N20 -> 2212 | AT20: =COUNTIF(L19:L20,AS20) -> 0
N21: 2221 | O21: =COUNTIF($L$7:$L$500,N21) -> 0 | P21: =O21/$Q$4 -> 0 | Q21: =IF(P21=0,0,(P21*((LOG(P21))/LOG(2)))) -> 0 | T21: =N21 -> 2221 | U21: =COUNTIF(L7:L8,T21) -> 0 | V21: =U21/(W4-U20) -> 0 | W21: =IF(V21=0,0,(V21*((LOG(V21))/LOG(2)))) -> 0 | Y21: =N21 -> 2221 | Z21: =COUNTIF(L9:L11,Y21) -> 0 | AA21: =Z21/(AB4-Z20) -> 0 | AB21: =IF(AA21=0,0,(AA21*((LOG(AA21))/LOG(2)))) -> 0 | AD21: =N21 -> 2221 | AE21: =COUNTIF(L12:L13,AD21) -> 0 | AF21: =AE21/(AG4-AE20) -> 0 | AG21: =IF(AF21=0,0,(AF21*((LOG(AF21))/LOG(2)))) -> 0 | AI21: =N21 -> 2221 | AJ21: =COUNTIF(L14:L15,AI21) -> 0 | AK21: =AJ21/(AL4-AJ20) -> 0 | AL21: =IF(AK21=0,0,(AK21*((LOG(AK21))/LOG(2)))) -> 0 | AN21: =N21 -> 2221 | AO21: =COUNTIF(L16:L18,AN21) -> 0 | AP21: =AO21/(AQ4-AO20) -> 0 | AQ21: =IF(AP21=0,0,(AP21*((LOG(AP21))/LOG(2)))) -> 0 | AS21: =N21 -> 2221 | AT21: =COUNTIF(L19:L20,AS21) -> 0 | AU21: =AT21/(AV4-AT20) -> 0 | AV21: =IF(AU21=0,0,(AU21*((LOG(AU21))/LOG(2)))) -> 0
N22: 2222 | O22: =COUNTIF($L$7:$L$500,N22) -> 1 | P22: =O22/$Q$4 -> 0.07142857143 | Q22: =IF(P22=0,0,(P22*((LOG(P22))/LOG(2)))) -> -0.271953923 | T22: =N22 -> 2222 | U22: =COUNTIF(L7:L8,T22) -> 1 | V22: =U22/(W4-U20) -> 0.5 | W22: =IF(V22=0,0,(V22*((LOG(V22))/LOG(2)))) -> -0.5 | Y22: =N22 -> 2222 | Z22: =COUNTIF(L9:L11,Y22) -> 0 | AA22: =Z22/(AB4-Z20) -> 0 | AB22: =IF(AA22=0,0,(AA22*((LOG(AA22))/LOG(2)))) -> 0 | AD22: =N22 -> 2222 | AE22: =COUNTIF(L12:L13,AD22) -> 0 | AF22: =AE22/(AG4-AE20) -> 0 | AG22: =IF(AF22=0,0,(AF22*((LOG(AF22))/LOG(2)))) -> 0 | AI22: =N22 -> 2222 | AJ22: =COUNTIF(L14:L15,AI22) -> 0 | AK22: =AJ22/(AL4-AJ20) -> 0 | AL22: =IF(AK22=0,0,(AK22*((LOG(AK22))/LOG(2)))) -> 0 | AN22: =N22 -> 2222 | AO22: =COUNTIF(L16:L18,AN22) -> 0 | AP22: =AO22/(AQ4-AO20) -> 0 | AQ22: =IF(AP22=0,0,(AP22*((LOG(AP22))/LOG(2)))) -> 0 | AS22: =N22 -> 2222 | AT22: =COUNTIF(L19:L20,AS22) -> 0 | AU22: =AT22/(AV4-AT20) -> 0 | AV22: =IF(AU22=0,0,(AU22*((LOG(AU22))/LOG(2)))) -> 0
P23: =SUM(P7:P22) -> 1 | Q23: =-SUM(Q7:Q22) -> 2.753434386 | V23: =SUM(V7:V22) -> 1 | W23: =-SUM(W7:W22) -> 1 | AA23: =SUM(AA7:AA22) -> 1 | AB23: =-SUM(AB7:AB22) -> 1.584962501 | AF23: =SUM(AF7:AF22) -> 1 | AG23: =-SUM(AG7:AG22) -> 1 | AK23: =SUM(AK7:AK22) -> 1 | AL23: =-SUM(AL7:AL22) -> 1 | AP23: =SUM(AP7:AP22) -> 1 | AQ23: =-SUM(AQ7:AQ22) -> 0.9182958341 | AU23: =SUM(AU7:AU22) -> 1 | AV23: =-SUM(AV7:AV22) -> 1
P24: U= | Q24: =Q23/(LOG(Q4)/LOG(2)) -> 0.7231882613 | V24: U1= | W24: =W23/(LOG(W4)/LOG(2)) -> 1 | AA24: U2= | AB24: =AB23/(LOG(AB4)/LOG(2)) -> 1 | AF24: U3= | AG24: =AG23/(LOG(AG4)/LOG(2)) -> 1 | AK24: U4= | AL24: =AL23/(LOG(AL4)/LOG(2)) -> 1 | AP24: U5= | AQ24: =AQ23/(LOG(AQ4)/LOG(2)) -> 0.5793801643 | AU24: U6= | AV24: =AV23/(LOG(AV4)/LOG(2)) -> 1
N27: Total Target Seq
N28: =COUNTIF(L7:L20,G3) -> 0 | P28: 2 | Q28: 3 | R28: 2 | S28: 2 | T28: 3 | U28: 2
P29: % of reinforcement given in 6 equal intervals based on number of trials
P30: %_1 | Q30: %_2 | R30: %_3 | S30: %_4 | T30: %_5 | U30: %_6
O31: target sequence | P31: =$G$3 -> 2212 | Q31: =$G$3 -> 2212 | R31: =$G$3 -> 2212 | S31: =$G$3 -> 2212 | T31: =$G$3 -> 2212 | U31: =$G$3 -> 2212
O32: total reinforcement | P32: =U20 -> 0 | Q32: =Z20 -> 0 | R32: =AE20 -> 0 | S32: =AJ20 -> 0 | T32: =AO20 -> 0 | U32: =AT20 -> 0
O33: % target
O34: CCRF
O35: % CCRf
O36: average response rate | P36: =H8/P28 -> 193.5 | Q36: =(H11-H8)/Q28 -> 117.3333333 | R36: =(H13-H11)/R28 -> 161.5 | S36: =(H15-H13)/S28 -> 245.5 | T36: =(H18-H15)/T28 -> 540.3333333 | U36: =(H20-H18)/U28 -> 9282.5

Sheet !M117A2T.ayl
A1: Report for:!M117A2T.ayl
A2: Date: | B2: <date>
A3: Hen: | B3: <hen> | F3: Correct Sequence | G3: =Start!J2 -> 2212 | P3: Total Sequences in Data | Q3: =4994-COUNTBLANK(L7:L5000) -> 19 | V3: Total Sequences in Block Data | W3: =COUNTA(L7:L9) -> 3 | AA3: Total Sequences in Block Data | AB3: =COUNTA(L10:L12) -> 3 | AF3: Total Sequences in Block Data | AG3: =COUNTA(L13:L16) -> 4 | AK3: Total Sequences in Block Data | AL3: =COUNTA(L17:L19) -> 3 | AP3: Total Sequences in Block Data | AQ3: =COUNTA(L20:L22) -> 3 | AU3: Total Sequences in Block Data | AV3: =COUNTA(L23:L25) -> 3
P4: Total Sequences in Summary | Q4: =SUM(O7:O22) -> 18 | V4: Total Sequences in Block Summary | W4: =SUM(U7:U22) -> 3 | AA4: Total Sequences in Block Summary | AB4: =SUM(Z7:Z22) -> 3 | AF4: Total Sequences in Block Summary | AG4: =SUM(AE7:AE22) -> 4 | AK4: Total Sequences in Block Summary | AL4: =SUM(AJ7:AJ22) -> 3 | AP4: Total Sequences in Block Summary | AQ4: =SUM(AO7:AO22) -> 3 | AU4: Total Sequences in Block Summary | AV4: =SUM(AT7:AT22) -> 2
T5: Block 1 | Y5: Block 2 | AD5: Block 3 | AI5: Block 4 | AN5: Block 5 | AS5: Block 6
A6: Sequence Component 1 | B6: Time 1 | C6: Sequence Component 2 | D6: Time 2 | E6: Sequence Component 3 | F6: Time 3 | G6: Sequence Component 4 | H6: Time 4 | I6: Sequence Component 5 | J6: Time 5 | K6: Correct? 0=No 1=Yes | L6: Sequence | N6: Frequency | P6: Relative Frequency | Q6: Variability | T6: Frequency | V6: Relative Frequency | W6: Variability | Y6: Frequency | AA6: Relative Frequency | AB6: Variability | AD6: Frequency | AF6: Relative Frequency | AG6: Variability | AI6: Frequency | AK6: Relative Frequency | AL6: Variability | AN6: Frequency | AP6: Relative Frequency | AQ6: Variability | AS6: Frequency | AU6: Relative Frequency | AV6: Variability
A7: 12 | B7: 10 | C7: 23 | D7: 24 | E7: 24 | F7: 30 | G7: 23 | H7: 37 | K7: 0 | L7: 1222 | N7: 1111 | O7: =COUNTIF($L$7:$L$500,N7) -> 4 | P7: =O7/$Q$4 -> 0.2222222222 | Q7: =IF(P7=0,0,(P7*((LOG(P7))/LOG(2)))) -> -0.4822055559 | T7: =N7 -> 1111 | U7: =COUNTIF(L7:L9,T7) -> 0 | V7: =U7/(W4-U20) -> 0 | W7: =IF(V7=0,0,(V7*((LOG(V7))/LOG(2)))) -> 0 | Y7: =N7 -> 1111 | Z7: =COUNTIF(L10:L12,Y7) -> 3 | AA7: =Z7/(AB4-Z20) -> 1 | AB7: =IF(AA7=0,0,(AA7*((LOG(AA7))/LOG(2)))) -> 0 | AD7: =N7 -> 1111 | AE7: =COUNTIF(L13:L16,AD7) -> 0 | AF7: =AE7/(AG4-AE20) -> 0 | AG7: =IF(AF7=0,0,(AF7*((LOG(AF7))/LOG(2)))) -> 0 | AI7: =N7 -> 1111 | AJ7: =COUNTIF(L17:L19,AI7) -> 0 | AK7: =AJ7/(AL4-AJ20) -> 0 | AL7: =IF(AK7=0,0,(AK7*((LOG(AK7))/LOG(2)))) -> 0 | AN7: =N7 -> 1111 | AO7: =COUNTIF(L20:L22,AN7) -> 1 | AP7: =AO7/(AQ4-AO20) -> 0.3333333333 | AQ7: =IF(AP7=0,0,(AP7*((LOG(AP7))/LOG(2)))) -> -0.5283208336 | AS7: =N7 -> 1111 | AT7: =COUNTIF(L23:L25,AS7) -> 0 | AU7: =AT7/(AV4-AT20) -> 0 | AV7: =IF(AU7=0,0,(AU7*((LOG(AU7))/LOG(2)))) -> 0
A8: 12 | B8: 143 | C8: 23 | D8: 157 | E8: 24 | F8: 166 | G8: 23 | H8: 180 | K8: 0 | L8: 1222 | N8: 1112 | O8: =COUNTIF($L$7:$L$500,N8) -> 1 | P8: =O8/$Q$4 -> 0.05555555556 | Q8: =IF(P8=0,0,(P8*((LOG(P8))/LOG(2)))) -> -0.2316625001 | T8: =N8 -> 1112 | U8: =COUNTIF(L7:L9,T8) -> 0 | V8: =U8/(W4-U20) -> 0 | W8: =IF(V8=0,0,(V8*((LOG(V8))/LOG(2)))) -> 0 | Y8: =N8 -> 1112 | Z8: =COUNTIF(L10:L12,Y8) -> 0 | AA8: =Z8/(AB4-Z20) -> 0 | AB8: =IF(AA8=0,0,(AA8*((LOG(AA8))/LOG(2)))) -> 0 | AD8: =N8 -> 1112 | AE8: =COUNTIF(L13:L16,AD8) -> 1 | AF8: =AE8/(AG4-AE20) -> 0.25 | AG8: =IF(AF8=0,0,(AF8*((LOG(AF8))/LOG(2)))) -> -0.5 | AI8: =N8 -> 1112 | AJ8: =COUNTIF(L17:L19,AI8) -> 0 | AK8: =AJ8/(AL4-AJ20) -> 0 | AL8: =IF(AK8=0,0,(AK8*((LOG(AK8))/LOG(2)))) -> 0 | AN8: =N8 -> 1112 | AO8: =COUNTIF(L20:L22,AN8) -> 0 | AP8: =AO8/(AQ4-AO20) -> 0 | AQ8: =IF(AP8=0,0,(AP8*((LOG(AP8))/LOG(2)))) -> 0 | AS8: =N8 -> 1112 | AT8: =COUNTIF(L23:L25,AS8) -> 0 | AU8: =AT8/(AV4-AT20) -> 0 | AV8: =IF(AU8=0,0,(AU8*((LOG(AU8))/LOG(2)))) -> 0
A9: 12 | B9: 280 | C9: 23 | D9: 295 | E9: 24 | F9: 298 | G9: 23 | H9: 302 | K9: 0 | L9: 1222 | N9: 1121 | O9: =COUNTIF($L$7:$L$500,N9) -> 3 | P9: =O9/$Q$4 -> 0.1666666667 | Q9: =IF(P9=0,0,(P9*((LOG(P9))/LOG(2)))) -> -0.4308270835 | T9: =N9 -> 1121 | U9: =COUNTIF(L7:L9,T9) -> 0 | V9: =U9/(W4-U20) -> 0 | W9: =IF(V9=0,0,(V9*((LOG(V9))/LOG(2)))) -> 0 | Y9: =N9 -> 1121 | Z9: =COUNTIF(L10:L12,Y9) -> 0 | AA9: =Z9/(AB4-Z20) -> 0 | AB9: =IF(AA9=0,0,(AA9*((LOG(AA9))/LOG(2)))) -> 0 | AD9: =N9 -> 1121 | AE9: =COUNTIF(L13:L16,AD9) -> 3 | AF9: =AE9/(AG4-AE20) -> 0.75 | AG9: =IF(AF9=0,0,(AF9*((LOG(AF9))/LOG(2)))) -> -0.3112781245 | AI9: =N9 -> 1121 | AJ9: =COUNTIF(L17:L19,AI9) -> 0 | AK9: =AJ9/(AL4-AJ20) -> 0 | AL9: =IF(AK9=0,0,(AK9*((LOG(AK9))/LOG(2)))) -> 0 | AN9: =N9 -> 1121 | AO9: =COUNTIF(L20:L22,AN9) -> 0 | AP9: =AO9/(AQ4-AO20) -> 0 | AQ9: =IF(AP9=0,0,(AP9*((LOG(AP9))/LOG(2)))) -> 0 | AS9: =N9 -> 1121 | AT9: =COUNTIF(L23:L25,AS9) -> 0 | AU9: =AT9/(AV4-AT20) -> 0 | AV9: =IF(AU9=0,0,(AU9*((LOG(AU9))/LOG(2)))) -> 0
A10: 12 | B10: 416 | C10: 14 | D10: 437 | E10: 13 | F10: 448 | G10: 14 | H10: 453 | K10: 0 | L10: 1111 | N10: 1122 | O10: =COUNTIF($L$7:$L$500,N10) -> 2 | P10: =O10/$Q$4 -> 0.1111111111 | Q10: =IF(P10=0,0,(P10*((LOG(P10))/LOG(2)))) -> -0.352213889 | T10: =N10 -> 1122 | U10: =COUNTIF(L7:L9,T10) -> 0 | V10: =U10/(W4-U20) -> 0 | W10: =IF(V10=0,0,(V10*((LOG(V10))/LOG(2)))) -> 0 | Y10: =N10 -> 1122 | Z10: =COUNTIF(L10:L12,Y10) -> 0 | AA10: =Z10/(AB4-Z20) -> 0 | AB10: =IF(AA10=0,0,(AA10*((LOG(AA10))/LOG(2)))) -> 0 | AD10: =N10 -> 1122 | AE10: =COUNTIF(L13:L16,AD10) -> 0 | AF10: =AE10/(AG4-AE20) -> 0 | AG10: =IF(AF10=0,0,(AF10*((LOG(AF10))/LOG(2)))) -> 0 | AI10: =N10 -> 1122 | AJ10: =COUNTIF(L17:L19,AI10) -> 2 | AK10: =AJ10/(AL4-AJ20) -> 0.6666666667 | AL10: =IF(AK10=0,0,(AK10*((LOG(AK10))/LOG(2)))) -> -0.3899750005 | AN10: =N10 -> 1122 | AO10: =COUNTIF(L20:L22,AN10) -> 0 | AP10: =AO10/(AQ4-AO20) -> 0 | AQ10: =IF(AP10=0,0,(AP10*((LOG(AP10))/LOG(2)))) -> 0 | AS10: =N10 -> 1122 | AT10: =COUNTIF(L23:L25,AS10) -> 0 | AU10: =AT10/(AV4-AT20) -> 0 | AV10: =IF(AU10=0,0,(AU10*((LOG(AU10))/LOG(2)))) -> 0
A11: 12 | B11: 554 | C11: 14 | D11: 569 | E11: 13 | F11: 574 | G11: 14 | H11: 582 | K11: 0 | L11: 1111 | N11: 1211 | O11: =COUNTIF($L$7:$L$500,N11) -> 2 | P11: =O11/$Q$4 -> 0.1111111111 | Q11: =IF(P11=0,0,(P11*((LOG(P11))/LOG(2)))) -> -0.352213889 | T11: =N11 -> 1211 | U11: =COUNTIF(L7:L9,T11) -> 0 | V11: =U11/(W4-U20) -> 0 | W11: =IF(V11=0,0,(V11*((LOG(V11))/LOG(2)))) -> 0 | Y11: =N11 -> 1211 | Z11: =COUNTIF(L10:L12,Y11) -> 0 | AA11: =Z11/(AB4-Z20) -> 0 | AB11: =IF(AA11=0,0,(AA11*((LOG(AA11))/LOG(2)))) -> 0 | AD11: =N11 -> 1211 | AE11: =COUNTIF(L13:L16,AD11) -> 0 | AF11: =AE11/(AG4-AE20) -> 0 | AG11: =IF(AF11=0,0,(AF11*((LOG(AF11))/LOG(2)))) -> 0 | AI11: =N11 -> 1211 | AJ11: =COUNTIF(L17:L19,AI11) -> 1 | AK11: =AJ11/(AL4-AJ20) -> 0.3333333333 | AL11: =IF(AK11=0,0,(AK11*((LOG(AK11))/LOG(2)))) -> -0.5283208336 | AN11: =N11 -> 1211 | AO11: =COUNTIF(L20:L22,AN11) -> 0 | AP11: =AO11/(AQ4-AO20) -> 0 | AQ11: =IF(AP11=0,0,(AP11*((LOG(AP11))/LOG(2)))) -> 0 | AS11: =N11 -> 1211 | AT11: =COUNTIF(L23:L25,AS11) -> 1 | AU11: =AT11/(AV4-AT20) -> 0.5 | AV11: =IF(AU11=0,0,(AU11*((LOG(AU11))/LOG(2)))) -> -0.5
A12: 12 | B12: 680 | C12: 14 | D12: 682 | E12: 13 | F12: 697 | G12: 14 | H12: 704 | K12: 0 | L12: 1111 | N12: 1212 | O12: =COUNTIF($L$7:$L$500,N12) -> 0 | P12: =O12/$Q$4 -> 0 | Q12: =IF(P12=0,0,(P12*((LOG(P12))/LOG(2)))) -> 0 | T12: =N12 -> 1212 | U12: =COUNTIF(L7:L9,T12) -> 0 | V12: =U12/(W4-U20) -> 0 | W12: =IF(V12=0,0,(V12*((LOG(V12))/LOG(2)))) -> 0 | Y12: =N12 -> 1212 | Z12: =COUNTIF(L10:L12,Y12) -> 0 | AA12: =Z12/(AB4-Z20) -> 0 | AB12: =IF(AA12=0,0,(AA12*((LOG(AA12))/LOG(2)))) -> 0 | AD12: =N12 -> 1212 | AE12: =COUNTIF(L13:L16,AD12) -> 0 | AF12: =AE12/(AG4-AE20) -> 0 | AG12: =IF(AF12=0,0,(AF12*((LOG(AF12))/LOG(2)))) -> 0 | AI12: =N12 -> 1212 | AJ12: =COUNTIF(L17:L19,AI12) -> 0 | AK12: =AJ12/(AL4-AJ20) -> 0 | AL12: =IF(AK12=0,0,(AK12*((LOG(AK12))/LOG(2)))) -> 0 | AN12: =N12 -> 1212 | AO12: =COUNTIF(L20:L22,AN12) -> 0 | AP12: =AO12/(AQ4-AO20) -> 0 | AQ12: =IF(AP12=0,0,(AP12*((LOG(AP12))/LOG(2)))) -> 0 | AS12: =N12 -> 1212 | AT12: =COUNTIF(L23:L25,AS12) -> 0 | AU12: =AT12/(AV4-AT20) -> 0 | AV12: =IF(AU12=0,0,(AU12*((LOG(AU12))/LOG(2)))) -> 0
A13: 12 | B13: 860 | C13: 14 | D13: 911 | E13: 24 | F13: 924 | G13: 14 | H13: 1042 | K13: 0 | L13: 1121 | N13: 1221 | O13: =COUNTIF($L$7:$L$500,N13) -> 0 | P13: =O13/$Q$4 -> 0 | Q13: =IF(P13=0,0,(P13*((LOG(P13))/LOG(2)))) -> 0 | T13: =N13 -> 1221 | U13: =COUNTIF(L7:L9,T13) -> 0 | V13: =U13/(W4-U20) -> 0 | W13: =IF(V13=0,0,(V13*((LOG(V13))/LOG(2)))) -> 0 | Y13: =N13 -> 1221 | Z13: =COUNTIF(L10:L12,Y13) -> 0 | AA13: =Z13/(AB4-Z20) -> 0 | AB13: =IF(AA13=0,0,(AA13*((LOG(AA13))/LOG(2)))) -> 0 | AD13: =N13 -> 1221 | AE13: =COUNTIF(L13:L16,AD13) -> 0 | AF13: =AE13/(AG4-AE20) -> 0 | AG13: =IF(AF13=0,0,(AF13*((LOG(AF13))/LOG(2)))) -> 0 | AI13: =N13 -> 1221 | AJ13: =COUNTIF(L17:L19,AI13) -> 0 | AK13: =AJ13/(AL4-AJ20) -> 0 | AL13: =IF(AK13=0,0,(AK13*((LOG(AK13))/LOG(2)))) -> 0 | AN13: =N13 -> 1221 | AO13: =COUNTIF(L20:L22,AN13) -> 0 | AP13: =AO13/(AQ4-AO20) -> 0 | AQ13: =IF(AP13=0,0,(AP13*((LOG(AP13))/LOG(2)))) -> 0 | AS13: =N13 -> 1221 | AT13: =COUNTIF(L23:L25,AS13) -> 0 | AU13: =AT13/(AV4-AT20) -> 0 | AV13: =IF(AU13=0,0,(AU13*((LOG(AU13))/LOG(2)))) -> 0
A14: 12 | B14: 1201 | C14: 14 | D14: 1203 | E14: 13 | F14: 1205 | G14: 23 | H14: 1217 | K14: 0 | L14: 1112 | N14: 1222 | O14: =COUNTIF($L$7:$L$500,N14) -> 4 | P14: =O14/$Q$4 -> 0.2222222222 | Q14: =IF(P14=0,0,(P14*((LOG(P14))/LOG(2)))) -> -0.4822055559 | T14: =N14 -> 1222 | U14: =COUNTIF(L7:L9,T14) -> 3 | V14: =U14/(W4-U20) -> 1 | W14: =IF(V14=0,0,(V14*((LOG(V14))/LOG(2)))) -> 0 | Y14: =N14 -> 1222 | Z14: =COUNTIF(L10:L12,Y14) -> 0 | AA14: =Z14/(AB4-Z20) -> 0 | AB14: =IF(AA14=0,0,(AA14*((LOG(AA14))/LOG(2)))) -> 0 | AD14: =N14 -> 1222 | AE14: =COUNTIF(L13:L16,AD14) -> 0 | AF14: =AE14/(AG4-AE20) -> 0 | AG14: =IF(AF14=0,0,(AF14*((LOG(AF14))/LOG(2)))) -> 0 | AI14: =N14 -> 1222 | AJ14: =COUNTIF(L17:L19,AI14) -> 0 | AK14: =AJ14/(AL4-AJ20) -> 0 | AL14: =IF(AK14=0,0,(AK14*((LOG(AK14))/LOG(2)))) -> 0 | AN14: =N14 -> 1222 | AO14: =COUNTIF(L20:L22,AN14) -> 1 | AP14: =AO14/(AQ4-AO20) -> 0.3333333333 | AQ14: =IF(AP14=0,0,(AP14*((LOG(AP14))/LOG(2)))) -> -0.5283208336 | AS14: =N14 -> 1222 | AT14: =COUNTIF(L23:L25,AS14) -> 0 | AU14: =AT14/(AV4-AT20) -> 0 | AV14: =IF(AU14=0,0,(AU14*((LOG(AU14))/LOG(2)))) -> 0
A15: 12 | B15: 1533 | C15: 14 | D15: 1538 | E15: 24 | F15: 1557 | G15: 14 | H15: 1586 | K15: 0 | L15: 1121 | N15: 2111 | O15: =COUNTIF($L$7:$L$500,N15) -> 1 | P15: =O15/$Q$4 -> 0.05555555556 | Q15: =IF(P15=0,0,(P15*((LOG(P15))/LOG(2)))) -> -0.2316625001 | T15: =N15 -> 2111 | U15: =COUNTIF(L7:L9,T15) -> 0 | V15: =U15/(W4-U20) -> 0 | W15: =IF(V15=0,0,(V15*((LOG(V15))/LOG(2)))) -> 0 | Y15: =N15 -> 2111 | Z15: =COUNTIF(L10:L12,Y15) -> 0 | AA15: =Z15/(AB4-Z20) -> 0 | AB15: =IF(AA15=0,0,(AA15*((LOG(AA15))/LOG(2)))) -> 0 | AD15: =N15 -> 2111 | AE15: =COUNTIF(L13:L16,AD15) -> 0 | AF15: =AE15/(AG4-AE20) -> 0 | AG15: =IF(AF15=0,0,(AF15*((LOG(AF15))/LOG(2)))) -> 0 | AI15: =N15 -> 2111 | AJ15: =COUNTIF(L17:L19,AI15) -> 0 | AK15: =AJ15/(AL4-AJ20) -> 0 | AL15: =IF(AK15=0,0,(AK15*((LOG(AK15))/LOG(2)))) -> 0 | AN15: =N15 -> 2111 | AO15: =COUNTIF(L20:L22,AN15) -> 0 | AP15: =AO15/(AQ4-AO20) -> 0 | AQ15: =IF(AP15=0,0,(AP15*((LOG(AP15))/LOG(2)))) -> 0 | AS15: =N15 -> 2111 | AT15: =COUNTIF(L23:L25,AS15) -> 1 | AU15: =AT15/(AV4-AT20) -> 0.5 | AV15: =IF(AU15=0,0,(AU15*((LOG(AU15))/LOG(2)))) -> -0.5
A16: 12 | B16: 1782 | C16: 14 | D16: 1784 | E16: 24 | F16: 1797 | G16: 14 | H16: 1813 | K16: 0 | L16: 1121 | N16: 2112 | O16: =COUNTIF($L$7:$L$500,N16) -> 1 | P16: =O16/$Q$4 -> 0.05555555556 | Q16: =IF(P16=0,0,(P16*((LOG(P16))/LOG(2)))) -> -0.2316625001 | T16: =N16 -> 2112 | U16: =COUNTIF(L7:L9,T16) -> 0 | V16: =U16/(W4-U20) -> 0 | W16: =IF(V16=0,0,(V16*((LOG(V16))/LOG(2)))) -> 0 | Y16: =N16 -> 2112 | Z16: =COUNTIF(L10:L12,Y16) -> 0 | AA16: =Z16/(AB4-Z20) -> 0 | AB16: =IF(AA16=0,0,(AA16*((LOG(AA16))/LOG(2)))) -> 0 | AD16: =N16 -> 2112 | AE16: =COUNTIF(L13:L16,AD16) -> 0 | AF16: =AE16/(AG4-AE20) -> 0 | AG16: =IF(AF16=0,0,(AF16*((LOG(AF16))/LOG(2)))) -> 0 | AI16: =N16 -> 2112 | AJ16: =COUNTIF(L17:L19,AI16) -> 0 | AK16: =AJ16/(AL4-AJ20) -> 0 | AL16: =IF(AK16=0,0,(AK16*((LOG(AK16))/LOG(2)))) -> 0 | AN16: =N16 -> 2112 | AO16: =COUNTIF(L20:L22,AN16) -> 1 | AP16: =AO16/(AQ4-AO20) -> 0.3333333333 | AQ16: =IF(AP16=0,0,(AP16*((LOG(AP16))/LOG(2)))) -> -0.5283208336 | AS16: =N16 -> 2112 | AT16: =COUNTIF(L23:L25,AS16) -> 0 | AU16: =AT16/(AV4-AT20) -> 0 | AV16: =IF(AU16=0,0,(AU16*((LOG(AU16))/LOG(2)))) -> 0
A17: 12 | B17: 1966 | C17: 14 | D17: 1975 | E17: 24 | F17: 1984 | G17: 23 | H17: 1990 | K17: 0 | L17: 1122 | N17: 2121 | O17: =COUNTIF($L$7:$L$500,N17) -> 0 | P17: =O17/$Q$4 -> 0 | Q17: =IF(P17=0,0,(P17*((LOG(P17))/LOG(2)))) -> 0 | T17: =N17 -> 2121 | U17: =COUNTIF(L7:L9,T17) -> 0 | V17: =U17/(W4-U20) -> 0 | W17: =IF(V17=0,0,(V17*((LOG(V17))/LOG(2)))) -> 0 | Y17: =N17 -> 2121 | Z17: =COUNTIF(L10:L12,Y17) -> 0 | AA17: =Z17/(AB4-Z20) -> 0 | AB17: =IF(AA17=0,0,(AA17*((LOG(AA17))/LOG(2)))) -> 0 | AD17: =N17 -> 2121 | AE17: =COUNTIF(L13:L16,AD17) -> 0 | AF17: =AE17/(AG4-AE20) -> 0 | AG17: =IF(AF17=0,0,(AF17*((LOG(AF17))/LOG(2)))) -> 0 | AI17: =N17 -> 2121 | AJ17: =COUNTIF(L17:L19,AI17) -> 0 | AK17: =AJ17/(AL4-AJ20) -> 0 | AL17: =IF(AK17=0,0,(AK17*((LOG(AK17))/LOG(2)))) -> 0 | AN17: =N17 -> 2121 | AO17: =COUNTIF(L20:L22,AN17) -> 0 | AP17: =AO17/(AQ4-AO20) -> 0 | AQ17: =IF(AP17=0,0,(AP17*((LOG(AP17))/LOG(2)))) -> 0 | AS17: =N17 -> 2121 | AT17: =COUNTIF(L23:L25,AS17) -> 0 | AU17: =AT17/(AV4-AT20) -> 0 | AV17: =IF(AU17=0,0,(AU17*((LOG(AU17))/LOG(2)))) -> 0
A18: 12 | B18: 2216 | C18: 23 | D18: 2230 | E18: 13 | F18: 2249 | G18: 14 | H18: 2255 | K18: 0 | L18: 1211 | N18: 2122 | O18: =COUNTIF($L$7:$L$500,N18) -> 0 | P18: =O18/$Q$4 -> 0 | Q18: =IF(P18=0,0,(P18*((LOG(P18))/LOG(2)))) -> 0 | T18: =N18 -> 2122 | U18: =COUNTIF(L7:L9,T18) -> 0 | V18: =U18/(W4-U20) -> 0 | W18: =IF(V18=0,0,(V18*((LOG(V18))/LOG(2)))) -> 0 | Y18: =N18 -> 2122 | Z18: =COUNTIF(L10:L12,Y18) -> 0 | AA18: =Z18/(AB4-Z20) -> 0 | AB18: =IF(AA18=0,0,(AA18*((LOG(AA18))/LOG(2)))) -> 0 | AD18: =N18 -> 2122 | AE18: =COUNTIF(L13:L16,AD18) -> 0 | AF18: =AE18/(AG4-AE20) -> 0 | AG18: =IF(AF18=0,0,(AF18*((LOG(AF18))/LOG(2)))) -> 0 | AI18: =N18 -> 2122 | AJ18: =COUNTIF(L17:L19,AI18) -> 0 | AK18: =AJ18/(AL4-AJ20) -> 0 | AL18: =IF(AK18=0,0,(AK18*((LOG(AK18))/LOG(2)))) -> 0 | AN18: =N18 -> 2122 | AO18: =COUNTIF(L20:L22,AN18) -> 0 | AP18: =AO18/(AQ4-AO20) -> 0 | AQ18: =IF(AP18=0,0,(AP18*((LOG(AP18))/LOG(2)))) -> 0 | AS18: =N18 -> 2122 | AT18: =COUNTIF(L23:L25,AS18) -> 0 | AU18: =AT18/(AV4-AT20) -> 0 | AV18: =IF(AU18=0,0,(AU18*((LOG(AU18))/LOG(2)))) -> 0
A19: 12 | B19: 2423 | C19: 14 | D19: 2428 | E19: 24 | F19: 2440 | G19: 23 | H19: 2446 | K19: 0 | L19: 1122 | N19: 2211 | O19: =COUNTIF($L$7:$L$500,N19) -> 0 | P19: =O19/$Q$4 -> 0 | Q19: =IF(P19=0,0,(P19*((LOG(P19))/LOG(2)))) -> 0 | T19: =N19 -> 2211 | U19: =COUNTIF(L7:L9,T19) -> 0 | V19: =U19/(W4-U20) -> 0 | W19: =IF(V19=0,0,(V19*((LOG(V19))/LOG(2)))) -> 0 | Y19: =N19 -> 2211 | Z19: =COUNTIF(L10:L12,Y19) -> 0 | AA19: =Z19/(AB4-Z20) -> 0 | AB19: =IF(AA19=0,0,(AA19*((LOG(AA19))/LOG(2)))) -> 0 | AD19: =N19 -> 2211 | AE19: =COUNTIF(L13:L16,AD19) -> 0 | AF19: =AE19/(AG4-AE20) -> 0 | AG19: =IF(AF19=0,0,(AF19*((LOG(AF19))/LOG(2)))) -> 0 | AI19: =N19 -> 2211 | AJ19: =COUNTIF(L17:L19,AI19) -> 0 | AK19: =AJ19/(AL4-AJ20) -> 0 | AL19: =IF(AK19=0,0,(AK19*((LOG(AK19))/LOG(2)))) -> 0 | AN19: =N19 -> 2211 | AO19: =COUNTIF(L20:L22,AN19) -> 0 | AP19: =AO19/(AQ4-AO20) -> 0 | AQ19: =IF(AP19=0,0,(AP19*((LOG(AP19))/LOG(2)))) -> 0 | AS19: =N19 -> 2211 | AT19: =COUNTIF(L23:L25,AS19) -> 0 | AU19: =AT19/(AV4-AT20) -> 0 | AV19: =IF(AU19=0,0,(AU19*((LOG(AU19))/LOG(2)))) -> 0
A20: 21 | B20: 2984 | C20: 12 | D20: 2994 | E20: 13 | F20: 2999 | G20: 23 | H20: 3009 | K20: 0 | L20: 2112 | N20: 2212 | O20: =COUNTIF($L$7:$L$500,N20) -> 0 | P20: =O20/$Q$4 -> 0 | Q20: =IF(P20=0,0,(P20*((LOG(P20))/LOG(2)))) -> 0 | T20: =N20 -> 2212 | U20: =COUNTIF(L7:L9,T20) -> 0 | Y20: =N20 -> 2212 | Z20: =COUNTIF(L10:L12,Y20) -> 0 | AD20: =N20 -> 2212 | AE20: =COUNTIF(L13:L16,AD20) -> 0 | AI20: =N20 -> 2212 | AJ20: =COUNTIF(L17:L19,AI20) -> 0 | AN20: =N20 -> 2212 | AO20: =COUNTIF(L20:L22,AN20) -> 0 | AS20: =N20 -> 2212 | AT20: =COUNTIF(L23:L25,AS20) -> 0
A21: 12 | B21: 3868 | C21: 14 | D21: 3872 | E21: 13 | F21: 3887 | G21: 14 | H21: 5249 | K21: 0 | L21: 1111 | N21: 2221 | O21: =COUNTIF($L$7:$L$500,N21) -> 0 | P21: =O21/$Q$4 -> 0 | Q21: =IF(P21=0,0,(P21*((LOG(P21))/LOG(2)))) -> 0 | T21: =N21 -> 2221 | U21: =COUNTIF(L7:L9,T21) -> 0 | V21: =U21/(W4-U20) -> 0 | W21: =IF(V21=0,0,(V21*((LOG(V21))/LOG(2)))) -> 0 | Y21: =N21 -> 2221 | Z21: =COUNTIF(L10:L12,Y21) -> 0 | AA21: =Z21/(AB4-Z20) -> 0 | AB21: =IF(AA21=0,0,(AA21*((LOG(AA21))/LOG(2)))) -> 0 | AD21: =N21 -> 2221 | AE21: =COUNTIF(L13:L16,AD21) -> 0 | AF21: =AE21/(AG4-AE20) -> 0 | AG21: =IF(AF21=0,0,(AF21*((LOG(AF21))/LOG(2)))) -> 0 | AI21: =N21 -> 2221 | AJ21: =COUNTIF(L17:L19,AI21) -> 0 | AK21: =AJ21/(AL4-AJ20) -> 0 | AL21: =IF(AK21=0,0,(AK21*((LOG(AK21))/LOG(2)))) -> 0 | AN21: =N21 -> 2221 | AO21: =COUNTIF(L20:L22,AN21) -> 0 | AP21: =AO21/(AQ4-AO20) -> 0 | AQ21: =IF(AP21=0,0,(AP21*((LOG(AP21))/LOG(2)))) -> 0 | AS21: =N21 -> 2221 | AT21: =COUNTIF(L23:L25,AS21) -> 0 | AU21: =AT21/(AV4-AT20) -> 0 | AV21: =IF(AU21=0,0,(AU21*((LOG(AU21))/LOG(2)))) -> 0
A22: 12 | B22: 7095 | C22: 23 | D22: 7103 | E22: 24 | F22: 7111 | G22: 23 | H22: 7116 | K22: 0 | L22: 1222 | N22: 2222 | O22: =COUNTIF($L$7:$L$500,N22) -> 0 | P22: =O22/$Q$4 -> 0 | Q22: =IF(P22=0,0,(P22*((LOG(P22))/LOG(2)))) -> 0 | T22: =N22 -> 2222 | U22: =COUNTIF(L7:L9,T22) -> 0 | V22: =U22/(W4-U20) -> 0 | W22: =IF(V22=0,0,(V22*((LOG(V22))/LOG(2)))) -> 0 | Y22: =N22 -> 2222 | Z22: =COUNTIF(L10:L12,Y22) -> 0 | AA22: =Z22/(AB4-Z20) -> 0 | AB22: =IF(AA22=0,0,(AA22*((LOG(AA22))/LOG(2)))) -> 0 | AD22: =N22 -> 2222 | AE22: =COUNTIF(L13:L16,AD22) -> 0 | AF22: =AE22/(AG4-AE20) -> 0 | AG22: =IF(AF22=0,0,(AF22*((LOG(AF22))/LOG(2)))) -> 0 | AI22: =N22 -> 2222 | AJ22: =COUNTIF(L17:L19,AI22) -> 0 | AK22: =AJ22/(AL4-AJ20) -> 0 | AL22: =IF(AK22=0,0,(AK22*((LOG(AK22))/LOG(2)))) -> 0 | AN22: =N22 -> 2222 | AO22: =COUNTIF(L20:L22,AN22) -> 0 | AP22: =AO22/(AQ4-AO20) -> 0 | AQ22: =IF(AP22=0,0,(AP22*((LOG(AP22))/LOG(2)))) -> 0 | AS22: =N22 -> 2222 | AT22: =COUNTIF(L23:L25,AS22) -> 0 | AU22: =AT22/(AV4-AT20) -> 0 | AV22: =IF(AU22=0,0,(AU22*((LOG(AU22))/LOG(2)))) -> 0
A23: 12 | B23: 7241 | C23: 23 | D23: 7256 | E23: 13 | F23: 7266 | G23: 14 | H23: 7270 | K23: 0 | L23: 1211 | P23: =SUM(P7:P22) -> 1 | Q23: =-SUM(Q7:Q22) -> 2.794653474 | V23: =SUM(V7:V22) -> 1 | W23: =-SUM(W7:W22) -> 0 | AA23: =SUM(AA7:AA22) -> 1 | AB23: =-SUM(AB7:AB22) -> 0 | AF23: =SUM(AF7:AF22) -> 1 | AG23: =-SUM(AG7:AG22) -> 0.8112781245 | AK23: =SUM(AK7:AK22) -> 1 | AL23: =-SUM(AL7:AL22) -> 0.9182958341 | AP23: =SUM(AP7:AP22) -> 1 | AQ23: =-SUM(AQ7:AQ22) -> 1.584962501 | AU23: =SUM(AU7:AU22) -> 1 | AV23: =-SUM(AV7:AV22) -> 1
A24: 21 | B24: 9281 | C24: 12 | D24: 9292 | E24: 13 | F24: 9295 | G24: 14 | H24: 9299 | K24: 0 | L24: 2111 | P24: U= | Q24: =Q23/(LOG(Q4)/LOG(2)) -> 0.6701927427 | V24: U1= | W24: =W23/(LOG(W4)/LOG(2)) -> 0 | AA24: U2= | AB24: =AB23/(LOG(AB4)/LOG(2)) -> 0 | AF24: U3= | AG24: =AG23/(LOG(AG4)/LOG(2)) -> 0.4056390622 | AK24: U4= | AL24: =AL23/(LOG(AL4)/LOG(2)) -> 0.5793801643 | AP24: U5= | AQ24: =AQ23/(LOG(AQ4)/LOG(2)) -> 1 | AU24: U6= | AV24: =AV23/(LOG(AV4)/LOG(2)) -> 1
A25: 12 | B25: 10640 | L25: 1
N27: Total Target Seq
N28: =COUNTIF(L7:L25,G3) -> 0 | P28: 3 | Q28: 3 | R28: 4 | S28: 3 | T28: 3 | U28: 3
P29: % of reinforcement given in 6 equal intervals based on number of trials
P30: %_1 | Q30: %_2 | R30: %_3 | S30: %_4 | T30: %_5 | U30: %_6
O31: target sequence | P31: =$G$3 -> 2212 | Q31: =$G$3 -> 2212 | R31: =$G$3 -> 2212 | S31: =$G$3 -> 2212 | T31: =$G$3 -> 2212 | U31: =$G$3 -> 2212
O32: total reinforcement | P32: =U20 -> 0 | Q32: =Z20 -> 0 | R32: =AE20 -> 0 | S32: =AJ20 -> 0 | T32: =AO20 -> 0 | U32: =AT20 -> 0
O33: % target
O34: CCRF
O35: % CCRf
O36: average response rate | P36: =H9/P28 -> 100.6666667 | Q36: =(H12-H9)/Q28 -> 134 | R36: =(H16-H12)/R28 -> 277.25 | S36: =(H19-H16)/S28 -> 211 | T36: =(H22-H19)/T28 -> 1556.666667 | U36: =(H25-H22)/U28 -> -2372

Sheet !M118B3T.ayl
A1: Report for:!M118B3T.ayl
A2: Date: | B2: <date>
A3: Hen: | B3: <hen> | F3: Correct Sequence | G3: =Start!J2 -> 2212 | P3: Total Sequences in Data | Q3: =4994-COUNTBLANK(L7:L5000) -> 17 | V3: Total Sequences in Block Data | W3: =COUNTA(L7:L9) -> 3 | AA3: Total Sequences in Block Data | AB3: =COUNTA(L10:L12) -> 3 | AF3: Total Sequences in Block Data | AG3: =COUNTA(L13:L14) -> 2 | AK3: Total Sequences in Block Data | AL3: =COUNTA(L15:L17) -> 3 | AP3: Total Sequences in Block Data | AQ3: =COUNTA(L18:L20) -> 3 | AU3: Total Sequences in Block Data | AV3: =COUNTA(L21:L23) -> 3
P4: Total Sequences in Summary | Q4: =SUM(O7:O22) -> 16 | V4: Total Sequences in Block Summary | W4: =SUM(U7:U22) -> 3 | AA4: Total Sequences in Block Summary | AB4: =SUM(Z7:Z22) -> 3 | AF4: Total Sequences in Block Summary | AG4: =SUM(AE7:AE22) -> 2 | AK4: Total Sequences in Block Summary | AL4: =SUM(AJ7:AJ22) -> 3 | AP4: Total Sequences in Block Summary | AQ4: =SUM(AO7:AO22) -> 3 | AU4: Total Sequences in Block Summary | AV4: =SUM(AT7:AT22) -> 2
T5: Block 1 | Y5: Block 2 | AD5: Block 3 | AI5: Block 4 | AN5: Block 5 | AS5: Block 6
A6: Sequence Component 1 | B6: Time 1 | C6: Sequence Component 2 | D6: Time 2 | E6: Sequence Component 3 | F6: Time 3 | G6: Sequence Component 4 | H6: Time 4 | I6: Sequence Component 5 | J6: Time 5 | K6: Correct? 0=No 1=Yes | L6: Sequence | N6: Frequency | P6: Relative Frequency | Q6: Variability | T6: Frequency | V6: Relative Frequency | W6: Variability | Y6: Frequency | AA6: Relative Frequency | AB6: Variability | AD6: Frequency | AF6: Relative Frequency | AG6: Variability | AI6: Frequency | AK6: Relative Frequency | AL6: Variability | AN6: Frequency | AP6: Relative Frequency | AQ6: Variability | AS6: Frequency | AU6: Relative Frequency | AV6: Variability
A7: 12 | B7: 2 | C7: 14 | D7: 5 | E7: 24 | F7: 14 | G7: 23 | H7: 20 | K7: 0 | L7: 1122 | N7: 1111 | O7: =COUNTIF($L$7:$L$500,N7) -> 3 | P7: =O7/$Q$4 -> 0.1875 | Q7: =IF(P7=0,0,(P7*((LOG(P7))/LOG(2)))) -> -0.4528195311 | T7: =N7 -> 1111 | U7: =COUNTIF(L7:L9,T7) -> 0 | V7: =U7/(W4-U20) -> 0 | W7: =IF(V7=0,0,(V7*((LOG(V7))/LOG(2)))) -> 0 | Y7: =N7 -> 1111 | Z7: =COUNTIF(L10:L12,Y7) -> 0 | AA7: =Z7/(AB4-Z20) -> 0 | AB7: =IF(AA7=0,0,(AA7*((LOG(AA7))/LOG(2)))) -> 0 | AD7: =N7 -> 1111 | AE7: =COUNTIF(L13:L14,AD7) -> 1 | AF7: =AE7/(AG4-AE20) -> 0.5 | AG7: =IF(AF7=0,0,(AF7*((LOG(AF7))/LOG(2)))) -> -0.5 | AI7: =N7 -> 1111 | AJ7: =COUNTIF(L15:L17,AI7) -> 1 | AK7: =AJ7/(AL4-AJ20) -> 0.3333333333 | AL7: =IF(AK7=0,0,(AK7*((LOG(AK7))/LOG(2)))) -> -0.5283208336 | AN7: =N7 -> 1111 | AO7: =COUNTIF(L18:L20,AN7) -> 1 | AP7: =AO7/(AQ4-AO20) -> 0.3333333333 | AQ7: =IF(AP7=0,0,(AP7*((LOG(AP7))/LOG(2)))) -> -0.5283208336 | AS7: =N7 -> 1111 | AT7: =COUNTIF(L21:L23,AS7) -> 0 | AU7: =AT7/(AV4-AT20) -> 0 | AV7: =IF(AU7=0,0,(AU7*((LOG(AU7))/LOG(2)))) -> 0
A8: 12 | B8: 118 | C8: 14 | D8: 120 | E8: 24 | F8: 130 | G8: 23 | H8: 138 | K8: 0 | L8: 1122 | N8: 1112 | O8: =COUNTIF($L$7:$L$500,N8) -> 3 | P8: =O8/$Q$4 -> 0.1875 | Q8: =IF(P8=0,0,(P8*((LOG(P8))/LOG(2)))) -> -0.4528195311 | T8: =N8 -> 1112 | U8: =COUNTIF(L7:L9,T8) -> 0 | V8: =U8/(W4-U20) -> 0 | W8: =IF(V8=0,0,(V8*((LOG(V8))/LOG(2)))) -> 0 | Y8: =N8 -> 1112 | Z8: =COUNTIF(L10:L12,Y8) -> 1 | AA8: =Z8/(AB4-Z20) -> 0.3333333333 | AB8: =IF(AA8=0,0,(AA8*((LOG(AA8))/LOG(2)))) -> -0.5283208336 | AD8: =N8 -> 1112 | AE8: =COUNTIF(L13:L14,AD8) -> 1 | AF8: =AE8/(AG4-AE20) -> 0.5 | AG8: =IF(AF8=0,0,(AF8*((LOG(AF8))/LOG(2)))) -> -0.5 | AI8: =N8 -> 1112 | AJ8: =COUNTIF(L15:L17,AI8) -> 0 | AK8: =AJ8/(AL4-AJ20) -> 0 | AL8: =IF(AK8=0,0,(AK8*((LOG(AK8))/LOG(2)))) -> 0 | AN8: =N8 -> 1112 | AO8: =COUNTIF(L18:L20,AN8) -> 1 | AP8: =AO8/(AQ4-AO20) -> 0.3333333333 | AQ8: =IF(AP8=0,0,(AP8*((LOG(AP8))/LOG(2)))) -> -0.5283208336 | AS8: =N8 -> 1112 | AT8: =COUNTIF(L21:L23,AS8) -> 0 | AU8: =AT8/(AV4-AT20) -> 0 | AV8: =IF(AU8=0,0,(AU8*((LOG(AU8))/LOG(2)))) -> 0
A9: 12 | B9: 548 | C9: 14 | D9: 559 | E9: 24 | F9: 568 | G9: 23 | H9: 572 | K9: 0 | L9: 1122 | N9: 1121 | O9: =COUNTIF($L$7:$L$500,N9) -> 1 | P9: =O9/$Q$4 -> 0.0625 | Q9: =IF(P9=0,0,(P9*((LOG(P9))/LOG(2)))) -> -0.25 | T9: =N9 -> 1121 | U9: =COUNTIF(L7:L9,T9) -> 0 | V9: =U9/(W4-U20) -> 0 | W9: =IF(V9=0,0,(V9*((LOG(V9))/LOG(2)))) -> 0 | Y9: =N9 -> 1121 | Z9: =COUNTIF(L10:L12,Y9) -> 0 | AA9: =Z9/(AB4-Z20) -> 0 | AB9: =IF(AA9=0,0,(AA9*((LOG(AA9))/LOG(2)))) -> 0 | AD9: =N9 -> 1121 | AE9: =COUNTIF(L13:L14,AD9) -> 0 | AF9: =AE9/(AG4-AE20) -> 0 | AG9: =IF(AF9=0,0,(AF9*((LOG(AF9))/LOG(2)))) -> 0 | AI9: =N9 -> 1121 | AJ9: =COUNTIF(L15:L17,AI9) -> 0 | AK9: =AJ9/(AL4-AJ20) -> 0 | AL9: =IF(AK9=0,0,(AK9*((LOG(AK9))/LOG(2)))) -> 0 | AN9: =N9 -> 1121 | AO9: =COUNTIF(L18:L20,AN9) -> 0 | AP9: =AO9/(AQ4-AO20) -> 0 | AQ9: =IF(AP9=0,0,(AP9*((LOG(AP9))/LOG(2)))) -> 0 | AS9: =N9 -> 1121 | AT9: =COUNTIF(L21:L23,AS9) -> 1 | AU9: =AT9/(AV4-AT20) -> 0.5 | AV9: =IF(AU9=0,0,(AU9*((LOG(AU9))/LOG(2)))) -> -0.5
A10: 12 | B10: 682 | C10: 14 | D10: 684 | E10: 24 | F10: 694 | G10: 23 | H10: 697 | K10: 0 | L10: 1122 | N10: 1122 | O10: =COUNTIF($L$7:$L$500,N10) -> 5 | P10: =O10/$Q$4 -> 0.3125 | Q10: =IF(P10=0,0,(P10*((LOG(P10))/LOG(2)))) -> -0.5243974703 | T10: =N10 -> 1122 | U10: =COUNTIF(L7:L9,T10) -> 3 | V10: =U10/(W4-U20) -> 1 | W10: =IF(V10=0,0,(V10*((LOG(V10))/LOG(2)))) -> 0 | Y10: =N10 -> 1122 | Z10: =COUNTIF(L10:L12,Y10) -> 1 | AA10: =Z10/(AB4-Z20) -> 0.3333333333 | AB10: =IF(AA10=0,0,(AA10*((LOG(AA10))/LOG(2)))) -> -0.5283208336 | AD10: =N10 -> 1122 | AE10: =COUNTIF(L13:L14,AD10) -> 0 | AF10: =AE10/(AG4-AE20) -> 0 | AG10: =IF(AF10=0,0,(AF10*((LOG(AF10))/LOG(2)))) -> 0 | AI10: =N10 -> 1122 | AJ10: =COUNTIF(L15:L17,AI10) -> 0 | AK10: =AJ10/(AL4-AJ20) -> 0 | AL10: =IF(AK10=0,0,(AK10*((LOG(AK10))/LOG(2)))) -> 0 | AN10: =N10 -> 1122 | AO10: =COUNTIF(L18:L20,AN10) -> 1 | AP10: =AO10/(AQ4-AO20) -> 0.3333333333 | AQ10: =IF(AP10=0,0,(AP10*((LOG(AP10))/LOG(2)))) -> -0.5283208336 | AS10: =N10 -> 1122 | AT10: =COUNTIF(L21:L23,AS10) -> 0 | AU10: =AT10/(AV4-AT20) -> 0 | AV10: =IF(AU10=0,0,(AU10*((LOG(AU10))/LOG(2)))) -> 0
A11: 21 | B11: 889 | C11: 21 | D11: 895 | E11: 22 | F11: 900 | G11: 23 | H11: 907 | K11: 0 | L11: 2222 | N11: 1211 | O11: =COUNTIF($L$7:$L$500,N11) -> 0 | P11: =O11/$Q$4 -> 0 | Q11: =IF(P11=0,0,(P11*((LOG(P11))/LOG(2)))) -> 0 | T11: =N11 -> 1211 | U11: =COUNTIF(L7:L9,T11) -> 0 | V11: =U11/(W4-U20) -> 0 | W11: =IF(V11=0,0,(V11*((LOG(V11))/LOG(2)))) -> 0 | Y11: =N11 -> 1211 | Z11: =COUNTIF(L10:L12,Y11) -> 0 | AA11: =Z11/(AB4-Z20) -> 0 | AB11: =IF(AA11=0,0,(AA11*((LOG(AA11))/LOG(2)))) -> 0 | AD11: =N11 -> 1211 | AE11: =COUNTIF(L13:L14,AD11) -> 0 | AF11: =AE11/(AG4-AE20) -> 0 | AG11: =IF(AF11=0,0,(AF11*((LOG(AF11))/LOG(2)))) -> 0 | AI11: =N11 -> 1211 | AJ11: =COUNTIF(L15:L17,AI11) -> 0 | AK11: =AJ11/(AL4-AJ20) -> 0 | AL11: =IF(AK11=0,0,(AK11*((LOG(AK11))/LOG(2)))) -> 0 | AN11: =N11 -> 1211 | AO11: =COUNTIF(L18:L20,AN11) -> 0 | AP11: =AO11/(AQ4-AO20) -> 0 | AQ11: =IF(AP11=0,0,(AP11*((LOG(AP11))/LOG(2)))) -> 0 | AS11: =N11 -> 1211 | AT11: =COUNTIF(L21:L23,AS11) -> 0 | AU11: =AT11/(AV4-AT20) -> 0 | AV11: =IF(AU11=0,0,(AU11*((LOG(AU11))/LOG(2)))) -> 0
A12: 12 | B12: 1006 | C12: 14 | D12: 1011 | E12: 13 | F12: 1016 | G12: 23 | H12: 1026 | K12: 0 | L12: 1112 | N12: 1212 | O12: =COUNTIF($L$7:$L$500,N12) -> 0 | P12: =O12/$Q$4 -> 0 | Q12: =IF(P12=0,0,(P12*((LOG(P12))/LOG(2)))) -> 0 | T12: =N12 -> 1212 | U12: =COUNTIF(L7:L9,T12) -> 0 | V12: =U12/(W4-U20) -> 0 | W12: =IF(V12=0,0,(V12*((LOG(V12))/LOG(2)))) -> 0 | Y12: =N12 -> 1212 | Z12: =COUNTIF(L10:L12,Y12) -> 0 | AA12: =Z12/(AB4-Z20) -> 0 | AB12: =IF(AA12=0,0,(AA12*((LOG(AA12))/LOG(2)))) -> 0 | AD12: =N12 -> 1212 | AE12: =COUNTIF(L13:L14,AD12) -> 0 | AF12: =AE12/(AG4-AE20) -> 0 | AG12: =IF(AF12=0,0,(AF12*((LOG(AF12))/LOG(2)))) -> 0 | AI12: =N12 -> 1212 | AJ12: =COUNTIF(L15:L17,AI12) -> 0 | AK12: =AJ12/(AL4-AJ20) -> 0 | AL12: =IF(AK12=0,0,(AK12*((LOG(AK12))/LOG(2)))) -> 0 | AN12: =N12 -> 1212 | AO12: =COUNTIF(L18:L20,AN12) -> 0 | AP12: =AO12/(AQ4-AO20) -> 0 | AQ12: =IF(AP12=0,0,(AP12*((LOG(AP12))/LOG(2)))) -> 0 | AS12: =N12 -> 1212 | AT12: =COUNTIF(L21:L23,AS12) -> 0 | AU12: =AT12/(AV4-AT20) -> 0 | AV12: =IF(AU12=0,0,(AU12*((LOG(AU12))/LOG(2)))) -> 0
A13: 12 | B13: 1126 | C13: 14 | D13: 1127 | E13: 13 | F13: 1130 | G13: 23 | H13: 1138 | K13: 0 | L13: 1112 | N13: 1221 | O13: =COUNTIF($L$7:$L$500,N13) -> 1 | P13: =O13/$Q$4 -> 0.0625 | Q13: =IF(P13=0,0,(P13*((LOG(P13))/LOG(2)))) -> -0.25 | T13: =N13 -> 1221 | U13: =COUNTIF(L7:L9,T13) -> 0 | V13: =U13/(W4-U20) -> 0 | W13: =IF(V13=0,0,(V13*((LOG(V13))/LOG(2)))) -> 0 | Y13: =N13 -> 1221 | Z13: =COUNTIF(L10:L12,Y13) -> 0 | AA13: =Z13/(AB4-Z20) -> 0 | AB13: =IF(AA13=0,0,(AA13*((LOG(AA13))/LOG(2)))) -> 0 | AD13: =N13 -> 1221 | AE13: =COUNTIF(L13:L14,AD13) -> 0 | AF13: =AE13/(AG4-AE20) -> 0 | AG13: =IF(AF13=0,0,(AF13*((LOG(AF13))/LOG(2)))) -> 0 | AI13: =N13 -> 1221 | AJ13: =COUNTIF(L15:L17,AI13) -> 0 | AK13: =AJ13/(AL4-AJ20) -> 0 | AL13: =IF(AK13=0,0,(AK13*((LOG(AK13))/LOG(2)))) -> 0 | AN13: =N13 -> 1221 | AO13: =COUNTIF(L18:L20,AN13) -> 0 | AP13: =AO13/(AQ4-AO20) -> 0 | AQ13: =IF(AP13=0,0,(AP13*((LOG(AP13))/LOG(2)))) -> 0 | AS13: =N13 -> 1221 | AT13: =COUNTIF(L21:L23,AS13) -> 1 | AU13: =AT13/(AV4-AT20) -> 0.5 | AV13: =IF(AU13=0,0,(AU13*((LOG(AU13))/LOG(2)))) -> -0.5
A14: 12 | B14: 1239 | C14: 14 | D14: 1240 | E14: 13 | F14: 1242 | G14: 14 | H14: 1259 | K14: 0 | L14: 1111 | N14: 1222 | O14: =COUNTIF($L$7:$L$500,N14) -> 0 | P14: =O14/$Q$4 -> 0 | Q14: =IF(P14=0,0,(P14*((LOG(P14))/LOG(2)))) -> 0 | T14: =N14 -> 1222 | U14: =COUNTIF(L7:L9,T14) -> 0 | V14: =U14/(W4-U20) -> 0 | W14: =IF(V14=0,0,(V14*((LOG(V14))/LOG(2)))) -> 0 | Y14: =N14 -> 1222 | Z14: =COUNTIF(L10:L12,Y14) -> 0 | AA14: =Z14/(AB4-Z20) -> 0 | AB14: =IF(AA14=0,0,(AA14*((LOG(AA14))/LOG(2)))) -> 0 | AD14: =N14 -> 1222 | AE14: =COUNTIF(L13:L14,AD14) -> 0 | AF14: =AE14/(AG4-AE20) -> 0 | AG14: =IF(AF14=0,0,(AF14*((LOG(AF14))/LOG(2)))) -> 0 | AI14: =N14 -> 1222 | AJ14: =COUNTIF(L15:L17,AI14) -> 0 | AK14: =AJ14/(AL4-AJ20) -> 0 | AL14: =IF(AK14=0,0,(AK14*((LOG(AK14))/LOG(2)))) -> 0 | AN14: =N14 -> 1222 | AO14: =COUNTIF(L18:L20,AN14) -> 0 | AP14: =AO14/(AQ4-AO20) -> 0 | AQ14: =IF(AP14=0,0,(AP14*((LOG(AP14))/LOG(2)))) -> 0 | AS14: =N14 -> 1222 | AT14: =COUNTIF(L21:L23,AS14) -> 0 | AU14: =AT14/(AV4-AT20) -> 0 | AV14: =IF(AU14=0,0,(AU14*((LOG(AU14))/LOG(2)))) -> 0
A15: 12 | B15: 1557 | C15: 14 | D15: 1829 | E15: 13 | F15: 1836 | G15: 14 | H15: 1839 | K15: 0 | L15: 1111 | N15: 2111 | O15: =COUNTIF($L$7:$L$500,N15) -> 0 | P15: =O15/$Q$4 -> 0 | Q15: =IF(P15=0,0,(P15*((LOG(P15))/LOG(2)))) -> 0 | T15: =N15 -> 2111 | U15: =COUNTIF(L7:L9,T15) -> 0 | V15: =U15/(W4-U20) -> 0 | W15: =IF(V15=0,0,(V15*((LOG(V15))/LOG(2)))) -> 0 | Y15: =N15 -> 2111 | Z15: =COUNTIF(L10:L12,Y15) -> 0 | AA15: =Z15/(AB4-Z20) -> 0 | AB15: =IF(AA15=0,0,(AA15*((LOG(AA15))/LOG(2)))) -> 0 | AD15: =N15 -> 2111 | AE15: =COUNTIF(L13:L14,AD15) -> 0 | AF15: =AE15/(AG4-AE20) -> 0 | AG15: =IF(AF15=0,0,(AF15*((LOG(AF15))/LOG(2)))) -> 0 | AI15: =N15 -> 2111 | AJ15: =COUNTIF(L15:L17,AI15) -> 0 | AK15: =AJ15/(AL4-AJ20) -> 0 | AL15: =IF(AK15=0,0,(AK15*((LOG(AK15))/LOG(2)))) -> 0 | AN15: =N15 -> 2111 | AO15: =COUNTIF(L18:L20,AN15) -> 0 | AP15: =AO15/(AQ4-AO20) -> 0 | AQ15: =IF(AP15=0,0,(AP15*((LOG(AP15))/LOG(2)))) -> 0 | AS15: =N15 -> 2111 | AT15: =COUNTIF(L21:L23,AS15) -> 0 | AU15: =AT15/(AV4-AT20) -> 0 | AV15: =IF(AU15=0,0,(AU15*((LOG(AU15))/LOG(2)))) -> 0
A16: 21 | B16: 2212 | C16: 21 | D16: 2213 | E16: 22 | F16: 2219 | G16: 23 | H16: 2225 | K16: 0 | L16: 2222 | N16: 2112 | O16: =COUNTIF($L$7:$L$500,N16) -> 0 | P16: =O16/$Q$4 -> 0 | Q16: =IF(P16=0,0,(P16*((LOG(P16))/LOG(2)))) -> 0 | T16: =N16 -> 2112 | U16: =COUNTIF(L7:L9,T16) -> 0 | V16: =U16/(W4-U20) -> 0 | W16: =IF(V16=0,0,(V16*((LOG(V16))/LOG(2)))) -> 0 | Y16: =N16 -> 2112 | Z16: =COUNTIF(L10:L12,Y16) -> 0 | AA16: =Z16/(AB4-Z20) -> 0 | AB16: =IF(AA16=0,0,(AA16*((LOG(AA16))/LOG(2)))) -> 0 | AD16: =N16 -> 2112 | AE16: =COUNTIF(L13:L14,AD16) -> 0 | AF16: =AE16/(AG4-AE20) -> 0 | AG16: =IF(AF16=0,0,(AF16*((LOG(AF16))/LOG(2)))) -> 0 | AI16: =N16 -> 2112 | AJ16: =COUNTIF(L15:L17,AI16) -> 0 | AK16: =AJ16/(AL4-AJ20) -> 0 | AL16: =IF(AK16=0,0,(AK16*((LOG(AK16))/LOG(2)))) -> 0 | AN16: =N16 -> 2112 | AO16: =COUNTIF(L18:L20,AN16) -> 0 | AP16: =AO16/(AQ4-AO20) -> 0 | AQ16: =IF(AP16=0,0,(AP16*((LOG(AP16))/LOG(2)))) -> 0 | AS16: =N16 -> 2112 | AT16: =COUNTIF(L21:L23,AS16) -> 0 | AU16: =AT16/(AV4-AT20) -> 0 | AV16: =IF(AU16=0,0,(AU16*((LOG(AU16))/LOG(2)))) -> 0
A17: 21 | B17: 3877 | C17: 21 | D17: 3885 | E17: 22 | F17: 3892 | G17: 14 | H17: 3907 | K17: 0 | L17: 2221 | N17: 2121 | O17: =COUNTIF($L$7:$L$500,N17) -> 0 | P17: =O17/$Q$4 -> 0 | Q17: =IF(P17=0,0,(P17*((LOG(P17))/LOG(2)))) -> 0 | T17: =N17 -> 2121 | U17: =COUNTIF(L7:L9,T17) -> 0 | V17: =U17/(W4-U20) -> 0 | W17: =IF(V17=0,0,(V17*((LOG(V17))/LOG(2)))) -> 0 | Y17: =N17 -> 2121 | Z17: =COUNTIF(L10:L12,Y17) -> 0 | AA17: =Z17/(AB4-Z20) -> 0 | AB17: =IF(AA17=0,0,(AA17*((LOG(AA17))/LOG(2)))) -> 0 | AD17: =N17 -> 2121 | AE17: =COUNTIF(L13:L14,AD17) -> 0 | AF17: =AE17/(AG4-AE20) -> 0 | AG17: =IF(AF17=0,0,(AF17*((LOG(AF17))/LOG(2)))) -> 0 | AI17: =N17 -> 2121 | AJ17: =COUNTIF(L15:L17,AI17) -> 0 | AK17: =AJ17/(AL4-AJ20) -> 0 | AL17: =IF(AK17=0,0,(AK17*((LOG(AK17))/LOG(2)))) -> 0 | AN17: =N17 -> 2121 | AO17: =COUNTIF(L18:L20,AN17) -> 0 | AP17: =AO17/(AQ4-AO20) -> 0 | AQ17: =IF(AP17=0,0,(AP17*((LOG(AP17))/LOG(2)))) -> 0 | AS17: =N17 -> 2121 | AT17: =COUNTIF(L21:L23,AS17) -> 0 | AU17: =AT17/(AV4-AT20) -> 0 | AV17: =IF(AU17=0,0,(AU17*((LOG(AU17))/LOG(2)))) -> 0
A18: 12 | B18: 4081 | C18: 14 | D18: 4099 | E18: 24 | F18: 4106 | G18: 23 | H18: 4110 | K18: 0 | L18: 1122 | N18: 2122 | O18: =COUNTIF($L$7:$L$500,N18) -> 0 | P18: =O18/$Q$4 -> 0 | Q18: =IF(P18=0,0,(P18*((LOG(P18))/LOG(2)))) -> 0 | T18: =N18 -> 2122 | U18: =COUNTIF(L7:L9,T18) -> 0 | V18: =U18/(W4-U20) -> 0 | W18: =IF(V18=0,0,(V18*((LOG(V18))/LOG(2)))) -> 0 | Y18: =N18 -> 2122 | Z18: =COUNTIF(L10:L12,Y18) -> 0 | AA18: =Z18/(AB4-Z20) -> 0 | AB18: =IF(AA18=0,0,(AA18*((LOG(AA18))/LOG(2)))) -> 0 | AD18: =N18 -> 2122 | AE18: =COUNTIF(L13:L14,AD18) -> 0 | AF18: =AE18/(AG4-AE20) -> 0 | AG18: =IF(AF18=0,0,(AF18*((LOG(AF18))/LOG(2)))) -> 0 | AI18: =N18 -> 2122 | AJ18: =COUNTIF(L15:L17,AI18) -> 0 | AK18: =AJ18/(AL4-AJ20) -> 0 | AL18: =IF(AK18=0,0,(AK18*((LOG(AK18))/LOG(2)))) -> 0 | AN18: =N18 -> 2122 | AO18: =COUNTIF(L18:L20,AN18) -> 0 | AP18: =AO18/(AQ4-AO20) -> 0 | AQ18: =IF(AP18=0,0,(AP18*((LOG(AP18))/LOG(2)))) -> 0 | AS18: =N18 -> 2122 | AT18: =COUNTIF(L21:L23,AS18) -> 0 | AU18: =AT18/(AV4-AT20) -> 0 | AV18: =IF(AU18=0,0,(AU18*((LOG(AU18))/LOG(2)))) -> 0
A19: 12 | B19: 4242 | C19: 14 | D19: 4260 | E19: 13 | F19: 4269 | G19: 14 | H19: 4274 | K19: 0 | L19: 1111 | N19: 2211 | O19: =COUNTIF($L$7:$L$500,N19) -> 0 | P19: =O19/$Q$4 -> 0 | Q19: =IF(P19=0,0,(P19*((LOG(P19))/LOG(2)))) -> 0 | T19: =N19 -> 2211 | U19: =COUNTIF(L7:L9,T19) -> 0 | V19: =U19/(W4-U20) -> 0 | W19: =IF(V19=0,0,(V19*((LOG(V19))/LOG(2)))) -> 0 | Y19: =N19 -> 2211 | Z19: =COUNTIF(L10:L12,Y19) -> 0 | AA19: =Z19/(AB4-Z20) -> 0 | AB19: =IF(AA19=0,0,(AA19*((LOG(AA19))/LOG(2)))) -> 0 | AD19: =N19 -> 2211 | AE19: =COUNTIF(L13:L14,AD19) -> 0 | AF19: =AE19/(AG4-AE20) -> 0 | AG19: =IF(AF19=0,0,(AF19*((LOG(AF19))/LOG(2)))) -> 0 | AI19: =N19 -> 2211 | AJ19: =COUNTIF(L15:L17,AI19) -> 0 | AK19: =AJ19/(AL4-AJ20) -> 0 | AL19: =IF(AK19=0,0,(AK19*((LOG(AK19))/LOG(2)))) -> 0 | AN19: =N19 -> 2211 | AO19: =COUNTIF(L18:L20,AN19) -> 0 | AP19: =AO19/(AQ4-AO20) -> 0 | AQ19: =IF(AP19=0,0,(AP19*((LOG(AP19))/LOG(2)))) -> 0 | AS19: =N19 -> 2211 | AT19: =COUNTIF(L21:L23,AS19) -> 0 | AU19: =AT19/(AV4-AT20) -> 0 | AV19: =IF(AU19=0,0,(AU19*((LOG(AU19))/LOG(2)))) -> 0
A20: 12 | B20: 4385 | C20: 14 | D20: 4410 | E20: 13 | F20: 4413 | G20: 23 | H20: 4415 | K20: 0 | L20: 1112 | N20: 2212 | O20: =COUNTIF($L$7:$L$500,N20) -> 0 | P20: =O20/$Q$4 -> 0 | Q20: =IF(P20=0,0,(P20*((LOG(P20))/LOG(2)))) -> 0 | T20: =N20 -> 2212 | U20: =COUNTIF(L7:L9,T20) -> 0 | Y20: =N20 -> 2212 | Z20: =COUNTIF(L10:L12,Y20) -> 0 | AD20: =N20 -> 2212 | AE20: =COUNTIF(L13:L14,AD20) -> 0 | AI20: =N20 -> 2212 | AJ20: =COUNTIF(L15:L17,AI20) -> 0 | AN20: =N20 -> 2212 | AO20: =COUNTIF(L18:L20,AN20) -> 0 | AS20: =N20 -> 2212 | AT20: =COUNTIF(L21:L23,AS20) -> 0
A21: 12 | B21: 4518 | C21: 14 | D21: 4541 | E21: 24 | F21: 4543 | G21: 14 | H21: 4545 | K21: 0 | L21: 1121 | N21: 2221 | O21: =COUNTIF($L$7:$L$500,N21) -> 1 | P21: =O21/$Q$4 -> 0.0625 | Q21: =IF(P21=0,0,(P21*((LOG(P21))/LOG(2)))) -> -0.25 | T21: =N21 -> 2221 | U21: =COUNTIF(L7:L9,T21) -> 0 | V21: =U21/(W4-U20) -> 0 | W21: =IF(V21=0,0,(V21*((LOG(V21))/LOG(2)))) -> 0 | Y21: =N21 -> 2221 | Z21: =COUNTIF(L10:L12,Y21) -> 0 | AA21: =Z21/(AB4-Z20) -> 0 | AB21: =IF(AA21=0,0,(AA21*((LOG(AA21))/LOG(2)))) -> 0 | AD21: =N21 -> 2221 | AE21: =COUNTIF(L13:L14,AD21) -> 0 | AF21: =AE21/(AG4-AE20) -> 0 | AG21: =IF(AF21=0,0,(AF21*((LOG(AF21))/LOG(2)))) -> 0 | AI21: =N21 -> 2221 | AJ21: =COUNTIF(L15:L17,AI21) -> 1 | AK21: =AJ21/(AL4-AJ20) -> 0.3333333333 | AL21: =IF(AK21=0,0,(AK21*((LOG(AK21))/LOG(2)))) -> -0.5283208336 | AN21: =N21 -> 2221 | AO21: =COUNTIF(L18:L20,AN21) -> 0 | AP21: =AO21/(AQ4-AO20) -> 0 | AQ21: =IF(AP21=0,0,(AP21*((LOG(AP21))/LOG(2)))) -> 0 | AS21: =N21 -> 2221 | AT21: =COUNTIF(L21:L23,AS21) -> 0 | AU21: =AT21/(AV4-AT20) -> 0 | AV21: =IF(AU21=0,0,(AU21*((LOG(AU21))/LOG(2)))) -> 0
A22: 12 | B22: 5969 | C22: 23 | D22: 5978 | E22: 24 | F22: 5983 | G22: 14 | H22: 6094 | K22: 0 | L22: 1221 | N22: 2222 | O22: =COUNTIF($L$7:$L$500,N22) -> 2 | P22: =O22/$Q$4 -> 0.125 | Q22: =IF(P22=0,0,(P22*((LOG(P22))/LOG(2)))) -> -0.375 | T22: =N22 -> 2222 | U22: =COUNTIF(L7:L9,T22) -> 0 | V22: =U22/(W4-U20) -> 0 | W22: =IF(V22=0,0,(V22*((LOG(V22))/LOG(2)))) -> 0 | Y22: =N22 -> 2222 | Z22: =COUNTIF(L10:L12,Y22) -> 1 | AA22: =Z22/(AB4-Z20) -> 0.3333333333 | AB22: =IF(AA22=0,0,(AA22*((LOG(AA22))/LOG(2)))) -> -0.5283208336 | AD22: =N22 -> 2222 | AE22: =COUNTIF(L13:L14,AD22) -> 0 | AF22: =AE22/(AG4-AE20) -> 0 | AG22: =IF(AF22=0,0,(AF22*((LOG(AF22))/LOG(2)))) -> 0 | AI22: =N22 -> 2222 | AJ22: =COUNTIF(L15:L17,AI22) -> 1 | AK22: =AJ22/(AL4-AJ20) -> 0.3333333333 | AL22: =IF(AK22=0,0,(AK22*((LOG(AK22))/LOG(2)))) -> -0.5283208336 | AN22: =N22 -> 2222 | AO22: =COUNTIF(L18:L20,AN22) -> 0 | AP22: =AO22/(AQ4-AO20) -> 0 | AQ22: =IF(AP22=0,0,(AP22*((LOG(AP22))/LOG(2)))) -> 0 | AS22: =N22 -> 2222 | AT22: =COUNTIF(L21:L23,AS22) -> 0 | AU22: =AT22/(AV4-AT20) -> 0 | AV22: =IF(AU22=0,0,(AU22*((LOG(AU22))/LOG(2)))) -> 0
A23: 21 | B23: 14543 | L23: 2 | P23: =SUM(P7:P22) -> 1 | Q23: =-SUM(Q7:Q22) -> 2.555036533 | V23: =SUM(V7:V22) -> 1 | W23: =-SUM(W7:W22) -> 0 | AA23: =SUM(AA7:AA22) -> 1 | AB23: =-SUM(AB7:AB22) -> 1.584962501 | AF23: =SUM(AF7:AF22) -> 1 | AG23: =-SUM(AG7:AG22) -> 1 | AK23: =SUM(AK7:AK22) -> 1 | AL23: =-SUM(AL7:AL22) -> 1.584962501 | AP23: =SUM(AP7:AP22) -> 1 | AQ23: =-SUM(AQ7:AQ22) -> 1.584962501 | AU23: =SUM(AU7:AU22) -> 1 | AV23: =-SUM(AV7:AV22) -> 1
P24: U= | Q24: =Q23/(LOG(Q4)/LOG(2)) -> 0.6387591331 | V24: U1= | W24: =W23/(LOG(W4)/LOG(2)) -> 0 | AA24: U2= | AB24: =AB23/(LOG(AB4)/LOG(2)) -> 1 | AF24: U3= | AG24: =AG23/(LOG(AG4)/LOG(2)) -> 1 | AK24: U4= | AL24: =AL23/(LOG(AL4)/LOG(2)) -> 1 | AP24: U5= | AQ24: =AQ23/(LOG(AQ4)/LOG(2)) -> 1 | AU24: U6= | AV24: =AV23/(LOG(AV4)/LOG(2)) -> 1
N27: Total Target Seq
N28: =COUNTIF(L7:L23,G3) -> 0 | P28: 3 | Q28: 3 | R28: 2 | S28: 3 | T28: 3 | U28: 3
P29: % of reinforcement given in 6 equal intervals based on number of trials
P30: %_1 | Q30: %_2 | R30: %_3 | S30: %_4 | T30: %_5 | U30: %_6
O31: target sequence | P31: =$G$3 -> 2212 | Q31: =$G$3 -> 2212 | R31: =$G$3 -> 2212 | S31: =$G$3 -> 2212 | T31: =$G$3 -> 2212 | U31: =$G$3 -> 2212
O32: total reinforcement | P32: =U20 -> 0 | Q32: =Z20 -> 0 | R32: =AE20 -> 0 | S32: =AJ20 -> 0 | T32: =AO20 -> 0 | U32: =AT20 -> 0
O33: % target
O34: CCRF
O35: % CCRf
O36: average response rate | P36: =H9/P28 -> 190.6666667 | Q36: =(H12-H9)/Q28 -> 151.3333333 | R36: =(H14-H12)/R28 -> 116.5 | S36: =(H17-H14)/S28 -> 882.6666667 | T36: =(H20-H17)/T28 -> 169.3333333 | U36: =(H23-H20)/U28 -> -1471.666667

Sheet !M119B4T.ayl
A1: Report for:!M119B4T.ayl
A2: Date: | B2: <date>
A3: Hen: | B3: <hen> | F3: Correct Sequence | G3: =Start!J2 -> 2212 | P3: Total Sequences in Data | Q3: =4994-COUNTBLANK(L7:L5000) -> 16 | V3: Total Sequences in Block Data | W3: =COUNTA(L7:L9) -> 3 | AA3: Total Sequences in Block Data | AB3: =COUNTA(L10:L11) -> 2 | AF3: Total Sequences in Block Data | AG3: =COUNTA(L12:L14) -> 3 | AK3: Total Sequences in Block Data | AL3: =COUNTA(L15:L17) -> 3 | AP3: Total Sequences in Block Data | AQ3: =COUNTA(L18:L19) -> 2 | AU3: Total Sequences in Block Data | AV3: =COUNTA(L20:L22) -> 3
P4: Total Sequences in Summary | Q4: =SUM(O7:O22) -> 15 | V4: Total Sequences in Block Summary | W4: =SUM(U7:U22) -> 3 | AA4: Total Sequences in Block Summary | AB4: =SUM(Z7:Z22) -> 2 | AF4: Total Sequences in Block Summary | AG4: =SUM(AE7:AE22) -> 3 | AK4: Total Sequences in Block Summary | AL4: =SUM(AJ7:AJ22) -> 3 | AP4: Total Sequences in Block Summary | AQ4: =SUM(AO7:AO22) -> 2 | AU4: Total Sequences in Block Summary | AV4: =SUM(AT7:AT22) -> 2
T5: Block 1 | Y5: Block 2 | AD5: Block 3 | AI5: Block 4 | AN5: Block 5 | AS5: Block 6
A6: Sequence Component 1 | B6: Time 1 | C6: Sequence Component 2 | D6: Time 2 | E6: Sequence Component 3 | F6: Time 3 | G6: Sequence Component 4 | H6: Time 4 | I6: Sequence Component 5 | J6: Time 5 | K6: Correct? 0=No 1=Yes | L6: Sequence | N6: Frequency | P6: Relative Frequency | Q6: Variability | T6: Frequency | V6: Relative Frequency | W6: Variability | Y6: Frequency | AA6: Relative Frequency | AB6: Variability | AD6: Frequency | AF6: Relative Frequency | AG6: Variability | AI6: Frequency | AK6: Relative Frequency | AL6: Variability | AN6: Frequency | AP6: Relative Frequency | AQ6: Variability | AS6: Frequency | AU6: Relative Frequency | AV6: Variability
A7: 21 | B7: 46 | C7: 12 | D7: 53 | E7: 24 | F7: 66 | G7: 23 | H7: 72 | K7: 0 | L7: 2122 | N7: 1111 | O7: =COUNTIF($L$7:$L$500,N7) -> 4 | P7: =O7/$Q$4 -> 0.2666666667 | Q7: =IF(P7=0,0,(P7*((LOG(P7))/LOG(2)))) -> -0.5085041588 | T7: =N7 -> 1111 | U7: =COUNTIF(L7:L9,T7) -> 1 | V7: =U7/(W4-U20) -> 0.3333333333 | W7: =IF(V7=0,0,(V7*((LOG(V7))/LOG(2)))) -> -0.5283208336 | Y7: =N7 -> 1111 | Z7: =COUNTIF(L10:L11,Y7) -> 2 | AA7: =Z7/(AB4-Z20) -> 1 | AB7: =IF(AA7=0,0,(AA7*((LOG(AA7))/LOG(2)))) -> 0 | AD7: =N7 -> 1111 | AE7: =COUNTIF(L12:L14,AD7) -> 1 | AF7: =AE7/(AG4-AE20) -> 0.3333333333 | AG7: =IF(AF7=0,0,(AF7*((LOG(AF7))/LOG(2)))) -> -0.5283208336 | AI7: =N7 -> 1111 | AJ7: =COUNTIF(L15:L17,AI7) -> 0 | AK7: =AJ7/(AL4-AJ20) -> 0 | AL7: =IF(AK7=0,0,(AK7*((LOG(AK7))/LOG(2)))) -> 0 | AN7: =N7 -> 1111 | AO7: =COUNTIF(L18:L19,AN7) -> 0 | AP7: =AO7/(AQ4-AO20) -> 0 | AQ7: =IF(AP7=0,0,(AP7*((LOG(AP7))/LOG(2)))) -> 0 | AS7: =N7 -> 1111 | AT7: =COUNTIF(L20:L22,AS7) -> 0 | AU7: =AT7/(AV4-AT20) -> 0 | AV7: =IF(AU7=0,0,(AU7*((LOG(AU7))/LOG(2)))) -> 0
